{"text_format":"1","workbook":"xlsx","n_sheets":3,"sheets":["Veriler","DersAy","DersHafta"],"not_rendered":{"charts":303,"images":0,"macros":1,"external_links":0,"defined_names":0,"comments":0,"pivot_tables":0},"unopened":[],"bounds":{"document_bytes":16777216,"sheet_cells":100000,"rows_first":2000,"rows_last":500,"rows_between":2000,"halvings":0,"cell_chars":16384,"cell_head_chars":4096},"cells_cut":0,"cells_raw":0,"read":"whole","date_system":"1900"}

{"sheet":"Veriler","index":0,"n_rows":264,"n_cols":13019,"rows_kept":264,"cut":false,"hidden":false,"merged":[[3,28,4,31],[9,28,9,31],[9,32,9,35],[9,8,9,11],[9,12,9,15],[9,16,9,19],[9,20,9,23],[9,24,9,27],[3,8,4,11],[3,12,4,15],[3,16,4,19],[3,20,4,23],[3,24,4,27],[72,1,74,1],[75,1,78,1],[40,1,43,1],[44,1,46,1],[47,1,50,1],[51,1,53,1],[236,1,239,1],[261,1,263,1],[100,1,102,1],[103,1,106,1],[226,1,228,1],[229,1,232,1],[233,1,235,1],[142,1,144,1],[145,1,148,1],[149,1,151,1],[152,1,155,1],[138,1,141,1],[107,1,109,1],[110,1,113,1],[114,1,116,1],[117,1,120,1],[3,1,4,6],[58,1,60,1],[61,1,64,1],[65,1,67,1],[68,1,71,1],[54,1,57,1],[16,1,18,1],[12,1,15,1],[19,1,22,1],[23,1,25,1],[26,1,29,1],[30,1,32,1],[33,1,36,1],[37,1,39,1],[89,1,92,1],[93,1,95,1],[96,1,99,1],[79,1,81,1],[82,1,85,1],[86,1,88,1],[121,1,123,1],[131,1,134,1],[135,1,137,1],[124,1,127,1],[128,1,130,1],[184,1,186,1],[187,1,190,1],[156,1,158,1],[159,1,162,1],[163,1,165,1],[166,1,169,1],[170,1,172,1],[173,1,176,1],[177,1,179,1],[180,1,183,1],[257,1,260,1],[240,1,242,1],[243,1,246,1],[247,1,249,1],[250,1,253,1],[254,1,256,1],[215,1,218,1],[219,1,221,1],[222,1,225,1],[191,1,193,1],[194,1,197,1],[198,1,200,1],[201,1,204,1],[205,1,207,1],[208,1,211,1],[212,1,214,1]]}
[null,null,null,null,null,null,null,null,"D","Y","B","T",{"$f":"I1","v":"D"},{"$f":"J1","v":"Y"},"B","T","D","Y","B","T","D","Y","B","T","D","Y","B","T","D","Y","B","T",{"$f":"AC1","v":"D"},{"$f":"AD1","v":"Y"},{"$f":"AE1","v":"B"},{"$f":"AF1","v":"T"},null,null,null,null,null,null,null,null,null,null,null,null,null,null,null,null,null,null,null,null,null,null,null,null,null,null,null,null,null,null,null,null,null,null,null,null,null,null,null,null,null,null,null,null,null,null,null,null,null,null,null,null,null,null,null,null,null,null,null,null,null,null,null,null,null,null,null,null,null,null,null,null,null,null,null,null,null,null,null,null,null,null,null,null,null,null,null,null,null,null,null,null,null,null,null,null,null,null,null,null,null,null,null,null,null,null,null,null,null,null,null,null,null,null,null,null,null,null,null,null,null,null,null,null,null,null,null,null,null,null,null,null,null,null,null,null,null,null,null,null,null,null,null,null,null,null,null,null,null,null,null,null,null,null,null,null,null,null,null,null,null,null,null,null,null,null,null,null,null,null,null,null,null,null,null,null,null,null,null,null,null,null,null,null,null,null,null,null,null,null,null,null,null,null,null,null,null,null,null,null,null,null,null,null,null,null,null,null,null,null,null,null,null,null,null,null,null,null,null,null,null,null,null,null,null,null,null,null,null,null,null,null,null,null,null,null,null,null,null,null,null,null,null,null,null,null,null,null,null,null,null,null,null,null,null,null,null,null,null,null,null,null,null,null,null,null,null,null,null,null,null,null,null,null,null,null,null,null,null,null,null,null,null,null,null,null,null,null,null,null,null,null,null,null,null,null,null,null,null,null,null,null,null,null,null,null,null,null,null,null,null,null,null,null,null,null,null,null,null,null,null,null,null,null,null,null,null,null,null,null,null,null,null,null,null,null,null,null,null,null,null,null,null,null,null,null,null,null,null,null,null,null,null,null,null,null,null,null,null,null,null,null,null,null,null,null,null,null,null,null,null,null,null,null,null,null,null,null,null,null,null,null,null,null,null,null,null,null,null,null,null,null,null,null,null,null,null,null,null,null,null,null,null,null,null,null,null,null,null,null,null,null,null,null,null,null,null,null,null,null,null,null,null,null,null,null,null,null,null,null,null,null,null,null,null,null,null,null,null,null,null,null,null,null,null,null,null,null,null,null,null,null,null,null,null,null,null,null,null,null,null,null,null,null,null,null,null,null,null,null,null,null,null,null,null,null,null,null,null,null,null,null,null,null,null,null,null,null,null,null,null,null,null,null,null,null,null,null,null,null,null,null,null,null,null,null,null,null,null,null,null,null,null,null,null,null,null,null,null,null,null,null,null,null,null,null,null,null,null,null,null,null,null,null,null,null,null,null,null,null,null,null,null,null,null,null,null,null,null,null,null,null,null,null,null,null,null,null,null,null,null,null,null,null,null,null,null,null,null,null,null,null,null,null,null,null,null,null,null,null,null,null,null,null,null,null,null,null,null,null,null,null,null,null,null,null,null,null,null,null,null,null,null,null,null,null,null,null,null,null,null,null,null,null,null,null,null,null,null,null,null,null,null,null,null,null,null,null,null,null,null,null,null,null,null,null,null,null,null,null,null,null,null,null,null,null,null,null,null,null,null,null,null,null,null,null,null,null,null,null,null,null,null,null,null,null,null,null,null,null,null,null,null,null,null,null,null,null,null,null,null,null,null,null,null,null,null,null,null,null,null,null,null,null,null,null,null,null,null,null,null,null,null,null,null,null,null,null,null,null,null,null,null,null,null,null,null,null,null,null,null,null,null,null,null,null,null,null,null,null,null,null,null,null,null,null,null,null,null,null,null,null,null,null,null,null,null,null,null,null,null,null,null,null,null,null,null,null,null,null,null,null,null,null,null,null,null,null,null,null,null,null,null,null,null,null,null,null,null,null,null,null,null,null,null,null,null,null,null,null,null,null,null,null,null,null,null,null,null,null,null,null,null,null,null,null,null,null,null,null,null,null,null,null,null,null,null,null,null,null,null,null,null,null,null,null,null,null,null,null,null,null,null,null,null,null,null,null,null,null,null,null,null,null,null,null,null,null,null,null,null,null,null,null,null,null,null,null,null,null,null,null,null,null,null,null,null,null,null,null,null,null,null,null,null,null,null,null,null,null,null,null,null,null,null,null,null,null,null,null,null,null,null,null,null,null,null,null,null,null,null,null,null,null,null,null,null,null,null,null,null,null,null,null,null,null,null,null,null,null,null,null,null,null,null,null,null,null,null,null,null,null,null,null,null,null,null,null,null,null,null,null,null,null,null,null,null,null,null,null,null,null,null,null,null,null,null,null,null,null,null,null,null,null,null,null,null,null,null,null,null,null,null,null,null,null,null,null,null,null,null,null,null,null,null,null,null,null,null,null,null,null,null,null,null,null,null,null,null,null,null,null,null,null,null,null,null,null,null,null,null,null,null,null,null,null,null,null,null,null,null,null,null,null,null,null,null,null,null,null,null,null,null,null,null,null,null,null,null,null,null,null,null,null,null,null,null,null,null,null,null,null,null,null,null,null,null,null,null,null,null,null,null,null,null,null,null,null,null,null,null,null,null,null,null,null,null,null,null,null,null,null,null,null,null,null,null,null,null,null,null,null,null,null,null,null,null,null,null,null,null,null,null,null,null,null,null,null,null,null,null,null,null,null,null,null,null,null,null,null,null,null,null,null,null,null,null,null,null,null,null,null,null,null,null,null,null,null,null,null,null,null,null,null,null,null,null,null,null,null,null,null,null,null,null,null,null,null,null,null,null,null,null,null,null,null,null,null,null,null,null,null,null,null,null,null,null,null,null,null,null,null,null,null,null,null,null,null,null,null,null,null,null,null,null,null,null,null,null,null,null,null,null,null,null,null,null,null,null,null,null,null,null,null,null,null,null,null,null,null,null,null,null,null,null,null,null,null,null,null,null,null,null,null,null,null,null,null,null,null,null,null,null,null,null,null,null,null,null,null,null,null,null,null,null,null,null,null,null,null,null,null,null,null,null,null,null,null,null,null,null,null,null,null,null,null,null,null,null,null,null,null,null,null,null,null,null,null,null,null,null,null,null,null,null,null,null,null,null,null,null,null,null,null,null,null,null,null,null,null,null,null,null,null,null,null,null,null,null,null,null,null,null,null,null,null,null,null,null,null,null,null,null,null,null,null,null,null,null,null,null,null,null,null,null,null,null,null,null,null,null,null,null,null,null,null,null,null,null,null,null,null,null,null,null,null,null,null,null,null,null,null,null,null,null,null,null,null,null,null,null,null,null,null,null,null,null,null,null,null,null,null,null,null,null,null,null,null,null,null,null,null,null,null,null,null,null,null,null,null,null,null,null,null,null,null,null,null,null,null,null,null,null,null,null,null,null,null,null,null,null,null,null,null,null,null,null,null,null,null,null,null,null,null,null,null,null,null,null,null,null,null,null,null,null,null,null,null,null,null,null,null,null,null,null,null,null,null,null,null,null,null,null,null,null,null,null,null,null,null,null,null,null,null,null,null,null,null,null,null,null,null,null,null,null,null,null,null,null,null,null,null,null,null,null,null,null,null,null,null,null,null,null,null,null,null,null,null,null,null,null,null,null,null,null,null,null,null,null,null,null,null,null,null,null,null,null,null,null,null,null,null,null,null,null,null,null,null,null,null,null,null,null,null,null,null,null,null,null,null,null,null,null,null,null,null,null,null,null,null,null,null,null,null,null,null,null,null,null,null,null,null,null,null,null,null,null,null,null,null,null,null,null,null,null,null,null,null,null,null,null,null,null,null,null,null,null,null,null,null,null,null,null,null,null,null,null,null,null,null,null,null,null,null,null,null,null,null,null,null,null,null,null,null,null,null,null,null,null,null,null,null,null,null,null,null,null,null,null,null,null,null,null,null,null,null,null,null,null,null,null,null,null,null,null,null,null,null,null,null,null,null,null,null,null,null,null,null,null,null,null,null,null,null,null,null,null,null,null,null,null,null,null,null,null,null,null,null,null,null,null,null,null,null,null,null,null,null,null,null,null,null,null,null,null,null,null,null,null,null,null,null,null,null,null,null,null,null,null,null,null,null,null,null,null,null,null,null,null,null,null,null,null,null,null,null,null,null,null,null,null,null,null,null,null,null,null,null,null,null,null,null,null,null,null,null,null,null,null,null,null,null,null,null,null,null,null,null,null,null,null,null,null,null,null,null,null,null,null,null,null,null,null,null,null,null,null,null,null,null,null,null,null,null,null,null,null,null,null,null,null,null,null,null,null,null,null,null,null,null,null,null,null,null,null,null,null,null,null,null,null,null,null,null,null,null,null,null,null,null,null,null,null,null,null,null,null,null,null,null,null,null,null,null,null,null,null,null,null,null,null,null,null,null,null,null,null,null,null,null,null,null,null,null,null,null,null,null,null,null,null,null,null,null,null,null,null,null,null,null,null,null,null,null,null,null,null,null,null,null,null,null,null,null,null,null,null,null,null,null,null,null,null,null,null,null,null,null,null,null,null,null,null,null,null,null,null,null,null,null,null,null,null,null,null,null,null,null,null,null,null,null,null,null,null,null,null,null,null,null,null,null,null,null,null,null,null,null,null,null,null,null,null,null,null,null,null,null,null,null,null,null,null,null,null,null,null,null,null,null,null,null,null,null,null,null,null,null,null,null,null,null,null,null,null,null,null,null,null,null,null,null,null,null,null,null,null,null,null,null,null,null,null,null,null,null,null,null,null,null,null,null,null,null,null,null,null,null,null,null,null,null,null,null,null,null,null,null,null,null,null,null,null,null,null,null,null,null,null,null,null,null,null,null,null,null,null,null,null,null,null,null,null,null,null,null,null,null,null,null,null,null,null,null,null,null,null,null,null,null,null,null,null,null,null,null,null,null,null,null,null,null,null,null,null,null,null,null,null,null,null,null,null,null,null,null,null,null,null,null,null,null,null,null,null,null,null,null,null,null,null,null,null,null,null,null,null,null,null,null,null,null,null,null,null,null,null,null,null,null,null,null,null,null,null,null,null,null,null,null,null,null,null,null,null,null,null,null,null,null,null,null,null,null,null,null,null,null,null,null,null,null,null,null,null,null,null,null,null,null,null,null,null,null,null,null,null,null,null,null,null,null,null,null,null,null,null,null,null,null,null,null,null,null,null,null,null,null,null,null,null,null,null,null,null,null,null,null,null,null,null,null,null,null,null,null,null,null,null,null,null,null,null,null,null,null,null,null,null,null,null,null,null,null,null,null,null,null,null,null,null,null,null,null,null,null,null,null,null,null,null,null,null,null,null,null,null,null,null,null,null,null,null,null,null,null,null,null,null,null,null,null,null,null,null,null,null,null,null,null,null,null,null,null,null,null,null,null,null,null,null,null,null,null,null,null,null,null,null,null,null,null,null,null,null,null,null,null,null,null,null,null,null,null,null,null,null,null,null,null,null,null,null,null,null,null,null,null,null,null,null,null,null,null,null,null,null,null,null,null,null,null,null,null,null,null,null,null,null,null,null,null,null,null,null,null,null,null,null,null,null,null,null,null,null,null,null,null,null,null,null,null,null,null,null,null,null,null,null,null,null,null,null,null,null,null,null,null,null,null,null,null,null,null,null,null,null,null,null,null,null,null,null,null,null,null,null,null,null,null,null,null,null,null,null,null,null,null,null,null,null,null,null,null,null,null,null,null,null,null,null,null,null,null,null,null,null,null,null,null,null,null,null,null,null,null,null,null,null,null,null,null,null,null,null,null,null,null,null,null,null,null,null,null,null,null,null,null,null,null,null,null,null,null,null,null,null,null,null,null,null,null,null,null,null,null,null,null,null,null,null,null,null,null,null,null,null,null,null,null,null,null,null,null,null,null,null,null,null,null,null,null,null,null,null,null,null,null,null,null,null,null,null,null,null,null,null,null,null,null,null,null,null,null,null,null,null,null,null,null,null,null,null,null,null,null,null,null,null,null,null,null,null,null,null,null,null,null,null,null,null,null,null,null,null,null,null,null,null,null,null,null,null,null,null,null,null,null,null,null,null,null,null,null,null,null,null,null,null,null,null,null,null,null,null,null,null,null,null,null,null,null,null,null,null,null,null,null,null,null,null,null,null,null,null,null,null,null,null,null,null,null,null,null,null,null,null,null,null,null,null,null,null,null,null,null,null,null,null,null,null,null,null,null,null,null,null,null,null,null,null,null,null,null,null,null,null,null,null,null,null,null,null,null,null,null,null,null,null,null,null,null,null,null,null,null,null,null,null,null,null,null,null,null,null,null,null,null,null,null,null,null,null,null,null,null,null,null,null,null,null,null,null,null,null,null,null,null,null,null,null,null,null,null,null,null,null,null,null,null,null,null,null,null,null,null,null,null,null,null,null,null,null,null,null,null,null,null,null,null,null,null,null,null,null,null,null,null,null,null,null,null,null,null,null,null,null,null,null,null,null,null,null,null,null,null,null,null,null,null,null,null,null,null,null,null,null,null,null,null,null,null,null,null,null,null,null,null,null,null,null,null,null,null,null,null,null,null,null,null,null,null,null,null,null,null,null,null,null,null,null,null,null,null,null,null,null,null,null,null,null,null,null,null,null,null,null,null,null,null,null,null,null,null,null,null,null,null,null,null,null,null,null,null,null,null,null,null,null,null,null,null,null,null,null,null,null,null,null,null,null,null,null,null,null,null,null,null,null,null,null,null,null,null,null,null,null,null,null,null,null,null,null,null,null,null,null,null,null,null,null,null,null,null,null,null,null,null,null,null,null,null,null,null,null,null,null,null,null,null,null,null,null,null,null,null,null,null,null,null,null,null,null,null,null,null,null,null,null,null,null,null,null,null,null,null,null,null,null,null,null,null,null,null,null,null,null,null,null,null,null,null,null,null,null,null,null,null,null,null,null,null,null,null,null,null,null,null,null,null,null,null,null,null,null,null,null,null,null,null,null,null,null,null,null,null,null,null,null,null,null,null,null,null,null,null,null,null,null,null,null,null,null,null,null,null,null,null,null,null,null,null,null,null,null,null,null,null,null,null,null,null,null,null,null,null,null,null,null,null,null,null,null,null,null,null,null,null,null,null,null,null,null,null,null,null,null,null,null,null,null,null,null,null,null,null,null,null,null,null,null,null,null,null,null,null,null,null,null,null,null,null,null,null,null,null,null,null,null,null,null,null,null,null,null,null,null,null,null,null,null,null,null,null,null,null,null,null,null,null,null,null,null,null,null,null,null,null,null,null,null,null,null,null,null,null,null,null,null,null,null,null,null,null,null,null,null,null,null,null,null,null,null,null,null,null,null,null,null,null,null,null,null,null,null,null,null,null,null,null,null,null,null,null,null,null,null,null,null,null,null,null,null,null,null,null,null,null,null,null,null,null,null,null,null,null,null,null,null,null,null,null,null,null,null,null,null,null,null,null,null,null,null,null,null,null,null,null,null,null,null,null,null,null,null,null,null,null,null,null,null,null,null,null,null,null,null,null,null,null,null,null,null,null,null,null,null,null,null,null,null,null,null,null,null,null,null,null,null,null,null,null,null,null,null,null,null,null,null,null,null,null,null,null,null,null,null,null,null,null,null,null,null,null,null,null,null,null,null,null,null,null,null,null,null,null,null,null,null,null,null,null,null,null,null,null,null,null,null,null,null,null,null,null,null,null,null,null,null,null,null,null,null,null,null,null,null,null,null,null,null,null,null,null,null,null,null,null,null,null,null,null,null,null,null,null,null,null,null,null,null,null,null,null,null,null,null,null,null,null,null,null,null,null,null,null,null,null,null,null,null,null,null,null,null,null,null,null,null,null,null,null,null,null,null,null,null,null,null,null,null,null,null,null,null,null,null,null,null,null,null,null,null,null,null,null,null,null,null,null,null,null,null,null,null,null,null,null,null,null,null,null,null,null,null,null,null,null,null,null,null,null,null,null,null,null,null,null,null,null,null,null,null,null,null,null,null,null,null,null,null,null,null,null,null,null,null,null,null,null,null,null,null,null,null,null,null,null,null,null,null,null,null,null,null,null,null,null,null,null,null,null,null,null,null,null,null,null,null,null,null,null,null,null,null,null,null,null,null,null,null,null,null,null,null,null,null,null,null,null,null,null,null,null,null,null,null,null,null,null,null,null,null,null,null,null,null,null,null,null,null,null,null,null,null,null,null,null,null,null,null,null,null,null,null,null,null,null,null,null,null,null,null,null,null,null,null,null,null,null,null,null,null,null,null,null,null,null,null,null,null,null,null,null,null,null,null,null,null,null,null,null,null,null,null,null,null,null,null,null,null,null,null,null,null,null,null,null,null,null,null,null,null,null,null,null,null,null,null,null,null,null,null,null,null,null,null,null,null,null,null,null,null,null,null,null,null,null,null,null,null,null,null,null,null,null,null,null,null,null,null,null,null,null,null,null,null,null,null,null,null,null,null,null,null,null,null,null,null,null,null,null,null,null,null,null,null,null,null,null,null,null,null,null,null,null,null,null,null,null,null,null,null,null,null,null,null,null,null,null,null,null,null,null,null,null,null,null,null,null,null,null,null,null,null,null,null,null,null,null,null,null,null,null,null,null,null,null,null,null,null,null,null,null,null,null,null,null,null,null,null,null,null,null,null,null,null,null,null,null,null,null,null,null,null,null,null,null,null,null,null,null,null,null,null,null,null,null,null,null,null,null,null,null,null,null,null,null,null,null,null,null,null,null,null,null,null,null,null,null,null,null,null,null,null,null,null,null,null,null,null,null,null,null,null,null,null,null,null,null,null,null,null,null,null,null,null,null,null,null,null,null,null,null,null,null,null,null,null,null,null,null,null,null,null,null,null,null,null,null,null,null,null,null,null,null,null,null,null,null,null,null,null,null,null,null,null,null,null,null,null,null,null,null,null,null,null,null,null,null,null,null,null,null,null,null,null,null,null,null,null,null,null,null,null,null,null,null,null,null,null,null,null,null,null,null,null,null,null,null,null,null,null,null,null,null,null,null,null,null,null,null,null,null,null,null,null,null,null,null,null,null,null,null,null,null,null,null,null,null,null,null,null,null,null,null,null,null,null,null,null,null,null,null,null,null,null,null,null,null,null,null,null,null,null,null,null,null,null,null,null,null,null,null,null,null,null,null,null,null,null,null,null,null,null,null,null,null,null,null,null,null,null,null,null,null,null,null,null,null,null,null,null,null,null,null,null,null,null,null,null,null,null,null,null,null,null,null,null,null,null,null,null,null,null,null,null,null,null,null,null,null,null,null,null,null,null,null,null,null,null,null,null,null,null,null,null,null,null,null,null,null,null,null,null,null,null,null,null,null,null,null,null,null,null,null,null,null,null,null,null,null,null,null,null,null,null,null,null,null,null,null,null,null,null,null,null,null,null,null,null,null,null,null,null,null,null,null,null,null,null,null,null,null,null,null,null,null,null,null,null,null,null,null,null,null,null,null,null,null,null,null,null,null,null,null,null,null,null,null,null,null,null,null,null,null,null,null,null,null,null,null,null,null,null,null,null,null,null,null,null,null,null,null,null,null,null,null,null,null,null,null,null,null,null,null,null,null,null,null,null,null,null,null,null,null,null,null,null,null,null,null,null,null,null,null,null,null,null,null,null,null,null,null,null,null,null,null,null,null,null,null,null,null,null,null,null,null,null,null,null,null,null,null,null,null,null,null,null,null,null,null,null,null,null,null,null,null,null,null,null,null,null,null,null,null,null,null,null,null,null,null,null,null,null,null,null,null,null,null,null,null,null,null,null,null,null,null,null,null,null,null,null,null,null,null,null,null,null,null,null,null,null,null,null,null,null,null,null,null,null,null,null,null,null,null,null,null,null,null,null,null,null,null,null,null,null,null,null,null,null,null,null,null,null,null,null,null,null,null,null,null,null,null,null,null,null,null,null,null,null,null,null,null,null,null,null,null,null,null,null,null,null,null,null,null,null,null,null,null,null,null,null,null,null,null,null,null,null,null,null,null,null,null,null,null,null,null,null,null,null,null,null,null,null,null,null,null,null,null,null,null,null,null,null,null,null,null,null,null,null,null,null,null,null,null,null,null,null,null,null,null,null,null,null,null,null,null,null,null,null,null,null,null,null,null,null,null,null,null,null,null,null,null,null,null,null,null,null,null,null,null,null,null,null,null,null,null,null,null,null,null,null,null,null,null,null,null,null,null,null,null,null,null,null,null,null,null,null,null,null,null,null,null,null,null,null,null,null,null,null,null,null,null,null,null,null,null,null,null,null,null,null,null,null,null,null,null,null,null,null,null,null,null,null,null,null,null,null,null,null,null,null,null,null,null,null,null,null,null,null,null,null,null,null,null,null,null,null,null,null,null,null,null,null,null,null,null,null,null,null,null,null,null,null,null,null,null,null,null,null,null,null,null,null,null,null,null,null,null,null,null,null,null,null,null,null,null,null,null,null,null,null,null,null,null,null,null,null,null,null,null,null,null,null,null,null,null,null,null,null,null,null,null,null,null,null,null,null,null,null,null,null,null,null,null,null,null,null,null,null,null,null,null,null,null,null,null,null,null,null,null,null,null,null,null,null,null,null,null,null,null,null,null,null,null,null,null,null,null,null,null,null,null,null,null,null,null,null,null,null,null,null,null,null,null,null,null,null,null,null,null,null,null,null,null,null,null,null,null,null,null,null,null,null,null,null,null,null,null,null,null,null,null,null,null,null,null,null,null,null,null,null,null,null,null,null,null,null,null,null,null,null,null,null,null,null,null,null,null,null,null,null,null,null,null,null,null,null,null,null,null,null,null,null,null,null,null,null,null,null,null,null,null,null,null,null,null,null,null,null,null,null,null,null,null,null,null,null,null,null,null,null,null,null,null,null,null,null,null,null,null,null,null,null,null,null,null,null,null,null,null,null,null,null,null,null,null,null,null,null,null,null,null,null,null,null,null,null,null,null,null,null,null,null,null,null,null,null,null,null,null,null,null,null,null,null,null,null,null,null,null,null,null,null,null,null,null,null,null,null,null,null,null,null,null,null,null,null,null,null,null,null,null,null,null,null,null,null,null,null,null,null,null,null,null,null,null,null,null,null,null,null,null,null,null,null,null,null,null,null,null,null,null,null,null,null,null,null,null,null,null,null,null,null,null,null,null,null,null,null,null,null,null,null,null,null,null,null,null,null,null,null,null,null,null,null,null,null,null,null,null,null,null,null,null,null,null,null,null,null,null,null,null,null,null,null,null,null,null,null,null,null,null,null,null,null,null,null,null,null,null,null,null,null,null,null,null,null,null,null,null,null,null,null,null,null,null,null,null,null,null,null,null,null,null,null,null,null,null,null,null,null,null,null,null,null,null,null,null,null,null,null,null,null,null,null,null,null,null,null,null,null,null,null,null,null,null,null,null,null,null,null,null,null,null,null,null,null,null,null,null,null,null,null,null,null,null,null,null,null,null,null,null,null,null,null,null,null,null,null,null,null,null,null,null,null,null,null,null,null,null,null,null,null,null,null,null,null,null,null,null,null,null,null,null,null,null,null,null,null,null,null,null,null,null,null,null,null,null,null,null,null,null,null,null,null,null,null,null,null,null,null,null,null,null,null,null,null,null,null,null,null,null,null,null,null,null,null,null,null,null,null,null,null,null,null,null,null,null,null,null,null,null,null,null,null,null,null,null,null,null,null,null,null,null,null,null,null,null,null,null,null,null,null,null,null,null,null,null,null,null,null,null,null,null,null,null,null,null,null,null,null,null,null,null,null,null,null,null,null,null,null,null,null,null,null,null,null,null,null,null,null,null,null,null,null,null,null,null,null,null,null,null,null,null,null,null,null,null,null,null,null,null,null,null,null,null,null,null,null,null,null,null,null,null,null,null,null,null,null,null,null,null,null,null,null,null,null,null,null,null,null,null,null,null,null,null,null,null,null,null,null,null,null,null,null,null,null,null,null,null,null,null,null,null,null,null,null,null,null,null,null,null,null,null,null,null,null,null,null,null,null,null,null,null,null,null,null,null,null,null,null,null,null,null,null,null,null,null,null,null,null,null,null,null,null,null,null,null,null,null,null,null,null,null,null,null,null,null,null,null,null,null,null,null,null,null,null,null,null,null,null,null,null,null,null,null,null,null,null,null,null,null,null,null,null,null,null,null,null,null,null,null,null,null,null,null,null,null,null,null,null,null,null,null,null,null,null,null,null,null,null,null,null,null,null,null,null,null,null,null,null,null,null,null,null,null,null,null,null,null,null,null,null,null,null,null,null,null,null,null,null,null,null,null,null,null,null,null,null,null,null,null,null,null,null,null,null,null,null,null,null,null,null,null,null,null,null,null,null,null,null,null,null,null,null,null,null,null,null,null,null,null,null,null,null,null,null,null,null,null,null,null,null,null,null,null,null,null,null,null,null,null,null,null,null,null,null,null,null,null,null,null,null,null,null,null,null,null,null,null,null,null,null,null,null,null,null,null,null,null,null,null,null,null,null,null,null,null,null,null,null,null,null,null,null,null,null,null,null,null,null,null,null,null,null,null,null,null,null,null,null,null,null,null,null,null,null,null,null,null,null,null,null,null,null,null,null,null,null,null,null,null,null,null,null,null,null,null,null,null,null,null,null,null,null,null,null,null,null,null,null,null,null,null,null,null,null,null,null,null,null,null,null,null,null,null,null,null,null,null,null,null,null,null,null,null,null,null,null,null,null,null,null,null,null,null,null,null,null,null,null,null,null,null,null,null,null,null,null,null,null,null,null,null,null,null,null,null,null,null,null,null,null,null,null,null,null,null,null,null,null,null,null,null,null,null,null,null,null,null,null,null,null,null,null,null,null,null,null,null,null,null,null,null,null,null,null,null,null,null,null,null,null,null,null,null,null,null,null,null,null,null,null,null,null,null,null,null,null,null,null,null,null,null,null,null,null,null,null,null,null,null,null,null,null,null,null,null,null,null,null,null,null,null,null,null,null,null,null,null,null,null,null,null,null,null,null,null,null,null,null,null,null,null,null,null,null,null,null,null,null,null,null,null,null,null,null,null,null,null,null,null,null,null,null,null,null,null,null,null,null,null,null,null,null,null,null,null,null,null,null,null,null,null,null,null,null,null,null,null,null,null,null,null,null,null,null,null,null,null,null,null,null,null,null,null,null,null,null,null,null,null,null,null,null,null,null,null,null,null,null,null,null,null,null,null,null,null,null,null,null,null,null,null,null,null,null,null,null,null,null,null,null,null,null,null,null,null,null,null,null,null,null,null,null,null,null,null,null,null,null,null,null,null,null,null,null,null,null,null,null,null,null,null,null,null,null,null,null,null,null,null,null,null,null,null,null,null,null,null,null,null,null,null,null,null,null,null,null,null,null,null,null,null,null,null,null,null,null,null,null,null,null,null,null,null,null,null,null,null,null,null,null,null,null,null,null,null,null,null,null,null,null,null,null,null,null,null,null,null,null,null,null,null,null,null,null,null,null,null,null,null,null,null,null,null,null,null,null,null,null,null,null,null,null,null,null,null,null,null,null,null,null,null,null,null,null,null,null,null,null,null,null,null,null,null,null,null,null,null,null,null,null,null,null,null,null,null,null,null,null,null,null,null,null,null,null,null,null,null,null,null,null,null,null,null,null,null,null,null,null,null,null,null,null,null,null,null,null,null,null,null,null,null,null,null,null,null,null,null,null,null,null,null,null,null,null,null,null,null,null,null,null,null,null,null,null,null,null,null,null,null,null,null,null,null,null,null,null,null,null,null,null,null,null,null,null,null,null,null,null,null,null,null,null,null,null,null,null,null,null,null,null,null,null,null,null,null,null,null,null,null,null,null,null,null,null,null,null,null,null,null,null,null,null,null,null,null,null,null,null,null,null,null,null,null,null,null,null,null,null,null,null,null,null,null,null,null,null,null,null,null,null,null,null,null,null,null,null,null,null,null,null,null,null,null,null,null,null,null,null,null,null,null,null,null,null,null,null,null,null,null,null,null,null,null,null,null,null,null,null,null,null,null,null,null,null,null,null,null,null,null,null,null,null,null,null,null,null,null,null,null,null,null,null,null,null,null,null,null,null,null,null,null,null,null,null,null,null,null,null,null,null,null,null,null,null,null,null,null,null,null,null,null,null,null,null,null,null,null,null,null,null,null,null,null,null,null,null,null,null,null,null,null,null,null,null,null,null,null,null,null,null,null,null,null,null,null,null,null,null,null,null,null,null,null,null,null,null,null,null,null,null,null,null,null,null,null,null,null,null,null,null,null,null,null,null,null,null,null,null,null,null,null,null,null,null,null,null,null,null,null,null,null,null,null,null,null,null,null,null,null,null,null,null,null,null,null,null,null,null,null,null,null,null,null,null,null,null,null,null,null,null,null,null,null,null,null,null,null,null,null,null,null,null,null,null,null,null,null,null,null,null,null,null,null,null,null,null,null,null,null,null,null,null,null,null,null,null,null,null,null,null,null,null,null,null,null,null,null,null,null,null,null,null,null,null,null,null,null,null,null,null,null,null,null,null,null,null,null,null,null,null,null,null,null,null,null,null,null,null,null,null,null,null,null,null,null,null,null,null,null,null,null,null,null,null,null,null,null,null,null,null,null,null,null,null,null,null,null,null,null,null,null,null,null,null,null,null,null,null,null,null,null,null,null,null,null,null,null,null,null,null,null,null,null,null,null,null,null,null,null,null,null,null,null,null,null,null,null,null,null,null,null,null,null,null,null,null,null,null,null,null,null,null,null,null,null,null,null,null,null,null,null,null,null,null,null,null,null,null,null,null,null,null,null,null,null,null,null,null,null,null,null,null,null,null,null,null,null,null,null,null,null,null,null,null,null,null,null,null,null,null,null,null,null,null,null,null,null,null,null,null,null,null,null,null,null,null,null,null,null,null,null,null,null,null,null,null,null,null,null,null,null,null,null,null,null,null,null,null,null,null,null,null,null,null,null,null,null,null,null,null,null,null,null,null,null,null,null,null,null,null,null,null,null,null,null,null,null,null,null,null,null,null,null,null,null,null,null,null,null,null,null,null,null,null,null,null,null,null,null,null,null,null,null,null,null,null,null,null,null,null,null,null,null,null,null,null,null,null,null,null,null,null,null,null,null,null,null,null,null,null,null,null,null,null,null,null,null,null,null,null,null,null,null,null,null,null,null,null,null,null,null,null,null,null,null,null,null,null,null,null,null,null,null,null,null,null,null,null,null,null,null,null,null,null,null,null,null,null,null,null,null,null,null,null,null,null,null,null,null,null,null,null,null,null,null,null,null,null,null,null,null,null,null,null,null,null,null,null,null,null,null,null,null,null,null,null,null,null,null,null,null,null,null,null,null,null,null,null,null,null,null,null,null,null,null,null,null,null,null,null,null,null,null,null,null,null,null,null,null,null,null,null,null,null,null,null,null,null,null,null,null,null,null,null,null,null,null,null,null,null,null,null,null,null,null,null,null,null,null,null,null,null,null,null,null,null,null,null,null,null,null,null,null,null,null,null,null,null,null,null,null,null,null,null,null,null,null,null,null,null,null,null,null,null,null,null,null,null,null,null,null,null,null,null,null,null,null,null,null,null,null,null,null,null,null,null,null,null,null,null,null,null,null,null,null,null,null,null,null,null,null,null,null,null,null,null,null,null,null,null,null,null,null,null,null,null,null,null,null,null,null,null,null,null,null,null,null,null,null,null,null,null,null,null,null,null,null,null,null,null,null,null,null,null,null,null,null,null,null,null,null,null,null,null,null,null,null,null,null,null,null,null,null,null,null,null,null,null,null,null,null,null,null,null,null,null,null,null,null,null,null,null,null,null,null,null,null,null,null,null,null,null,null,null,null,null,null,null,null,null,null,null,null,null,null,null,null,null,null,null,null,null,null,null,null,null,null,null,null,null,null,null,null,null,null,null,null,null,null,null,null,null,null,null,null,null,null,null,null,null,null,null,null,null,null,null,null,null,null,null,null,null,null,null,null,null,null,null,null,null,null,null,null,null,null,null,null,null,null,null,null,null,null,null,null,null,null,null,null,null,null,null,null,null,null,null,null,null,null,null,null,null,null,null,null,null,null,null,null,null,null,null,null,null,null,null,null,null,null,null,null,null,null,null,null,null,null,null,null,null,null,null,null,null,null,null,null,null,null,null,null,null,null,null,null,null,null,null,null,null,null,null,null,null,null,null,null,null,null,null,null,null,null,null,null,null,null,null,null,null,null,null,null,null,null,null,null,null,null,null,null,null,null,null,null,null,null,null,null,null,null,null,null,null,null,null,null,null,null,null,null,null,null,null,null,null,null,null,null,null,null,null,null,null,null,null,null,null,null,null,null,null,null,null,null,null,null,null,null,null,null,null,null,null,null,null,null,null,null,null,null,null,null,null,null,null,null,null,null,null,null,null,null,null,null,null,null,null,null,null,null,null,null,null,null,null,null,null,null,null,null,null,null,null,null,null,null,null,null,null,null,null,null,null,null,null,null,null,null,null,null,null,null,null,null,null,null,null,null,null,null,null,null,null,null,null,null,null,null,null,null,null,null,null,null,null,null,null,null,null,null,null,null,null,null,null,null,null,null,null,null,null,null,null,null,null,null,null,null,null,null,null,null,null,null,null,null,null,null,null,null,null,null,null,null,null,null,null,null,null,null,null,null,null,null,null,null,null,null,null,null,null,null,null,null,null,null,null,null,null,null,null,null,null,null,null,null,null,null,null,null,null,null,null,null,null,null,null,null,null,null,null,null,null,null,null,null,null,null,null,null,null,null,null,null,null,null,null,null,null,null,null,null,null,null,null,null,null,null,null,null,null,null,null,null,null,null,null,null,null,null,null,null,null,null,null,null,null,null,null,null,null,null,null,null,null,null,null,null,null,null,null,null,null,null,null,null,null,null,null,null,null,null,null,null,null,null,null,null,null,null,null,null,null,null,null,null,null,null,null,null,null,null,null,null,null,null,null,null,null,null,null,null,null,null,null,null,null,null,null,null,null,null,null,null,null,null,null,null,null,null,null,null,null,null,null,null,null,null,null,null,null,null,null,null,null,null,null,null,null,null,null,null,null,null,null,null,null,null,null,null,null,null,null,null,null,null,null,null,null,null,null,null,null,null,null,null,null,null,null,null,null,null,null,null,null,null,null,null,null,null,null,null,null,null,null,null,null,null,null,null,null,null,null,null,null,null,null,null,null,null,null,null,null,null,null,null,null,null,null,null,null,null,null,null,null,null,null,null,null,null,null,null,null,null,null,null,null,null,null,null,null,null,null,null,null,null,null,null,null,null,null,null,null,null,null,null,null,null,null,null,null,null,null,null,null,null,null,null,null,null,null,null,null,null,null,null,null,null,null,null,null,null,null,null,null,null,null,null,null,null,null,null,null,null,null,null,null,null,null,null,null,null,null,null,null,null,null,null,null,null,null,null,null,null,null,null,null,null,null,null,null,null,null,null,null,null,null,null,null,null,null,null,null,null,null,null,null,null,null,null,null,null,null,null,null,null,null,null,null,null,null,null,null,null,null,null,null,null,null,null,null,null,null,null,null,null,null,null,null,null,null,null,null,null,null,null,null,null,null,null,null,null,null,null,null,null,null,null,null,null,null,null,null,null,null,null,null,null,null,null,null,null,null,null,null,null,null,null,null,null,null,null,null,null,null,null,null,null,null,null,null,null,null,null,null,null,null,null,null,null,null,null,null,null,null,null,null,null,null,null,null,null,null,null,null,null,null,null,null,null,null,null,null,null,null,null,null,null,null,null,null,null,null,null,null,null,null,null,null,null,null,null,null,null,null,null,null,null,null,null,null,null,null,null,null,null,null,null,null,null,null,null,null,null,null,null,null,null,null,null,null,null,null,null,null,null,null,null,null,null,null,null,null,null,null,null,null,null,null,null,null,null,null,null,null,null,null,null,null,null,null,null,null,null,null,null,null,null,null,null,null,null,null,null,null,null,null,null,null,null,null,null,null,null,null,null,null,null,null,null,null,null,null,null,null,null,null,null,null,null,null,null,null,null,null,null,null,null,null,null,null,null,null,null,null,null,null,null,null,null,null,null,null,null,null,null,null,null,null,null,null,null,null,null,null,null,null,null,null,null,null,null,null,null,null,null,null,null,null,null,null,null,null,null,null,null,null,null,null,null,null,null,null,null,null,null,null,null,null,null,null,null,null,null,null,null,null,null,null,null,null,null,null,null,null,null,null,null,null,null,null,null,null,null,null,null,null,null,null,null,null,null,null,null,null,null,null,null,null,null,null,null,null,null,null,null,null,null,null,null,null,null,null,null,null,null,null,null,null,null,null,null,null,null,null,null,null,null,null,null,null,null,null,null,null,null,null,null,null,null,null,null,null,null,null,null,null,null,null,null,null,null,null,null,null,null,null,null,null,null,null,null,null,null,null,null,null,null,null,null,null,null,null,null,null,null,null,null,null,null,null,null,null,null,null,null,null,null,null,null,null,null,null,null,null,null,null,null,null,null,null,null,null,null,null,null,null,null,null,null,null,null,null,null,null,null,null,null,null,null,null,null,null,null,null,null,null,null,null,null,null,null,null,null,null,null,null,null,null,null,null,null,null,null,null,null,null,null,null,null,null,null,null,null,null,null,null,null,null,null,null,null,null,null,null,null,null,null,null,null,null,null,null,null,null,null,null,null,null,null,null,null,null,null,null,null,null,null,null,null,null,null,null,null,null,null,null,null,null,null,null,null,null,null,null,null,null,null,null,null,null,null,null,null,null,null,null,null,null,null,null,null,null,null,null,null,null,null,null,null,null,null,null,null,null,null,null,null,null,null,null,null,null,null,null,null,null,null,null,null,null,null,null,null,null,null,null,null,null,null,null,null,null,null,null,null,null,null,null,null,null,null,null,null,null,null,null,null,null,null,null,null,null,null,null,null,null,null,null,null,null,null,null,null,null,null,null,null,null,null,null,null,null,null,null,null,null,null,null,null,null,null,null,null,null,null,null,null,null,null,null,null,null,null,null,null,null,null,null,null,null,null,null,null,null,null,null,null,null,null,null,null,null,null,null,null,null,null,null,null,null,null,null,null,null,null,null,null,null,null,null,null,null,null,null,null,null,null,null,null,null,null,null,null,null,null,null,null,null,null,null,null,null,null,null,null,null,null,null,null,null,null,null,null,null,null,null,null,null,null,null,null,null,null,null,null,null,null,null,null,null,null,null,null,null,null,null,null,null,null,null,null,null,null,null,null,null,null,null,null,null,null,null,null,null,null,null,null,null,null,null,null,null,null,null,null,null,null,null,null,null,null,null,null,null,null,null,null,null,null,null,null,null,null,null,null,null,null,null,null,null,null,null,null,null,null,null,null,null,null,null,null,null,null,null,null,null,null,null,null,null,null,null,null,null,null,null,null,null,null,null,null,null,null,null,null,null,null,null,null,null,null,null,null,null,null,null,null,null,null,null,null,null,null,null,null,null,null,null,null,null,null,null,null,null,null,null,null,null,null,null,null,null,null,null,null,null,null,null,null,null,null,null,null,null,null,null,null,null,null,null,null,null,null,null,null,null,null,null,null,null,null,null,null,null,null,null,null,null,null,null,null,null,null,null,null,null,null,null,null,null,null,null,null,null,null,null,null,null,null,null,null,null,null,null,null,null,null,null,null,null,null,null,null,null,null,null,null,null,null,null,null,null,null,null,null,null,null,null,null,null,null,null,null,null,null,null,null,null,null,null,null,null,null,null,null,null,null,null,null,null,null,null,null,null,null,null,null,null,null,null,null,null,null,null,null,null,null,null,null,null,null,null,null,null,null,null,null,null,null,null,null,null,null,null,null,null,null,null,null,null,null,null,null,null,null,null,null,null,null,null,null,null,null,null,null,null,null,null,null,null,null,null,null,null,null,null,null,null,null,null,null,null,null,null,null,null,null,null,null,null,null,null,null,null,null,null,null,null,null,null,null,null,null,null,null,null,null,null,null,null,null,null,null,null,null,null,null,null,null,null,null,null,null,null,null,null,null,null,null,null,null,null,null,null,null,null,null,null,null,null,null,null,null,null,null,null,null,null,null,null,null,null,null,null,null,null,null,null,null,null,null,null,null,null,null,null,null,null,null,null,null,null,null,null,null,null,null,null,null,null,null,null,null,null,null,null,null,null,null,null,null,null,null,null,null,null,null,null,null,null,null,null,null,null,null,null,null,null,null,null,null,null,null,null,null,null,null,null,null,null,null,null,null,null,null,null,null,null,null,null,null,null,null,null,null,null,null,null,null,null,null,null,null,null,null,null,null,null,null,null,null,null,null,null,null,null,null,null,null,null,null,null,null,null,null,null,null,null,null,null,null,null,null,null,null,null,null,null,null,null,null,null,null,null,null,null,null,null,null,null,null,null,null,null,null,null,null,null,null,null,null,null,null,null,null,null,null,null,null,null,null,null,null,null,null,null,null,null,null,null,null,null,null,null,null,null,null,null,null,null,null,null,null,null,null,null,null,null,null,null,null,null,null,null,null,null,null,null,null,null,null,null,null,null,null,null,null,null,null,null,null,null,null,null,null,null,null,null,null,null,null,null,null,null,null,null,null,null,null,null,null,null,null,null,null,null,null,null,null,null,null,null,null,null,null,null,null,null,null,null,null,null,null,null,null,null,null,null,null,null,null,null,null,null,null,null,null,null,null,null,null,null,null,null,null,null,null,null,null,null,null,null,null,null,null,null,null,null,null,null,null,null,null,null,null,null,null,null,null,null,null,null,null,null,null,null,null,null,null,null,null,null,null,null,null,null,null,null,null,null,null,null,null,null,null,null,null,null,null,null,null,null,null,null,null,null,null,null,null,null,null,null,null,null,null,null,null,null,null,null,null,null,null,null,null,null,null,null,null,null,null,null,null,null,null,null,null,null,null,null,null,null,null,null,null,null,null,null,null,null,null,null,null,null,null,null,null,null,null,null,null,null,null,null,null,null,null,null,null,null,null,null,null,null,null,null,null,null,null,null,null,null,null,null,null,null,null,null,null,null,null,null,null,null,null,null,null,null,null,null,null,null,null,null,null,null,null,null,null,null,null,null,null,null,null,null,null,null,null,null,null,null,null,null,null,null,null,null,null,null,null,null,null,null,null,null,null,null,null,null,null,null,null,null,null,null,null,null,null,null,null,null,null,null,null,null,null,null,null,null,null,null,null,null,null,null,null,null,null,null,null,null,null,null,null,null,null,null,null,null,null,null,null,null,null,null,null,null,null,null,null,null,null,null,null,null,null,null,null,null,null,null,null,null,null,null,null,null,null,null,null,null,null,null,null,null,null,null,null,null,null,null,null,null,null,null,null,null,null,null,null,null,null,null,null,null,null,null,null,null,null,null,null,null,null,null,null,null,null,null,null,null,null,null,null,null,null,null,null,null,null,null,null,null,null,null,null,null,null,null,null,null,null,null,null,null,null,null,null,null,null,null,null,null,null,null,null,null,null,null,null,null,null,null,null,null,null,null,null,null,null,null,null,null,null,null,null,null,null,null,null,null,null,null,null,null,null,null,null,null,null,null,null,null,null,null,null,null,null,null,null,null,null,null,null,null,null,null,null,null,null,null,null,null,null,null,null,null,null,null,null,null,null,null,null,null,null,null,null,null,null,null,null,null,null,null,null,null,null,null,null,null,null,null,null,null,null,null,null,null,null,null,null,null,null,null,null,null,null,null,null,null,null,null,null,null,null,null,null,null,null,null,null,null,null,null,null,null,null,null,null,null,null,null,null,null,null,null,null,null,null,null,null,null,null,null,null,null,null,null,null,null,null,null,null,null,null,null,null,null,null,null,null,null,null,null,null,null,null,null,null,null,null,null,null,null,null,null,null,null,null,null,null,null,null,null,null,null,null,null,null,null,null,null,null,null,null,null,null,null,null,null,null,null,null,null,null,null,null,null,null,null,null,null,null,null,null,null,null,null,null,null,null,null,null,null,null,null,null,null,null,null,null,null,null,null,null,null,null,null,null,null,null,null,null,null,null,null,null,null,null,null,null,null,null,null,null,null,null,null,null,null,null,null,null,null,null,null,null,null,null,null,null,null,null,null,null,null,null,null,null,null,null,null,null,null,null,null,null,null,null,null,null,null,null,null,null,null,null,null,null,null,null,null,null,null,null,null,null,null,null,null,null,null,null,null,null,null,null,null,null,null,null,null,null,null,null,null,null,null,null,null,null,null,null,null,null,null,null,null,null,null,null,null,null,null,null,null,null,null,null,null,null,null,null,null,null,null,null,null,null,null,null,null,null,null,null,null,null,null,null,null,null,null,null,null,null,null,null,null,null,null,null,null,null,null,null,null,null,null,null,null,null,null,null,null,null,null,null,null,null,null,null,null,null,null,null,null,null,null,null,null,null,null,null,null,null,null,null,null,null,null,null,null,null,null,null,null,null,null,null,null,null,null,null,null,null,null,null,null,null,null,null,null,null,null,null,null,null,null,null,null,null,null,null,null,null,null,null,null,null,null,null,null,null,null,null,null,null,null,null,null,null,null,null,null,null,null,null,null,null,null,null,null,null,null,null,null,null,null,null,null,null,null,null,null,null,null,null,null,null,null,null,null,null,null,null,null,null,null,null,null,null,null,null,null,null,null,null,null,null,null,null,null,null,null,null,null,null,null,null,null,null,null,null,null,null,null,null,null,null,null,null,null,null,null,null,null,null,null,null,null,null,null,null,null,null,null,null,null,null,null,null,null,null,null,null,null,null,null,null,null,null,null,null,null,null,null,null,null,null,null,null,null,null,null,null,null,null,null,null,null,null,null,null,null,null,null,null,null,null,null,null,null,null,null,null,null,null,null,null,null,null,null,null,null,null,null,null,null,null,null,null,null,null,null,null,null,null,null,null,null,null,null,null,null,null,null,null,null,null,null,null,null,null,null,null,null,null,null,null,null,null,null,null,null,null,null,null,null,null,null,null,null,null,null,null,null,null,null,null,null,null,null,null,null,null,null,null,null,null,null,null,null,null,null,null,null,null,null,null,null,null,null,null,null,null,null,null,null,null,null,null,null,null,null,null,null,null,null,null,null,null,null,null,null,null,null,null,null,null,null,null,null,null,null,null,null,null,null,null,null,null,null,null,null,null,null,null,null,null,null,null,null,null,null,null,null,null,null,null,null,null,null,null,null,null,null,null,null,null,null,null,null,null,null,null,null,null,null,null,null,null,null,null,null,null,null,null,null,null,null,null,null,null,null,null,null,null,null,null,null,null,null,null,null,null,null,null,null,null,null,null,null,null,null,null,null,null,null,null,null,null,null,null,null,null,null,null,null,null,null,null,null,null,null,null,null,null,null,null,null,null,null,null,null,null,null,null,null,null,null,null,null,null,null,null,null,null,null,null,null,null,null,null,null,null,null,null,null,null,null,null,null,null,null,null,null,null,null,null,null,null,null,null,null,null,null,null,null,null,null,null,null,null,null,null,null,null,null,null,null,null,null,null,null,null,null,null,null,null,null,null,null,null,null,null,null,null,null,null,null,null,null,null,null,null,null,null,null,null,null,null,null,null,null,null,null,null,null,null,null,null,null,null,null,null,null,null,null,null,null,null,null,null,null,null,null,null,null,null,null,null,null,null,null,null,null,null,null,null,null,null,null,null,null,null,null,null,null,null,null,null,null,null,null,null,null,null,null,null,null,null,null,null,null,null,null,null,null,null,null,null,null,null,null,null,null,null,null,null,null,null,null,null,null,null,null,null,null,null,null,null,null,null,null,null,null,null,null,null,null,null,null,null,null,null,null,null,null,null,null,null,null,null,null,null,null,null,null,null,null,null,null,null,null,null,null,null,null,null,null,null,null,null,null,null,null,null,null,null,null,null,null,null,null,null,null,null,null,null,null,null,null,null,null,null,null,null,null,null,null,null,null,null,null,null,null,null,null,null,null,null,null,null,null,null,null,null,null,null,null,null,null,null,null,null,null,null,null,null,null,null,null,null,null,null,null,null,null,null,null,null,null,null,null,null,null,null,null,null,null,null,null,null,null,null,null,null,null,null,null,null,null,null,null,null,null,null,null,null,null,null,null,null,null,null,null,null,null,null,null,null,null,null,null,null,null,null,null,null,null,null,null,null,null,null,null,null,null,null,null,null,null,null,null,null,null,null,null,null,null,null,null,null,null,null,null,null,null,null,null,null,null,null,null,null,null,null,null,null,null,null,null,null,null,null,null,null,null,null,null,null,null,null,null,null,null,null,null,null,null,null,null,null,null,null,null,null,null,null,null,null,null,null,null,null,null,null,null,null,null,null,null,null,null,null,null,null,null,null,null,null,null,null,null,null,null,null,null,null,null,null,null,null,null,null,null,null,null,null,null,null,null,null,null,null,null,null,null,null,null,null,null,null,null,null,null,null,null,null,null,null,null,null,null,null,null,null,null,null,null,null,null,null,null,null,null,null,null,null,null,null,null,null,null,null,null,null,null,null,null,null,null,null,null,null,null,null,null,null,null,null,null,null,null,null,null,null,null,null,null,null,null,null,null,null,null,null,null,null,null,null,null,null,null,null,null,null,null,null,null,null,null,null,null,null,null,null,null,null,null,null,null,null,null,null,null,null,null,null,null,null,null,null,null,null,null,null,null,null,null,null,null,null,null,null,null,null,null,null,null,null,null,null,null,null,null,null,null,null,null,null,null,null,null,null,null,null,null,null,null,null,null,null,null,null,null,null,null,null,null,null,null,null,null,null,null,null,null,null,null,null,null,null,null,null,null,null,null,null,null,null,null,null,null,null,null,null,null,null,null,null,null,null,null,null,null,null,null,null,null,null,null,null,null,null,null,null,null,null,null,null,null,null,null,null,null,null,null,null,null,null,null,null,null,null,null,null,null,null,null,null,null,null,null,null,null,null,null,null,null,null,null,null,null,null,null,null,null,null,null,null,null,null,null,null,null,null,null,null,null,null,null,null,null,null,null,null,null,null,null,null,null,null,null,null,null,null,null,null,null,null,null,null,null,null,null,null,null,null,null,null,null,null,null,null,null,null,null,null,null,null,null,null,null,null,null,null,null,null,null,null,null,null,null,null,null,null,null,null,null,null,null,null,null,null,null,null,null,null,null,null,null,null,null,null,null,null,null,null,null,null,null,null,null,null,null,null,null,null,null,null,null,null,null,null,null,null,null,null,null,null,null,null,null,null,null,null,null,null,null,null,null,null,null,null,null,null,null,null,null,null,null,null,null,null,null,null,null,null,null,null,null,null,null,null,null,null,null,null,null,null,null,null,null,null,null,null,null,null,null,null,null,null,null,null,null,null,null,null,null,null,null,null,null,null,null,null,null,null,null,null,null,null,null,null,null,null,null,null,null,null,null,null,null,null,null,null,null,null,null,null,null,null,null,null,null,null,null,null,null,null,null,null,null,null,null,null,null,null,null,null,null,null,null,null,null,null,null,null,null,null,null,null,null,null,null,null,null,null,null,null,null,null,null,null,null,null,null,null,null,null,null,null,null,null,null,null,null,null,null,null,null,null,null,null,null,null,null,null,null,null,null,null,null,null,null,null,null,null,null,null,null,null,null,null,null,null,null,null,null,null,null,null,null,null,null,null,null,null,null,null,null,null,null,null,null,null,null,null,null,null,null,null,null,null,null,null,null,null,null,null,null,null,null,null,null,null,null,null,null,null,null,null,null,null,null,null,null,null,null,null,null,null,null,null,null,null,null,null,null,null,null,null,null,null,null,null,null,null,null,null,null,null,null,null,null,null,null,null,null,null,null,null,null,null,null,null,null,null,null,null,null,null,null,null,null,null,null,null,null,null,null,null,null,null,null,null,null,null,null,null,null,null,null,null,null,null,null,null,null,null,null,null,null,null,null,null,null,null,null,null,null,null,null,null,null,null,null,null,null,null,null,null,null,null,null,null,null,null,null,null,null,null,null,null,null,null,null,null,null,null,null,null,null,null,null,null,null,null,null,null,null,null,null,null,null,null,null,null,null,null,null,null,null,null,null,null,null,null,null,null,null,null,null,null,null,null,null,null,null,null,null,null,null,null,null,null,null,null,null,null,null,null,null,null,null,null,null,null,null,null,null,null,null,null,null,null,null,null,null,null,null,null,null,null,null,null,null,null,null,null,null,null,null,null,null,null,null,null,null,null,null,null,null,null,null,null,null,null,null,null,null,null,null,null,null,null,null,null,null,null,null,null,null,null,null,null,null,null,null,null,null,null,null,null,null,null,null,null,null,null,null,null,null,null,null,null,null,null,null,null,null,null,null,null,null,null,null,null,null,null,null,null,null,null,null,null,null,null,null,null,null,null,null,null,null,null,null,null,null,null,null,null,null,null,null,null,null,null,null,null,null,null,null,null,null,null,null,null,null,null,null,null,null,null,null,null,null,null,null,null,null,null,null,null,null,null,null,null,null,null,null,null,null,null,null,null,null,null,null,null,null,null,null,null,null,null,null,null,null,null,null,null,null,null,null,null,null,null,null,null,null,null,null,null,null,null,null,null,null,null,null,null,null,null,null,null,null,null,null,null,null,null,null,null,null,null,null,null,null,null,null,null,null,null,null,null,null,null,null,null,null,null,null,null,null,null,null,null,null,null,null,null,null,null,null,null,null,null,null,null,null,null,null,null,null,null,null,null,null,null,null,null,null,null,null,null,null,null,null,null,null,null,null,null,null,null,null,null,null,null,null,null,null,null,null,null,null,null,null,null,null,null,null,null,null,null,null,null,null,null,null,null,null,null,null,null,null,null,null,null,null,null,null,null,null,null,null,null,null,null,null,null,null,null,null,null,null,null,null,null,null,null,null,null,null,null,null,null,null,null,null,null,null,null,null,null,null,null,null,null,null,null,null,null,null,null,null,null,null,null,null,null,null,null,null,null,null,null,null,null,null,null,null,null,null,null,null,null,null,null,null,null,null,null,null,null,null,null,null,null,null,null,null,null,null,null,null,null,null,null,null,null,null,null,null,null,null,null,null,null,null,null,null,null,null,null,null,null,null,null,null,null,null,null,null,null,null,null,null,null,null,null,null,null,null,null,null,null,null,null,null,null,null,null,null,null,null,null,null,null,null,null,null,null,null,null,null,null,null,null,null,null,null,null,null,null,null,null,null,null,null,null,null,null,null,null,null,null,null,null,null,null,null,null,null,null,null,null,null,null,null,null,null,null,null,null,null,null,null,null,null,null,null,null,null,null,null,null,null,null,null,null,null,null,null,null,null,null,null,null,null,null,null,null,null,null,null,null,null,null,null,null,null,null,null,null,null,null,null,null,null,null,null,null,null,null,null,null,null,null,null,null,null,null,null,null,null,null,null,null,null,null,null,null,null,null,null,null,null,null,null,null,null,null,null,null,null,null,null,null,null,null,null,null,null,null,null,null,null,null,null,null,null,null,null,null,null,null,null,null,null,null,null,null,null,null,null,null,null,null,null,null,null,null,null,null,null,null,null,null,null,null,null,null,null,null,null,null,null,null,null,null,null,null,null,null,null,null,null,null,null,null,null,null,null,null,null,null,null,null,null,null,null,null,null,null,null,null,null,null,null,null,null,null,null,null,null,null,null,null,null,null,null,null,null,null,null,null,null,null,null,null,null,null,null,null,null,null,null,null,null,null,null,null,null,null,null,null,null,null,null,null,null,null,null,null,null,null,null,null,null,null,null,null,null,null,null,null,null,null,null,null,null,null,null,null,null,null,null,null,null,null,null,null,null,null,null,null,null,null,null,null,null,null,null,null,null,null,null,null,null,null,null,null,null,null,null,null,null,null,null,null,null,null,null,null,null,null,null,null,null,null,null,null,null,null,null,null,null,null,null,null,null,null,null,null,null,null,null,null,null,null,null,null,null,null,null,null,null,null,null,null,null,null,null,null,null,null,null,null,null,null,null,null,null,null,null,null,null,null,null,null,null,null,null,null,null,null,null,null,null,null,null,null,null,null,null,null,null,null,null,null,null,null,null,null,null,null,null,null,null,null,null,null,null,null,null,null,null,null,null,null,null,null,null,null,null,null,null,null,null,null,null,null,null,null,null,null,null,null,null,null,null,null,null,null,null,null,null,null,null,null,null,null,null,null,null,null,null,null,null,null,null,null,null,null,null,null,null,null,null,null,null,null,null,null,null,null,null,null,null,null,null,null,null,null,null,null,null,null,null,null,null,null,null,null,null,null,null,null,null,null,null,null,null,null,null,null,null,null,null,null,null,null,null,null,null,null,null,null,null,null,null,null,null,null,null,null,null,null,null,null,null,null,null,null,null,null,null,null,null,null,null,null,null,null,null,null,null,null,null,null,null,null,null,null,null,null,null,null,null,null,null,null,null,null,null,null,null,null,null,null,null,null,null,null,null,null,null,null,null,null,null,null,null,null,null,null,null,null,null,null,null,null,null,null,null,null,null,null,null,null,null,null,null,null,null,null,null,null,null,null,null,null,null,null,null,null,null,null,null,null,null,null,null,null,null,null,null,null,null,null,null,null,null,null,null,null,null,null,null,null,null,null,null,null,null,null,null,null,null,null,null,null,null,null,null,null,null,null,null,null,null,null,null,null,null,null,null,null,null,null,null,null,null,null,null,null,null,null,null,null,null,null,null,null,null,null,null,null,null,null,null,null,null,null,null,null,null,null,null,null,null,null,null,null,null,null,null,null,null,null,null,null,null,null,null,null,null,null,null,null,null,null,null,null,null,null,null,null,null,null,null,null,null,null,null,null,null,null,null,null,null,null,null,null,null,null,null,null,null,null,null,null,null,null,null,null,null,null,null,null,null,null,null,null,null,null,null,null,null,null,null,null,null,null,null,null,null,null,null,null,null,null,null,null,null,null,null,null,null,null,null,null,null,null,null,null,null,null,null,null,null,null,null,null,null,null,null,null,null,null,null,null,null,null,null,null,null,null,null,null,null,null,null,null,null,null,null,null,null,null,null,null,null,null,null,null,null,null,null,null,null,null,null,null,null,null,null,null,null,null,null,null,null,null,null,null,null,null,null,null,null,null,null,null,null,null,null,null,null,null,null,null,null,null,null,null,null,null,null,null,null,null,null,null,null,null,null,null,null,null,null,null,null,null,null,null,null,null,null,null,null,null,null,null,null,null,null,null,null,null,null,null,null,null,null,null,null,null,null,null,null,null,null,null,null,null,null,null,null,null,null,null,null,null,null,null,null,null,null,null,null,null,null,null,null,null,null,null,null,null,null,null,null,null,null,null,null,null,null,null,null,null,null,null,null,null,null,null,null,null,null,null,null,null,null,null,null,null,null,null,null,null,null,null,null,null,null,null,null,null,null,null,null,null,null,null,null,null,null,null,null,null,null,null,null,null,null,null,null,null,null,null,null,null,null,null,null,null,null,null,null,null,null,null,null,null,null,null,null,null,null,null,null,null,null,null,null,null,null,null,null,null,null,null,null,null,null,null,null,null,null,null,null,null,null,null,null,null,null,null,null,null,null,null,null,null,null,null,null,null,null,null,null,null,null,null,null,null,null,null,null,null,null,null,null,null,null,null,null,null,null,null,null,null,null,null,null,null,null,null,null,null,null,null,null,null,null,null,null,null,null,null,null,null,null,null,null,null,null,null,null,null,null,null,null,null,null,null,null,null,null,null,null,null,null,null,null,null,null,null,null,null,null,null,null,null,null,null,null,null,1]
[null,null,null,null,null,null,null,null,{"$f":"AG11","v":""},{"$f":"AH11","v":""},{"$f":"AI11","v":""},{"$f":"AJ11","v":""},{"$f":"I11","v":""},"","","","","","","","","","","","","","","","","","","","","","",""]
[]
[null,{"$f":"IFERROR(AG11/AJ11,0)","v":0},null,null,null,null,null,null,{"$f":"IFERROR(I11/L11,0)","v":0},null,null,null,{"$f":"IFERROR(M11/P11,0)","v":0},null,null,null,{"$f":"IFERROR(Q11/T11,0)","v":0},null,null,null,{"$f":"IFERROR(U11/X11,0)","v":0},null,null,null,{"$f":"IFERROR(Y11/AB11,0)","v":0},null,null,null,{"$f":"IFERROR(AC11/AF11,0)","v":0}]
[]
[]
[]
[]
[]
[null,null,null,null,null,null,null,null,"TÜRKÇE",null,null,null,"MATEMATİK",null,null,null,"FEN BİLGİSİ",null,null,null,"İNKILAP TARİHİ",null,null,null,"İNGİLİZCE",null,null,null,"DİN KÜLTÜRÜ",null,null,null,"TOPLAM"]
[null,null,null,null,null,null,null,null,{"$f":"IF(SUM(I13:I264)>0,SUM(I13:I264),\"\")","v":""},{"$f":"IF(SUM(J13:J264)>0,SUM(J13:J264),\"\")","v":""},"","","","","","","","","","","","","","","","","","","","","","","","","",""]
[null,null,null,null,null,null,null,null,"D","Y","B","T","D","Y","B","T","D","Y","B","T","D","Y","B","T","D","Y","B","T","D","Y","B","T","D","Y","B","T"]
[null,{"$f":"IFERROR(C14/F14,0)","v":0},true,false,"BOŞ","TOPLAM","2024-10-07",{"$f":"IFERROR(AG13/AJ13,0)","v":0},null,null,null,{"$f":"IF(SUM(I13:K13)>0,SUM(I13:K13),\"\")","v":""},null,null,null,{"$f":"IF(SUM(M13:O13)>0,SUM(M13:O13),\"\")","v":""},null,null,null,{"$f":"IF(SUM(Q13:S13)>0,SUM(Q13:S13),\"\")","v":""},null,null,null,{"$f":"IF(SUM(U13:W13)>0,SUM(U13:W13),\"\")","v":""},null,null,null,{"$f":"IF(SUM(Y13:AA13)>0,SUM(Y13:AA13),\"\")","v":""},null,null,null,{"$f":"IF(SUM(AC13:AE13)>0,SUM(AC13:AE13),\"\")","v":""},{"$f":"IF(SUM(I13,M13,Q13,U13,Y13,AC13)>0,SUM(I13,M13,Q13,U13,Y13,AC13),\"\")","v":""},{"$f":"IF(SUM(J13,N13,R13,V13,Z13,AD13)>0,SUM(J13,N13,R13,V13,Z13,AD13),\"\")","v":""},{"$f":"IF(SUM(K13,O13,S13,W13,AA13,AE13)>0,SUM(K13,O13,S13,W13,AA13,AE13),\"\")","v":""},{"$f":"IF(SUM(L13,P13,T13,X13,AB13,AF13)>0,SUM(L13,P13,T13,X13,AB13,AF13),\"\")","v":""}]
[null,null,{"$f":"SUM(AG13:AG19)","v":0},{"$f":"SUM(AH13:AH19)","v":0},{"$f":"SUM(AI13:AI19)","v":0},{"$f":"SUM(AJ13:AJ19)","v":0},{"$f":"G13+1","v":"2024-10-08"},0,null,null,null,"",null,null,null,"",null,null,null,"",null,null,null,"",null,null,null,"",null,null,null,"",{"$f":"IF(SUM(I14,M14,Q14,U14,Y14,AC14)>0,SUM(I14,M14,Q14,U14,Y14,AC14),\"\")","v":""},{"$f":"IF(SUM(J14,N14,R14,V14,Z14,AD14)>0,SUM(J14,N14,R14,V14,Z14,AD14),\"\")","v":""},{"$f":"IF(SUM(K14,O14,S14,W14,AA14,AE14)>0,SUM(K14,O14,S14,W14,AA14,AE14),\"\")","v":""},{"$f":"IF(SUM(L14,P14,T14,X14,AB14,AF14)>0,SUM(L14,P14,T14,X14,AB14,AF14),\"\")","v":""}]
[null,null,null,null,null,null,{"$f":"G14+1","v":"2024-10-09"},0,null,null,null,"",null,null,null,"",null,null,null,"",null,null,null,"",null,null,null,"",null,null,null,"","","","",""]
[null,null,null,null,null,null,"2024-10-10",0,null,null,null,"",null,null,null,"",null,null,null,"",null,null,null,"",null,null,null,"",null,null,null,"","","","",""]
[null,1,null,null,null,null,"2024-10-11",0,null,null,null,"",null,null,null,"",null,null,null,"",null,null,null,"",null,null,null,"",null,null,null,"","","","",""]
[null,null,null,null,null,null,"2024-10-12",0,null,null,null,"",null,null,null,"",null,null,null,"",null,null,null,"",null,null,null,"",null,null,null,"","","","",""]
[null,null,null,null,null,null,"2024-10-13",0,null,null,null,"",null,null,null,"",null,null,null,"",null,null,null,"",null,null,null,"",null,null,null,"","","","",""]
[null,{"$f":"IFERROR(C21/F21,0)","v":0},true,false,"BOŞ","TOPLAM","2024-10-14",0,null,null,null,"",null,null,null,"",null,null,null,"",null,null,null,"",null,null,null,"",null,null,null,"","","","",""]
[null,null,{"$f":"SUM(AG20:AG26)","v":0},{"$f":"SUM(AH20:AH26)","v":0},{"$f":"SUM(AI20:AI26)","v":0},{"$f":"SUM(AJ20:AJ26)","v":0},"2024-10-15",0,null,null,null,"",null,null,null,"",null,null,null,"",null,null,null,"",null,null,null,"",null,null,null,"","","","",""]
[null,null,null,null,null,null,"2024-10-16",0,null,null,null,"",null,null,null,"",null,null,null,"",null,null,null,"",null,null,null,"",null,null,null,"","","","",""]
[null,null,null,null,null,null,"2024-10-17",0,null,null,null,"",null,null,null,"",null,null,null,"",null,null,null,"",null,null,null,"",null,null,null,"","","","",""]
[null,{"$f":"B17+1","v":2},null,null,null,null,"2024-10-18",0,null,null,null,"",null,null,null,"",null,null,null,"",null,null,null,"",null,null,null,"",null,null,null,"","","","",""]
[null,null,null,null,null,null,"2024-10-19",0,null,null,null,"",null,null,null,"",null,null,null,"",null,null,null,"",null,null,null,"",null,null,null,"","","","",""]
[null,null,null,null,null,null,"2024-10-20",0,null,null,null,"",null,null,null,"",null,null,null,"",null,null,null,"",null,null,null,"",null,null,null,"","","","",""]
[null,{"$f":"IFERROR(C28/F28,0)","v":0},true,false,"BOŞ","TOPLAM","2024-10-21",0,null,null,null,"",null,null,null,"",null,null,null,"",null,null,null,"",null,null,null,"",null,null,null,"","","","",""]
[null,null,{"$f":"SUM(AG27:AG33)","v":0},0,0,0,"2024-10-22",0,null,null,null,"",null,null,null,"",null,null,null,"",null,null,null,"",null,null,null,"",null,null,null,"","","","",""]
[null,null,null,null,null,null,"2024-10-23",0,null,null,null,"",null,null,null,"",null,null,null,"",null,null,null,"",null,null,null,"",null,null,null,"","","","",""]
[null,null,null,null,null,null,"2024-10-24",0,null,null,null,"",null,null,null,"",null,null,null,"",null,null,null,"",null,null,null,"",null,null,null,"","","","",""]
[null,{"$f":"B24+1","v":3},null,null,null,null,"2024-10-25",0,null,null,null,"",null,null,null,"",null,null,null,"",null,null,null,"",null,null,null,"",null,null,null,"","","","",""]
[null,null,null,null,null,null,"2024-10-26",0,null,null,null,"",null,null,null,"",null,null,null,"",null,null,null,"",null,null,null,"",null,null,null,"","","","",""]
[null,null,null,null,null,null,"2024-10-27",0,null,null,null,"",null,null,null,"",null,null,null,"",null,null,null,"",null,null,null,"",null,null,null,"","","","",""]
[null,{"$f":"IFERROR(C35/F35,0)","v":0},true,false,"BOŞ","TOPLAM","2024-10-28",0,null,null,null,"",null,null,null,"",null,null,null,"",null,null,null,"",null,null,null,"",null,null,null,"","","","",""]
[null,null,{"$f":"SUM(AG34:AG40)","v":0},{"$f":"SUM(AH34:AH40)","v":0},{"$f":"SUM(AI34:AI40)","v":0},0,"2024-10-29",0,null,null,null,"",null,null,null,"",null,null,null,"",null,null,null,"",null,null,null,"",null,null,null,"","","","",""]
[null,null,null,null,null,null,"2024-10-30",0,null,null,null,"",null,null,null,"",null,null,null,"",null,null,null,"",null,null,null,"",null,null,null,"","","","",""]
[null,null,null,null,null,null,"2024-10-31",0,null,null,null,"",null,null,null,"",null,null,null,"",null,null,null,"",null,null,null,"",null,null,null,"","","","",""]
[null,{"$f":"B31+1","v":4},null,null,null,null,"2024-11-01",0,null,null,null,"",null,null,null,"",null,null,null,"",null,null,null,"",null,null,null,"",null,null,null,"","","","",""]
[null,null,null,null,null,null,"2024-11-02",0,null,null,null,"",null,null,null,"",null,null,null,"",null,null,null,"",null,null,null,"",null,null,null,"","","","",""]
[null,null,null,null,null,null,"2024-11-03",0,null,null,null,"",null,null,null,"",null,null,null,"",null,null,null,"",null,null,null,"",null,null,null,"","","","",""]
[null,{"$f":"IFERROR(C42/F42,0)","v":0},true,false,"BOŞ","TOPLAM","2024-11-04",0,null,null,null,"",null,null,null,"",null,null,null,"",null,null,null,"",null,null,null,"",null,null,null,"","","","",""]
[null,null,{"$f":"SUM(AG41:AG47)","v":0},0,0,0,"2024-11-05",0,null,null,null,"",null,null,null,"",null,null,null,"",null,null,null,"",null,null,null,"",null,null,null,"","","","",""]
[null,null,null,null,null,null,"2024-11-06",0,null,null,null,"",null,null,null,"",null,null,null,"",null,null,null,"",null,null,null,"",null,null,null,"","","","",""]
[null,null,null,null,null,null,"2024-11-07",0,null,null,null,"",null,null,null,"",null,null,null,"",null,null,null,"",null,null,null,"",null,null,null,"","","","",""]
[null,{"$f":"B38+1","v":5},null,null,null,null,"2024-11-08",0,null,null,null,"",null,null,null,"",null,null,null,"",null,null,null,"",null,null,null,"",null,null,null,"","","","",""]
[null,null,null,null,null,null,"2024-11-09",0,null,null,null,"",null,null,null,"",null,null,null,"",null,null,null,"",null,null,null,"",null,null,null,"","","","",""]
[null,null,null,null,null,null,"2024-11-10",0,null,null,null,"",null,null,null,"",null,null,null,"",null,null,null,"",null,null,null,"",null,null,null,"","","","",""]
[null,{"$f":"IFERROR(C49/F49,0)","v":0},true,false,"BOŞ","TOPLAM","2024-11-11",0,null,null,null,"",null,null,null,"",null,null,null,"",null,null,null,"",null,null,null,"",null,null,null,"","","","",""]
[null,null,{"$f":"SUM(AG48:AG54)","v":0},0,0,0,"2024-11-12",0,null,null,null,"",null,null,null,"",null,null,null,"",null,null,null,"",null,null,null,"",null,null,null,"","","","",""]
[null,null,null,null,null,null,"2024-11-13",0,null,null,null,"",null,null,null,"",null,null,null,"",null,null,null,"",null,null,null,"",null,null,null,"","","","",""]
[null,null,null,null,null,null,"2024-11-14",0,null,null,null,"",null,null,null,"",null,null,null,"",null,null,null,"",null,null,null,"",null,null,null,"","","","",""]
[null,{"$f":"B45+1","v":6},null,null,null,null,"2024-11-15",0,null,null,null,"",null,null,null,"",null,null,null,"",null,null,null,"",null,null,null,"",null,null,null,"","","","",""]
[null,null,null,null,null,null,"2024-11-16",0,null,null,null,"",null,null,null,"",null,null,null,"",null,null,null,"",null,null,null,"",null,null,null,"","","","",""]
[null,null,null,null,null,null,"2024-11-17",0,null,null,null,"",null,null,null,"",null,null,null,"",null,null,null,"",null,null,null,"",null,null,null,"","","","",""]
[null,{"$f":"IFERROR(C56/F56,0)","v":0},true,false,"BOŞ","TOPLAM","2024-11-18",{"$f":"IFERROR(AG55/AJ55,0)","v":0},null,null,null,"",null,null,null,"",null,null,null,"",null,null,null,"",null,null,null,"",null,null,null,"","","","",""]
[null,null,{"$f":"SUM(AG55:AG61)","v":0},0,0,0,"2024-11-19",{"$f":"IFERROR(AG56/AJ56,0)","v":0},null,null,null,"",null,null,null,"",null,null,null,"",null,null,null,"",null,null,null,"",null,null,null,"","","","",""]
[null,null,null,null,null,null,"2024-11-20",0,null,null,null,"",null,null,null,"",null,null,null,"",null,null,null,"",null,null,null,"",null,null,null,"","","","",""]
[null,null,null,null,null,null,"2024-11-21",0,null,null,null,"",null,null,null,"",null,null,null,"",null,null,null,"",null,null,null,"",null,null,null,"","","","",""]
[null,{"$f":"B52+1","v":7},null,null,null,null,"2024-11-22",0,null,null,null,"",null,null,null,"",null,null,null,"",null,null,null,"",null,null,null,"",null,null,null,"","","","",""]
[null,null,null,null,null,null,"2024-11-23",0,null,null,null,"",null,null,null,"",null,null,null,"",null,null,null,"",null,null,null,"",null,null,null,"","","","",""]
[null,null,null,null,null,null,"2024-11-24",0,null,null,null,"",null,null,null,"",null,null,null,"",null,null,null,"",null,null,null,"",null,null,null,"","","","",""]
[null,{"$f":"IFERROR(C63/F63,0)","v":0},true,false,"BOŞ","TOPLAM","2024-11-25",0,null,null,null,"",null,null,null,"",null,null,null,"",null,null,null,"",null,null,null,"",null,null,null,"","","","",""]
[null,null,{"$f":"SUM(AG62:AG68)","v":0},0,0,0,"2024-11-26",0,null,null,null,"",null,null,null,"",null,null,null,"",null,null,null,"",null,null,null,"",null,null,null,"","","","",""]
[null,null,null,null,null,null,"2024-11-27",0,null,null,null,"",null,null,null,"",null,null,null,"",null,null,null,"",null,null,null,"",null,null,null,"","","","",""]
[null,null,null,null,null,null,"2024-11-28",0,null,null,null,"",null,null,null,"",null,null,null,"",null,null,null,"",null,null,null,"",null,null,null,"","","","",""]
[null,{"$f":"B59+1","v":8},null,null,null,null,"2024-11-29",0,null,null,null,"",null,null,null,"",null,null,null,"",null,null,null,"",null,null,null,"",null,null,null,"","","","",""]
[null,null,null,null,null,null,"2024-11-30",0,null,null,null,"",null,null,null,"",null,null,null,"",null,null,null,"",null,null,null,"",null,null,null,"","","","",""]
[null,null,null,null,null,null,"2024-12-01",0,null,null,null,"",null,null,null,"",null,null,null,"",null,null,null,"",null,null,null,"",null,null,null,"","","","",""]
[null,{"$f":"IFERROR(C70/F70,0)","v":0},true,false,"BOŞ","TOPLAM","2024-12-02",0,null,null,null,"",null,null,null,"",null,null,null,"",null,null,null,"",null,null,null,"",null,null,null,"","","","",""]
[null,null,{"$f":"SUM(AG69:AG75)","v":0},0,0,0,"2024-12-03",0,null,null,null,"",null,null,null,"",null,null,null,"",null,null,null,"",null,null,null,"",null,null,null,"","","","",""]
[null,null,null,null,null,null,"2024-12-04",0,null,null,null,"",null,null,null,"",null,null,null,"",null,null,null,"",null,null,null,"",null,null,null,"","","","",""]
[null,null,null,null,null,null,"2024-12-05",0,null,null,null,"",null,null,null,"",null,null,null,"",null,null,null,"",null,null,null,"",null,null,null,"","","","",""]
[null,{"$f":"B66+1","v":9},null,null,null,null,"2024-12-06",0,null,null,null,"",null,null,null,"",null,null,null,"",null,null,null,"",null,null,null,"",null,null,null,"","","","",""]
[null,null,null,null,null,null,"2024-12-07",0,null,null,null,"",null,null,null,"",null,null,null,"",null,null,null,"",null,null,null,"",null,null,null,"","","","",""]
[null,null,null,null,null,null,"2024-12-08",0,null,null,null,"",null,null,null,"",null,null,null,"",null,null,null,"",null,null,null,"",null,null,null,"","","","",""]
[null,{"$f":"IFERROR(C77/F77,0)","v":0},true,false,"BOŞ","TOPLAM","2024-12-09",0,null,null,null,"",null,null,null,"",null,null,null,"",null,null,null,"",null,null,null,"",null,null,null,"","","","",""]
[null,null,{"$f":"SUM(AG76:AG82)","v":0},0,0,0,"2024-12-10",0,null,null,null,{"$f":"IF(SUM(I77:K77)>0,SUM(I77:K77),\"\")","v":""},null,null,null,{"$f":"IF(SUM(M77:O77)>0,SUM(M77:O77),\"\")","v":""},null,null,null,{"$f":"IF(SUM(Q77:S77)>0,SUM(Q77:S77),\"\")","v":""},null,null,null,{"$f":"IF(SUM(U77:W77)>0,SUM(U77:W77),\"\")","v":""},null,null,null,{"$f":"IF(SUM(Y77:AA77)>0,SUM(Y77:AA77),\"\")","v":""},null,null,null,{"$f":"IF(SUM(AC77:AE77)>0,SUM(AC77:AE77),\"\")","v":""},"","","",""]
[null,null,null,null,null,null,"2024-12-11",0,null,null,null,"",null,null,null,"",null,null,null,"",null,null,null,"",null,null,null,"",null,null,null,"",{"$f":"IF(SUM(I78,M78,Q78,U78,Y78,AC78)>0,SUM(I78,M78,Q78,U78,Y78,AC78),\"\")","v":""},{"$f":"IF(SUM(J78,N78,R78,V78,Z78,AD78)>0,SUM(J78,N78,R78,V78,Z78,AD78),\"\")","v":""},{"$f":"IF(SUM(K78,O78,S78,W78,AA78,AE78)>0,SUM(K78,O78,S78,W78,AA78,AE78),\"\")","v":""},{"$f":"IF(SUM(L78,P78,T78,X78,AB78,AF78)>0,SUM(L78,P78,T78,X78,AB78,AF78),\"\")","v":""}]
[null,null,null,null,null,null,{"$f":"G78+1","v":"2024-12-12"},0,null,null,null,"",null,null,null,"",null,null,null,"",null,null,null,"",null,null,null,"",null,null,null,"","","","",""]
[null,{"$f":"B73+1","v":10},null,null,null,null,"2024-12-13",0,null,null,null,"",null,null,null,"",null,null,null,"",null,null,null,"",null,null,null,"",null,null,null,"","","","",""]
[null,null,null,null,null,null,"2024-12-14",0,null,null,null,"",null,null,null,"",null,null,null,"",null,null,null,"",null,null,null,"",null,null,null,"","","","",""]
[null,null,null,null,null,null,"2024-12-15",0,null,null,null,"",null,null,null,"",null,null,null,"",null,null,null,"",null,null,null,"",null,null,null,"","","","",""]
[null,{"$f":"IFERROR(C84/F84,0)","v":0},true,false,"BOŞ","TOPLAM","2024-12-16",0,null,null,null,"",null,null,null,"",null,null,null,"",null,null,null,"",null,null,null,"",null,null,null,"","","","",""]
[null,null,{"$f":"SUM(AG83:AG89)","v":0},0,0,0,"2024-12-17",0,null,null,null,"",null,null,null,"",null,null,null,"",null,null,null,"",null,null,null,"",null,null,null,"","","","",""]
[null,null,null,null,null,null,"2024-12-18",0,null,null,null,"",null,null,null,"",null,null,null,"",null,null,null,"",null,null,null,"",null,null,null,"","","","",""]
[null,null,null,null,null,null,"2024-12-19",0,null,null,null,"",null,null,null,"",null,null,null,"",null,null,null,"",null,null,null,"",null,null,null,"","","","",""]
[null,{"$f":"B80+1","v":11},null,null,null,null,"2024-12-20",0,null,null,null,"",null,null,null,"",null,null,null,"",null,null,null,"",null,null,null,"",null,null,null,"","","","",""]
[null,null,null,null,null,null,"2024-12-21",0,null,null,null,"",null,null,null,"",null,null,null,"",null,null,null,"",null,null,null,"",null,null,null,"","","","",""]
[null,null,null,null,null,null,"2024-12-22",0,null,null,null,"",null,null,null,"",null,null,null,"",null,null,null,"",null,null,null,"",null,null,null,"","","","",""]
[null,{"$f":"IFERROR(C91/F91,0)","v":0},true,false,"BOŞ","TOPLAM","2024-12-23",0,null,null,null,"",null,null,null,"",null,null,null,"",null,null,null,"",null,null,null,"",null,null,null,"","","","",""]
[null,null,{"$f":"SUM(AG90:AG96)","v":0},0,0,0,"2024-12-24",0,null,null,null,"",null,null,null,"",null,null,null,"",null,null,null,"",null,null,null,"",null,null,null,"","","","",""]
[null,null,null,null,null,null,"2024-12-25",0,null,null,null,"",null,null,null,"",null,null,null,"",null,null,null,"",null,null,null,"",null,null,null,"","","","",""]
[null,null,null,null,null,null,"2024-12-26",0,null,null,null,"",null,null,null,"",null,null,null,"",null,null,null,"",null,null,null,"",null,null,null,"","","","",""]
[null,{"$f":"B87+1","v":12},null,null,null,null,"2024-12-27",0,null,null,null,"",null,null,null,"",null,null,null,"",null,null,null,"",null,null,null,"",null,null,null,"","","","",""]
[null,null,null,null,null,null,"2024-12-28",0,null,null,null,"",null,null,null,"",null,null,null,"",null,null,null,"",null,null,null,"",null,null,null,"","","","",""]
[null,null,null,null,null,null,"2024-12-29",0,null,null,null,"",null,null,null,"",null,null,null,"",null,null,null,"",null,null,null,"",null,null,null,"","","","",""]
[null,{"$f":"IFERROR(C98/F98,0)","v":0},true,false,"BOŞ","TOPLAM","2024-12-30",0,null,null,null,"",null,null,null,"",null,null,null,"",null,null,null,"",null,null,null,"",null,null,null,"","","","",""]
[null,null,{"$f":"SUM(AG97:AG103)","v":0},0,0,0,"2024-12-31",0,null,null,null,"",null,null,null,"",null,null,null,"",null,null,null,"",null,null,null,"",null,null,null,"","","","",""]
[null,null,null,null,null,null,"2025-01-01",0,null,null,null,"",null,null,null,"",null,null,null,"",null,null,null,"",null,null,null,"",null,null,null,"","","","",""]
[null,null,null,null,null,null,"2025-01-02",0,null,null,null,"",null,null,null,"",null,null,null,"",null,null,null,"",null,null,null,"",null,null,null,"","","","",""]
[null,{"$f":"B94+1","v":13},null,null,null,null,"2025-01-03",0,null,null,null,{"$f":"IF(SUM(I101:K101)>0,SUM(I101:K101),\"\")","v":""},null,null,null,{"$f":"IF(SUM(M101:O101)>0,SUM(M101:O101),\"\")","v":""},null,null,null,{"$f":"IF(SUM(Q101:S101)>0,SUM(Q101:S101),\"\")","v":""},null,null,null,{"$f":"IF(SUM(U101:W101)>0,SUM(U101:W101),\"\")","v":""},null,null,null,{"$f":"IF(SUM(Y101:AA101)>0,SUM(Y101:AA101),\"\")","v":""},null,null,null,"","","","",""]
[null,null,null,null,null,null,"2025-01-04",0,null,null,null,"",null,null,null,"",null,null,null,"",null,null,null,"",null,null,null,"",null,null,null,"","","","",""]
[null,null,null,null,null,null,"2025-01-05",0,null,null,null,"",null,null,null,"",null,null,null,"",null,null,null,"",null,null,null,"",null,null,null,"","","","",""]
[null,{"$f":"IFERROR(C105/F105,0)","v":0},true,false,"BOŞ","TOPLAM","2025-01-06",0,null,null,null,"",null,null,null,"",null,null,null,"",null,null,null,"",null,null,null,"",null,null,null,"","","","",""]
[null,null,{"$f":"SUM(AG104:AG110)","v":0},0,0,0,"2025-01-07",0,null,null,null,"",null,null,null,"",null,null,null,"",null,null,null,"",null,null,null,"",null,null,null,"","","","",""]
[null,null,null,null,null,null,"2025-01-08",0,null,null,null,"",null,null,null,"",null,null,null,"",null,null,null,"",null,null,null,"",null,null,null,"","","","",""]
[null,null,null,null,null,null,"2025-01-09",0,null,null,null,"",null,null,null,"",null,null,null,"",null,null,null,"",null,null,null,"",null,null,null,"","","","",""]
[null,{"$f":"B101+1","v":14},null,null,null,null,"2025-01-10",0,null,null,null,"",null,null,null,"",null,null,null,"",null,null,null,"",null,null,null,"",null,null,null,"","","","",""]
[null,null,null,null,null,null,"2025-01-11",0,null,null,null,"",null,null,null,"",null,null,null,"",null,null,null,"",null,null,null,"",null,null,null,"","","","",""]
[null,null,null,null,null,null,"2025-01-12",0,null,null,null,"",null,null,null,"",null,null,null,"",null,null,null,"",null,null,null,"",null,null,null,"","","","",""]
[null,{"$f":"IFERROR(C112/F112,0)","v":0},true,false,"BOŞ","TOPLAM","2025-01-13",0,null,null,null,"",null,null,null,"",null,null,null,"",null,null,null,"",null,null,null,"",null,null,null,"","","","",""]
[null,null,{"$f":"SUM(AG111:AG117)","v":0},0,0,0,"2025-01-14",0,null,null,null,"",null,null,null,"",null,null,null,"",null,null,null,"",null,null,null,"",null,null,null,"","","","",""]
[null,null,null,null,null,null,"2025-01-15",0,null,null,null,"",null,null,null,"",null,null,null,"",null,null,null,"",null,null,null,"",null,null,null,"","","","",""]
[null,null,null,null,null,null,"2025-01-16",0,null,null,null,"",null,null,null,"",null,null,null,"",null,null,null,"",null,null,null,"",null,null,null,"","","","",""]
[null,{"$f":"B108+1","v":15},null,null,null,null,"2025-01-17",0,null,null,null,"",null,null,null,"",null,null,null,"",null,null,null,"",null,null,null,"",null,null,null,"","","","",""]
[null,null,null,null,null,null,"2025-01-18",0,null,null,null,"",null,null,null,"",null,null,null,"",null,null,null,"",null,null,null,"",null,null,null,"","","","",""]
[null,null,null,null,null,null,"2025-01-19",0,null,null,null,"",null,null,null,"",null,null,null,"",null,null,null,"",null,null,null,"",null,null,null,"","","","",""]
[null,{"$f":"IFERROR(C119/F119,0)","v":0},true,false,"BOŞ","TOPLAM","2025-01-20",0,null,null,null,"",null,null,null,"",null,null,null,"",null,null,null,"",null,null,null,"",null,null,null,"","","","",""]
[null,null,{"$f":"SUM(AG118:AG124)","v":0},0,0,0,"2025-01-21",0,null,null,null,"",null,null,null,"",null,null,null,"",null,null,null,"",null,null,null,"",null,null,null,"","","","",""]
[null,null,null,null,null,null,"2025-01-22",{"$f":"IFERROR(AG120/AJ120,0)","v":0},null,null,null,"",null,null,null,"",null,null,null,"",null,null,null,"",null,null,null,"",null,null,null,"","","","",""]
[null,null,null,null,null,null,"2025-01-23",0,null,null,null,"",null,null,null,"",null,null,null,"",null,null,null,"",null,null,null,"",null,null,null,"","","","",""]
[null,{"$f":"B115+1","v":16},null,null,null,null,"2025-01-24",0,null,null,null,"",null,null,null,"",null,null,null,"",null,null,null,"",null,null,null,"",null,null,null,"","","","",""]
[null,null,null,null,null,null,"2025-01-25",0,null,null,null,"",null,null,null,"",null,null,null,"",null,null,null,"",null,null,null,"",null,null,null,"","","","",""]
[null,null,null,null,null,null,"2025-01-26",0,null,null,null,"",null,null,null,"",null,null,null,"",null,null,null,"",null,null,null,"",null,null,null,"","","","",""]
[null,{"$f":"IFERROR(C126/F126,0)","v":0},true,false,"BOŞ","TOPLAM","2025-01-27",0,null,null,null,"",null,null,null,"",null,null,null,"",null,null,null,"",null,null,null,"",null,null,null,"","","","",""]
[null,null,{"$f":"SUM(AG125:AG131)","v":0},0,0,0,"2025-01-28",0,null,null,null,"",null,null,null,"",null,null,null,"",null,null,null,"",null,null,null,"",null,null,null,"","","","",""]
[null,null,null,null,null,null,"2025-01-29",0,null,null,null,"",null,null,null,"",null,null,null,"",null,null,null,"",null,null,null,"",null,null,null,"","","","",""]
[null,null,null,null,null,null,"2025-01-30",0,null,null,null,"",null,null,null,"",null,null,null,"",null,null,null,"",null,null,null,"",null,null,null,"","","","",""]
[null,{"$f":"B122+1","v":17},null,null,null,null,"2025-01-31",0,null,null,null,"",null,null,null,"",null,null,null,"",null,null,null,"",null,null,null,"",null,null,null,"","","","",""]
[null,null,null,null,null,null,"2025-02-01",0,null,null,null,"",null,null,null,"",null,null,null,"",null,null,null,"",null,null,null,"",null,null,null,"","","","",""]
[null,null,null,null,null,null,"2025-02-02",0,null,null,null,"",null,null,null,"",null,null,null,"",null,null,null,"",null,null,null,"",null,null,null,"","","","",""]
[null,{"$f":"IFERROR(C133/F133,0)","v":0},true,false,"BOŞ","TOPLAM","2025-02-03",0,null,null,null,"",null,null,null,"",null,null,null,"",null,null,null,"",null,null,null,"",null,null,null,"","","","",""]
[null,null,{"$f":"SUM(AG132:AG138)","v":0},0,0,0,"2025-02-04",0,null,null,null,"",null,null,null,"",null,null,null,"",null,null,null,"",null,null,null,"",null,null,null,"","","","",""]
[null,null,null,null,null,null,"2025-02-05",0,null,null,null,"",null,null,null,"",null,null,null,"",null,null,null,"",null,null,null,"",null,null,null,"","","","",""]
[null,null,null,null,null,null,"2025-02-06",0,null,null,null,"",null,null,null,"",null,null,null,"",null,null,null,"",null,null,null,"",null,null,null,"","","","",""]
[null,{"$f":"B129+1","v":18},null,null,null,null,"2025-02-07",0,null,null,null,"",null,null,null,"",null,null,null,"",null,null,null,"",null,null,null,"",null,null,null,"","","","",""]
[null,null,null,null,null,null,"2025-02-08",0,null,null,null,"",null,null,null,"",null,null,null,"",null,null,null,"",null,null,null,"",null,null,null,"","","","",""]
[null,null,null,null,null,null,"2025-02-09",0,null,null,null,"",null,null,null,"",null,null,null,"",null,null,null,"",null,null,null,"",null,null,null,"","","","",""]
[null,{"$f":"IFERROR(C140/F140,0)","v":0},true,false,"BOŞ","TOPLAM","2025-02-10",0,null,null,null,"",null,null,null,"",null,null,null,"",null,null,null,"",null,null,null,"",null,null,null,"","","","",""]
[null,null,{"$f":"SUM(AG139:AG145)","v":0},0,0,0,"2025-02-11",0,null,null,null,"",null,null,null,"",null,null,null,"",null,null,null,"",null,null,null,"",null,null,null,"","","","",""]
[null,null,null,null,null,null,"2025-02-12",0,null,null,null,{"$f":"IF(SUM(I141:K141)>0,SUM(I141:K141),\"\")","v":""},null,null,null,{"$f":"IF(SUM(M141:O141)>0,SUM(M141:O141),\"\")","v":""},null,null,null,{"$f":"IF(SUM(Q141:S141)>0,SUM(Q141:S141),\"\")","v":""},null,null,null,{"$f":"IF(SUM(U141:W141)>0,SUM(U141:W141),\"\")","v":""},null,null,null,{"$f":"IF(SUM(Y141:AA141)>0,SUM(Y141:AA141),\"\")","v":""},null,null,null,{"$f":"IF(SUM(AC141:AE141)>0,SUM(AC141:AE141),\"\")","v":""},"","","",""]
[null,null,null,null,null,null,"2025-02-13",0,null,null,null,"",null,null,null,"",null,null,null,"",null,null,null,"",null,null,null,"",null,null,null,"",{"$f":"IF(SUM(I142,M142,Q142,U142,Y142,AC142)>0,SUM(I142,M142,Q142,U142,Y142,AC142),\"\")","v":""},{"$f":"IF(SUM(J142,N142,R142,V142,Z142,AD142)>0,SUM(J142,N142,R142,V142,Z142,AD142),\"\")","v":""},{"$f":"IF(SUM(K142,O142,S142,W142,AA142,AE142)>0,SUM(K142,O142,S142,W142,AA142,AE142),\"\")","v":""},{"$f":"IF(SUM(L142,P142,T142,X142,AB142,AF142)>0,SUM(L142,P142,T142,X142,AB142,AF142),\"\")","v":""}]
[null,{"$f":"B136+1","v":19},null,null,null,null,{"$f":"G142+1","v":"2025-02-14"},0,null,null,null,"",null,null,null,"",null,null,null,"",null,null,null,"",null,null,null,"",null,null,null,"","","","",""]
[null,null,null,null,null,null,"2025-02-15",0,null,null,null,"",null,null,null,"",null,null,null,"",null,null,null,"",null,null,null,"",null,null,null,"","","","",""]
[null,null,null,null,null,null,"2025-02-16",0,null,null,null,"",null,null,null,"",null,null,null,"",null,null,null,"",null,null,null,"",null,null,null,"","","","",""]
[null,{"$f":"IFERROR(C147/F147,0)","v":0},true,false,"BOŞ","TOPLAM","2025-02-17",0,null,null,null,"",null,null,null,"",null,null,null,"",null,null,null,"",null,null,null,"",null,null,null,"","","","",""]
[null,null,{"$f":"SUM(AG146:AG152)","v":0},0,0,0,"2025-02-18",0,null,null,null,"",null,null,null,"",null,null,null,"",null,null,null,"",null,null,null,"",null,null,null,"","","","",""]
[null,null,null,null,null,null,"2025-02-19",0,null,null,null,"",null,null,null,"",null,null,null,"",null,null,null,"",null,null,null,"",null,null,null,"","","","",""]
[null,null,null,null,null,null,"2025-02-20",0,null,null,null,"",null,null,null,"",null,null,null,"",null,null,null,"",null,null,null,"",null,null,null,"","","","",""]
[null,{"$f":"B143+1","v":20},null,null,null,null,"2025-02-21",0,null,null,null,"",null,null,null,"",null,null,null,"",null,null,null,"",null,null,null,"",null,null,null,"","","","",""]
[null,null,null,null,null,null,"2025-02-22",0,null,null,null,"",null,null,null,"",null,null,null,"",null,null,null,"",null,null,null,"",null,null,null,"","","","",""]
[null,null,null,null,null,null,"2025-02-23",0,null,null,null,"",null,null,null,"",null,null,null,"",null,null,null,"",null,null,null,"",null,null,null,"","","","",""]
[null,{"$f":"IFERROR(C154/F154,0)","v":0},true,false,"BOŞ","TOPLAM","2025-02-24",0,null,null,null,"",null,null,null,"",null,null,null,"",null,null,null,"",null,null,null,"",null,null,null,"","","","",""]
[null,null,{"$f":"SUM(AG153:AG159)","v":0},0,0,0,"2025-02-25",0,null,null,null,"",null,null,null,"",null,null,null,"",null,null,null,"",null,null,null,"",null,null,null,"","","","",""]
[null,null,null,null,null,null,"2025-02-26",0,null,null,null,"",null,null,null,"",null,null,null,"",null,null,null,"",null,null,null,"",null,null,null,"","","","",""]
[null,null,null,null,null,null,"2025-02-27",0,null,null,null,"",null,null,null,"",null,null,null,"",null,null,null,"",null,null,null,"",null,null,null,"","","","",""]
[null,{"$f":"B150+1","v":21},null,null,null,null,"2025-02-28",0,null,null,null,"",null,null,null,"",null,null,null,"",null,null,null,"",null,null,null,"",null,null,null,"","","","",""]
[null,null,null,null,null,null,"2025-03-01",0,null,null,null,"",null,null,null,"",null,null,null,"",null,null,null,"",null,null,null,"",null,null,null,"","","","",""]
[null,null,null,null,null,null,"2025-03-02",0,null,null,null,"",null,null,null,"",null,null,null,"",null,null,null,"",null,null,null,"",null,null,null,"","","","",""]
[null,{"$f":"IFERROR(C161/F161,0)","v":0},true,false,"BOŞ","TOPLAM","2025-03-03",0,null,null,null,"",null,null,null,"",null,null,null,"",null,null,null,"",null,null,null,"",null,null,null,"","","","",""]
[null,null,{"$f":"SUM(AG160:AG166)","v":0},{"$f":"SUM(AH160:AH166)","v":0},{"$f":"SUM(AI160:AI166)","v":0},{"$f":"SUM(AJ160:AJ166)","v":0},"2025-03-04",0,null,null,null,"",null,null,null,"",null,null,null,"",null,null,null,"",null,null,null,"",null,null,null,"","","","",""]
[null,null,null,null,null,null,"2025-03-05",0,null,null,null,"",null,null,null,"",null,null,null,"",null,null,null,"",null,null,null,"",null,null,null,"","","","",""]
[null,null,null,null,null,null,"2025-03-06",0,null,null,null,"",null,null,null,"",null,null,null,"",null,null,null,"",null,null,null,"",null,null,null,"","","","",""]
[null,{"$f":"B157+1","v":22},null,null,null,null,"2025-03-07",0,null,null,null,"",null,null,null,"",null,null,null,"",null,null,null,"",null,null,null,"",null,null,null,"","","","",""]
[null,null,null,null,null,null,"2025-03-08",0,null,null,null,"",null,null,null,"",null,null,null,"",null,null,null,"",null,null,null,"",null,null,null,"","","","",""]
[null,null,null,null,null,null,"2025-03-09",0,null,null,null,"",null,null,null,"",null,null,null,"",null,null,null,"",null,null,null,"",null,null,null,"","","","",""]
[null,{"$f":"IFERROR(C168/F168,0)","v":0},true,false,"BOŞ","TOPLAM","2025-03-10",0,null,null,null,"",null,null,null,"",null,null,null,"",null,null,null,"",null,null,null,"",null,null,null,"","","","",""]
[null,null,{"$f":"SUM(AG167:AG173)","v":0},{"$f":"SUM(AH167:AH173)","v":0},{"$f":"SUM(AI167:AI173)","v":0},{"$f":"SUM(AJ167:AJ173)","v":0},"2025-03-11",0,null,null,null,"",null,null,null,"",null,null,null,"",null,null,null,"",null,null,null,"",null,null,null,"","","","",""]
[null,null,null,null,null,null,"2025-03-12",0,null,null,null,"",null,null,null,"",null,null,null,"",null,null,null,"",null,null,null,"",null,null,null,"","","","",""]
[null,null,null,null,null,null,"2025-03-13",0,null,null,null,"",null,null,null,"",null,null,null,"",null,null,null,"",null,null,null,"",null,null,null,"","","","",""]
[null,{"$f":"B164+1","v":23},null,null,null,null,"2025-03-14",0,null,null,null,"",null,null,null,"",null,null,null,"",null,null,null,"",null,null,null,"",null,null,null,"","","","",""]
[null,null,null,null,null,null,"2025-03-15",0,null,null,null,"",null,null,null,"",null,null,null,"",null,null,null,"",null,null,null,"",null,null,null,"","","","",""]
[null,null,null,null,null,null,"2025-03-16",0,null,null,null,"",null,null,null,"",null,null,null,"",null,null,null,"",null,null,null,"",null,null,null,"","","","",""]
[null,{"$f":"IFERROR(C175/F175,0)","v":0},true,false,"BOŞ","TOPLAM","2025-03-17",0,null,null,null,"",null,null,null,"",null,null,null,"",null,null,null,"",null,null,null,"",null,null,null,"","","","",""]
[null,null,{"$f":"SUM(AG174:AG180)","v":0},{"$f":"SUM(AH174:AH180)","v":0},{"$f":"SUM(AI174:AI180)","v":0},{"$f":"SUM(AJ174:AJ180)","v":0},"2025-03-18",0,null,null,null,"",null,null,null,"",null,null,null,"",null,null,null,"",null,null,null,"",null,null,null,"","","","",""]
[null,null,null,null,null,null,"2025-03-19",0,null,null,null,"",null,null,null,"",null,null,null,"",null,null,null,"",null,null,null,"",null,null,null,"","","","",""]
[null,null,null,null,null,null,"2025-03-20",0,null,null,null,"",null,null,null,"",null,null,null,"",null,null,null,"",null,null,null,"",null,null,null,"","","","",""]
[null,{"$f":"B171+1","v":24},null,null,null,null,"2025-03-21",0,null,null,null,"",null,null,null,"",null,null,null,"",null,null,null,"",null,null,null,"",null,null,null,"","","","",""]
[null,null,null,null,null,null,"2025-03-22",0,null,null,null,"",null,null,null,"",null,null,null,"",null,null,null,"",null,null,null,"",null,null,null,"","","","",""]
[null,null,null,null,null,null,"2025-03-23",0,null,null,null,"",null,null,null,"",null,null,null,"",null,null,null,"",null,null,null,"",null,null,null,"","","","",""]
[null,{"$f":"IFERROR(C182/F182,0)","v":0},true,false,"BOŞ","TOPLAM","2025-03-24",0,null,null,null,"",null,null,null,"",null,null,null,"",null,null,null,"",null,null,null,"",null,null,null,"","","","",""]
[null,null,{"$f":"SUM(AG181:AG187)","v":0},{"$f":"SUM(AH181:AH187)","v":0},{"$f":"SUM(AI181:AI187)","v":0},{"$f":"SUM(AJ181:AJ187)","v":0},"2025-03-25",0,null,null,null,"",null,null,null,"",null,null,null,"",null,null,null,"",null,null,null,"",null,null,null,"","","","",""]
[null,null,null,null,null,null,"2025-03-26",0,null,null,null,"",null,null,null,"",null,null,null,"",null,null,null,"",null,null,null,"",null,null,null,"","","","",""]
[null,null,null,null,null,null,"2025-03-27",{"$f":"IFERROR(AG184/AJ184,0)","v":0},null,null,null,"",null,null,null,"",null,null,null,"",null,null,null,"",null,null,null,"",null,null,null,"","","","",""]
[null,{"$f":"B178+1","v":25},null,null,null,null,"2025-03-28",0,null,null,null,"",null,null,null,"",null,null,null,"",null,null,null,"",null,null,null,"",null,null,null,"","","","",""]
[null,null,null,null,null,null,"2025-03-29",0,null,null,null,"",null,null,null,"",null,null,null,"",null,null,null,"",null,null,null,"",null,null,null,"","","","",""]
[null,null,null,null,null,null,"2025-03-30",0,null,null,null,"",null,null,null,"",null,null,null,"",null,null,null,"",null,null,null,"",null,null,null,"","","","",""]
[null,{"$f":"IFERROR(C189/F189,0)","v":0},true,false,"BOŞ","TOPLAM","2025-03-31",0,null,null,null,"",null,null,null,"",null,null,null,"",null,null,null,"",null,null,null,"",null,null,null,"","","","",""]
[null,null,{"$f":"SUM(AG188:AG194)","v":0},{"$f":"SUM(AH188:AH194)","v":0},{"$f":"SUM(AI188:AI194)","v":0},{"$f":"SUM(AJ188:AJ194)","v":0},"2025-04-01",0,null,null,null,"",null,null,null,"",null,null,null,"",null,null,null,"",null,null,null,"",null,null,null,"","","","",""]
[null,null,null,null,null,null,"2025-04-02",0,null,null,null,"",null,null,null,"",null,null,null,"",null,null,null,"",null,null,null,"",null,null,null,"","","","",""]
[null,null,null,null,null,null,"2025-04-03",0,null,null,null,"",null,null,null,"",null,null,null,"",null,null,null,"",null,null,null,"",null,null,null,"","","","",""]
[null,{"$f":"B185+1","v":26},null,null,null,null,"2025-04-04",0,null,null,null,"",null,null,null,"",null,null,null,"",null,null,null,"",null,null,null,"",null,null,null,"","","","",""]
[null,null,null,null,null,null,"2025-04-05",0,null,null,null,"",null,null,null,"",null,null,null,"",null,null,null,"",null,null,null,"",null,null,null,"","","","",""]
[null,null,null,null,null,null,"2025-04-06",0,null,null,null,"",null,null,null,"",null,null,null,"",null,null,null,"",null,null,null,"",null,null,null,"","","","",""]
[null,{"$f":"IFERROR(C196/F196,0)","v":0},true,false,"BOŞ","TOPLAM","2025-04-07",0,null,null,null,"",null,null,null,"",null,null,null,"",null,null,null,"",null,null,null,"",null,null,null,"","","","",""]
[null,null,{"$f":"SUM(AG195:AG201)","v":0},{"$f":"SUM(AH195:AH201)","v":0},{"$f":"SUM(AI195:AI201)","v":0},{"$f":"SUM(AJ195:AJ201)","v":0},"2025-04-08",0,null,null,null,"",null,null,null,"",null,null,null,"",null,null,null,"",null,null,null,"",null,null,null,"","","","",""]
[null,null,null,null,null,null,"2025-04-09",0,null,null,null,"",null,null,null,"",null,null,null,"",null,null,null,"",null,null,null,"",null,null,null,"","","","",""]
[null,null,null,null,null,null,"2025-04-10",0,null,null,null,"",null,null,null,"",null,null,null,"",null,null,null,"",null,null,null,"",null,null,null,"","","","",""]
[null,{"$f":"B192+1","v":27},null,null,null,null,"2025-04-11",0,null,null,null,"",null,null,null,"",null,null,null,"",null,null,null,"",null,null,null,"",null,null,null,"","","","",""]
[null,null,null,null,null,null,"2025-04-12",0,null,null,null,"",null,null,null,"",null,null,null,"",null,null,null,"",null,null,null,"",null,null,null,"","","","",""]
[null,null,null,null,null,null,"2025-04-13",0,null,null,null,"",null,null,null,"",null,null,null,"",null,null,null,"",null,null,null,"",null,null,null,"","","","",""]
[null,{"$f":"IFERROR(C203/F203,0)","v":0},true,false,"BOŞ","TOPLAM","2025-04-14",0,null,null,null,"",null,null,null,"",null,null,null,"",null,null,null,"",null,null,null,"",null,null,null,"","","","",""]
[null,null,{"$f":"SUM(AG202:AG208)","v":0},{"$f":"SUM(AH202:AH208)","v":0},{"$f":"SUM(AI202:AI208)","v":0},{"$f":"SUM(AJ202:AJ208)","v":0},"2025-04-15",0,null,null,null,"",null,null,null,"",null,null,null,"",null,null,null,"",null,null,null,"",null,null,null,"","","","",""]
[null,null,null,null,null,null,"2025-04-16",0,null,null,null,"",null,null,null,"",null,null,null,"",null,null,null,"",null,null,null,"",null,null,null,"","","","",""]
[null,null,null,null,null,null,"2025-04-17",0,null,null,null,{"$f":"IF(SUM(I205:K205)>0,SUM(I205:K205),\"\")","v":""},null,null,null,{"$f":"IF(SUM(M205:O205)>0,SUM(M205:O205),\"\")","v":""},null,null,null,{"$f":"IF(SUM(Q205:S205)>0,SUM(Q205:S205),\"\")","v":""},null,null,null,{"$f":"IF(SUM(U205:W205)>0,SUM(U205:W205),\"\")","v":""},null,null,null,{"$f":"IF(SUM(Y205:AA205)>0,SUM(Y205:AA205),\"\")","v":""},null,null,null,{"$f":"IF(SUM(AC205:AE205)>0,SUM(AC205:AE205),\"\")","v":""},"","","",""]
[null,{"$f":"B199+1","v":28},null,null,null,null,"2025-04-18",0,null,null,null,"",null,null,null,"",null,null,null,"",null,null,null,"",null,null,null,"",null,null,null,"",{"$f":"IF(SUM(I206,M206,Q206,U206,Y206,AC206)>0,SUM(I206,M206,Q206,U206,Y206,AC206),\"\")","v":""},{"$f":"IF(SUM(J206,N206,R206,V206,Z206,AD206)>0,SUM(J206,N206,R206,V206,Z206,AD206),\"\")","v":""},{"$f":"IF(SUM(K206,O206,S206,W206,AA206,AE206)>0,SUM(K206,O206,S206,W206,AA206,AE206),\"\")","v":""},{"$f":"IF(SUM(L206,P206,T206,X206,AB206,AF206)>0,SUM(L206,P206,T206,X206,AB206,AF206),\"\")","v":""}]
[null,null,null,null,null,null,{"$f":"G206+1","v":"2025-04-19"},0,null,null,null,"",null,null,null,"",null,null,null,"",null,null,null,"",null,null,null,"",null,null,null,"","","","",""]
[null,null,null,null,null,null,"2025-04-20",0,null,null,null,"",null,null,null,"",null,null,null,"",null,null,null,"",null,null,null,"",null,null,null,"","","","",""]
[null,{"$f":"IFERROR(C210/F210,0)","v":0},true,false,"BOŞ","TOPLAM","2025-04-21",0,null,null,null,"",null,null,null,"",null,null,null,"",null,null,null,"",null,null,null,"",null,null,null,"","","","",""]
[null,null,{"$f":"SUM(AG209:AG215)","v":0},{"$f":"SUM(AH209:AH215)","v":0},{"$f":"SUM(AI209:AI215)","v":0},{"$f":"SUM(AJ209:AJ215)","v":0},"2025-04-22",0,null,null,null,"",null,null,null,"",null,null,null,"",null,null,null,"",null,null,null,"",null,null,null,"","","","",""]
[null,null,null,null,null,null,"2025-04-23",0,null,null,null,"",null,null,null,"",null,null,null,"",null,null,null,"",null,null,null,"",null,null,null,"","","","",""]
[null,null,null,null,null,null,"2025-04-24",0,null,null,null,"",null,null,null,"",null,null,null,"",null,null,null,"",null,null,null,"",null,null,null,"","","","",""]
[null,{"$f":"B206+1","v":29},null,null,null,null,"2025-04-25",0,null,null,null,"",null,null,null,"",null,null,null,"",null,null,null,"",null,null,null,"",null,null,null,"","","","",""]
[null,null,null,null,null,null,"2025-04-26",0,null,null,null,"",null,null,null,"",null,null,null,"",null,null,null,"",null,null,null,"",null,null,null,"","","","",""]
[null,null,null,null,null,null,"2025-04-27",0,null,null,null,"",null,null,null,"",null,null,null,"",null,null,null,"",null,null,null,"",null,null,null,"","","","",""]
[null,{"$f":"IFERROR(C217/F217,0)","v":0},true,false,"BOŞ","TOPLAM","2025-04-28",0,null,null,null,"",null,null,null,"",null,null,null,"",null,null,null,"",null,null,null,"",null,null,null,"","","","",""]
[null,null,{"$f":"SUM(AG216:AG222)","v":0},{"$f":"SUM(AH216:AH222)","v":0},{"$f":"SUM(AI216:AI222)","v":0},{"$f":"SUM(AJ216:AJ222)","v":0},"2025-04-29",0,null,null,null,"",null,null,null,"",null,null,null,"",null,null,null,"",null,null,null,"",null,null,null,"","","","",""]
[null,null,null,null,null,null,"2025-04-30",0,null,null,null,"",null,null,null,"",null,null,null,"",null,null,null,"",null,null,null,"",null,null,null,"","","","",""]
[null,null,null,null,null,null,"2025-05-01",0,null,null,null,"",null,null,null,"",null,null,null,"",null,null,null,"",null,null,null,"",null,null,null,"","","","",""]
[null,{"$f":"B213+1","v":30},null,null,null,null,"2025-05-02",0,null,null,null,"",null,null,null,"",null,null,null,"",null,null,null,"",null,null,null,"",null,null,null,"","","","",""]
[null,null,null,null,null,null,"2025-05-03",0,null,null,null,"",null,null,null,"",null,null,null,"",null,null,null,"",null,null,null,"",null,null,null,"","","","",""]
[null,null,null,null,null,null,"2025-05-04",0,null,null,null,"",null,null,null,"",null,null,null,"",null,null,null,"",null,null,null,"",null,null,null,"","","","",""]
[null,{"$f":"IFERROR(C224/F224,0)","v":0},true,false,"BOŞ","TOPLAM","2025-05-05",0,null,null,null,"",null,null,null,"",null,null,null,"",null,null,null,"",null,null,null,"",null,null,null,"","","","",""]
[null,null,{"$f":"SUM(AG223:AG229)","v":0},{"$f":"SUM(AH223:AH229)","v":0},{"$f":"SUM(AI223:AI229)","v":0},{"$f":"SUM(AJ223:AJ229)","v":0},"2025-05-06",0,null,null,null,"",null,null,null,"",null,null,null,"",null,null,null,"",null,null,null,"",null,null,null,"","","","",""]
[null,null,null,null,null,null,"2025-05-07",0,null,null,null,"",null,null,null,"",null,null,null,"",null,null,null,"",null,null,null,"",null,null,null,"","","","",""]
[null,null,null,null,null,null,"2025-05-08",0,null,null,null,"",null,null,null,"",null,null,null,"",null,null,null,"",null,null,null,"",null,null,null,"","","","",""]
[null,{"$f":"B220+1","v":31},null,null,null,null,"2025-05-09",0,null,null,null,"",null,null,null,"",null,null,null,"",null,null,null,"",null,null,null,"",null,null,null,"","","","",""]
[null,null,null,null,null,null,"2025-05-10",0,null,null,null,"",null,null,null,"",null,null,null,"",null,null,null,"",null,null,null,"",null,null,null,"","","","",""]
[null,null,null,null,null,null,"2025-05-11",0,null,null,null,"",null,null,null,"",null,null,null,"",null,null,null,"",null,null,null,"",null,null,null,"","","","",""]
[null,{"$f":"IFERROR(C231/F231,0)","v":0},true,false,"BOŞ","TOPLAM","2025-05-12",0,null,null,null,"",null,null,null,"",null,null,null,"",null,null,null,"",null,null,null,"",null,null,null,"","","","",""]
[null,null,{"$f":"SUM(AG230:AG236)","v":0},{"$f":"SUM(AH230:AH236)","v":0},{"$f":"SUM(AI230:AI236)","v":0},{"$f":"SUM(AJ230:AJ236)","v":0},"2025-05-13",0,null,null,null,"",null,null,null,"",null,null,null,"",null,null,null,"",null,null,null,"",null,null,null,"","","","",""]
[null,null,null,null,null,null,"2025-05-14",0,null,null,null,"",null,null,null,"",null,null,null,"",null,null,null,"",null,null,null,"",null,null,null,"","","","",""]
[null,null,null,null,null,null,"2025-05-15",0,null,null,null,"",null,null,null,"",null,null,null,"",null,null,null,"",null,null,null,"",null,null,null,"","","","",""]
[null,{"$f":"B227+1","v":32},null,null,null,null,"2025-05-16",0,null,null,null,"",null,null,null,"",null,null,null,"",null,null,null,"",null,null,null,"",null,null,null,"","","","",""]
[null,null,null,null,null,null,"2025-05-17",0,null,null,null,"",null,null,null,"",null,null,null,"",null,null,null,"",null,null,null,"",null,null,null,"","","","",""]
[null,null,null,null,null,null,"2025-05-18",0,null,null,null,"",null,null,null,"",null,null,null,"",null,null,null,"",null,null,null,"",null,null,null,"","","","",""]
[null,{"$f":"IFERROR(C238/F238,0)","v":0},true,false,"BOŞ","TOPLAM","2025-05-19",0,null,null,null,"",null,null,null,"",null,null,null,"",null,null,null,"",null,null,null,"",null,null,null,"","","","",""]
[null,null,{"$f":"SUM(AG237:AG243)","v":0},{"$f":"SUM(AH237:AH243)","v":0},{"$f":"SUM(AI237:AI243)","v":0},{"$f":"SUM(AJ237:AJ243)","v":0},"2025-05-20",0,null,null,null,"",null,null,null,"",null,null,null,"",null,null,null,"",null,null,null,"",null,null,null,"","","","",""]
[null,null,null,null,null,null,"2025-05-21",0,null,null,null,"",null,null,null,"",null,null,null,"",null,null,null,"",null,null,null,"",null,null,null,"","","","",""]
[null,null,null,null,null,null,"2025-05-22",0,null,null,null,"",null,null,null,"",null,null,null,"",null,null,null,"",null,null,null,"",null,null,null,"","","","",""]
[null,{"$f":"B234+1","v":33},null,null,null,null,"2025-05-23",0,null,null,null,"",null,null,null,"",null,null,null,"",null,null,null,"",null,null,null,"",null,null,null,"","","","",""]
[null,null,null,null,null,null,"2025-05-24",0,null,null,null,"",null,null,null,"",null,null,null,"",null,null,null,"",null,null,null,"",null,null,null,"","","","",""]
[null,null,null,null,null,null,"2025-05-25",0,null,null,null,"",null,null,null,"",null,null,null,"",null,null,null,"",null,null,null,"",null,null,null,"","","","",""]
[null,{"$f":"IFERROR(C245/F245,0)","v":0},true,false,"BOŞ","TOPLAM","2025-05-26",0,null,null,null,"",null,null,null,"",null,null,null,"",null,null,null,"",null,null,null,"",null,null,null,"","","","",""]
[null,null,{"$f":"SUM(AG244:AG250)","v":0},{"$f":"SUM(AH244:AH250)","v":0},{"$f":"SUM(AI244:AI250)","v":0},{"$f":"SUM(AJ244:AJ250)","v":0},"2025-05-27",0,null,null,null,"",null,null,null,"",null,null,null,"",null,null,null,"",null,null,null,"",null,null,null,"","","","",""]
[null,null,null,null,null,null,"2025-05-28",0,null,null,null,"",null,null,null,"",null,null,null,"",null,null,null,"",null,null,null,"",null,null,null,"","","","",""]
[null,null,null,null,null,null,"2025-05-29",0,null,null,null,"",null,null,null,"",null,null,null,"",null,null,null,"",null,null,null,"",null,null,null,"","","","",""]
[null,{"$f":"B241+1","v":34},null,null,null,null,"2025-05-30",{"$f":"IFERROR(AG248/AJ248,0)","v":0},null,null,null,"",null,null,null,"",null,null,null,"",null,null,null,"",null,null,null,"",null,null,null,"","","","",""]
[null,null,null,null,null,null,"2025-05-31",0,null,null,null,"",null,null,null,"",null,null,null,"",null,null,null,"",null,null,null,"",null,null,null,"","","","",""]
[null,null,null,null,null,null,"2025-06-01",0,null,null,null,"",null,null,null,"",null,null,null,"",null,null,null,"",null,null,null,"",null,null,null,"","","","",""]
[null,{"$f":"IFERROR(C252/F252,0)","v":0},true,false,"BOŞ","TOPLAM","2025-06-02",0,null,null,null,"",null,null,null,"",null,null,null,"",null,null,null,"",null,null,null,"",null,null,null,"","","","",""]
[null,null,{"$f":"SUM(AG251:AG257)","v":0},{"$f":"SUM(AH251:AH257)","v":0},{"$f":"SUM(AI251:AI257)","v":0},{"$f":"SUM(AJ251:AJ257)","v":0},"2025-06-03",0,null,null,null,"",null,null,null,"",null,null,null,"",null,null,null,"",null,null,null,"",null,null,null,"","","","",""]
[null,null,null,null,null,null,"2025-06-04",0,null,null,null,"",null,null,null,"",null,null,null,"",null,null,null,"",null,null,null,"",null,null,null,"","","","",""]
[null,null,null,null,null,null,"2025-06-05",0,null,null,null,"",null,null,null,"",null,null,null,"",null,null,null,"",null,null,null,"",null,null,null,"","","","",""]
[null,{"$f":"B248+1","v":35},null,null,null,null,"2025-06-06",0,null,null,null,"",null,null,null,"",null,null,null,"",null,null,null,"",null,null,null,"",null,null,null,"","","","",""]
[null,null,null,null,null,null,"2025-06-07",0,null,null,null,"",null,null,null,"",null,null,null,"",null,null,null,"",null,null,null,"",null,null,null,"","","","",""]
[null,null,null,null,null,null,"2025-06-08",0,null,null,null,"",null,null,null,"",null,null,null,"",null,null,null,"",null,null,null,"",null,null,null,"","","","",""]
[null,{"$f":"IFERROR(C259/F259,0)","v":0},true,false,"BOŞ","TOPLAM","2025-06-09",0,null,null,null,"",null,null,null,"",null,null,null,"",null,null,null,"",null,null,null,"",null,null,null,"","","","",""]
[null,null,{"$f":"SUM(AG258:AG264)","v":0},{"$f":"SUM(AH258:AH264)","v":0},{"$f":"SUM(AI258:AI264)","v":0},{"$f":"SUM(AJ258:AJ264)","v":0},"2025-06-10",0,null,null,null,"",null,null,null,"",null,null,null,"",null,null,null,"",null,null,null,"",null,null,null,"","","","",""]
[null,null,null,null,null,null,"2025-06-11",0,null,null,null,"",null,null,null,"",null,null,null,"",null,null,null,"",null,null,null,"",null,null,null,"","","","",""]
[null,null,null,null,null,null,"2025-06-12",0,null,null,null,"",null,null,null,"",null,null,null,"",null,null,null,"",null,null,null,"",null,null,null,"","","","",""]
[null,{"$f":"B255+1","v":36},null,null,null,null,"2025-06-13",0,null,null,null,"",null,null,null,"",null,null,null,"",null,null,null,"",null,null,null,"",null,null,null,"","","","",""]
[null,null,null,null,null,null,"2025-06-14",0,null,null,null,"",null,null,null,"",null,null,null,"",null,null,null,"",null,null,null,"",null,null,null,"","","","",""]
[null,null,null,null,null,null,"2025-06-15",0,null,null,null,"",null,null,null,"",null,null,null,"",null,null,null,"",null,null,null,"",null,null,null,"","","","",""]

{"sheet":"DersAy","index":1,"n_rows":101,"n_cols":55,"rows_kept":101,"cut":false,"hidden":false,"merged":[[9,51,9,54],[9,31,9,34],[9,35,9,38],[9,39,9,42],[9,43,9,46],[9,47,9,50],[100,2,112,23],[1,2,13,23],[20,2,32,23],[40,2,52,23],[60,2,72,23],[80,2,92,23]]}
[]
[null,null,{"$f":"AF10","v":"TÜRKÇE"}]
[]
[]
[]
[]
[]
[]
[]
[null,null,null,null,null,null,null,null,null,null,null,null,null,null,null,null,null,null,null,null,null,null,null,null,null,null,null,null,null,null,null,{"$f":"Veriler!I10","v":"TÜRKÇE"},null,null,null,{"$f":"Veriler!M10","v":"MATEMATİK"},null,null,null,{"$f":"Veriler!Q10","v":"FEN BİLGİSİ"},null,null,null,{"$f":"Veriler!U10","v":"İNKILAP TARİHİ"},null,null,null,{"$f":"Veriler!Y10","v":"İNGİLİZCE"},null,null,null,{"$f":"Veriler!AC10","v":"DİN KÜLTÜRÜ"}]
[null,null,null,null,null,null,null,null,null,null,null,null,null,null,null,null,null,null,null,null,null,null,null,null,null,null,null,true,false,"BOŞ","TOPLAM",true,false,"BOŞ","TOPLAM",true,false,"BOŞ","TOPLAM",true,false,"BOŞ","TOPLAM",true,false,"BOŞ","TOPLAM",true,false,"BOŞ","TOPLAM",true,false,"BOŞ","TOPLAM"]
[null,null,null,null,null,null,null,null,null,null,null,null,null,null,null,null,null,null,null,null,null,null,null,null,null,null,null,{"$f":"SUM(Veriler!AG13:AG19)","v":0},{"$f":"SUM(Veriler!AH13:AH19)","v":0},{"$f":"SUM(Veriler!AI13:AI19)","v":0},{"$f":"SUM(Veriler!AJ13:AJ19)","v":0},{"$f":"SUM(Veriler!I13:I19)","v":0},{"$f":"SUM(Veriler!J13:J19)","v":0},{"$f":"SUM(Veriler!K13:K19)","v":0},{"$f":"SUM(Veriler!L13:L19)","v":0},{"$f":"SUM(Veriler!M13:M19)","v":0},{"$f":"SUM(Veriler!N13:N19)","v":0},{"$f":"SUM(Veriler!O13:O19)","v":0},{"$f":"SUM(Veriler!P13:P19)","v":0},{"$f":"SUM(Veriler!Q13:Q19)","v":0},{"$f":"SUM(Veriler!R13:R19)","v":0},{"$f":"SUM(Veriler!S13:S19)","v":0},{"$f":"SUM(Veriler!T13:T19)","v":0},{"$f":"SUM(Veriler!U13:U19)","v":0},{"$f":"SUM(Veriler!V13:V19)","v":0},{"$f":"SUM(Veriler!W13:W19)","v":0},{"$f":"SUM(Veriler!X13:X19)","v":0},{"$f":"SUM(Veriler!Y13:Y19)","v":0},{"$f":"SUM(Veriler!Z13:Z19)","v":0},{"$f":"SUM(Veriler!AA13:AA19)","v":0},{"$f":"SUM(Veriler!AB13:AB19)","v":0},{"$f":"SUM(Veriler!AC13:AC19)","v":0},{"$f":"SUM(Veriler!AD13:AD19)","v":0},{"$f":"SUM(Veriler!AE13:AE19)","v":0},{"$f":"SUM(Veriler!AF13:AF19)","v":0}]
[null,null,null,null,null,null,null,null,null,null,null,null,null,null,null,null,null,null,null,null,null,null,null,null,null,null,null,{"$f":"SUM(Veriler!AG20:AG26)","v":0},{"$f":"SUM(Veriler!AH20:AH26)","v":0},{"$f":"SUM(Veriler!AI20:AI26)","v":0},{"$f":"SUM(Veriler!AJ20:AJ26)","v":0},{"$f":"SUM(Veriler!I20:I26)","v":0},{"$f":"SUM(Veriler!J20:J26)","v":0},{"$f":"SUM(Veriler!K20:K26)","v":0},{"$f":"SUM(Veriler!L20:L26)","v":0},{"$f":"SUM(Veriler!M20:M26)","v":0},{"$f":"SUM(Veriler!N20:N26)","v":0},{"$f":"SUM(Veriler!O20:O26)","v":0},{"$f":"SUM(Veriler!P20:P26)","v":0},{"$f":"SUM(Veriler!Q20:Q26)","v":0},{"$f":"SUM(Veriler!R20:R26)","v":0},{"$f":"SUM(Veriler!S20:S26)","v":0},{"$f":"SUM(Veriler!T20:T26)","v":0},{"$f":"SUM(Veriler!U20:U26)","v":0},{"$f":"SUM(Veriler!V20:V26)","v":0},{"$f":"SUM(Veriler!W20:W26)","v":0},{"$f":"SUM(Veriler!X20:X26)","v":0},{"$f":"SUM(Veriler!Y20:Y26)","v":0},{"$f":"SUM(Veriler!Z20:Z26)","v":0},{"$f":"SUM(Veriler!AA20:AA26)","v":0},{"$f":"SUM(Veriler!AB20:AB26)","v":0},{"$f":"SUM(Veriler!AC20:AC26)","v":0},{"$f":"SUM(Veriler!AD20:AD26)","v":0},{"$f":"SUM(Veriler!AE20:AE26)","v":0},{"$f":"SUM(Veriler!AF20:AF26)","v":0}]
[null,null,null,null,null,null,null,null,null,null,null,null,null,null,null,null,null,null,null,null,null,null,null,null,null,null,null,{"$f":"SUM(Veriler!AG27:AG33)","v":0},{"$f":"SUM(Veriler!AH27:AH33)","v":0},{"$f":"SUM(Veriler!AI27:AI33)","v":0},{"$f":"SUM(Veriler!AJ27:AJ33)","v":0},{"$f":"SUM(Veriler!I27:I33)","v":0},{"$f":"SUM(Veriler!J27:J33)","v":0},{"$f":"SUM(Veriler!K27:K33)","v":0},{"$f":"SUM(Veriler!L27:L33)","v":0},{"$f":"SUM(Veriler!M27:M33)","v":0},{"$f":"SUM(Veriler!N27:N33)","v":0},{"$f":"SUM(Veriler!O27:O33)","v":0},{"$f":"SUM(Veriler!P27:P33)","v":0},{"$f":"SUM(Veriler!Q27:Q33)","v":0},{"$f":"SUM(Veriler!R27:R33)","v":0},{"$f":"SUM(Veriler!S27:S33)","v":0},{"$f":"SUM(Veriler!T27:T33)","v":0},{"$f":"SUM(Veriler!U27:U33)","v":0},{"$f":"SUM(Veriler!V27:V33)","v":0},{"$f":"SUM(Veriler!W27:W33)","v":0},{"$f":"SUM(Veriler!X27:X33)","v":0},{"$f":"SUM(Veriler!Y27:Y33)","v":0},{"$f":"SUM(Veriler!Z27:Z33)","v":0},{"$f":"SUM(Veriler!AA27:AA33)","v":0},{"$f":"SUM(Veriler!AB27:AB33)","v":0},{"$f":"SUM(Veriler!AC27:AC33)","v":0},{"$f":"SUM(Veriler!AD27:AD33)","v":0},{"$f":"SUM(Veriler!AE27:AE33)","v":0},{"$f":"SUM(Veriler!AF27:AF33)","v":0}]
[null,null,null,null,null,null,null,null,null,null,null,null,null,null,null,null,null,null,null,null,null,null,null,null,null,null,null,{"$f":"SUM(Veriler!AG34:AG40)","v":0},{"$f":"SUM(Veriler!AH34:AH40)","v":0},{"$f":"SUM(Veriler!AI34:AI40)","v":0},{"$f":"SUM(Veriler!AJ34:AJ40)","v":0},{"$f":"SUM(Veriler!I34:I40)","v":0},{"$f":"SUM(Veriler!J34:J40)","v":0},{"$f":"SUM(Veriler!K34:K40)","v":0},{"$f":"SUM(Veriler!L34:L40)","v":0},{"$f":"SUM(Veriler!M34:M40)","v":0},{"$f":"SUM(Veriler!N34:N40)","v":0},{"$f":"SUM(Veriler!O34:O40)","v":0},{"$f":"SUM(Veriler!P34:P40)","v":0},{"$f":"SUM(Veriler!Q34:Q40)","v":0},{"$f":"SUM(Veriler!R34:R40)","v":0},{"$f":"SUM(Veriler!S34:S40)","v":0},{"$f":"SUM(Veriler!T34:T40)","v":0},{"$f":"SUM(Veriler!U34:U40)","v":0},{"$f":"SUM(Veriler!V34:V40)","v":0},{"$f":"SUM(Veriler!W34:W40)","v":0},{"$f":"SUM(Veriler!X34:X40)","v":0},{"$f":"SUM(Veriler!Y34:Y40)","v":0},{"$f":"SUM(Veriler!Z34:Z40)","v":0},{"$f":"SUM(Veriler!AA34:AA40)","v":0},{"$f":"SUM(Veriler!AB34:AB40)","v":0},{"$f":"SUM(Veriler!AC34:AC40)","v":0},{"$f":"SUM(Veriler!AD34:AD40)","v":0},{"$f":"SUM(Veriler!AE34:AE40)","v":0},{"$f":"SUM(Veriler!AF34:AF40)","v":0}]
[null,null,null,null,null,null,null,null,null,null,null,null,null,null,null,null,null,null,null,null,null,null,null,null,null,null,null,{"$f":"SUM(Veriler!AG41:AG47)","v":0},{"$f":"SUM(Veriler!AH41:AH47)","v":0},{"$f":"SUM(Veriler!AI41:AI47)","v":0},{"$f":"SUM(Veriler!AJ41:AJ47)","v":0},{"$f":"SUM(Veriler!I41:I47)","v":0},{"$f":"SUM(Veriler!J41:J47)","v":0},{"$f":"SUM(Veriler!K41:K47)","v":0},{"$f":"SUM(Veriler!L41:L47)","v":0},{"$f":"SUM(Veriler!M41:M47)","v":0},{"$f":"SUM(Veriler!N41:N47)","v":0},{"$f":"SUM(Veriler!O41:O47)","v":0},{"$f":"SUM(Veriler!P41:P47)","v":0},{"$f":"SUM(Veriler!Q41:Q47)","v":0},{"$f":"SUM(Veriler!R41:R47)","v":0},{"$f":"SUM(Veriler!S41:S47)","v":0},{"$f":"SUM(Veriler!T41:T47)","v":0},{"$f":"SUM(Veriler!U41:U47)","v":0},{"$f":"SUM(Veriler!V41:V47)","v":0},{"$f":"SUM(Veriler!W41:W47)","v":0},{"$f":"SUM(Veriler!X41:X47)","v":0},{"$f":"SUM(Veriler!Y41:Y47)","v":0},{"$f":"SUM(Veriler!Z41:Z47)","v":0},{"$f":"SUM(Veriler!AA41:AA47)","v":0},{"$f":"SUM(Veriler!AB41:AB47)","v":0},{"$f":"SUM(Veriler!AC41:AC47)","v":0},{"$f":"SUM(Veriler!AD41:AD47)","v":0},{"$f":"SUM(Veriler!AE41:AE47)","v":0},{"$f":"SUM(Veriler!AF41:AF47)","v":0}]
[null,null,null,null,null,null,null,null,null,null,null,null,null,null,null,null,null,null,null,null,null,null,null,null,null,null,null,{"$f":"SUM(Veriler!AG48:AG54)","v":0},{"$f":"SUM(Veriler!AH48:AH54)","v":0},{"$f":"SUM(Veriler!AI48:AI54)","v":0},{"$f":"SUM(Veriler!AJ48:AJ54)","v":0},{"$f":"SUM(Veriler!I48:I54)","v":0},{"$f":"SUM(Veriler!J48:J54)","v":0},{"$f":"SUM(Veriler!K48:K54)","v":0},{"$f":"SUM(Veriler!L48:L54)","v":0},{"$f":"SUM(Veriler!M48:M54)","v":0},{"$f":"SUM(Veriler!N48:N54)","v":0},{"$f":"SUM(Veriler!O48:O54)","v":0},{"$f":"SUM(Veriler!P48:P54)","v":0},{"$f":"SUM(Veriler!Q48:Q54)","v":0},{"$f":"SUM(Veriler!R48:R54)","v":0},{"$f":"SUM(Veriler!S48:S54)","v":0},{"$f":"SUM(Veriler!T48:T54)","v":0},{"$f":"SUM(Veriler!U48:U54)","v":0},{"$f":"SUM(Veriler!V48:V54)","v":0},{"$f":"SUM(Veriler!W48:W54)","v":0},{"$f":"SUM(Veriler!X48:X54)","v":0},{"$f":"SUM(Veriler!Y48:Y54)","v":0},{"$f":"SUM(Veriler!Z48:Z54)","v":0},{"$f":"SUM(Veriler!AA48:AA54)","v":0},{"$f":"SUM(Veriler!AB48:AB54)","v":0},{"$f":"SUM(Veriler!AC48:AC54)","v":0},{"$f":"SUM(Veriler!AD48:AD54)","v":0},{"$f":"SUM(Veriler!AE48:AE54)","v":0},{"$f":"SUM(Veriler!AF48:AF54)","v":0}]
[null,null,null,null,null,null,null,null,null,null,null,null,null,null,null,null,null,null,null,null,null,null,null,null,null,null,null,{"$f":"SUM(Veriler!AG55:AG61)","v":0},{"$f":"SUM(Veriler!AH55:AH61)","v":0},{"$f":"SUM(Veriler!AI55:AI61)","v":0},{"$f":"SUM(Veriler!AJ55:AJ61)","v":0},{"$f":"SUM(Veriler!I55:I61)","v":0},{"$f":"SUM(Veriler!J55:J61)","v":0},{"$f":"SUM(Veriler!K55:K61)","v":0},{"$f":"SUM(Veriler!L55:L61)","v":0},{"$f":"SUM(Veriler!M55:M61)","v":0},{"$f":"SUM(Veriler!N55:N61)","v":0},{"$f":"SUM(Veriler!O55:O61)","v":0},{"$f":"SUM(Veriler!P55:P61)","v":0},{"$f":"SUM(Veriler!Q55:Q61)","v":0},{"$f":"SUM(Veriler!R55:R61)","v":0},{"$f":"SUM(Veriler!S55:S61)","v":0},{"$f":"SUM(Veriler!T55:T61)","v":0},{"$f":"SUM(Veriler!U55:U61)","v":0},{"$f":"SUM(Veriler!V55:V61)","v":0},{"$f":"SUM(Veriler!W55:W61)","v":0},{"$f":"SUM(Veriler!X55:X61)","v":0},{"$f":"SUM(Veriler!Y55:Y61)","v":0},{"$f":"SUM(Veriler!Z55:Z61)","v":0},{"$f":"SUM(Veriler!AA55:AA61)","v":0},{"$f":"SUM(Veriler!AB55:AB61)","v":0},{"$f":"SUM(Veriler!AC55:AC61)","v":0},{"$f":"SUM(Veriler!AD55:AD61)","v":0},{"$f":"SUM(Veriler!AE55:AE61)","v":0},{"$f":"SUM(Veriler!AF55:AF61)","v":0}]
[null,null,null,null,null,null,null,null,null,null,null,null,null,null,null,null,null,null,null,null,null,null,null,null,null,null,null,{"$f":"SUM(Veriler!AG62:AG68)","v":0},{"$f":"SUM(Veriler!AH62:AH68)","v":0},{"$f":"SUM(Veriler!AI62:AI68)","v":0},{"$f":"SUM(Veriler!AJ62:AJ68)","v":0},{"$f":"SUM(Veriler!I62:I68)","v":0},{"$f":"SUM(Veriler!J62:J68)","v":0},{"$f":"SUM(Veriler!K62:K68)","v":0},{"$f":"SUM(Veriler!L62:L68)","v":0},{"$f":"SUM(Veriler!M62:M68)","v":0},{"$f":"SUM(Veriler!N62:N68)","v":0},{"$f":"SUM(Veriler!O62:O68)","v":0},{"$f":"SUM(Veriler!P62:P68)","v":0},{"$f":"SUM(Veriler!Q62:Q68)","v":0},{"$f":"SUM(Veriler!R62:R68)","v":0},{"$f":"SUM(Veriler!S62:S68)","v":0},{"$f":"SUM(Veriler!T62:T68)","v":0},{"$f":"SUM(Veriler!U62:U68)","v":0},{"$f":"SUM(Veriler!V62:V68)","v":0},{"$f":"SUM(Veriler!W62:W68)","v":0},{"$f":"SUM(Veriler!X62:X68)","v":0},{"$f":"SUM(Veriler!Y62:Y68)","v":0},{"$f":"SUM(Veriler!Z62:Z68)","v":0},{"$f":"SUM(Veriler!AA62:AA68)","v":0},{"$f":"SUM(Veriler!AB62:AB68)","v":0},{"$f":"SUM(Veriler!AC62:AC68)","v":0},{"$f":"SUM(Veriler!AD62:AD68)","v":0},{"$f":"SUM(Veriler!AE62:AE68)","v":0},{"$f":"SUM(Veriler!AF62:AF68)","v":0}]
[null,null,null,null,null,null,null,null,null,null,null,null,null,null,null,null,null,null,null,null,null,null,null,null,null,null,null,{"$f":"SUM(Veriler!AG69:AG75)","v":0},{"$f":"SUM(Veriler!AH69:AH75)","v":0},{"$f":"SUM(Veriler!AI69:AI75)","v":0},{"$f":"SUM(Veriler!AJ69:AJ75)","v":0},{"$f":"SUM(Veriler!I69:I75)","v":0},{"$f":"SUM(Veriler!J69:J75)","v":0},{"$f":"SUM(Veriler!K69:K75)","v":0},{"$f":"SUM(Veriler!L69:L75)","v":0},{"$f":"SUM(Veriler!M69:M75)","v":0},{"$f":"SUM(Veriler!N69:N75)","v":0},{"$f":"SUM(Veriler!O69:O75)","v":0},{"$f":"SUM(Veriler!P69:P75)","v":0},{"$f":"SUM(Veriler!Q69:Q75)","v":0},{"$f":"SUM(Veriler!R69:R75)","v":0},{"$f":"SUM(Veriler!S69:S75)","v":0},{"$f":"SUM(Veriler!T69:T75)","v":0},{"$f":"SUM(Veriler!U69:U75)","v":0},{"$f":"SUM(Veriler!V69:V75)","v":0},{"$f":"SUM(Veriler!W69:W75)","v":0},{"$f":"SUM(Veriler!X69:X75)","v":0},{"$f":"SUM(Veriler!Y69:Y75)","v":0},{"$f":"SUM(Veriler!Z69:Z75)","v":0},{"$f":"SUM(Veriler!AA69:AA75)","v":0},{"$f":"SUM(Veriler!AB69:AB75)","v":0},{"$f":"SUM(Veriler!AC69:AC75)","v":0},{"$f":"SUM(Veriler!AD69:AD75)","v":0},{"$f":"SUM(Veriler!AE69:AE75)","v":0},{"$f":"SUM(Veriler!AF69:AF75)","v":0}]
[null,null,{"$f":"AJ10","v":"MATEMATİK"},null,null,null,null,null,null,null,null,null,null,null,null,null,null,null,null,null,null,null,null,null,null,null,null,{"$f":"SUM(Veriler!AG76:AG82)","v":0},{"$f":"SUM(Veriler!AH76:AH82)","v":0},{"$f":"SUM(Veriler!AI76:AI82)","v":0},{"$f":"SUM(Veriler!AJ76:AJ82)","v":0},{"$f":"SUM(Veriler!I76:I82)","v":0},{"$f":"SUM(Veriler!J76:J82)","v":0},{"$f":"SUM(Veriler!K76:K82)","v":0},{"$f":"SUM(Veriler!L76:L82)","v":0},{"$f":"SUM(Veriler!M76:M82)","v":0},{"$f":"SUM(Veriler!N76:N82)","v":0},{"$f":"SUM(Veriler!O76:O82)","v":0},{"$f":"SUM(Veriler!P76:P82)","v":0},{"$f":"SUM(Veriler!Q76:Q82)","v":0},{"$f":"SUM(Veriler!R76:R82)","v":0},{"$f":"SUM(Veriler!S76:S82)","v":0},{"$f":"SUM(Veriler!T76:T82)","v":0},{"$f":"SUM(Veriler!U76:U82)","v":0},{"$f":"SUM(Veriler!V76:V82)","v":0},{"$f":"SUM(Veriler!W76:W82)","v":0},{"$f":"SUM(Veriler!X76:X82)","v":0},{"$f":"SUM(Veriler!Y76:Y82)","v":0},{"$f":"SUM(Veriler!Z76:Z82)","v":0},{"$f":"SUM(Veriler!AA76:AA82)","v":0},{"$f":"SUM(Veriler!AB76:AB82)","v":0},{"$f":"SUM(Veriler!AC76:AC82)","v":0},{"$f":"SUM(Veriler!AD76:AD82)","v":0},{"$f":"SUM(Veriler!AE76:AE82)","v":0},{"$f":"SUM(Veriler!AF76:AF82)","v":0}]
[null,null,null,null,null,null,null,null,null,null,null,null,null,null,null,null,null,null,null,null,null,null,null,null,null,null,null,{"$f":"SUM(Veriler!AG83:AG89)","v":0},{"$f":"SUM(Veriler!AH83:AH89)","v":0},{"$f":"SUM(Veriler!AI83:AI89)","v":0},{"$f":"SUM(Veriler!AJ83:AJ89)","v":0},{"$f":"SUM(Veriler!I83:I89)","v":0},{"$f":"SUM(Veriler!J83:J89)","v":0},{"$f":"SUM(Veriler!K83:K89)","v":0},{"$f":"SUM(Veriler!L83:L89)","v":0},{"$f":"SUM(Veriler!M83:M89)","v":0},{"$f":"SUM(Veriler!N83:N89)","v":0},{"$f":"SUM(Veriler!O83:O89)","v":0},{"$f":"SUM(Veriler!P83:P89)","v":0},{"$f":"SUM(Veriler!Q83:Q89)","v":0},{"$f":"SUM(Veriler!R83:R89)","v":0},{"$f":"SUM(Veriler!S83:S89)","v":0},{"$f":"SUM(Veriler!T83:T89)","v":0},{"$f":"SUM(Veriler!U83:U89)","v":0},{"$f":"SUM(Veriler!V83:V89)","v":0},{"$f":"SUM(Veriler!W83:W89)","v":0},{"$f":"SUM(Veriler!X83:X89)","v":0},{"$f":"SUM(Veriler!Y83:Y89)","v":0},{"$f":"SUM(Veriler!Z83:Z89)","v":0},{"$f":"SUM(Veriler!AA83:AA89)","v":0},{"$f":"SUM(Veriler!AB83:AB89)","v":0},{"$f":"SUM(Veriler!AC83:AC89)","v":0},{"$f":"SUM(Veriler!AD83:AD89)","v":0},{"$f":"SUM(Veriler!AE83:AE89)","v":0},{"$f":"SUM(Veriler!AF83:AF89)","v":0}]
[null,null,null,null,null,null,null,null,null,null,null,null,null,null,null,null,null,null,null,null,null,null,null,null,null,null,null,{"$f":"SUM(Veriler!AG90:AG96)","v":0},{"$f":"SUM(Veriler!AH90:AH96)","v":0},{"$f":"SUM(Veriler!AI90:AI96)","v":0},{"$f":"SUM(Veriler!AJ90:AJ96)","v":0},{"$f":"SUM(Veriler!I90:I96)","v":0},{"$f":"SUM(Veriler!J90:J96)","v":0},{"$f":"SUM(Veriler!K90:K96)","v":0},{"$f":"SUM(Veriler!L90:L96)","v":0},{"$f":"SUM(Veriler!M90:M96)","v":0},{"$f":"SUM(Veriler!N90:N96)","v":0},{"$f":"SUM(Veriler!O90:O96)","v":0},{"$f":"SUM(Veriler!P90:P96)","v":0},{"$f":"SUM(Veriler!Q90:Q96)","v":0},{"$f":"SUM(Veriler!R90:R96)","v":0},{"$f":"SUM(Veriler!S90:S96)","v":0},{"$f":"SUM(Veriler!T90:T96)","v":0},{"$f":"SUM(Veriler!U90:U96)","v":0},{"$f":"SUM(Veriler!V90:V96)","v":0},{"$f":"SUM(Veriler!W90:W96)","v":0},{"$f":"SUM(Veriler!X90:X96)","v":0},{"$f":"SUM(Veriler!Y90:Y96)","v":0},{"$f":"SUM(Veriler!Z90:Z96)","v":0},{"$f":"SUM(Veriler!AA90:AA96)","v":0},{"$f":"SUM(Veriler!AB90:AB96)","v":0},{"$f":"SUM(Veriler!AC90:AC96)","v":0},{"$f":"SUM(Veriler!AD90:AD96)","v":0},{"$f":"SUM(Veriler!AE90:AE96)","v":0},{"$f":"SUM(Veriler!AF90:AF96)","v":0}]
[null,null,null,null,null,null,null,null,null,null,null,null,null,null,null,null,null,null,null,null,null,null,null,null,null,null,null,{"$f":"SUM(Veriler!AG97:AG103)","v":0},{"$f":"SUM(Veriler!AH97:AH103)","v":0},{"$f":"SUM(Veriler!AI97:AI103)","v":0},{"$f":"SUM(Veriler!AJ97:AJ103)","v":0},{"$f":"SUM(Veriler!I97:I103)","v":0},{"$f":"SUM(Veriler!J97:J103)","v":0},{"$f":"SUM(Veriler!K97:K103)","v":0},{"$f":"SUM(Veriler!L97:L103)","v":0},{"$f":"SUM(Veriler!M97:M103)","v":0},{"$f":"SUM(Veriler!N97:N103)","v":0},{"$f":"SUM(Veriler!O97:O103)","v":0},{"$f":"SUM(Veriler!P97:P103)","v":0},{"$f":"SUM(Veriler!Q97:Q103)","v":0},{"$f":"SUM(Veriler!R97:R103)","v":0},{"$f":"SUM(Veriler!S97:S103)","v":0},{"$f":"SUM(Veriler!T97:T103)","v":0},{"$f":"SUM(Veriler!U97:U103)","v":0},{"$f":"SUM(Veriler!V97:V103)","v":0},{"$f":"SUM(Veriler!W97:W103)","v":0},{"$f":"SUM(Veriler!X97:X103)","v":0},{"$f":"SUM(Veriler!Y97:Y103)","v":0},{"$f":"SUM(Veriler!Z97:Z103)","v":0},{"$f":"SUM(Veriler!AA97:AA103)","v":0},{"$f":"SUM(Veriler!AB97:AB103)","v":0},{"$f":"SUM(Veriler!AC97:AC103)","v":0},{"$f":"SUM(Veriler!AD97:AD103)","v":0},{"$f":"SUM(Veriler!AE97:AE103)","v":0},{"$f":"SUM(Veriler!AF97:AF103)","v":0}]
[null,null,null,null,null,null,null,null,null,null,null,null,null,null,null,null,null,null,null,null,null,null,null,null,null,null,null,{"$f":"SUM(Veriler!AG104:AG110)","v":0},{"$f":"SUM(Veriler!AH104:AH110)","v":0},{"$f":"SUM(Veriler!AI104:AI110)","v":0},{"$f":"SUM(Veriler!AJ104:AJ110)","v":0},{"$f":"SUM(Veriler!I104:I110)","v":0},{"$f":"SUM(Veriler!J104:J110)","v":0},{"$f":"SUM(Veriler!K104:K110)","v":0},{"$f":"SUM(Veriler!L104:L110)","v":0},{"$f":"SUM(Veriler!M104:M110)","v":0},{"$f":"SUM(Veriler!N104:N110)","v":0},{"$f":"SUM(Veriler!O104:O110)","v":0},{"$f":"SUM(Veriler!P104:P110)","v":0},{"$f":"SUM(Veriler!Q104:Q110)","v":0},{"$f":"SUM(Veriler!R104:R110)","v":0},{"$f":"SUM(Veriler!S104:S110)","v":0},{"$f":"SUM(Veriler!T104:T110)","v":0},{"$f":"SUM(Veriler!U104:U110)","v":0},{"$f":"SUM(Veriler!V104:V110)","v":0},{"$f":"SUM(Veriler!W104:W110)","v":0},{"$f":"SUM(Veriler!X104:X110)","v":0},{"$f":"SUM(Veriler!Y104:Y110)","v":0},{"$f":"SUM(Veriler!Z104:Z110)","v":0},{"$f":"SUM(Veriler!AA104:AA110)","v":0},{"$f":"SUM(Veriler!AB104:AB110)","v":0},{"$f":"SUM(Veriler!AC104:AC110)","v":0},{"$f":"SUM(Veriler!AD104:AD110)","v":0},{"$f":"SUM(Veriler!AE104:AE110)","v":0},{"$f":"SUM(Veriler!AF104:AF110)","v":0}]
[null,null,null,null,null,null,null,null,null,null,null,null,null,null,null,null,null,null,null,null,null,null,null,null,null,null,null,{"$f":"SUM(Veriler!AG111:AG117)","v":0},{"$f":"SUM(Veriler!AH111:AH117)","v":0},{"$f":"SUM(Veriler!AI111:AI117)","v":0},{"$f":"SUM(Veriler!AJ111:AJ117)","v":0},{"$f":"SUM(Veriler!I111:I117)","v":0},{"$f":"SUM(Veriler!J111:J117)","v":0},{"$f":"SUM(Veriler!K111:K117)","v":0},{"$f":"SUM(Veriler!L111:L117)","v":0},{"$f":"SUM(Veriler!M111:M117)","v":0},{"$f":"SUM(Veriler!N111:N117)","v":0},{"$f":"SUM(Veriler!O111:O117)","v":0},{"$f":"SUM(Veriler!P111:P117)","v":0},{"$f":"SUM(Veriler!Q111:Q117)","v":0},{"$f":"SUM(Veriler!R111:R117)","v":0},{"$f":"SUM(Veriler!S111:S117)","v":0},{"$f":"SUM(Veriler!T111:T117)","v":0},{"$f":"SUM(Veriler!U111:U117)","v":0},{"$f":"SUM(Veriler!V111:V117)","v":0},{"$f":"SUM(Veriler!W111:W117)","v":0},{"$f":"SUM(Veriler!X111:X117)","v":0},{"$f":"SUM(Veriler!Y111:Y117)","v":0},{"$f":"SUM(Veriler!Z111:Z117)","v":0},{"$f":"SUM(Veriler!AA111:AA117)","v":0},{"$f":"SUM(Veriler!AB111:AB117)","v":0},{"$f":"SUM(Veriler!AC111:AC117)","v":0},{"$f":"SUM(Veriler!AD111:AD117)","v":0},{"$f":"SUM(Veriler!AE111:AE117)","v":0},{"$f":"SUM(Veriler!AF111:AF117)","v":0}]
[null,null,null,null,null,null,null,null,null,null,null,null,null,null,null,null,null,null,null,null,null,null,null,null,null,null,null,{"$f":"SUM(Veriler!AG118:AG124)","v":0},{"$f":"SUM(Veriler!AH118:AH124)","v":0},{"$f":"SUM(Veriler!AI118:AI124)","v":0},{"$f":"SUM(Veriler!AJ118:AJ124)","v":0},{"$f":"SUM(Veriler!I118:I124)","v":0},{"$f":"SUM(Veriler!J118:J124)","v":0},{"$f":"SUM(Veriler!K118:K124)","v":0},{"$f":"SUM(Veriler!L118:L124)","v":0},{"$f":"SUM(Veriler!M118:M124)","v":0},{"$f":"SUM(Veriler!N118:N124)","v":0},{"$f":"SUM(Veriler!O118:O124)","v":0},{"$f":"SUM(Veriler!P118:P124)","v":0},{"$f":"SUM(Veriler!Q118:Q124)","v":0},{"$f":"SUM(Veriler!R118:R124)","v":0},{"$f":"SUM(Veriler!S118:S124)","v":0},{"$f":"SUM(Veriler!T118:T124)","v":0},{"$f":"SUM(Veriler!U118:U124)","v":0},{"$f":"SUM(Veriler!V118:V124)","v":0},{"$f":"SUM(Veriler!W118:W124)","v":0},{"$f":"SUM(Veriler!X118:X124)","v":0},{"$f":"SUM(Veriler!Y118:Y124)","v":0},{"$f":"SUM(Veriler!Z118:Z124)","v":0},{"$f":"SUM(Veriler!AA118:AA124)","v":0},{"$f":"SUM(Veriler!AB118:AB124)","v":0},{"$f":"SUM(Veriler!AC118:AC124)","v":0},{"$f":"SUM(Veriler!AD118:AD124)","v":0},{"$f":"SUM(Veriler!AE118:AE124)","v":0},{"$f":"SUM(Veriler!AF118:AF124)","v":0}]
[null,null,null,null,null,null,null,null,null,null,null,null,null,null,null,null,null,null,null,null,null,null,null,null,null,null,null,{"$f":"SUM(Veriler!AG125:AG131)","v":0},{"$f":"SUM(Veriler!AH125:AH131)","v":0},{"$f":"SUM(Veriler!AI125:AI131)","v":0},{"$f":"SUM(Veriler!AJ125:AJ131)","v":0},{"$f":"SUM(Veriler!I125:I131)","v":0},{"$f":"SUM(Veriler!J125:J131)","v":0},{"$f":"SUM(Veriler!K125:K131)","v":0},{"$f":"SUM(Veriler!L125:L131)","v":0},{"$f":"SUM(Veriler!M125:M131)","v":0},{"$f":"SUM(Veriler!N125:N131)","v":0},{"$f":"SUM(Veriler!O125:O131)","v":0},{"$f":"SUM(Veriler!P125:P131)","v":0},{"$f":"SUM(Veriler!Q125:Q131)","v":0},{"$f":"SUM(Veriler!R125:R131)","v":0},{"$f":"SUM(Veriler!S125:S131)","v":0},{"$f":"SUM(Veriler!T125:T131)","v":0},{"$f":"SUM(Veriler!U125:U131)","v":0},{"$f":"SUM(Veriler!V125:V131)","v":0},{"$f":"SUM(Veriler!W125:W131)","v":0},{"$f":"SUM(Veriler!X125:X131)","v":0},{"$f":"SUM(Veriler!Y125:Y131)","v":0},{"$f":"SUM(Veriler!Z125:Z131)","v":0},{"$f":"SUM(Veriler!AA125:AA131)","v":0},{"$f":"SUM(Veriler!AB125:AB131)","v":0},{"$f":"SUM(Veriler!AC125:AC131)","v":0},{"$f":"SUM(Veriler!AD125:AD131)","v":0},{"$f":"SUM(Veriler!AE125:AE131)","v":0},{"$f":"SUM(Veriler!AF125:AF131)","v":0}]
[null,null,null,null,null,null,null,null,null,null,null,null,null,null,null,null,null,null,null,null,null,null,null,null,null,null,null,{"$f":"SUM(Veriler!AG132:AG138)","v":0},{"$f":"SUM(Veriler!AH132:AH138)","v":0},{"$f":"SUM(Veriler!AI132:AI138)","v":0},{"$f":"SUM(Veriler!AJ132:AJ138)","v":0},{"$f":"SUM(Veriler!I132:I138)","v":0},{"$f":"SUM(Veriler!J132:J138)","v":0},{"$f":"SUM(Veriler!K132:K138)","v":0},{"$f":"SUM(Veriler!L132:L138)","v":0},{"$f":"SUM(Veriler!M132:M138)","v":0},{"$f":"SUM(Veriler!N132:N138)","v":0},{"$f":"SUM(Veriler!O132:O138)","v":0},{"$f":"SUM(Veriler!P132:P138)","v":0},{"$f":"SUM(Veriler!Q132:Q138)","v":0},{"$f":"SUM(Veriler!R132:R138)","v":0},{"$f":"SUM(Veriler!S132:S138)","v":0},{"$f":"SUM(Veriler!T132:T138)","v":0},{"$f":"SUM(Veriler!U132:U138)","v":0},{"$f":"SUM(Veriler!V132:V138)","v":0},{"$f":"SUM(Veriler!W132:W138)","v":0},{"$f":"SUM(Veriler!X132:X138)","v":0},{"$f":"SUM(Veriler!Y132:Y138)","v":0},{"$f":"SUM(Veriler!Z132:Z138)","v":0},{"$f":"SUM(Veriler!AA132:AA138)","v":0},{"$f":"SUM(Veriler!AB132:AB138)","v":0},{"$f":"SUM(Veriler!AC132:AC138)","v":0},{"$f":"SUM(Veriler!AD132:AD138)","v":0},{"$f":"SUM(Veriler!AE132:AE138)","v":0},{"$f":"SUM(Veriler!AF132:AF138)","v":0}]
[null,null,null,null,null,null,null,null,null,null,null,null,null,null,null,null,null,null,null,null,null,null,null,null,null,null,null,{"$f":"SUM(Veriler!AG139:AG145)","v":0},{"$f":"SUM(Veriler!AH139:AH145)","v":0},{"$f":"SUM(Veriler!AI139:AI145)","v":0},{"$f":"SUM(Veriler!AJ139:AJ145)","v":0},{"$f":"SUM(Veriler!I139:I145)","v":0},{"$f":"SUM(Veriler!J139:J145)","v":0},{"$f":"SUM(Veriler!K139:K145)","v":0},{"$f":"SUM(Veriler!L139:L145)","v":0},{"$f":"SUM(Veriler!M139:M145)","v":0},{"$f":"SUM(Veriler!N139:N145)","v":0},{"$f":"SUM(Veriler!O139:O145)","v":0},{"$f":"SUM(Veriler!P139:P145)","v":0},{"$f":"SUM(Veriler!Q139:Q145)","v":0},{"$f":"SUM(Veriler!R139:R145)","v":0},{"$f":"SUM(Veriler!S139:S145)","v":0},{"$f":"SUM(Veriler!T139:T145)","v":0},{"$f":"SUM(Veriler!U139:U145)","v":0},{"$f":"SUM(Veriler!V139:V145)","v":0},{"$f":"SUM(Veriler!W139:W145)","v":0},{"$f":"SUM(Veriler!X139:X145)","v":0},{"$f":"SUM(Veriler!Y139:Y145)","v":0},{"$f":"SUM(Veriler!Z139:Z145)","v":0},{"$f":"SUM(Veriler!AA139:AA145)","v":0},{"$f":"SUM(Veriler!AB139:AB145)","v":0},{"$f":"SUM(Veriler!AC139:AC145)","v":0},{"$f":"SUM(Veriler!AD139:AD145)","v":0},{"$f":"SUM(Veriler!AE139:AE145)","v":0},{"$f":"SUM(Veriler!AF139:AF145)","v":0}]
[null,null,null,null,null,null,null,null,null,null,null,null,null,null,null,null,null,null,null,null,null,null,null,null,null,null,null,{"$f":"SUM(Veriler!AG146:AG152)","v":0},{"$f":"SUM(Veriler!AH146:AH152)","v":0},{"$f":"SUM(Veriler!AI146:AI152)","v":0},{"$f":"SUM(Veriler!AJ146:AJ152)","v":0},{"$f":"SUM(Veriler!I146:I152)","v":0},{"$f":"SUM(Veriler!J146:J152)","v":0},{"$f":"SUM(Veriler!K146:K152)","v":0},{"$f":"SUM(Veriler!L146:L152)","v":0},{"$f":"SUM(Veriler!M146:M152)","v":0},{"$f":"SUM(Veriler!N146:N152)","v":0},{"$f":"SUM(Veriler!O146:O152)","v":0},{"$f":"SUM(Veriler!P146:P152)","v":0},{"$f":"SUM(Veriler!Q146:Q152)","v":0},{"$f":"SUM(Veriler!R146:R152)","v":0},{"$f":"SUM(Veriler!S146:S152)","v":0},{"$f":"SUM(Veriler!T146:T152)","v":0},{"$f":"SUM(Veriler!U146:U152)","v":0},{"$f":"SUM(Veriler!V146:V152)","v":0},{"$f":"SUM(Veriler!W146:W152)","v":0},{"$f":"SUM(Veriler!X146:X152)","v":0},{"$f":"SUM(Veriler!Y146:Y152)","v":0},{"$f":"SUM(Veriler!Z146:Z152)","v":0},{"$f":"SUM(Veriler!AA146:AA152)","v":0},{"$f":"SUM(Veriler!AB146:AB152)","v":0},{"$f":"SUM(Veriler!AC146:AC152)","v":0},{"$f":"SUM(Veriler!AD146:AD152)","v":0},{"$f":"SUM(Veriler!AE146:AE152)","v":0},{"$f":"SUM(Veriler!AF146:AF152)","v":0}]
[null,null,null,null,null,null,null,null,null,null,null,null,null,null,null,null,null,null,null,null,null,null,null,null,null,null,null,{"$f":"SUM(Veriler!AG153:AG159)","v":0},{"$f":"SUM(Veriler!AH153:AH159)","v":0},{"$f":"SUM(Veriler!AI153:AI159)","v":0},{"$f":"SUM(Veriler!AJ153:AJ159)","v":0},{"$f":"SUM(Veriler!I153:I159)","v":0},{"$f":"SUM(Veriler!J153:J159)","v":0},{"$f":"SUM(Veriler!K153:K159)","v":0},{"$f":"SUM(Veriler!L153:L159)","v":0},{"$f":"SUM(Veriler!M153:M159)","v":0},{"$f":"SUM(Veriler!N153:N159)","v":0},{"$f":"SUM(Veriler!O153:O159)","v":0},{"$f":"SUM(Veriler!P153:P159)","v":0},{"$f":"SUM(Veriler!Q153:Q159)","v":0},{"$f":"SUM(Veriler!R153:R159)","v":0},{"$f":"SUM(Veriler!S153:S159)","v":0},{"$f":"SUM(Veriler!T153:T159)","v":0},{"$f":"SUM(Veriler!U153:U159)","v":0},{"$f":"SUM(Veriler!V153:V159)","v":0},{"$f":"SUM(Veriler!W153:W159)","v":0},{"$f":"SUM(Veriler!X153:X159)","v":0},{"$f":"SUM(Veriler!Y153:Y159)","v":0},{"$f":"SUM(Veriler!Z153:Z159)","v":0},{"$f":"SUM(Veriler!AA153:AA159)","v":0},{"$f":"SUM(Veriler!AB153:AB159)","v":0},{"$f":"SUM(Veriler!AC153:AC159)","v":0},{"$f":"SUM(Veriler!AD153:AD159)","v":0},{"$f":"SUM(Veriler!AE153:AE159)","v":0},{"$f":"SUM(Veriler!AF153:AF159)","v":0}]
[null,null,null,null,null,null,null,null,null,null,null,null,null,null,null,null,null,null,null,null,null,null,null,null,null,null,null,{"$f":"SUM(Veriler!AG160:AG166)","v":0},{"$f":"SUM(Veriler!AH160:AH166)","v":0},{"$f":"SUM(Veriler!AI160:AI166)","v":0},{"$f":"SUM(Veriler!AJ160:AJ166)","v":0},{"$f":"SUM(Veriler!I160:I166)","v":0},{"$f":"SUM(Veriler!J160:J166)","v":0},{"$f":"SUM(Veriler!K160:K166)","v":0},{"$f":"SUM(Veriler!L160:L166)","v":0},{"$f":"SUM(Veriler!M160:M166)","v":0},{"$f":"SUM(Veriler!N160:N166)","v":0},{"$f":"SUM(Veriler!O160:O166)","v":0},{"$f":"SUM(Veriler!P160:P166)","v":0},{"$f":"SUM(Veriler!Q160:Q166)","v":0},{"$f":"SUM(Veriler!R160:R166)","v":0},{"$f":"SUM(Veriler!S160:S166)","v":0},{"$f":"SUM(Veriler!T160:T166)","v":0},{"$f":"SUM(Veriler!U160:U166)","v":0},{"$f":"SUM(Veriler!V160:V166)","v":0},{"$f":"SUM(Veriler!W160:W166)","v":0},{"$f":"SUM(Veriler!X160:X166)","v":0},{"$f":"SUM(Veriler!Y160:Y166)","v":0},{"$f":"SUM(Veriler!Z160:Z166)","v":0},{"$f":"SUM(Veriler!AA160:AA166)","v":0},{"$f":"SUM(Veriler!AB160:AB166)","v":0},{"$f":"SUM(Veriler!AC160:AC166)","v":0},{"$f":"SUM(Veriler!AD160:AD166)","v":0},{"$f":"SUM(Veriler!AE160:AE166)","v":0},{"$f":"SUM(Veriler!AF160:AF166)","v":0}]
[null,null,null,null,null,null,null,null,null,null,null,null,null,null,null,null,null,null,null,null,null,null,null,null,null,null,null,{"$f":"SUM(Veriler!AG167:AG173)","v":0},{"$f":"SUM(Veriler!AH167:AH173)","v":0},{"$f":"SUM(Veriler!AI167:AI173)","v":0},{"$f":"SUM(Veriler!AJ167:AJ173)","v":0},{"$f":"SUM(Veriler!I167:I173)","v":0},{"$f":"SUM(Veriler!J167:J173)","v":0},{"$f":"SUM(Veriler!K167:K173)","v":0},{"$f":"SUM(Veriler!L167:L173)","v":0},{"$f":"SUM(Veriler!M167:M173)","v":0},{"$f":"SUM(Veriler!N167:N173)","v":0},{"$f":"SUM(Veriler!O167:O173)","v":0},{"$f":"SUM(Veriler!P167:P173)","v":0},{"$f":"SUM(Veriler!Q167:Q173)","v":0},{"$f":"SUM(Veriler!R167:R173)","v":0},{"$f":"SUM(Veriler!S167:S173)","v":0},{"$f":"SUM(Veriler!T167:T173)","v":0},{"$f":"SUM(Veriler!U167:U173)","v":0},{"$f":"SUM(Veriler!V167:V173)","v":0},{"$f":"SUM(Veriler!W167:W173)","v":0},{"$f":"SUM(Veriler!X167:X173)","v":0},{"$f":"SUM(Veriler!Y167:Y173)","v":0},{"$f":"SUM(Veriler!Z167:Z173)","v":0},{"$f":"SUM(Veriler!AA167:AA173)","v":0},{"$f":"SUM(Veriler!AB167:AB173)","v":0},{"$f":"SUM(Veriler!AC167:AC173)","v":0},{"$f":"SUM(Veriler!AD167:AD173)","v":0},{"$f":"SUM(Veriler!AE167:AE173)","v":0},{"$f":"SUM(Veriler!AF167:AF173)","v":0}]
[null,null,null,null,null,null,null,null,null,null,null,null,null,null,null,null,null,null,null,null,null,null,null,null,null,null,null,{"$f":"SUM(Veriler!AG174:AG180)","v":0},{"$f":"SUM(Veriler!AH174:AH180)","v":0},{"$f":"SUM(Veriler!AI174:AI180)","v":0},{"$f":"SUM(Veriler!AJ174:AJ180)","v":0},{"$f":"SUM(Veriler!I174:I180)","v":0},{"$f":"SUM(Veriler!J174:J180)","v":0},{"$f":"SUM(Veriler!K174:K180)","v":0},{"$f":"SUM(Veriler!L174:L180)","v":0},{"$f":"SUM(Veriler!M174:M180)","v":0},{"$f":"SUM(Veriler!N174:N180)","v":0},{"$f":"SUM(Veriler!O174:O180)","v":0},{"$f":"SUM(Veriler!P174:P180)","v":0},{"$f":"SUM(Veriler!Q174:Q180)","v":0},{"$f":"SUM(Veriler!R174:R180)","v":0},{"$f":"SUM(Veriler!S174:S180)","v":0},{"$f":"SUM(Veriler!T174:T180)","v":0},{"$f":"SUM(Veriler!U174:U180)","v":0},{"$f":"SUM(Veriler!V174:V180)","v":0},{"$f":"SUM(Veriler!W174:W180)","v":0},{"$f":"SUM(Veriler!X174:X180)","v":0},{"$f":"SUM(Veriler!Y174:Y180)","v":0},{"$f":"SUM(Veriler!Z174:Z180)","v":0},{"$f":"SUM(Veriler!AA174:AA180)","v":0},{"$f":"SUM(Veriler!AB174:AB180)","v":0},{"$f":"SUM(Veriler!AC174:AC180)","v":0},{"$f":"SUM(Veriler!AD174:AD180)","v":0},{"$f":"SUM(Veriler!AE174:AE180)","v":0},{"$f":"SUM(Veriler!AF174:AF180)","v":0}]
[null,null,null,null,null,null,null,null,null,null,null,null,null,null,null,null,null,null,null,null,null,null,null,null,null,null,null,{"$f":"SUM(Veriler!AG181:AG187)","v":0},{"$f":"SUM(Veriler!AH181:AH187)","v":0},{"$f":"SUM(Veriler!AI181:AI187)","v":0},{"$f":"SUM(Veriler!AJ181:AJ187)","v":0},{"$f":"SUM(Veriler!I181:I187)","v":0},{"$f":"SUM(Veriler!J181:J187)","v":0},{"$f":"SUM(Veriler!K181:K187)","v":0},{"$f":"SUM(Veriler!L181:L187)","v":0},{"$f":"SUM(Veriler!M181:M187)","v":0},{"$f":"SUM(Veriler!N181:N187)","v":0},{"$f":"SUM(Veriler!O181:O187)","v":0},{"$f":"SUM(Veriler!P181:P187)","v":0},{"$f":"SUM(Veriler!Q181:Q187)","v":0},{"$f":"SUM(Veriler!R181:R187)","v":0},{"$f":"SUM(Veriler!S181:S187)","v":0},{"$f":"SUM(Veriler!T181:T187)","v":0},{"$f":"SUM(Veriler!U181:U187)","v":0},{"$f":"SUM(Veriler!V181:V187)","v":0},{"$f":"SUM(Veriler!W181:W187)","v":0},{"$f":"SUM(Veriler!X181:X187)","v":0},{"$f":"SUM(Veriler!Y181:Y187)","v":0},{"$f":"SUM(Veriler!Z181:Z187)","v":0},{"$f":"SUM(Veriler!AA181:AA187)","v":0},{"$f":"SUM(Veriler!AB181:AB187)","v":0},{"$f":"SUM(Veriler!AC181:AC187)","v":0},{"$f":"SUM(Veriler!AD181:AD187)","v":0},{"$f":"SUM(Veriler!AE181:AE187)","v":0},{"$f":"SUM(Veriler!AF181:AF187)","v":0}]
[null,null,null,null,null,null,null,null,null,null,null,null,null,null,null,null,null,null,null,null,null,null,null,null,null,null,null,{"$f":"SUM(Veriler!AG188:AG194)","v":0},{"$f":"SUM(Veriler!AH188:AH194)","v":0},{"$f":"SUM(Veriler!AI188:AI194)","v":0},{"$f":"SUM(Veriler!AJ188:AJ194)","v":0},{"$f":"SUM(Veriler!I188:I194)","v":0},{"$f":"SUM(Veriler!J188:J194)","v":0},{"$f":"SUM(Veriler!K188:K194)","v":0},{"$f":"SUM(Veriler!L188:L194)","v":0},{"$f":"SUM(Veriler!M188:M194)","v":0},{"$f":"SUM(Veriler!N188:N194)","v":0},{"$f":"SUM(Veriler!O188:O194)","v":0},{"$f":"SUM(Veriler!P188:P194)","v":0},{"$f":"SUM(Veriler!Q188:Q194)","v":0},{"$f":"SUM(Veriler!R188:R194)","v":0},{"$f":"SUM(Veriler!S188:S194)","v":0},{"$f":"SUM(Veriler!T188:T194)","v":0},{"$f":"SUM(Veriler!U188:U194)","v":0},{"$f":"SUM(Veriler!V188:V194)","v":0},{"$f":"SUM(Veriler!W188:W194)","v":0},{"$f":"SUM(Veriler!X188:X194)","v":0},{"$f":"SUM(Veriler!Y188:Y194)","v":0},{"$f":"SUM(Veriler!Z188:Z194)","v":0},{"$f":"SUM(Veriler!AA188:AA194)","v":0},{"$f":"SUM(Veriler!AB188:AB194)","v":0},{"$f":"SUM(Veriler!AC188:AC194)","v":0},{"$f":"SUM(Veriler!AD188:AD194)","v":0},{"$f":"SUM(Veriler!AE188:AE194)","v":0},{"$f":"SUM(Veriler!AF188:AF194)","v":0}]
[null,null,null,null,null,null,null,null,null,null,null,null,null,null,null,null,null,null,null,null,null,null,null,null,null,null,null,{"$f":"SUM(Veriler!AG195:AG201)","v":0},{"$f":"SUM(Veriler!AH195:AH201)","v":0},{"$f":"SUM(Veriler!AI195:AI201)","v":0},{"$f":"SUM(Veriler!AJ195:AJ201)","v":0},{"$f":"SUM(Veriler!I195:I201)","v":0},{"$f":"SUM(Veriler!J195:J201)","v":0},{"$f":"SUM(Veriler!K195:K201)","v":0},{"$f":"SUM(Veriler!L195:L201)","v":0},{"$f":"SUM(Veriler!M195:M201)","v":0},{"$f":"SUM(Veriler!N195:N201)","v":0},{"$f":"SUM(Veriler!O195:O201)","v":0},{"$f":"SUM(Veriler!P195:P201)","v":0},{"$f":"SUM(Veriler!Q195:Q201)","v":0},{"$f":"SUM(Veriler!R195:R201)","v":0},{"$f":"SUM(Veriler!S195:S201)","v":0},{"$f":"SUM(Veriler!T195:T201)","v":0},{"$f":"SUM(Veriler!U195:U201)","v":0},{"$f":"SUM(Veriler!V195:V201)","v":0},{"$f":"SUM(Veriler!W195:W201)","v":0},{"$f":"SUM(Veriler!X195:X201)","v":0},{"$f":"SUM(Veriler!Y195:Y201)","v":0},{"$f":"SUM(Veriler!Z195:Z201)","v":0},{"$f":"SUM(Veriler!AA195:AA201)","v":0},{"$f":"SUM(Veriler!AB195:AB201)","v":0},{"$f":"SUM(Veriler!AC195:AC201)","v":0},{"$f":"SUM(Veriler!AD195:AD201)","v":0},{"$f":"SUM(Veriler!AE195:AE201)","v":0},{"$f":"SUM(Veriler!AF195:AF201)","v":0}]
[null,null,null,null,null,null,null,null,null,null,null,null,null,null,null,null,null,null,null,null,null,null,null,null,null,null,null,{"$f":"SUM(Veriler!AG202:AG208)","v":0},{"$f":"SUM(Veriler!AH202:AH208)","v":0},{"$f":"SUM(Veriler!AI202:AI208)","v":0},{"$f":"SUM(Veriler!AJ202:AJ208)","v":0},{"$f":"SUM(Veriler!I202:I208)","v":0},{"$f":"SUM(Veriler!J202:J208)","v":0},{"$f":"SUM(Veriler!K202:K208)","v":0},{"$f":"SUM(Veriler!L202:L208)","v":0},{"$f":"SUM(Veriler!M202:M208)","v":0},{"$f":"SUM(Veriler!N202:N208)","v":0},{"$f":"SUM(Veriler!O202:O208)","v":0},{"$f":"SUM(Veriler!P202:P208)","v":0},{"$f":"SUM(Veriler!Q202:Q208)","v":0},{"$f":"SUM(Veriler!R202:R208)","v":0},{"$f":"SUM(Veriler!S202:S208)","v":0},{"$f":"SUM(Veriler!T202:T208)","v":0},{"$f":"SUM(Veriler!U202:U208)","v":0},{"$f":"SUM(Veriler!V202:V208)","v":0},{"$f":"SUM(Veriler!W202:W208)","v":0},{"$f":"SUM(Veriler!X202:X208)","v":0},{"$f":"SUM(Veriler!Y202:Y208)","v":0},{"$f":"SUM(Veriler!Z202:Z208)","v":0},{"$f":"SUM(Veriler!AA202:AA208)","v":0},{"$f":"SUM(Veriler!AB202:AB208)","v":0},{"$f":"SUM(Veriler!AC202:AC208)","v":0},{"$f":"SUM(Veriler!AD202:AD208)","v":0},{"$f":"SUM(Veriler!AE202:AE208)","v":0},{"$f":"SUM(Veriler!AF202:AF208)","v":0}]
[null,null,null,null,null,null,null,null,null,null,null,null,null,null,null,null,null,null,null,null,null,null,null,null,null,null,null,{"$f":"SUM(Veriler!AG209:AG215)","v":0},{"$f":"SUM(Veriler!AH209:AH215)","v":0},{"$f":"SUM(Veriler!AI209:AI215)","v":0},{"$f":"SUM(Veriler!AJ209:AJ215)","v":0},{"$f":"SUM(Veriler!I209:I215)","v":0},{"$f":"SUM(Veriler!J209:J215)","v":0},{"$f":"SUM(Veriler!K209:K215)","v":0},{"$f":"SUM(Veriler!L209:L215)","v":0},{"$f":"SUM(Veriler!M209:M215)","v":0},{"$f":"SUM(Veriler!N209:N215)","v":0},{"$f":"SUM(Veriler!O209:O215)","v":0},{"$f":"SUM(Veriler!P209:P215)","v":0},{"$f":"SUM(Veriler!Q209:Q215)","v":0},{"$f":"SUM(Veriler!R209:R215)","v":0},{"$f":"SUM(Veriler!S209:S215)","v":0},{"$f":"SUM(Veriler!T209:T215)","v":0},{"$f":"SUM(Veriler!U209:U215)","v":0},{"$f":"SUM(Veriler!V209:V215)","v":0},{"$f":"SUM(Veriler!W209:W215)","v":0},{"$f":"SUM(Veriler!X209:X215)","v":0},{"$f":"SUM(Veriler!Y209:Y215)","v":0},{"$f":"SUM(Veriler!Z209:Z215)","v":0},{"$f":"SUM(Veriler!AA209:AA215)","v":0},{"$f":"SUM(Veriler!AB209:AB215)","v":0},{"$f":"SUM(Veriler!AC209:AC215)","v":0},{"$f":"SUM(Veriler!AD209:AD215)","v":0},{"$f":"SUM(Veriler!AE209:AE215)","v":0},{"$f":"SUM(Veriler!AF209:AF215)","v":0}]
[null,null,{"$f":"AN10","v":"FEN BİLGİSİ"},null,null,null,null,null,null,null,null,null,null,null,null,null,null,null,null,null,null,null,null,null,null,null,null,{"$f":"SUM(Veriler!AG216:AG222)","v":0},{"$f":"SUM(Veriler!AH216:AH222)","v":0},{"$f":"SUM(Veriler!AI216:AI222)","v":0},{"$f":"SUM(Veriler!AJ216:AJ222)","v":0},{"$f":"SUM(Veriler!I216:I222)","v":0},{"$f":"SUM(Veriler!J216:J222)","v":0},{"$f":"SUM(Veriler!K216:K222)","v":0},{"$f":"SUM(Veriler!L216:L222)","v":0},{"$f":"SUM(Veriler!M216:M222)","v":0},{"$f":"SUM(Veriler!N216:N222)","v":0},{"$f":"SUM(Veriler!O216:O222)","v":0},{"$f":"SUM(Veriler!P216:P222)","v":0},{"$f":"SUM(Veriler!Q216:Q222)","v":0},{"$f":"SUM(Veriler!R216:R222)","v":0},{"$f":"SUM(Veriler!S216:S222)","v":0},{"$f":"SUM(Veriler!T216:T222)","v":0},{"$f":"SUM(Veriler!U216:U222)","v":0},{"$f":"SUM(Veriler!V216:V222)","v":0},{"$f":"SUM(Veriler!W216:W222)","v":0},{"$f":"SUM(Veriler!X216:X222)","v":0},{"$f":"SUM(Veriler!Y216:Y222)","v":0},{"$f":"SUM(Veriler!Z216:Z222)","v":0},{"$f":"SUM(Veriler!AA216:AA222)","v":0},{"$f":"SUM(Veriler!AB216:AB222)","v":0},{"$f":"SUM(Veriler!AC216:AC222)","v":0},{"$f":"SUM(Veriler!AD216:AD222)","v":0},{"$f":"SUM(Veriler!AE216:AE222)","v":0},{"$f":"SUM(Veriler!AF216:AF222)","v":0}]
[null,null,null,null,null,null,null,null,null,null,null,null,null,null,null,null,null,null,null,null,null,null,null,null,null,null,null,{"$f":"SUM(Veriler!AG223:AG229)","v":0},{"$f":"SUM(Veriler!AH223:AH229)","v":0},{"$f":"SUM(Veriler!AI223:AI229)","v":0},{"$f":"SUM(Veriler!AJ223:AJ229)","v":0},{"$f":"SUM(Veriler!I223:I229)","v":0},{"$f":"SUM(Veriler!J223:J229)","v":0},{"$f":"SUM(Veriler!K223:K229)","v":0},{"$f":"SUM(Veriler!L223:L229)","v":0},{"$f":"SUM(Veriler!M223:M229)","v":0},{"$f":"SUM(Veriler!N223:N229)","v":0},{"$f":"SUM(Veriler!O223:O229)","v":0},{"$f":"SUM(Veriler!P223:P229)","v":0},{"$f":"SUM(Veriler!Q223:Q229)","v":0},{"$f":"SUM(Veriler!R223:R229)","v":0},{"$f":"SUM(Veriler!S223:S229)","v":0},{"$f":"SUM(Veriler!T223:T229)","v":0},{"$f":"SUM(Veriler!U223:U229)","v":0},{"$f":"SUM(Veriler!V223:V229)","v":0},{"$f":"SUM(Veriler!W223:W229)","v":0},{"$f":"SUM(Veriler!X223:X229)","v":0},{"$f":"SUM(Veriler!Y223:Y229)","v":0},{"$f":"SUM(Veriler!Z223:Z229)","v":0},{"$f":"SUM(Veriler!AA223:AA229)","v":0},{"$f":"SUM(Veriler!AB223:AB229)","v":0},{"$f":"SUM(Veriler!AC223:AC229)","v":0},{"$f":"SUM(Veriler!AD223:AD229)","v":0},{"$f":"SUM(Veriler!AE223:AE229)","v":0},{"$f":"SUM(Veriler!AF223:AF229)","v":0}]
[null,null,null,null,null,null,null,null,null,null,null,null,null,null,null,null,null,null,null,null,null,null,null,null,null,null,null,{"$f":"SUM(Veriler!AG230:AG236)","v":0},{"$f":"SUM(Veriler!AH230:AH236)","v":0},{"$f":"SUM(Veriler!AI230:AI236)","v":0},{"$f":"SUM(Veriler!AJ230:AJ236)","v":0},{"$f":"SUM(Veriler!I230:I236)","v":0},{"$f":"SUM(Veriler!J230:J236)","v":0},{"$f":"SUM(Veriler!K230:K236)","v":0},{"$f":"SUM(Veriler!L230:L236)","v":0},{"$f":"SUM(Veriler!M230:M236)","v":0},{"$f":"SUM(Veriler!N230:N236)","v":0},{"$f":"SUM(Veriler!O230:O236)","v":0},{"$f":"SUM(Veriler!P230:P236)","v":0},{"$f":"SUM(Veriler!Q230:Q236)","v":0},{"$f":"SUM(Veriler!R230:R236)","v":0},{"$f":"SUM(Veriler!S230:S236)","v":0},{"$f":"SUM(Veriler!T230:T236)","v":0},{"$f":"SUM(Veriler!U230:U236)","v":0},{"$f":"SUM(Veriler!V230:V236)","v":0},{"$f":"SUM(Veriler!W230:W236)","v":0},{"$f":"SUM(Veriler!X230:X236)","v":0},{"$f":"SUM(Veriler!Y230:Y236)","v":0},{"$f":"SUM(Veriler!Z230:Z236)","v":0},{"$f":"SUM(Veriler!AA230:AA236)","v":0},{"$f":"SUM(Veriler!AB230:AB236)","v":0},{"$f":"SUM(Veriler!AC230:AC236)","v":0},{"$f":"SUM(Veriler!AD230:AD236)","v":0},{"$f":"SUM(Veriler!AE230:AE236)","v":0},{"$f":"SUM(Veriler!AF230:AF236)","v":0}]
[null,null,null,null,null,null,null,null,null,null,null,null,null,null,null,null,null,null,null,null,null,null,null,null,null,null,null,{"$f":"SUM(Veriler!AG237:AG243)","v":0},{"$f":"SUM(Veriler!AH237:AH243)","v":0},{"$f":"SUM(Veriler!AI237:AI243)","v":0},{"$f":"SUM(Veriler!AJ237:AJ243)","v":0},{"$f":"SUM(Veriler!I237:I243)","v":0},{"$f":"SUM(Veriler!J237:J243)","v":0},{"$f":"SUM(Veriler!K237:K243)","v":0},{"$f":"SUM(Veriler!L237:L243)","v":0},{"$f":"SUM(Veriler!M237:M243)","v":0},{"$f":"SUM(Veriler!N237:N243)","v":0},{"$f":"SUM(Veriler!O237:O243)","v":0},{"$f":"SUM(Veriler!P237:P243)","v":0},{"$f":"SUM(Veriler!Q237:Q243)","v":0},{"$f":"SUM(Veriler!R237:R243)","v":0},{"$f":"SUM(Veriler!S237:S243)","v":0},{"$f":"SUM(Veriler!T237:T243)","v":0},{"$f":"SUM(Veriler!U237:U243)","v":0},{"$f":"SUM(Veriler!V237:V243)","v":0},{"$f":"SUM(Veriler!W237:W243)","v":0},{"$f":"SUM(Veriler!X237:X243)","v":0},{"$f":"SUM(Veriler!Y237:Y243)","v":0},{"$f":"SUM(Veriler!Z237:Z243)","v":0},{"$f":"SUM(Veriler!AA237:AA243)","v":0},{"$f":"SUM(Veriler!AB237:AB243)","v":0},{"$f":"SUM(Veriler!AC237:AC243)","v":0},{"$f":"SUM(Veriler!AD237:AD243)","v":0},{"$f":"SUM(Veriler!AE237:AE243)","v":0},{"$f":"SUM(Veriler!AF237:AF243)","v":0}]
[null,null,null,null,null,null,null,null,null,null,null,null,null,null,null,null,null,null,null,null,null,null,null,null,null,null,null,{"$f":"SUM(Veriler!AG244:AG250)","v":0},{"$f":"SUM(Veriler!AH244:AH250)","v":0},{"$f":"SUM(Veriler!AI244:AI250)","v":0},{"$f":"SUM(Veriler!AJ244:AJ250)","v":0},{"$f":"SUM(Veriler!I244:I250)","v":0},{"$f":"SUM(Veriler!J244:J250)","v":0},{"$f":"SUM(Veriler!K244:K250)","v":0},{"$f":"SUM(Veriler!L244:L250)","v":0},{"$f":"SUM(Veriler!M244:M250)","v":0},{"$f":"SUM(Veriler!N244:N250)","v":0},{"$f":"SUM(Veriler!O244:O250)","v":0},{"$f":"SUM(Veriler!P244:P250)","v":0},{"$f":"SUM(Veriler!Q244:Q250)","v":0},{"$f":"SUM(Veriler!R244:R250)","v":0},{"$f":"SUM(Veriler!S244:S250)","v":0},{"$f":"SUM(Veriler!T244:T250)","v":0},{"$f":"SUM(Veriler!U244:U250)","v":0},{"$f":"SUM(Veriler!V244:V250)","v":0},{"$f":"SUM(Veriler!W244:W250)","v":0},{"$f":"SUM(Veriler!X244:X250)","v":0},{"$f":"SUM(Veriler!Y244:Y250)","v":0},{"$f":"SUM(Veriler!Z244:Z250)","v":0},{"$f":"SUM(Veriler!AA244:AA250)","v":0},{"$f":"SUM(Veriler!AB244:AB250)","v":0},{"$f":"SUM(Veriler!AC244:AC250)","v":0},{"$f":"SUM(Veriler!AD244:AD250)","v":0},{"$f":"SUM(Veriler!AE244:AE250)","v":0},{"$f":"SUM(Veriler!AF244:AF250)","v":0}]
[null,null,null,null,null,null,null,null,null,null,null,null,null,null,null,null,null,null,null,null,null,null,null,null,null,null,null,{"$f":"SUM(Veriler!AG251:AG257)","v":0},{"$f":"SUM(Veriler!AH251:AH257)","v":0},{"$f":"SUM(Veriler!AI251:AI257)","v":0},{"$f":"SUM(Veriler!AJ251:AJ257)","v":0},{"$f":"SUM(Veriler!I251:I257)","v":0},{"$f":"SUM(Veriler!J251:J257)","v":0},{"$f":"SUM(Veriler!K251:K257)","v":0},{"$f":"SUM(Veriler!L251:L257)","v":0},{"$f":"SUM(Veriler!M251:M257)","v":0},{"$f":"SUM(Veriler!N251:N257)","v":0},{"$f":"SUM(Veriler!O251:O257)","v":0},{"$f":"SUM(Veriler!P251:P257)","v":0},{"$f":"SUM(Veriler!Q251:Q257)","v":0},{"$f":"SUM(Veriler!R251:R257)","v":0},{"$f":"SUM(Veriler!S251:S257)","v":0},{"$f":"SUM(Veriler!T251:T257)","v":0},{"$f":"SUM(Veriler!U251:U257)","v":0},{"$f":"SUM(Veriler!V251:V257)","v":0},{"$f":"SUM(Veriler!W251:W257)","v":0},{"$f":"SUM(Veriler!X251:X257)","v":0},{"$f":"SUM(Veriler!Y251:Y257)","v":0},{"$f":"SUM(Veriler!Z251:Z257)","v":0},{"$f":"SUM(Veriler!AA251:AA257)","v":0},{"$f":"SUM(Veriler!AB251:AB257)","v":0},{"$f":"SUM(Veriler!AC251:AC257)","v":0},{"$f":"SUM(Veriler!AD251:AD257)","v":0},{"$f":"SUM(Veriler!AE251:AE257)","v":0},{"$f":"SUM(Veriler!AF251:AF257)","v":0}]
[null,null,null,null,null,null,null,null,null,null,null,null,null,null,null,null,null,null,null,null,null,null,null,null,null,null,null,{"$f":"SUM(Veriler!AG258:AG264)","v":0},{"$f":"SUM(Veriler!AH258:AH264)","v":0},{"$f":"SUM(Veriler!AI258:AI264)","v":0},{"$f":"SUM(Veriler!AJ258:AJ264)","v":0},{"$f":"SUM(Veriler!I258:I264)","v":0},{"$f":"SUM(Veriler!J258:J264)","v":0},{"$f":"SUM(Veriler!K258:K264)","v":0},{"$f":"SUM(Veriler!L258:L264)","v":0},{"$f":"SUM(Veriler!M258:M264)","v":0},{"$f":"SUM(Veriler!N258:N264)","v":0},{"$f":"SUM(Veriler!O258:O264)","v":0},{"$f":"SUM(Veriler!P258:P264)","v":0},{"$f":"SUM(Veriler!Q258:Q264)","v":0},{"$f":"SUM(Veriler!R258:R264)","v":0},{"$f":"SUM(Veriler!S258:S264)","v":0},{"$f":"SUM(Veriler!T258:T264)","v":0},{"$f":"SUM(Veriler!U258:U264)","v":0},{"$f":"SUM(Veriler!V258:V264)","v":0},{"$f":"SUM(Veriler!W258:W264)","v":0},{"$f":"SUM(Veriler!X258:X264)","v":0},{"$f":"SUM(Veriler!Y258:Y264)","v":0},{"$f":"SUM(Veriler!Z258:Z264)","v":0},{"$f":"SUM(Veriler!AA258:AA264)","v":0},{"$f":"SUM(Veriler!AB258:AB264)","v":0},{"$f":"SUM(Veriler!AC258:AC264)","v":0},{"$f":"SUM(Veriler!AD258:AD264)","v":0},{"$f":"SUM(Veriler!AE258:AE264)","v":0},{"$f":"SUM(Veriler!AF258:AF264)","v":0}]
[]
[]
[]
[]
[]
[]
[]
[]
[]
[]
[]
[]
[]
[null,null,{"$f":"AR10","v":"İNKILAP TARİHİ"}]
[]
[]
[]
[]
[]
[]
[]
[]
[]
[]
[]
[]
[]
[]
[]
[]
[]
[]
[]
[null,null,{"$f":"AV10","v":"İNGİLİZCE"}]
[]
[]
[]
[]
[]
[]
[]
[]
[]
[]
[]
[]
[]
[]
[]
[]
[]
[]
[]
[null,null,{"$f":"AZ10","v":"DİN KÜLTÜRÜ"}]

{"sheet":"DersHafta","index":2,"n_rows":877,"n_cols":77,"rows_kept":877,"cut":false,"hidden":false,"merged":[[501,0,525,0],[526,0,550,0],[551,0,575,0],[576,0,600,0],[601,0,625,0],[376,0,400,0],[401,0,425,0],[426,0,450,0],[451,0,475,0],[476,0,500,0],[352,76,358,76],[359,76,365,76],[317,76,323,76],[324,76,330,76],[331,76,337,76],[338,76,344,76],[345,76,351,76],[282,76,288,76],[289,76,295,76],[296,76,302,76],[303,76,309,76],[310,76,316,76],[247,76,253,76],[254,76,260,76],[261,76,267,76],[268,76,274,76],[275,76,281,76],[212,76,218,76],[219,76,225,76],[226,76,232,76],[233,76,239,76],[240,76,246,76],[177,76,183,76],[184,76,190,76],[191,76,197,76],[198,76,204,76],[205,76,211,76],[142,76,148,76],[149,76,155,76],[156,76,162,76],[163,76,169,76],[170,76,176,76],[0,11,0,20],[2,76,8,76],[9,76,15,76],[16,76,22,76],[0,21,0,30],[0,31,0,40],[0,41,0,50],[0,51,0,60],[0,61,0,70],[0,5,0,10],[1,88,1,90],[251,0,275,0],[1,76,1,78],[1,79,1,81],[1,82,1,84],[226,0,250,0],[101,0,125,0],[126,0,150,0],[151,0,175,0],[176,0,200,0],[201,0,225,0],[26,0,50,0],[51,0,75,0],[76,0,100,0],[1,0,25,0],[326,0,350,0],[351,0,375,0],[276,0,300,0],[301,0,325,0],[58,76,64,76],[65,76,71,76],[72,76,78,76],[79,76,85,76],[86,76,92,76],[93,76,99,76],[100,76,106,76],[107,76,113,76],[114,76,120,76],[121,76,127,76],[128,76,134,76],[135,76,141,76],[1,85,1,87],[30,76,36,76],[37,76,43,76],[44,76,50,76],[51,76,57,76],[23,76,29,76],[626,0,650,0],[651,0,675,0],[676,0,700,0],[701,0,725,0],[726,0,750,0],[876,0,900,0],[751,0,775,0],[776,0,800,0],[801,0,825,0],[826,0,850,0],[851,0,875,0]]}
[null,null,null,null,null,"TOPLAM",null,null,null,null,null,{"$f":"Veriler!I10","v":"TÜRKÇE"},null,null,null,null,null,null,null,null,null,{"$f":"Veriler!M10","v":"MATEMATİK"},null,null,null,null,null,null,null,null,null,{"$f":"Veriler!Q10","v":"FEN BİLGİSİ"},null,null,null,null,null,null,null,null,null,{"$f":"Veriler!U10","v":"İNKILAP TARİHİ"},null,null,null,null,null,null,null,null,null,{"$f":"Veriler!Y10","v":"İNGİLİZCE"},null,null,null,null,null,null,null,null,null,{"$f":"Veriler!AC10","v":"DİN KÜLTÜRÜ"}]
["1. HAFTA",null,null,null,null,null,null,null,null,null,null,null,null,null,null,null,null,null,null,null,null,null,null,null,null,null,null,null,null,null,null,null,null,null,null,null,null,null,null,null,null,null,null,null,null,null,null,null,null,null,null,null,null,null,null,null,null,null,null,null,null,null,null,null,null,null,null,null,null,null,null,null,true,false,"BOŞ","TOPLAM"]
[null,null,null,null,null,null,null,null,null,null,null,null,null,null,null,null,null,null,null,null,null,null,null,null,null,null,null,null,null,null,null,null,null,null,null,null,null,null,null,null,null,null,null,null,null,null,null,null,null,null,null,null,null,null,null,null,null,null,null,null,null,null,null,null,null,null,null,null,null,null,null,"PAZARTESİ",0,0,0,0,1]
[null,null,null,null,null,null,null,null,null,null,null,null,null,null,null,null,null,null,null,null,null,null,null,null,null,null,null,null,null,null,null,null,null,null,null,null,null,null,null,null,null,null,null,null,null,null,null,null,null,null,null,null,null,null,null,null,null,null,null,null,null,null,null,null,null,null,null,null,null,null,null,"SALI",{"$f":"Veriler!AG14","v":""},{"$f":"Veriler!AH14","v":""},{"$f":"Veriler!AI14","v":""},{"$f":"Veriler!AJ14","v":""}]
[null,null,null,null,null,null,null,null,null,null,null,null,null,null,null,null,null,null,null,null,null,null,null,null,null,null,null,null,null,null,null,null,null,null,null,null,null,null,null,null,null,null,null,null,null,null,null,null,null,null,null,null,null,null,null,null,null,null,null,null,null,null,null,null,null,null,null,null,null,null,null,"ÇARŞAMBA",{"$f":"Veriler!AG15","v":""},{"$f":"Veriler!AH15","v":""},{"$f":"Veriler!AI15","v":""},{"$f":"Veriler!AJ15","v":""}]
[null,null,null,null,null,null,null,null,null,null,null,null,null,null,null,null,null,null,null,null,null,null,null,null,null,null,null,null,null,null,null,null,null,null,null,null,null,null,null,null,null,null,null,null,null,null,null,null,null,null,null,null,null,null,null,null,null,null,null,null,null,null,null,null,null,null,null,null,null,null,null,"PERŞEMBE",{"$f":"Veriler!AG16","v":""},{"$f":"Veriler!AH16","v":""},{"$f":"Veriler!AI16","v":""},{"$f":"Veriler!AJ16","v":""}]
[null,null,null,null,null,null,null,null,null,null,null,null,null,null,null,null,null,null,null,null,null,null,null,null,null,null,null,null,null,null,null,null,null,null,null,null,null,null,null,null,null,null,null,null,null,null,null,null,null,null,null,null,null,null,null,null,null,null,null,null,null,null,null,null,null,null,null,null,null,null,null,"CUMA",{"$f":"Veriler!AG17","v":""},{"$f":"Veriler!AH17","v":""},{"$f":"Veriler!AI17","v":""},{"$f":"Veriler!AJ17","v":""}]
[null,null,null,null,null,null,null,null,null,null,null,null,null,null,null,null,null,null,null,null,null,null,null,null,null,null,null,null,null,null,null,null,null,null,null,null,null,null,null,null,null,null,null,null,null,null,null,null,null,null,null,null,null,null,null,null,null,null,null,null,null,null,null,null,null,null,null,null,null,null,null,"CUMARTESİ",{"$f":"Veriler!AG18","v":""},{"$f":"Veriler!AH18","v":""},{"$f":"Veriler!AI18","v":""},{"$f":"Veriler!AJ18","v":""}]
[null,null,null,null,null,null,null,null,null,null,null,null,null,null,null,null,null,null,null,null,null,null,null,null,null,null,null,null,null,null,null,null,null,null,null,null,null,null,null,null,null,null,null,null,null,null,null,null,null,null,null,null,null,null,null,null,null,null,null,null,null,null,null,null,null,null,null,null,null,null,null,"PAZAR",{"$f":"Veriler!AG19","v":""},{"$f":"Veriler!AH19","v":""},{"$f":"Veriler!AI19","v":""},{"$f":"Veriler!AJ19","v":""}]
[null,null,null,null,null,null,null,null,null,null,null,null,null,null,null,null,null,null,null,null,null,null,null,null,null,null,null,null,null,null,null,null,null,null,null,null,null,null,null,null,null,null,null,null,null,null,null,null,null,null,null,null,null,null,null,null,null,null,null,null,null,null,null,null,null,null,null,null,null,null,null,"PAZARTESİ",{"$f":"Veriler!AG20","v":""},{"$f":"Veriler!AH20","v":""},{"$f":"Veriler!AI20","v":""},{"$f":"Veriler!AJ20","v":""},2]
[null,null,null,null,null,null,null,null,null,null,null,null,null,null,null,null,null,null,null,null,null,null,null,null,null,null,null,null,null,null,null,null,null,null,null,null,null,null,null,null,null,null,null,null,null,null,null,null,null,null,null,null,null,null,null,null,null,null,null,null,null,null,null,null,null,null,null,null,null,null,null,"SALI",{"$f":"Veriler!AG21","v":""},{"$f":"Veriler!AH21","v":""},{"$f":"Veriler!AI21","v":""},{"$f":"Veriler!AJ21","v":""}]
[null,null,null,null,null,null,null,null,null,null,null,null,null,null,null,null,null,null,null,null,null,null,null,null,null,null,null,null,null,null,null,null,null,null,null,null,null,null,null,null,null,null,null,null,null,null,null,null,null,null,null,null,null,null,null,null,null,null,null,null,null,null,null,null,null,null,null,null,null,null,null,"ÇARŞAMBA",{"$f":"Veriler!AG22","v":""},{"$f":"Veriler!AH22","v":""},{"$f":"Veriler!AI22","v":""},{"$f":"Veriler!AJ22","v":""}]
[null,null,null,null,null,null,null,null,null,null,null,null,null,null,null,null,null,null,null,null,null,null,null,null,null,null,null,null,null,null,null,null,null,null,null,null,null,null,null,null,null,null,null,null,null,null,null,null,null,null,null,null,null,null,null,null,null,null,null,null,null,null,null,null,null,null,null,null,null,null,null,"PERŞEMBE",{"$f":"Veriler!AG23","v":""},{"$f":"Veriler!AH23","v":""},{"$f":"Veriler!AI23","v":""},{"$f":"Veriler!AJ23","v":""}]
[null,null,null,null,null,null,null,null,null,null,null,null,null,null,null,null,null,null,null,null,null,null,null,null,null,null,null,null,null,null,null,null,null,null,null,null,null,null,null,null,null,null,null,null,null,null,null,null,null,null,null,null,null,null,null,null,null,null,null,null,null,null,null,null,null,null,null,null,null,null,null,"CUMA",{"$f":"Veriler!AG24","v":""},{"$f":"Veriler!AH24","v":""},{"$f":"Veriler!AI24","v":""},{"$f":"Veriler!AJ24","v":""}]
[null,null,null,null,null,null,null,null,null,null,null,null,null,null,null,null,null,null,null,null,null,null,null,null,null,null,null,null,null,null,null,null,null,null,null,null,null,null,null,null,null,null,null,null,null,null,null,null,null,null,null,null,null,null,null,null,null,null,null,null,null,null,null,null,null,null,null,null,null,null,null,"CUMARTESİ",{"$f":"Veriler!AG25","v":""},{"$f":"Veriler!AH25","v":""},{"$f":"Veriler!AI25","v":""},{"$f":"Veriler!AJ25","v":""}]
[null,null,null,null,null,null,null,null,null,null,null,null,null,null,null,null,null,null,null,null,null,null,null,null,null,null,null,null,null,null,null,null,null,null,null,null,null,null,null,null,null,null,null,null,null,null,null,null,null,null,null,null,null,null,null,null,null,null,null,null,null,null,null,null,null,null,null,null,null,null,null,"PAZAR",{"$f":"Veriler!AG26","v":""},{"$f":"Veriler!AH26","v":""},{"$f":"Veriler!AI26","v":""},{"$f":"Veriler!AJ26","v":""}]
[null,null,null,null,null,null,null,null,null,null,null,null,null,null,null,null,null,null,null,null,null,null,null,null,null,null,null,null,null,null,null,null,null,null,null,null,null,null,null,null,null,null,null,null,null,null,null,null,null,null,null,null,null,null,null,null,null,null,null,null,null,null,null,null,null,null,null,null,null,null,null,"PAZARTESİ",{"$f":"Veriler!AG27","v":""},{"$f":"Veriler!AH27","v":""},{"$f":"Veriler!AI27","v":""},{"$f":"Veriler!AJ27","v":""},3]
[null,null,null,null,null,null,null,null,null,null,null,null,null,null,null,null,null,null,null,null,null,null,null,null,null,null,null,null,null,null,null,null,null,null,null,null,null,null,null,null,null,null,null,null,null,null,null,null,null,null,null,null,null,null,null,null,null,null,null,null,null,null,null,null,null,null,null,null,null,null,null,"SALI",{"$f":"Veriler!AG28","v":""},{"$f":"Veriler!AH28","v":""},{"$f":"Veriler!AI28","v":""},{"$f":"Veriler!AJ28","v":""}]
[null,null,null,null,null,null,null,null,null,null,null,null,null,null,null,null,null,null,null,null,null,null,null,null,null,null,null,null,null,null,null,null,null,null,null,null,null,null,null,null,null,null,null,null,null,null,null,null,null,null,null,null,null,null,null,null,null,null,null,null,null,null,null,null,null,null,null,null,null,null,null,"ÇARŞAMBA",{"$f":"Veriler!AG29","v":""},{"$f":"Veriler!AH29","v":""},{"$f":"Veriler!AI29","v":""},{"$f":"Veriler!AJ29","v":""}]
[null,null,null,null,null,null,null,null,null,null,null,null,null,null,null,null,null,null,null,null,null,null,null,null,null,null,null,null,null,null,null,null,null,null,null,null,null,null,null,null,null,null,null,null,null,null,null,null,null,null,null,null,null,null,null,null,null,null,null,null,null,null,null,null,null,null,null,null,null,null,null,"PERŞEMBE",{"$f":"Veriler!AG30","v":""},{"$f":"Veriler!AH30","v":""},{"$f":"Veriler!AI30","v":""},{"$f":"Veriler!AJ30","v":""}]
[null,null,null,null,null,null,null,null,null,null,null,null,null,null,null,null,null,null,null,null,null,null,null,null,null,null,null,null,null,null,null,null,null,null,null,null,null,null,null,null,null,null,null,null,null,null,null,null,null,null,null,null,null,null,null,null,null,null,null,null,null,null,null,null,null,null,null,null,null,null,null,"CUMA",{"$f":"Veriler!AG31","v":""},{"$f":"Veriler!AH31","v":""},{"$f":"Veriler!AI31","v":""},{"$f":"Veriler!AJ31","v":""}]
[null,null,null,null,null,null,null,null,null,null,null,null,null,null,null,null,null,null,null,null,null,null,null,null,null,null,null,null,null,null,null,null,null,null,null,null,null,null,null,null,null,null,null,null,null,null,null,null,null,null,null,null,null,null,null,null,null,null,null,null,null,null,null,null,null,null,null,null,null,null,null,"CUMARTESİ",{"$f":"Veriler!AG32","v":""},{"$f":"Veriler!AH32","v":""},{"$f":"Veriler!AI32","v":""},{"$f":"Veriler!AJ32","v":""}]
[null,null,null,null,null,null,null,null,null,null,null,null,null,null,null,null,null,null,null,null,null,null,null,null,null,null,null,null,null,null,null,null,null,null,null,null,null,null,null,null,null,null,null,null,null,null,null,null,null,null,null,null,null,null,null,null,null,null,null,null,null,null,null,null,null,null,null,null,null,null,null,"PAZAR",{"$f":"Veriler!AG33","v":""},{"$f":"Veriler!AH33","v":""},{"$f":"Veriler!AI33","v":""},{"$f":"Veriler!AJ33","v":""}]
[null,null,null,null,null,null,null,null,null,null,null,null,null,null,null,null,null,null,null,null,null,null,null,null,null,null,null,null,null,null,null,null,null,null,null,null,null,null,null,null,null,null,null,null,null,null,null,null,null,null,null,null,null,null,null,null,null,null,null,null,null,null,null,null,null,null,null,null,null,null,null,"PAZARTESİ",{"$f":"Veriler!AG34","v":""},{"$f":"Veriler!AH34","v":""},{"$f":"Veriler!AI34","v":""},{"$f":"Veriler!AJ34","v":""},4]
[null,null,null,null,null,null,null,null,null,null,null,null,null,null,null,null,null,null,null,null,null,null,null,null,null,null,null,null,null,null,null,null,null,null,null,null,null,null,null,null,null,null,null,null,null,null,null,null,null,null,null,null,null,null,null,null,null,null,null,null,null,null,null,null,null,null,null,null,null,null,null,"SALI",{"$f":"Veriler!AG35","v":""},{"$f":"Veriler!AH35","v":""},{"$f":"Veriler!AI35","v":""},{"$f":"Veriler!AJ35","v":""}]
[null,null,null,null,null,null,null,null,null,null,null,null,null,null,null,null,null,null,null,null,null,null,null,null,null,null,null,null,null,null,null,null,null,null,null,null,null,null,null,null,null,null,null,null,null,null,null,null,null,null,null,null,null,null,null,null,null,null,null,null,null,null,null,null,null,null,null,null,null,null,null,"ÇARŞAMBA",{"$f":"Veriler!AG36","v":""},{"$f":"Veriler!AH36","v":""},{"$f":"Veriler!AI36","v":""},{"$f":"Veriler!AJ36","v":""}]
["2. HAFTA",null,null,null,null,null,null,null,null,null,null,null,null,null,null,null,null,null,null,null,null,null,null,null,null,null,null,null,null,null,null,null,null,null,null,null,null,null,null,null,null,null,null,null,null,null,null,null,null,null,null,null,null,null,null,null,null,null,null,null,null,null,null,null,null,null,null,null,null,null,null,"PERŞEMBE",{"$f":"Veriler!AG37","v":""},{"$f":"Veriler!AH37","v":""},{"$f":"Veriler!AI37","v":""},{"$f":"Veriler!AJ37","v":""}]
[null,null,null,null,null,null,null,null,null,null,null,null,null,null,null,null,null,null,null,null,null,null,null,null,null,null,null,null,null,null,null,null,null,null,null,null,null,null,null,null,null,null,null,null,null,null,null,null,null,null,null,null,null,null,null,null,null,null,null,null,null,null,null,null,null,null,null,null,null,null,null,"CUMA",{"$f":"Veriler!AG38","v":""},{"$f":"Veriler!AH38","v":""},{"$f":"Veriler!AI38","v":""},{"$f":"Veriler!AJ38","v":""}]
[null,null,null,null,null,null,null,null,null,null,null,null,null,null,null,null,null,null,null,null,null,null,null,null,null,null,null,null,null,null,null,null,null,null,null,null,null,null,null,null,null,null,null,null,null,null,null,null,null,null,null,null,null,null,null,null,null,null,null,null,null,null,null,null,null,null,null,null,null,null,null,"CUMARTESİ",{"$f":"Veriler!AG39","v":""},{"$f":"Veriler!AH39","v":""},{"$f":"Veriler!AI39","v":""},{"$f":"Veriler!AJ39","v":""}]
[null,null,null,null,null,null,null,null,null,null,null,null,null,null,null,null,null,null,null,null,null,null,null,null,null,null,null,null,null,null,null,null,null,null,null,null,null,null,null,null,null,null,null,null,null,null,null,null,null,null,null,null,null,null,null,null,null,null,null,null,null,null,null,null,null,null,null,null,null,null,null,"PAZAR",{"$f":"Veriler!AG40","v":""},{"$f":"Veriler!AH40","v":""},{"$f":"Veriler!AI40","v":""},{"$f":"Veriler!AJ40","v":""}]
[null,null,null,null,null,null,null,null,null,null,null,null,null,null,null,null,null,null,null,null,null,null,null,null,null,null,null,null,null,null,null,null,null,null,null,null,null,null,null,null,null,null,null,null,null,null,null,null,null,null,null,null,null,null,null,null,null,null,null,null,null,null,null,null,null,null,null,null,null,null,null,"PAZARTESİ",{"$f":"Veriler!AG41","v":""},{"$f":"Veriler!AH41","v":""},{"$f":"Veriler!AI41","v":""},{"$f":"Veriler!AJ41","v":""},5]
[null,null,null,null,null,null,null,null,null,null,null,null,null,null,null,null,null,null,null,null,null,null,null,null,null,null,null,null,null,null,null,null,null,null,null,null,null,null,null,null,null,null,null,null,null,null,null,null,null,null,null,null,null,null,null,null,null,null,null,null,null,null,null,null,null,null,null,null,null,null,null,"SALI",{"$f":"Veriler!AG42","v":""},{"$f":"Veriler!AH42","v":""},{"$f":"Veriler!AI42","v":""},{"$f":"Veriler!AJ42","v":""}]
[null,null,null,null,null,null,null,null,null,null,null,null,null,null,null,null,null,null,null,null,null,null,null,null,null,null,null,null,null,null,null,null,null,null,null,null,null,null,null,null,null,null,null,null,null,null,null,null,null,null,null,null,null,null,null,null,null,null,null,null,null,null,null,null,null,null,null,null,null,null,null,"ÇARŞAMBA",{"$f":"Veriler!AG43","v":""},{"$f":"Veriler!AH43","v":""},{"$f":"Veriler!AI43","v":""},{"$f":"Veriler!AJ43","v":""}]
[null,null,null,null,null,null,null,null,null,null,null,null,null,null,null,null,null,null,null,null,null,null,null,null,null,null,null,null,null,null,null,null,null,null,null,null,null,null,null,null,null,null,null,null,null,null,null,null,null,null,null,null,null,null,null,null,null,null,null,null,null,null,null,null,null,null,null,null,null,null,null,"PERŞEMBE",{"$f":"Veriler!AG44","v":""},{"$f":"Veriler!AH44","v":""},{"$f":"Veriler!AI44","v":""},{"$f":"Veriler!AJ44","v":""}]
[null,null,null,null,null,null,null,null,null,null,null,null,null,null,null,null,null,null,null,null,null,null,null,null,null,null,null,null,null,null,null,null,null,null,null,null,null,null,null,null,null,null,null,null,null,null,null,null,null,null,null,null,null,null,null,null,null,null,null,null,null,null,null,null,null,null,null,null,null,null,null,"CUMA",{"$f":"Veriler!AG45","v":""},{"$f":"Veriler!AH45","v":""},{"$f":"Veriler!AI45","v":""},{"$f":"Veriler!AJ45","v":""}]
[null,null,null,null,null,null,null,null,null,null,null,null,null,null,null,null,null,null,null,null,null,null,null,null,null,null,null,null,null,null,null,null,null,null,null,null,null,null,null,null,null,null,null,null,null,null,null,null,null,null,null,null,null,null,null,null,null,null,null,null,null,null,null,null,null,null,null,null,null,null,null,"CUMARTESİ",{"$f":"Veriler!AG46","v":""},{"$f":"Veriler!AH46","v":""},{"$f":"Veriler!AI46","v":""},{"$f":"Veriler!AJ46","v":""}]
[null,null,null,null,null,null,null,null,null,null,null,null,null,null,null,null,null,null,null,null,null,null,null,null,null,null,null,null,null,null,null,null,null,null,null,null,null,null,null,null,null,null,null,null,null,null,null,null,null,null,null,null,null,null,null,null,null,null,null,null,null,null,null,null,null,null,null,null,null,null,null,"PAZAR",{"$f":"Veriler!AG47","v":""},{"$f":"Veriler!AH47","v":""},{"$f":"Veriler!AI47","v":""},{"$f":"Veriler!AJ47","v":""}]
[null,null,null,null,null,null,null,null,null,null,null,null,null,null,null,null,null,null,null,null,null,null,null,null,null,null,null,null,null,null,null,null,null,null,null,null,null,null,null,null,null,null,null,null,null,null,null,null,null,null,null,null,null,null,null,null,null,null,null,null,null,null,null,null,null,null,null,null,null,null,null,"PAZARTESİ",{"$f":"Veriler!AG48","v":""},{"$f":"Veriler!AH48","v":""},{"$f":"Veriler!AI48","v":""},{"$f":"Veriler!AJ48","v":""},6]
[null,null,null,null,null,null,null,null,null,null,null,null,null,null,null,null,null,null,null,null,null,null,null,null,null,null,null,null,null,null,null,null,null,null,null,null,null,null,null,null,null,null,null,null,null,null,null,null,null,null,null,null,null,null,null,null,null,null,null,null,null,null,null,null,null,null,null,null,null,null,null,"SALI",{"$f":"Veriler!AG49","v":""},{"$f":"Veriler!AH49","v":""},{"$f":"Veriler!AI49","v":""},{"$f":"Veriler!AJ49","v":""}]
[null,null,null,null,null,null,null,null,null,null,null,null,null,null,null,null,null,null,null,null,null,null,null,null,null,null,null,null,null,null,null,null,null,null,null,null,null,null,null,null,null,null,null,null,null,null,null,null,null,null,null,null,null,null,null,null,null,null,null,null,null,null,null,null,null,null,null,null,null,null,null,"ÇARŞAMBA",{"$f":"Veriler!AG50","v":""},{"$f":"Veriler!AH50","v":""},{"$f":"Veriler!AI50","v":""},{"$f":"Veriler!AJ50","v":""}]
[null,null,null,null,null,null,null,null,null,null,null,null,null,null,null,null,null,null,null,null,null,null,null,null,null,null,null,null,null,null,null,null,null,null,null,null,null,null,null,null,null,null,null,null,null,null,null,null,null,null,null,null,null,null,null,null,null,null,null,null,null,null,null,null,null,null,null,null,null,null,null,"PERŞEMBE",{"$f":"Veriler!AG51","v":""},{"$f":"Veriler!AH51","v":""},{"$f":"Veriler!AI51","v":""},{"$f":"Veriler!AJ51","v":""}]
[null,null,null,null,null,null,null,null,null,null,null,null,null,null,null,null,null,null,null,null,null,null,null,null,null,null,null,null,null,null,null,null,null,null,null,null,null,null,null,null,null,null,null,null,null,null,null,null,null,null,null,null,null,null,null,null,null,null,null,null,null,null,null,null,null,null,null,null,null,null,null,"CUMA",{"$f":"Veriler!AG52","v":""},{"$f":"Veriler!AH52","v":""},{"$f":"Veriler!AI52","v":""},{"$f":"Veriler!AJ52","v":""}]
[null,null,null,null,null,null,null,null,null,null,null,null,null,null,null,null,null,null,null,null,null,null,null,null,null,null,null,null,null,null,null,null,null,null,null,null,null,null,null,null,null,null,null,null,null,null,null,null,null,null,null,null,null,null,null,null,null,null,null,null,null,null,null,null,null,null,null,null,null,null,null,"CUMARTESİ",{"$f":"Veriler!AG53","v":""},{"$f":"Veriler!AH53","v":""},{"$f":"Veriler!AI53","v":""},{"$f":"Veriler!AJ53","v":""}]
[null,null,null,null,null,null,null,null,null,null,null,null,null,null,null,null,null,null,null,null,null,null,null,null,null,null,null,null,null,null,null,null,null,null,null,null,null,null,null,null,null,null,null,null,null,null,null,null,null,null,null,null,null,null,null,null,null,null,null,null,null,null,null,null,null,null,null,null,null,null,null,"PAZAR",{"$f":"Veriler!AG54","v":""},{"$f":"Veriler!AH54","v":""},{"$f":"Veriler!AI54","v":""},{"$f":"Veriler!AJ54","v":""}]
[null,null,null,null,null,null,null,null,null,null,null,null,null,null,null,null,null,null,null,null,null,null,null,null,null,null,null,null,null,null,null,null,null,null,null,null,null,null,null,null,null,null,null,null,null,null,null,null,null,null,null,null,null,null,null,null,null,null,null,null,null,null,null,null,null,null,null,null,null,null,null,"PAZARTESİ",{"$f":"Veriler!AG55","v":""},{"$f":"Veriler!AH55","v":""},{"$f":"Veriler!AI55","v":""},{"$f":"Veriler!AJ55","v":""},7]
[null,null,null,null,null,null,null,null,null,null,null,null,null,null,null,null,null,null,null,null,null,null,null,null,null,null,null,null,null,null,null,null,null,null,null,null,null,null,null,null,null,null,null,null,null,null,null,null,null,null,null,null,null,null,null,null,null,null,null,null,null,null,null,null,null,null,null,null,null,null,null,"SALI",{"$f":"Veriler!AG56","v":""},{"$f":"Veriler!AH56","v":""},{"$f":"Veriler!AI56","v":""},{"$f":"Veriler!AJ56","v":""}]
[null,null,null,null,null,null,null,null,null,null,null,null,null,null,null,null,null,null,null,null,null,null,null,null,null,null,null,null,null,null,null,null,null,null,null,null,null,null,null,null,null,null,null,null,null,null,null,null,null,null,null,null,null,null,null,null,null,null,null,null,null,null,null,null,null,null,null,null,null,null,null,"ÇARŞAMBA",{"$f":"Veriler!AG57","v":""},{"$f":"Veriler!AH57","v":""},{"$f":"Veriler!AI57","v":""},{"$f":"Veriler!AJ57","v":""}]
[null,null,null,null,null,null,null,null,null,null,null,null,null,null,null,null,null,null,null,null,null,null,null,null,null,null,null,null,null,null,null,null,null,null,null,null,null,null,null,null,null,null,null,null,null,null,null,null,null,null,null,null,null,null,null,null,null,null,null,null,null,null,null,null,null,null,null,null,null,null,null,"PERŞEMBE",{"$f":"Veriler!AG58","v":""},{"$f":"Veriler!AH58","v":""},{"$f":"Veriler!AI58","v":""},{"$f":"Veriler!AJ58","v":""}]
[null,null,null,null,null,null,null,null,null,null,null,null,null,null,null,null,null,null,null,null,null,null,null,null,null,null,null,null,null,null,null,null,null,null,null,null,null,null,null,null,null,null,null,null,null,null,null,null,null,null,null,null,null,null,null,null,null,null,null,null,null,null,null,null,null,null,null,null,null,null,null,"CUMA",{"$f":"Veriler!AG59","v":""},{"$f":"Veriler!AH59","v":""},{"$f":"Veriler!AI59","v":""},{"$f":"Veriler!AJ59","v":""}]
[null,null,null,null,null,null,null,null,null,null,null,null,null,null,null,null,null,null,null,null,null,null,null,null,null,null,null,null,null,null,null,null,null,null,null,null,null,null,null,null,null,null,null,null,null,null,null,null,null,null,null,null,null,null,null,null,null,null,null,null,null,null,null,null,null,null,null,null,null,null,null,"CUMARTESİ",{"$f":"Veriler!AG60","v":""},{"$f":"Veriler!AH60","v":""},{"$f":"Veriler!AI60","v":""},{"$f":"Veriler!AJ60","v":""}]
[null,null,null,null,null,null,null,null,null,null,null,null,null,null,null,null,null,null,null,null,null,null,null,null,null,null,null,null,null,null,null,null,null,null,null,null,null,null,null,null,null,null,null,null,null,null,null,null,null,null,null,null,null,null,null,null,null,null,null,null,null,null,null,null,null,null,null,null,null,null,null,"PAZAR",{"$f":"Veriler!AG61","v":""},{"$f":"Veriler!AH61","v":""},{"$f":"Veriler!AI61","v":""},{"$f":"Veriler!AJ61","v":""}]
["3. HAFTA",null,null,null,null,null,null,null,null,null,null,null,null,null,null,null,null,null,null,null,null,null,null,null,null,null,null,null,null,null,null,null,null,null,null,null,null,null,null,null,null,null,null,null,null,null,null,null,null,null,null,null,null,null,null,null,null,null,null,null,null,null,null,null,null,null,null,null,null,null,null,"PAZARTESİ",{"$f":"Veriler!AG62","v":""},{"$f":"Veriler!AH62","v":""},{"$f":"Veriler!AI62","v":""},{"$f":"Veriler!AJ62","v":""},8]
[null,null,null,null,null,null,null,null,null,null,null,null,null,null,null,null,null,null,null,null,null,null,null,null,null,null,null,null,null,null,null,null,null,null,null,null,null,null,null,null,null,null,null,null,null,null,null,null,null,null,null,null,null,null,null,null,null,null,null,null,null,null,null,null,null,null,null,null,null,null,null,"SALI",{"$f":"Veriler!AG63","v":""},{"$f":"Veriler!AH63","v":""},{"$f":"Veriler!AI63","v":""},{"$f":"Veriler!AJ63","v":""}]
[null,null,null,null,null,null,null,null,null,null,null,null,null,null,null,null,null,null,null,null,null,null,null,null,null,null,null,null,null,null,null,null,null,null,null,null,null,null,null,null,null,null,null,null,null,null,null,null,null,null,null,null,null,null,null,null,null,null,null,null,null,null,null,null,null,null,null,null,null,null,null,"ÇARŞAMBA",{"$f":"Veriler!AG64","v":""},{"$f":"Veriler!AH64","v":""},{"$f":"Veriler!AI64","v":""},{"$f":"Veriler!AJ64","v":""}]
[null,null,null,null,null,null,null,null,null,null,null,null,null,null,null,null,null,null,null,null,null,null,null,null,null,null,null,null,null,null,null,null,null,null,null,null,null,null,null,null,null,null,null,null,null,null,null,null,null,null,null,null,null,null,null,null,null,null,null,null,null,null,null,null,null,null,null,null,null,null,null,"PERŞEMBE",{"$f":"Veriler!AG65","v":""},{"$f":"Veriler!AH65","v":""},{"$f":"Veriler!AI65","v":""},{"$f":"Veriler!AJ65","v":""}]
[null,null,null,null,null,null,null,null,null,null,null,null,null,null,null,null,null,null,null,null,null,null,null,null,null,null,null,null,null,null,null,null,null,null,null,null,null,null,null,null,null,null,null,null,null,null,null,null,null,null,null,null,null,null,null,null,null,null,null,null,null,null,null,null,null,null,null,null,null,null,null,"CUMA",{"$f":"Veriler!AG66","v":""},{"$f":"Veriler!AH66","v":""},{"$f":"Veriler!AI66","v":""},{"$f":"Veriler!AJ66","v":""}]
[null,null,null,null,null,null,null,null,null,null,null,null,null,null,null,null,null,null,null,null,null,null,null,null,null,null,null,null,null,null,null,null,null,null,null,null,null,null,null,null,null,null,null,null,null,null,null,null,null,null,null,null,null,null,null,null,null,null,null,null,null,null,null,null,null,null,null,null,null,null,null,"CUMARTESİ",{"$f":"Veriler!AG67","v":""},{"$f":"Veriler!AH67","v":""},{"$f":"Veriler!AI67","v":""},{"$f":"Veriler!AJ67","v":""}]
[null,null,null,null,null,null,null,null,null,null,null,null,null,null,null,null,null,null,null,null,null,null,null,null,null,null,null,null,null,null,null,null,null,null,null,null,null,null,null,null,null,null,null,null,null,null,null,null,null,null,null,null,null,null,null,null,null,null,null,null,null,null,null,null,null,null,null,null,null,null,null,"PAZAR",{"$f":"Veriler!AG68","v":""},{"$f":"Veriler!AH68","v":""},{"$f":"Veriler!AI68","v":""},{"$f":"Veriler!AJ68","v":""}]
[null,null,null,null,null,null,null,null,null,null,null,null,null,null,null,null,null,null,null,null,null,null,null,null,null,null,null,null,null,null,null,null,null,null,null,null,null,null,null,null,null,null,null,null,null,null,null,null,null,null,null,null,null,null,null,null,null,null,null,null,null,null,null,null,null,null,null,null,null,null,null,"PAZARTESİ",{"$f":"Veriler!AG69","v":""},{"$f":"Veriler!AH69","v":""},{"$f":"Veriler!AI69","v":""},{"$f":"Veriler!AJ69","v":""},9]
[null,null,null,null,null,null,null,null,null,null,null,null,null,null,null,null,null,null,null,null,null,null,null,null,null,null,null,null,null,null,null,null,null,null,null,null,null,null,null,null,null,null,null,null,null,null,null,null,null,null,null,null,null,null,null,null,null,null,null,null,null,null,null,null,null,null,null,null,null,null,null,"SALI",{"$f":"Veriler!AG70","v":""},{"$f":"Veriler!AH70","v":""},{"$f":"Veriler!AI70","v":""},{"$f":"Veriler!AJ70","v":""}]
[null,null,null,null,null,null,null,null,null,null,null,null,null,null,null,null,null,null,null,null,null,null,null,null,null,null,null,null,null,null,null,null,null,null,null,null,null,null,null,null,null,null,null,null,null,null,null,null,null,null,null,null,null,null,null,null,null,null,null,null,null,null,null,null,null,null,null,null,null,null,null,"ÇARŞAMBA",{"$f":"Veriler!AG71","v":""},{"$f":"Veriler!AH71","v":""},{"$f":"Veriler!AI71","v":""},{"$f":"Veriler!AJ71","v":""}]
[null,null,null,null,null,null,null,null,null,null,null,null,null,null,null,null,null,null,null,null,null,null,null,null,null,null,null,null,null,null,null,null,null,null,null,null,null,null,null,null,null,null,null,null,null,null,null,null,null,null,null,null,null,null,null,null,null,null,null,null,null,null,null,null,null,null,null,null,null,null,null,"PERŞEMBE",{"$f":"Veriler!AG72","v":""},{"$f":"Veriler!AH72","v":""},{"$f":"Veriler!AI72","v":""},{"$f":"Veriler!AJ72","v":""}]
[null,null,null,null,null,null,null,null,null,null,null,null,null,null,null,null,null,null,null,null,null,null,null,null,null,null,null,null,null,null,null,null,null,null,null,null,null,null,null,null,null,null,null,null,null,null,null,null,null,null,null,null,null,null,null,null,null,null,null,null,null,null,null,null,null,null,null,null,null,null,null,"CUMA",{"$f":"Veriler!AG73","v":""},{"$f":"Veriler!AH73","v":""},{"$f":"Veriler!AI73","v":""},{"$f":"Veriler!AJ73","v":""}]
[null,null,null,null,null,null,null,null,null,null,null,null,null,null,null,null,null,null,null,null,null,null,null,null,null,null,null,null,null,null,null,null,null,null,null,null,null,null,null,null,null,null,null,null,null,null,null,null,null,null,null,null,null,null,null,null,null,null,null,null,null,null,null,null,null,null,null,null,null,null,null,"CUMARTESİ",{"$f":"Veriler!AG74","v":""},{"$f":"Veriler!AH74","v":""},{"$f":"Veriler!AI74","v":""},{"$f":"Veriler!AJ74","v":""}]
[null,null,null,null,null,null,null,null,null,null,null,null,null,null,null,null,null,null,null,null,null,null,null,null,null,null,null,null,null,null,null,null,null,null,null,null,null,null,null,null,null,null,null,null,null,null,null,null,null,null,null,null,null,null,null,null,null,null,null,null,null,null,null,null,null,null,null,null,null,null,null,"PAZAR",{"$f":"Veriler!AG75","v":""},{"$f":"Veriler!AH75","v":""},{"$f":"Veriler!AI75","v":""},{"$f":"Veriler!AJ75","v":""}]
[null,null,null,null,null,null,null,null,null,null,null,null,null,null,null,null,null,null,null,null,null,null,null,null,null,null,null,null,null,null,null,null,null,null,null,null,null,null,null,null,null,null,null,null,null,null,null,null,null,null,null,null,null,null,null,null,null,null,null,null,null,null,null,null,null,null,null,null,null,null,null,"PAZARTESİ",{"$f":"Veriler!AG76","v":""},{"$f":"Veriler!AH76","v":""},{"$f":"Veriler!AI76","v":""},{"$f":"Veriler!AJ76","v":""},10]
[null,null,null,null,null,null,null,null,null,null,null,null,null,null,null,null,null,null,null,null,null,null,null,null,null,null,null,null,null,null,null,null,null,null,null,null,null,null,null,null,null,null,null,null,null,null,null,null,null,null,null,null,null,null,null,null,null,null,null,null,null,null,null,null,null,null,null,null,null,null,null,"SALI",{"$f":"Veriler!AG77","v":""},{"$f":"Veriler!AH77","v":""},{"$f":"Veriler!AI77","v":""},{"$f":"Veriler!AJ77","v":""}]
[null,null,null,null,null,null,null,null,null,null,null,null,null,null,null,null,null,null,null,null,null,null,null,null,null,null,null,null,null,null,null,null,null,null,null,null,null,null,null,null,null,null,null,null,null,null,null,null,null,null,null,null,null,null,null,null,null,null,null,null,null,null,null,null,null,null,null,null,null,null,null,"ÇARŞAMBA",{"$f":"Veriler!AG78","v":""},{"$f":"Veriler!AH78","v":""},{"$f":"Veriler!AI78","v":""},{"$f":"Veriler!AJ78","v":""}]
[null,null,null,null,null,null,null,null,null,null,null,null,null,null,null,null,null,null,null,null,null,null,null,null,null,null,null,null,null,null,null,null,null,null,null,null,null,null,null,null,null,null,null,null,null,null,null,null,null,null,null,null,null,null,null,null,null,null,null,null,null,null,null,null,null,null,null,null,null,null,null,"PERŞEMBE",{"$f":"Veriler!AG79","v":""},{"$f":"Veriler!AH79","v":""},{"$f":"Veriler!AI79","v":""},{"$f":"Veriler!AJ79","v":""}]
[null,null,null,null,null,null,null,null,null,null,null,null,null,null,null,null,null,null,null,null,null,null,null,null,null,null,null,null,null,null,null,null,null,null,null,null,null,null,null,null,null,null,null,null,null,null,null,null,null,null,null,null,null,null,null,null,null,null,null,null,null,null,null,null,null,null,null,null,null,null,null,"CUMA",{"$f":"Veriler!AG80","v":""},{"$f":"Veriler!AH80","v":""},{"$f":"Veriler!AI80","v":""},{"$f":"Veriler!AJ80","v":""}]
[null,null,null,null,null,null,null,null,null,null,null,null,null,null,null,null,null,null,null,null,null,null,null,null,null,null,null,null,null,null,null,null,null,null,null,null,null,null,null,null,null,null,null,null,null,null,null,null,null,null,null,null,null,null,null,null,null,null,null,null,null,null,null,null,null,null,null,null,null,null,null,"CUMARTESİ",{"$f":"Veriler!AG81","v":""},{"$f":"Veriler!AH81","v":""},{"$f":"Veriler!AI81","v":""},{"$f":"Veriler!AJ81","v":""}]
[null,null,null,null,null,null,null,null,null,null,null,null,null,null,null,null,null,null,null,null,null,null,null,null,null,null,null,null,null,null,null,null,null,null,null,null,null,null,null,null,null,null,null,null,null,null,null,null,null,null,null,null,null,null,null,null,null,null,null,null,null,null,null,null,null,null,null,null,null,null,null,"PAZAR",{"$f":"Veriler!AG82","v":""},{"$f":"Veriler!AH82","v":""},{"$f":"Veriler!AI82","v":""},{"$f":"Veriler!AJ82","v":""}]
[null,null,null,null,null,null,null,null,null,null,null,null,null,null,null,null,null,null,null,null,null,null,null,null,null,null,null,null,null,null,null,null,null,null,null,null,null,null,null,null,null,null,null,null,null,null,null,null,null,null,null,null,null,null,null,null,null,null,null,null,null,null,null,null,null,null,null,null,null,null,null,"PAZARTESİ",{"$f":"Veriler!AG83","v":""},{"$f":"Veriler!AH83","v":""},{"$f":"Veriler!AI83","v":""},{"$f":"Veriler!AJ83","v":""},11]
[null,null,null,null,null,null,null,null,null,null,null,null,null,null,null,null,null,null,null,null,null,null,null,null,null,null,null,null,null,null,null,null,null,null,null,null,null,null,null,null,null,null,null,null,null,null,null,null,null,null,null,null,null,null,null,null,null,null,null,null,null,null,null,null,null,null,null,null,null,null,null,"SALI",{"$f":"Veriler!AG84","v":""},{"$f":"Veriler!AH84","v":""},{"$f":"Veriler!AI84","v":""},{"$f":"Veriler!AJ84","v":""}]
[null,null,null,null,null,null,null,null,null,null,null,null,null,null,null,null,null,null,null,null,null,null,null,null,null,null,null,null,null,null,null,null,null,null,null,null,null,null,null,null,null,null,null,null,null,null,null,null,null,null,null,null,null,null,null,null,null,null,null,null,null,null,null,null,null,null,null,null,null,null,null,"ÇARŞAMBA",{"$f":"Veriler!AG85","v":""},{"$f":"Veriler!AH85","v":""},{"$f":"Veriler!AI85","v":""},{"$f":"Veriler!AJ85","v":""}]
[null,null,null,null,null,null,null,null,null,null,null,null,null,null,null,null,null,null,null,null,null,null,null,null,null,null,null,null,null,null,null,null,null,null,null,null,null,null,null,null,null,null,null,null,null,null,null,null,null,null,null,null,null,null,null,null,null,null,null,null,null,null,null,null,null,null,null,null,null,null,null,"PERŞEMBE",{"$f":"Veriler!AG86","v":""},{"$f":"Veriler!AH86","v":""},{"$f":"Veriler!AI86","v":""},{"$f":"Veriler!AJ86","v":""}]
["4. HAFTA",null,null,null,null,null,null,null,null,null,null,null,null,null,null,null,null,null,null,null,null,null,null,null,null,null,null,null,null,null,null,null,null,null,null,null,null,null,null,null,null,null,null,null,null,null,null,null,null,null,null,null,null,null,null,null,null,null,null,null,null,null,null,null,null,null,null,null,null,null,null,"CUMA",{"$f":"Veriler!AG87","v":""},{"$f":"Veriler!AH87","v":""},{"$f":"Veriler!AI87","v":""},{"$f":"Veriler!AJ87","v":""}]
[null,null,null,null,null,null,null,null,null,null,null,null,null,null,null,null,null,null,null,null,null,null,null,null,null,null,null,null,null,null,null,null,null,null,null,null,null,null,null,null,null,null,null,null,null,null,null,null,null,null,null,null,null,null,null,null,null,null,null,null,null,null,null,null,null,null,null,null,null,null,null,"CUMARTESİ",{"$f":"Veriler!AG88","v":""},{"$f":"Veriler!AH88","v":""},{"$f":"Veriler!AI88","v":""},{"$f":"Veriler!AJ88","v":""}]
[null,null,null,null,null,null,null,null,null,null,null,null,null,null,null,null,null,null,null,null,null,null,null,null,null,null,null,null,null,null,null,null,null,null,null,null,null,null,null,null,null,null,null,null,null,null,null,null,null,null,null,null,null,null,null,null,null,null,null,null,null,null,null,null,null,null,null,null,null,null,null,"PAZAR",{"$f":"Veriler!AG89","v":""},{"$f":"Veriler!AH89","v":""},{"$f":"Veriler!AI89","v":""},{"$f":"Veriler!AJ89","v":""}]
[null,null,null,null,null,null,null,null,null,null,null,null,null,null,null,null,null,null,null,null,null,null,null,null,null,null,null,null,null,null,null,null,null,null,null,null,null,null,null,null,null,null,null,null,null,null,null,null,null,null,null,null,null,null,null,null,null,null,null,null,null,null,null,null,null,null,null,null,null,null,null,"PAZARTESİ",{"$f":"Veriler!AG90","v":""},{"$f":"Veriler!AH90","v":""},{"$f":"Veriler!AI90","v":""},{"$f":"Veriler!AJ90","v":""},12]
[null,null,null,null,null,null,null,null,null,null,null,null,null,null,null,null,null,null,null,null,null,null,null,null,null,null,null,null,null,null,null,null,null,null,null,null,null,null,null,null,null,null,null,null,null,null,null,null,null,null,null,null,null,null,null,null,null,null,null,null,null,null,null,null,null,null,null,null,null,null,null,"SALI",{"$f":"Veriler!AG91","v":""},{"$f":"Veriler!AH91","v":""},{"$f":"Veriler!AI91","v":""},{"$f":"Veriler!AJ91","v":""}]
[null,null,null,null,null,null,null,null,null,null,null,null,null,null,null,null,null,null,null,null,null,null,null,null,null,null,null,null,null,null,null,null,null,null,null,null,null,null,null,null,null,null,null,null,null,null,null,null,null,null,null,null,null,null,null,null,null,null,null,null,null,null,null,null,null,null,null,null,null,null,null,"ÇARŞAMBA",{"$f":"Veriler!AG92","v":""},{"$f":"Veriler!AH92","v":""},{"$f":"Veriler!AI92","v":""},{"$f":"Veriler!AJ92","v":""}]
[null,null,null,null,null,null,null,null,null,null,null,null,null,null,null,null,null,null,null,null,null,null,null,null,null,null,null,null,null,null,null,null,null,null,null,null,null,null,null,null,null,null,null,null,null,null,null,null,null,null,null,null,null,null,null,null,null,null,null,null,null,null,null,null,null,null,null,null,null,null,null,"PERŞEMBE",{"$f":"Veriler!AG93","v":""},{"$f":"Veriler!AH93","v":""},{"$f":"Veriler!AI93","v":""},{"$f":"Veriler!AJ93","v":""}]
[null,null,null,null,null,null,null,null,null,null,null,null,null,null,null,null,null,null,null,null,null,null,null,null,null,null,null,null,null,null,null,null,null,null,null,null,null,null,null,null,null,null,null,null,null,null,null,null,null,null,null,null,null,null,null,null,null,null,null,null,null,null,null,null,null,null,null,null,null,null,null,"CUMA",{"$f":"Veriler!AG94","v":""},{"$f":"Veriler!AH94","v":""},{"$f":"Veriler!AI94","v":""},{"$f":"Veriler!AJ94","v":""}]
[null,null,null,null,null,null,null,null,null,null,null,null,null,null,null,null,null,null,null,null,null,null,null,null,null,null,null,null,null,null,null,null,null,null,null,null,null,null,null,null,null,null,null,null,null,null,null,null,null,null,null,null,null,null,null,null,null,null,null,null,null,null,null,null,null,null,null,null,null,null,null,"CUMARTESİ",{"$f":"Veriler!AG95","v":""},{"$f":"Veriler!AH95","v":""},{"$f":"Veriler!AI95","v":""},{"$f":"Veriler!AJ95","v":""}]
[null,null,null,null,null,null,null,null,null,null,null,null,null,null,null,null,null,null,null,null,null,null,null,null,null,null,null,null,null,null,null,null,null,null,null,null,null,null,null,null,null,null,null,null,null,null,null,null,null,null,null,null,null,null,null,null,null,null,null,null,null,null,null,null,null,null,null,null,null,null,null,"PAZAR",{"$f":"Veriler!AG96","v":""},{"$f":"Veriler!AH96","v":""},{"$f":"Veriler!AI96","v":""},{"$f":"Veriler!AJ96","v":""}]
[null,null,null,null,null,null,null,null,null,null,null,null,null,null,null,null,null,null,null,null,null,null,null,null,null,null,null,null,null,null,null,null,null,null,null,null,null,null,null,null,null,null,null,null,null,null,null,null,null,null,null,null,null,null,null,null,null,null,null,null,null,null,null,null,null,null,null,null,null,null,null,"PAZARTESİ",{"$f":"Veriler!AG97","v":""},{"$f":"Veriler!AH97","v":""},{"$f":"Veriler!AI97","v":""},{"$f":"Veriler!AJ97","v":""},13]
[null,null,null,null,null,null,null,null,null,null,null,null,null,null,null,null,null,null,null,null,null,null,null,null,null,null,null,null,null,null,null,null,null,null,null,null,null,null,null,null,null,null,null,null,null,null,null,null,null,null,null,null,null,null,null,null,null,null,null,null,null,null,null,null,null,null,null,null,null,null,null,"SALI",{"$f":"Veriler!AG98","v":""},{"$f":"Veriler!AH98","v":""},{"$f":"Veriler!AI98","v":""},{"$f":"Veriler!AJ98","v":""}]
[null,null,null,null,null,null,null,null,null,null,null,null,null,null,null,null,null,null,null,null,null,null,null,null,null,null,null,null,null,null,null,null,null,null,null,null,null,null,null,null,null,null,null,null,null,null,null,null,null,null,null,null,null,null,null,null,null,null,null,null,null,null,null,null,null,null,null,null,null,null,null,"ÇARŞAMBA",{"$f":"Veriler!AG99","v":""},{"$f":"Veriler!AH99","v":""},{"$f":"Veriler!AI99","v":""},{"$f":"Veriler!AJ99","v":""}]
[null,null,null,null,null,null,null,null,null,null,null,null,null,null,null,null,null,null,null,null,null,null,null,null,null,null,null,null,null,null,null,null,null,null,null,null,null,null,null,null,null,null,null,null,null,null,null,null,null,null,null,null,null,null,null,null,null,null,null,null,null,null,null,null,null,null,null,null,null,null,null,"PERŞEMBE",{"$f":"Veriler!AG100","v":""},{"$f":"Veriler!AH100","v":""},{"$f":"Veriler!AI100","v":""},{"$f":"Veriler!AJ100","v":""}]
[null,null,null,null,null,null,null,null,null,null,null,null,null,null,null,null,null,null,null,null,null,null,null,null,null,null,null,null,null,null,null,null,null,null,null,null,null,null,null,null,null,null,null,null,null,null,null,null,null,null,null,null,null,null,null,null,null,null,null,null,null,null,null,null,null,null,null,null,null,null,null,"CUMA",{"$f":"Veriler!AG101","v":""},{"$f":"Veriler!AH101","v":""},{"$f":"Veriler!AI101","v":""},{"$f":"Veriler!AJ101","v":""}]
[null,null,null,null,null,null,null,null,null,null,null,null,null,null,null,null,null,null,null,null,null,null,null,null,null,null,null,null,null,null,null,null,null,null,null,null,null,null,null,null,null,null,null,null,null,null,null,null,null,null,null,null,null,null,null,null,null,null,null,null,null,null,null,null,null,null,null,null,null,null,null,"CUMARTESİ",{"$f":"Veriler!AG102","v":""},{"$f":"Veriler!AH102","v":""},{"$f":"Veriler!AI102","v":""},{"$f":"Veriler!AJ102","v":""}]
[null,null,null,null,null,null,null,null,null,null,null,null,null,null,null,null,null,null,null,null,null,null,null,null,null,null,null,null,null,null,null,null,null,null,null,null,null,null,null,null,null,null,null,null,null,null,null,null,null,null,null,null,null,null,null,null,null,null,null,null,null,null,null,null,null,null,null,null,null,null,null,"PAZAR",{"$f":"Veriler!AG103","v":""},{"$f":"Veriler!AH103","v":""},{"$f":"Veriler!AI103","v":""},{"$f":"Veriler!AJ103","v":""}]
[null,null,null,null,null,null,null,null,null,null,null,null,null,null,null,null,null,null,null,null,null,null,null,null,null,null,null,null,null,null,null,null,null,null,null,null,null,null,null,null,null,null,null,null,null,null,null,null,null,null,null,null,null,null,null,null,null,null,null,null,null,null,null,null,null,null,null,null,null,null,null,"PAZARTESİ",{"$f":"Veriler!AG104","v":""},{"$f":"Veriler!AH104","v":""},{"$f":"Veriler!AI104","v":""},{"$f":"Veriler!AJ104","v":""},14]
[null,null,null,null,null,null,null,null,null,null,null,null,null,null,null,null,null,null,null,null,null,null,null,null,null,null,null,null,null,null,null,null,null,null,null,null,null,null,null,null,null,null,null,null,null,null,null,null,null,null,null,null,null,null,null,null,null,null,null,null,null,null,null,null,null,null,null,null,null,null,null,"SALI",{"$f":"Veriler!AG105","v":""},{"$f":"Veriler!AH105","v":""},{"$f":"Veriler!AI105","v":""},{"$f":"Veriler!AJ105","v":""}]
[null,null,null,null,null,null,null,null,null,null,null,null,null,null,null,null,null,null,null,null,null,null,null,null,null,null,null,null,null,null,null,null,null,null,null,null,null,null,null,null,null,null,null,null,null,null,null,null,null,null,null,null,null,null,null,null,null,null,null,null,null,null,null,null,null,null,null,null,null,null,null,"ÇARŞAMBA",{"$f":"Veriler!AG106","v":""},{"$f":"Veriler!AH106","v":""},{"$f":"Veriler!AI106","v":""},{"$f":"Veriler!AJ106","v":""}]
[null,null,null,null,null,null,null,null,null,null,null,null,null,null,null,null,null,null,null,null,null,null,null,null,null,null,null,null,null,null,null,null,null,null,null,null,null,null,null,null,null,null,null,null,null,null,null,null,null,null,null,null,null,null,null,null,null,null,null,null,null,null,null,null,null,null,null,null,null,null,null,"PERŞEMBE",{"$f":"Veriler!AG107","v":""},{"$f":"Veriler!AH107","v":""},{"$f":"Veriler!AI107","v":""},{"$f":"Veriler!AJ107","v":""}]
[null,null,null,null,null,null,null,null,null,null,null,null,null,null,null,null,null,null,null,null,null,null,null,null,null,null,null,null,null,null,null,null,null,null,null,null,null,null,null,null,null,null,null,null,null,null,null,null,null,null,null,null,null,null,null,null,null,null,null,null,null,null,null,null,null,null,null,null,null,null,null,"CUMA",{"$f":"Veriler!AG108","v":""},{"$f":"Veriler!AH108","v":""},{"$f":"Veriler!AI108","v":""},{"$f":"Veriler!AJ108","v":""}]
[null,null,null,null,null,null,null,null,null,null,null,null,null,null,null,null,null,null,null,null,null,null,null,null,null,null,null,null,null,null,null,null,null,null,null,null,null,null,null,null,null,null,null,null,null,null,null,null,null,null,null,null,null,null,null,null,null,null,null,null,null,null,null,null,null,null,null,null,null,null,null,"CUMARTESİ",{"$f":"Veriler!AG109","v":""},{"$f":"Veriler!AH109","v":""},{"$f":"Veriler!AI109","v":""},{"$f":"Veriler!AJ109","v":""}]
[null,null,null,null,null,null,null,null,null,null,null,null,null,null,null,null,null,null,null,null,null,null,null,null,null,null,null,null,null,null,null,null,null,null,null,null,null,null,null,null,null,null,null,null,null,null,null,null,null,null,null,null,null,null,null,null,null,null,null,null,null,null,null,null,null,null,null,null,null,null,null,"PAZAR",{"$f":"Veriler!AG110","v":""},{"$f":"Veriler!AH110","v":""},{"$f":"Veriler!AI110","v":""},{"$f":"Veriler!AJ110","v":""}]
[null,null,null,null,null,null,null,null,null,null,null,null,null,null,null,null,null,null,null,null,null,null,null,null,null,null,null,null,null,null,null,null,null,null,null,null,null,null,null,null,null,null,null,null,null,null,null,null,null,null,null,null,null,null,null,null,null,null,null,null,null,null,null,null,null,null,null,null,null,null,null,"PAZARTESİ",{"$f":"Veriler!AG111","v":""},{"$f":"Veriler!AH111","v":""},{"$f":"Veriler!AI111","v":""},{"$f":"Veriler!AJ111","v":""},15]
["5. HAFTA",null,null,null,null,null,null,null,null,null,null,null,null,null,null,null,null,null,null,null,null,null,null,null,null,null,null,null,null,null,null,null,null,null,null,null,null,null,null,null,null,null,null,null,null,null,null,null,null,null,null,null,null,null,null,null,null,null,null,null,null,null,null,null,null,null,null,null,null,null,null,"SALI",{"$f":"Veriler!AG112","v":""},{"$f":"Veriler!AH112","v":""},{"$f":"Veriler!AI112","v":""},{"$f":"Veriler!AJ112","v":""}]
[null,null,null,null,null,null,null,null,null,null,null,null,null,null,null,null,null,null,null,null,null,null,null,null,null,null,null,null,null,null,null,null,null,null,null,null,null,null,null,null,null,null,null,null,null,null,null,null,null,null,null,null,null,null,null,null,null,null,null,null,null,null,null,null,null,null,null,null,null,null,null,"ÇARŞAMBA",{"$f":"Veriler!AG113","v":""},{"$f":"Veriler!AH113","v":""},{"$f":"Veriler!AI113","v":""},{"$f":"Veriler!AJ113","v":""}]
[null,null,null,null,null,null,null,null,null,null,null,null,null,null,null,null,null,null,null,null,null,null,null,null,null,null,null,null,null,null,null,null,null,null,null,null,null,null,null,null,null,null,null,null,null,null,null,null,null,null,null,null,null,null,null,null,null,null,null,null,null,null,null,null,null,null,null,null,null,null,null,"PERŞEMBE",{"$f":"Veriler!AG114","v":""},{"$f":"Veriler!AH114","v":""},{"$f":"Veriler!AI114","v":""},{"$f":"Veriler!AJ114","v":""}]
[null,null,null,null,null,null,null,null,null,null,null,null,null,null,null,null,null,null,null,null,null,null,null,null,null,null,null,null,null,null,null,null,null,null,null,null,null,null,null,null,null,null,null,null,null,null,null,null,null,null,null,null,null,null,null,null,null,null,null,null,null,null,null,null,null,null,null,null,null,null,null,"CUMA",{"$f":"Veriler!AG115","v":""},{"$f":"Veriler!AH115","v":""},{"$f":"Veriler!AI115","v":""},{"$f":"Veriler!AJ115","v":""}]
[null,null,null,null,null,null,null,null,null,null,null,null,null,null,null,null,null,null,null,null,null,null,null,null,null,null,null,null,null,null,null,null,null,null,null,null,null,null,null,null,null,null,null,null,null,null,null,null,null,null,null,null,null,null,null,null,null,null,null,null,null,null,null,null,null,null,null,null,null,null,null,"CUMARTESİ",{"$f":"Veriler!AG116","v":""},{"$f":"Veriler!AH116","v":""},{"$f":"Veriler!AI116","v":""},{"$f":"Veriler!AJ116","v":""}]
[null,null,null,null,null,null,null,null,null,null,null,null,null,null,null,null,null,null,null,null,null,null,null,null,null,null,null,null,null,null,null,null,null,null,null,null,null,null,null,null,null,null,null,null,null,null,null,null,null,null,null,null,null,null,null,null,null,null,null,null,null,null,null,null,null,null,null,null,null,null,null,"PAZAR",{"$f":"Veriler!AG117","v":""},{"$f":"Veriler!AH117","v":""},{"$f":"Veriler!AI117","v":""},{"$f":"Veriler!AJ117","v":""}]
[null,null,null,null,null,null,null,null,null,null,null,null,null,null,null,null,null,null,null,null,null,null,null,null,null,null,null,null,null,null,null,null,null,null,null,null,null,null,null,null,null,null,null,null,null,null,null,null,null,null,null,null,null,null,null,null,null,null,null,null,null,null,null,null,null,null,null,null,null,null,null,"PAZARTESİ",{"$f":"Veriler!AG118","v":""},{"$f":"Veriler!AH118","v":""},{"$f":"Veriler!AI118","v":""},{"$f":"Veriler!AJ118","v":""},16]
[null,null,null,null,null,null,null,null,null,null,null,null,null,null,null,null,null,null,null,null,null,null,null,null,null,null,null,null,null,null,null,null,null,null,null,null,null,null,null,null,null,null,null,null,null,null,null,null,null,null,null,null,null,null,null,null,null,null,null,null,null,null,null,null,null,null,null,null,null,null,null,"SALI",{"$f":"Veriler!AG119","v":""},{"$f":"Veriler!AH119","v":""},{"$f":"Veriler!AI119","v":""},{"$f":"Veriler!AJ119","v":""}]
[null,null,null,null,null,null,null,null,null,null,null,null,null,null,null,null,null,null,null,null,null,null,null,null,null,null,null,null,null,null,null,null,null,null,null,null,null,null,null,null,null,null,null,null,null,null,null,null,null,null,null,null,null,null,null,null,null,null,null,null,null,null,null,null,null,null,null,null,null,null,null,"ÇARŞAMBA",{"$f":"Veriler!AG120","v":""},{"$f":"Veriler!AH120","v":""},{"$f":"Veriler!AI120","v":""},{"$f":"Veriler!AJ120","v":""}]
[null,null,null,null,null,null,null,null,null,null,null,null,null,null,null,null,null,null,null,null,null,null,null,null,null,null,null,null,null,null,null,null,null,null,null,null,null,null,null,null,null,null,null,null,null,null,null,null,null,null,null,null,null,null,null,null,null,null,null,null,null,null,null,null,null,null,null,null,null,null,null,"PERŞEMBE",{"$f":"Veriler!AG121","v":""},{"$f":"Veriler!AH121","v":""},{"$f":"Veriler!AI121","v":""},{"$f":"Veriler!AJ121","v":""}]
[null,null,null,null,null,null,null,null,null,null,null,null,null,null,null,null,null,null,null,null,null,null,null,null,null,null,null,null,null,null,null,null,null,null,null,null,null,null,null,null,null,null,null,null,null,null,null,null,null,null,null,null,null,null,null,null,null,null,null,null,null,null,null,null,null,null,null,null,null,null,null,"CUMA",{"$f":"Veriler!AG122","v":""},{"$f":"Veriler!AH122","v":""},{"$f":"Veriler!AI122","v":""},{"$f":"Veriler!AJ122","v":""}]
[null,null,null,null,null,null,null,null,null,null,null,null,null,null,null,null,null,null,null,null,null,null,null,null,null,null,null,null,null,null,null,null,null,null,null,null,null,null,null,null,null,null,null,null,null,null,null,null,null,null,null,null,null,null,null,null,null,null,null,null,null,null,null,null,null,null,null,null,null,null,null,"CUMARTESİ",{"$f":"Veriler!AG123","v":""},{"$f":"Veriler!AH123","v":""},{"$f":"Veriler!AI123","v":""},{"$f":"Veriler!AJ123","v":""}]
[null,null,null,null,null,null,null,null,null,null,null,null,null,null,null,null,null,null,null,null,null,null,null,null,null,null,null,null,null,null,null,null,null,null,null,null,null,null,null,null,null,null,null,null,null,null,null,null,null,null,null,null,null,null,null,null,null,null,null,null,null,null,null,null,null,null,null,null,null,null,null,"PAZAR",{"$f":"Veriler!AG124","v":""},{"$f":"Veriler!AH124","v":""},{"$f":"Veriler!AI124","v":""},{"$f":"Veriler!AJ124","v":""}]
[null,null,null,null,null,null,null,null,null,null,null,null,null,null,null,null,null,null,null,null,null,null,null,null,null,null,null,null,null,null,null,null,null,null,null,null,null,null,null,null,null,null,null,null,null,null,null,null,null,null,null,null,null,null,null,null,null,null,null,null,null,null,null,null,null,null,null,null,null,null,null,"PAZARTESİ",{"$f":"Veriler!AG125","v":""},{"$f":"Veriler!AH125","v":""},{"$f":"Veriler!AI125","v":""},{"$f":"Veriler!AJ125","v":""},17]
[null,null,null,null,null,null,null,null,null,null,null,null,null,null,null,null,null,null,null,null,null,null,null,null,null,null,null,null,null,null,null,null,null,null,null,null,null,null,null,null,null,null,null,null,null,null,null,null,null,null,null,null,null,null,null,null,null,null,null,null,null,null,null,null,null,null,null,null,null,null,null,"SALI",{"$f":"Veriler!AG126","v":""},{"$f":"Veriler!AH126","v":""},{"$f":"Veriler!AI126","v":""},{"$f":"Veriler!AJ126","v":""}]
[null,null,null,null,null,null,null,null,null,null,null,null,null,null,null,null,null,null,null,null,null,null,null,null,null,null,null,null,null,null,null,null,null,null,null,null,null,null,null,null,null,null,null,null,null,null,null,null,null,null,null,null,null,null,null,null,null,null,null,null,null,null,null,null,null,null,null,null,null,null,null,"ÇARŞAMBA",{"$f":"Veriler!AG127","v":""},{"$f":"Veriler!AH127","v":""},{"$f":"Veriler!AI127","v":""},{"$f":"Veriler!AJ127","v":""}]
[null,null,null,null,null,null,null,null,null,null,null,null,null,null,null,null,null,null,null,null,null,null,null,null,null,null,null,null,null,null,null,null,null,null,null,null,null,null,null,null,null,null,null,null,null,null,null,null,null,null,null,null,null,null,null,null,null,null,null,null,null,null,null,null,null,null,null,null,null,null,null,"PERŞEMBE",{"$f":"Veriler!AG128","v":""},{"$f":"Veriler!AH128","v":""},{"$f":"Veriler!AI128","v":""},{"$f":"Veriler!AJ128","v":""}]
[null,null,null,null,null,null,null,null,null,null,null,null,null,null,null,null,null,null,null,null,null,null,null,null,null,null,null,null,null,null,null,null,null,null,null,null,null,null,null,null,null,null,null,null,null,null,null,null,null,null,null,null,null,null,null,null,null,null,null,null,null,null,null,null,null,null,null,null,null,null,null,"CUMA",{"$f":"Veriler!AG129","v":""},{"$f":"Veriler!AH129","v":""},{"$f":"Veriler!AI129","v":""},{"$f":"Veriler!AJ129","v":""}]
[null,null,null,null,null,null,null,null,null,null,null,null,null,null,null,null,null,null,null,null,null,null,null,null,null,null,null,null,null,null,null,null,null,null,null,null,null,null,null,null,null,null,null,null,null,null,null,null,null,null,null,null,null,null,null,null,null,null,null,null,null,null,null,null,null,null,null,null,null,null,null,"CUMARTESİ",{"$f":"Veriler!AG130","v":""},{"$f":"Veriler!AH130","v":""},{"$f":"Veriler!AI130","v":""},{"$f":"Veriler!AJ130","v":""}]
[null,null,null,null,null,null,null,null,null,null,null,null,null,null,null,null,null,null,null,null,null,null,null,null,null,null,null,null,null,null,null,null,null,null,null,null,null,null,null,null,null,null,null,null,null,null,null,null,null,null,null,null,null,null,null,null,null,null,null,null,null,null,null,null,null,null,null,null,null,null,null,"PAZAR",{"$f":"Veriler!AG131","v":""},{"$f":"Veriler!AH131","v":""},{"$f":"Veriler!AI131","v":""},{"$f":"Veriler!AJ131","v":""}]
[null,null,null,null,null,null,null,null,null,null,null,null,null,null,null,null,null,null,null,null,null,null,null,null,null,null,null,null,null,null,null,null,null,null,null,null,null,null,null,null,null,null,null,null,null,null,null,null,null,null,null,null,null,null,null,null,null,null,null,null,null,null,null,null,null,null,null,null,null,null,null,"PAZARTESİ",{"$f":"Veriler!AG132","v":""},{"$f":"Veriler!AH132","v":""},{"$f":"Veriler!AI132","v":""},{"$f":"Veriler!AJ132","v":""},18]
[null,null,null,null,null,null,null,null,null,null,null,null,null,null,null,null,null,null,null,null,null,null,null,null,null,null,null,null,null,null,null,null,null,null,null,null,null,null,null,null,null,null,null,null,null,null,null,null,null,null,null,null,null,null,null,null,null,null,null,null,null,null,null,null,null,null,null,null,null,null,null,"SALI",{"$f":"Veriler!AG133","v":""},{"$f":"Veriler!AH133","v":""},{"$f":"Veriler!AI133","v":""},{"$f":"Veriler!AJ133","v":""}]
[null,null,null,null,null,null,null,null,null,null,null,null,null,null,null,null,null,null,null,null,null,null,null,null,null,null,null,null,null,null,null,null,null,null,null,null,null,null,null,null,null,null,null,null,null,null,null,null,null,null,null,null,null,null,null,null,null,null,null,null,null,null,null,null,null,null,null,null,null,null,null,"ÇARŞAMBA",{"$f":"Veriler!AG134","v":""},{"$f":"Veriler!AH134","v":""},{"$f":"Veriler!AI134","v":""},{"$f":"Veriler!AJ134","v":""}]
[null,null,null,null,null,null,null,null,null,null,null,null,null,null,null,null,null,null,null,null,null,null,null,null,null,null,null,null,null,null,null,null,null,null,null,null,null,null,null,null,null,null,null,null,null,null,null,null,null,null,null,null,null,null,null,null,null,null,null,null,null,null,null,null,null,null,null,null,null,null,null,"PERŞEMBE",{"$f":"Veriler!AG135","v":""},{"$f":"Veriler!AH135","v":""},{"$f":"Veriler!AI135","v":""},{"$f":"Veriler!AJ135","v":""}]
[null,null,null,null,null,null,null,null,null,null,null,null,null,null,null,null,null,null,null,null,null,null,null,null,null,null,null,null,null,null,null,null,null,null,null,null,null,null,null,null,null,null,null,null,null,null,null,null,null,null,null,null,null,null,null,null,null,null,null,null,null,null,null,null,null,null,null,null,null,null,null,"CUMA",{"$f":"Veriler!AG136","v":""},{"$f":"Veriler!AH136","v":""},{"$f":"Veriler!AI136","v":""},{"$f":"Veriler!AJ136","v":""}]
["6. HAFTA",null,null,null,null,null,null,null,null,null,null,null,null,null,null,null,null,null,null,null,null,null,null,null,null,null,null,null,null,null,null,null,null,null,null,null,null,null,null,null,null,null,null,null,null,null,null,null,null,null,null,null,null,null,null,null,null,null,null,null,null,null,null,null,null,null,null,null,null,null,null,"CUMARTESİ",{"$f":"Veriler!AG137","v":""},{"$f":"Veriler!AH137","v":""},{"$f":"Veriler!AI137","v":""},{"$f":"Veriler!AJ137","v":""}]
[null,null,null,null,null,null,null,null,null,null,null,null,null,null,null,null,null,null,null,null,null,null,null,null,null,null,null,null,null,null,null,null,null,null,null,null,null,null,null,null,null,null,null,null,null,null,null,null,null,null,null,null,null,null,null,null,null,null,null,null,null,null,null,null,null,null,null,null,null,null,null,"PAZAR",{"$f":"Veriler!AG138","v":""},{"$f":"Veriler!AH138","v":""},{"$f":"Veriler!AI138","v":""},{"$f":"Veriler!AJ138","v":""}]
[null,null,null,null,null,null,null,null,null,null,null,null,null,null,null,null,null,null,null,null,null,null,null,null,null,null,null,null,null,null,null,null,null,null,null,null,null,null,null,null,null,null,null,null,null,null,null,null,null,null,null,null,null,null,null,null,null,null,null,null,null,null,null,null,null,null,null,null,null,null,null,"PAZARTESİ",{"$f":"Veriler!AG139","v":""},{"$f":"Veriler!AH139","v":""},{"$f":"Veriler!AI139","v":""},{"$f":"Veriler!AJ139","v":""},19]
[null,null,null,null,null,null,null,null,null,null,null,null,null,null,null,null,null,null,null,null,null,null,null,null,null,null,null,null,null,null,null,null,null,null,null,null,null,null,null,null,null,null,null,null,null,null,null,null,null,null,null,null,null,null,null,null,null,null,null,null,null,null,null,null,null,null,null,null,null,null,null,"SALI",{"$f":"Veriler!AG140","v":""},{"$f":"Veriler!AH140","v":""},{"$f":"Veriler!AI140","v":""},{"$f":"Veriler!AJ140","v":""}]
[null,null,null,null,null,null,null,null,null,null,null,null,null,null,null,null,null,null,null,null,null,null,null,null,null,null,null,null,null,null,null,null,null,null,null,null,null,null,null,null,null,null,null,null,null,null,null,null,null,null,null,null,null,null,null,null,null,null,null,null,null,null,null,null,null,null,null,null,null,null,null,"ÇARŞAMBA",{"$f":"Veriler!AG141","v":""},{"$f":"Veriler!AH141","v":""},{"$f":"Veriler!AI141","v":""},{"$f":"Veriler!AJ141","v":""}]
[null,null,null,null,null,null,null,null,null,null,null,null,null,null,null,null,null,null,null,null,null,null,null,null,null,null,null,null,null,null,null,null,null,null,null,null,null,null,null,null,null,null,null,null,null,null,null,null,null,null,null,null,null,null,null,null,null,null,null,null,null,null,null,null,null,null,null,null,null,null,null,"PERŞEMBE",{"$f":"Veriler!AG142","v":""},{"$f":"Veriler!AH142","v":""},{"$f":"Veriler!AI142","v":""},{"$f":"Veriler!AJ142","v":""}]
[null,null,null,null,null,null,null,null,null,null,null,null,null,null,null,null,null,null,null,null,null,null,null,null,null,null,null,null,null,null,null,null,null,null,null,null,null,null,null,null,null,null,null,null,null,null,null,null,null,null,null,null,null,null,null,null,null,null,null,null,null,null,null,null,null,null,null,null,null,null,null,"CUMA",{"$f":"Veriler!AG143","v":""},{"$f":"Veriler!AH143","v":""},{"$f":"Veriler!AI143","v":""},{"$f":"Veriler!AJ143","v":""}]
[null,null,null,null,null,null,null,null,null,null,null,null,null,null,null,null,null,null,null,null,null,null,null,null,null,null,null,null,null,null,null,null,null,null,null,null,null,null,null,null,null,null,null,null,null,null,null,null,null,null,null,null,null,null,null,null,null,null,null,null,null,null,null,null,null,null,null,null,null,null,null,"CUMARTESİ",{"$f":"Veriler!AG144","v":""},{"$f":"Veriler!AH144","v":""},{"$f":"Veriler!AI144","v":""},{"$f":"Veriler!AJ144","v":""}]
[null,null,null,null,null,null,null,null,null,null,null,null,null,null,null,null,null,null,null,null,null,null,null,null,null,null,null,null,null,null,null,null,null,null,null,null,null,null,null,null,null,null,null,null,null,null,null,null,null,null,null,null,null,null,null,null,null,null,null,null,null,null,null,null,null,null,null,null,null,null,null,"PAZAR",{"$f":"Veriler!AG145","v":""},{"$f":"Veriler!AH145","v":""},{"$f":"Veriler!AI145","v":""},{"$f":"Veriler!AJ145","v":""}]
[null,null,null,null,null,null,null,null,null,null,null,null,null,null,null,null,null,null,null,null,null,null,null,null,null,null,null,null,null,null,null,null,null,null,null,null,null,null,null,null,null,null,null,null,null,null,null,null,null,null,null,null,null,null,null,null,null,null,null,null,null,null,null,null,null,null,null,null,null,null,null,"PAZARTESİ",{"$f":"Veriler!AG146","v":""},{"$f":"Veriler!AH146","v":""},{"$f":"Veriler!AI146","v":""},{"$f":"Veriler!AJ146","v":""},20]
[null,null,null,null,null,null,null,null,null,null,null,null,null,null,null,null,null,null,null,null,null,null,null,null,null,null,null,null,null,null,null,null,null,null,null,null,null,null,null,null,null,null,null,null,null,null,null,null,null,null,null,null,null,null,null,null,null,null,null,null,null,null,null,null,null,null,null,null,null,null,null,"SALI",{"$f":"Veriler!AG147","v":""},{"$f":"Veriler!AH147","v":""},{"$f":"Veriler!AI147","v":""},{"$f":"Veriler!AJ147","v":""}]
[null,null,null,null,null,null,null,null,null,null,null,null,null,null,null,null,null,null,null,null,null,null,null,null,null,null,null,null,null,null,null,null,null,null,null,null,null,null,null,null,null,null,null,null,null,null,null,null,null,null,null,null,null,null,null,null,null,null,null,null,null,null,null,null,null,null,null,null,null,null,null,"ÇARŞAMBA",{"$f":"Veriler!AG148","v":""},{"$f":"Veriler!AH148","v":""},{"$f":"Veriler!AI148","v":""},{"$f":"Veriler!AJ148","v":""}]
[null,null,null,null,null,null,null,null,null,null,null,null,null,null,null,null,null,null,null,null,null,null,null,null,null,null,null,null,null,null,null,null,null,null,null,null,null,null,null,null,null,null,null,null,null,null,null,null,null,null,null,null,null,null,null,null,null,null,null,null,null,null,null,null,null,null,null,null,null,null,null,"PERŞEMBE",{"$f":"Veriler!AG149","v":""},{"$f":"Veriler!AH149","v":""},{"$f":"Veriler!AI149","v":""},{"$f":"Veriler!AJ149","v":""}]
[null,null,null,null,null,null,null,null,null,null,null,null,null,null,null,null,null,null,null,null,null,null,null,null,null,null,null,null,null,null,null,null,null,null,null,null,null,null,null,null,null,null,null,null,null,null,null,null,null,null,null,null,null,null,null,null,null,null,null,null,null,null,null,null,null,null,null,null,null,null,null,"CUMA",{"$f":"Veriler!AG150","v":""},{"$f":"Veriler!AH150","v":""},{"$f":"Veriler!AI150","v":""},{"$f":"Veriler!AJ150","v":""}]
[null,null,null,null,null,null,null,null,null,null,null,null,null,null,null,null,null,null,null,null,null,null,null,null,null,null,null,null,null,null,null,null,null,null,null,null,null,null,null,null,null,null,null,null,null,null,null,null,null,null,null,null,null,null,null,null,null,null,null,null,null,null,null,null,null,null,null,null,null,null,null,"CUMARTESİ",{"$f":"Veriler!AG151","v":""},{"$f":"Veriler!AH151","v":""},{"$f":"Veriler!AI151","v":""},{"$f":"Veriler!AJ151","v":""}]
[null,null,null,null,null,null,null,null,null,null,null,null,null,null,null,null,null,null,null,null,null,null,null,null,null,null,null,null,null,null,null,null,null,null,null,null,null,null,null,null,null,null,null,null,null,null,null,null,null,null,null,null,null,null,null,null,null,null,null,null,null,null,null,null,null,null,null,null,null,null,null,"PAZAR",{"$f":"Veriler!AG152","v":""},{"$f":"Veriler!AH152","v":""},{"$f":"Veriler!AI152","v":""},{"$f":"Veriler!AJ152","v":""}]
[null,null,null,null,null,null,null,null,null,null,null,null,null,null,null,null,null,null,null,null,null,null,null,null,null,null,null,null,null,null,null,null,null,null,null,null,null,null,null,null,null,null,null,null,null,null,null,null,null,null,null,null,null,null,null,null,null,null,null,null,null,null,null,null,null,null,null,null,null,null,null,"PAZARTESİ",{"$f":"Veriler!AG153","v":""},{"$f":"Veriler!AH153","v":""},{"$f":"Veriler!AI153","v":""},{"$f":"Veriler!AJ153","v":""},21]
[null,null,null,null,null,null,null,null,null,null,null,null,null,null,null,null,null,null,null,null,null,null,null,null,null,null,null,null,null,null,null,null,null,null,null,null,null,null,null,null,null,null,null,null,null,null,null,null,null,null,null,null,null,null,null,null,null,null,null,null,null,null,null,null,null,null,null,null,null,null,null,"SALI",{"$f":"Veriler!AG154","v":""},{"$f":"Veriler!AH154","v":""},{"$f":"Veriler!AI154","v":""},{"$f":"Veriler!AJ154","v":""}]
[null,null,null,null,null,null,null,null,null,null,null,null,null,null,null,null,null,null,null,null,null,null,null,null,null,null,null,null,null,null,null,null,null,null,null,null,null,null,null,null,null,null,null,null,null,null,null,null,null,null,null,null,null,null,null,null,null,null,null,null,null,null,null,null,null,null,null,null,null,null,null,"ÇARŞAMBA",{"$f":"Veriler!AG155","v":""},{"$f":"Veriler!AH155","v":""},{"$f":"Veriler!AI155","v":""},{"$f":"Veriler!AJ155","v":""}]
[null,null,null,null,null,null,null,null,null,null,null,null,null,null,null,null,null,null,null,null,null,null,null,null,null,null,null,null,null,null,null,null,null,null,null,null,null,null,null,null,null,null,null,null,null,null,null,null,null,null,null,null,null,null,null,null,null,null,null,null,null,null,null,null,null,null,null,null,null,null,null,"PERŞEMBE",{"$f":"Veriler!AG156","v":""},{"$f":"Veriler!AH156","v":""},{"$f":"Veriler!AI156","v":""},{"$f":"Veriler!AJ156","v":""}]
[null,null,null,null,null,null,null,null,null,null,null,null,null,null,null,null,null,null,null,null,null,null,null,null,null,null,null,null,null,null,null,null,null,null,null,null,null,null,null,null,null,null,null,null,null,null,null,null,null,null,null,null,null,null,null,null,null,null,null,null,null,null,null,null,null,null,null,null,null,null,null,"CUMA",{"$f":"Veriler!AG157","v":""},{"$f":"Veriler!AH157","v":""},{"$f":"Veriler!AI157","v":""},{"$f":"Veriler!AJ157","v":""}]
[null,null,null,null,null,null,null,null,null,null,null,null,null,null,null,null,null,null,null,null,null,null,null,null,null,null,null,null,null,null,null,null,null,null,null,null,null,null,null,null,null,null,null,null,null,null,null,null,null,null,null,null,null,null,null,null,null,null,null,null,null,null,null,null,null,null,null,null,null,null,null,"CUMARTESİ",{"$f":"Veriler!AG158","v":""},{"$f":"Veriler!AH158","v":""},{"$f":"Veriler!AI158","v":""},{"$f":"Veriler!AJ158","v":""}]
[null,null,null,null,null,null,null,null,null,null,null,null,null,null,null,null,null,null,null,null,null,null,null,null,null,null,null,null,null,null,null,null,null,null,null,null,null,null,null,null,null,null,null,null,null,null,null,null,null,null,null,null,null,null,null,null,null,null,null,null,null,null,null,null,null,null,null,null,null,null,null,"PAZAR",{"$f":"Veriler!AG159","v":""},{"$f":"Veriler!AH159","v":""},{"$f":"Veriler!AI159","v":""},{"$f":"Veriler!AJ159","v":""}]
[null,null,null,null,null,null,null,null,null,null,null,null,null,null,null,null,null,null,null,null,null,null,null,null,null,null,null,null,null,null,null,null,null,null,null,null,null,null,null,null,null,null,null,null,null,null,null,null,null,null,null,null,null,null,null,null,null,null,null,null,null,null,null,null,null,null,null,null,null,null,null,"PAZARTESİ",{"$f":"Veriler!AG160","v":""},{"$f":"Veriler!AH160","v":""},{"$f":"Veriler!AI160","v":""},{"$f":"Veriler!AJ160","v":""},22]
[null,null,null,null,null,null,null,null,null,null,null,null,null,null,null,null,null,null,null,null,null,null,null,null,null,null,null,null,null,null,null,null,null,null,null,null,null,null,null,null,null,null,null,null,null,null,null,null,null,null,null,null,null,null,null,null,null,null,null,null,null,null,null,null,null,null,null,null,null,null,null,"SALI",{"$f":"Veriler!AG161","v":""},{"$f":"Veriler!AH161","v":""},{"$f":"Veriler!AI161","v":""},{"$f":"Veriler!AJ161","v":""}]
["7. HAFTA",null,null,null,null,null,null,null,null,null,null,null,null,null,null,null,null,null,null,null,null,null,null,null,null,null,null,null,null,null,null,null,null,null,null,null,null,null,null,null,null,null,null,null,null,null,null,null,null,null,null,null,null,null,null,null,null,null,null,null,null,null,null,null,null,null,null,null,null,null,null,"ÇARŞAMBA",{"$f":"Veriler!AG162","v":""},{"$f":"Veriler!AH162","v":""},{"$f":"Veriler!AI162","v":""},{"$f":"Veriler!AJ162","v":""}]
[null,null,null,null,null,null,null,null,null,null,null,null,null,null,null,null,null,null,null,null,null,null,null,null,null,null,null,null,null,null,null,null,null,null,null,null,null,null,null,null,null,null,null,null,null,null,null,null,null,null,null,null,null,null,null,null,null,null,null,null,null,null,null,null,null,null,null,null,null,null,null,"PERŞEMBE",{"$f":"Veriler!AG163","v":""},{"$f":"Veriler!AH163","v":""},{"$f":"Veriler!AI163","v":""},{"$f":"Veriler!AJ163","v":""}]
[null,null,null,null,null,null,null,null,null,null,null,null,null,null,null,null,null,null,null,null,null,null,null,null,null,null,null,null,null,null,null,null,null,null,null,null,null,null,null,null,null,null,null,null,null,null,null,null,null,null,null,null,null,null,null,null,null,null,null,null,null,null,null,null,null,null,null,null,null,null,null,"CUMA",{"$f":"Veriler!AG164","v":""},{"$f":"Veriler!AH164","v":""},{"$f":"Veriler!AI164","v":""},{"$f":"Veriler!AJ164","v":""}]
[null,null,null,null,null,null,null,null,null,null,null,null,null,null,null,null,null,null,null,null,null,null,null,null,null,null,null,null,null,null,null,null,null,null,null,null,null,null,null,null,null,null,null,null,null,null,null,null,null,null,null,null,null,null,null,null,null,null,null,null,null,null,null,null,null,null,null,null,null,null,null,"CUMARTESİ",{"$f":"Veriler!AG165","v":""},{"$f":"Veriler!AH165","v":""},{"$f":"Veriler!AI165","v":""},{"$f":"Veriler!AJ165","v":""}]
[null,null,null,null,null,null,null,null,null,null,null,null,null,null,null,null,null,null,null,null,null,null,null,null,null,null,null,null,null,null,null,null,null,null,null,null,null,null,null,null,null,null,null,null,null,null,null,null,null,null,null,null,null,null,null,null,null,null,null,null,null,null,null,null,null,null,null,null,null,null,null,"PAZAR",{"$f":"Veriler!AG166","v":""},{"$f":"Veriler!AH166","v":""},{"$f":"Veriler!AI166","v":""},{"$f":"Veriler!AJ166","v":""}]
[null,null,null,null,null,null,null,null,null,null,null,null,null,null,null,null,null,null,null,null,null,null,null,null,null,null,null,null,null,null,null,null,null,null,null,null,null,null,null,null,null,null,null,null,null,null,null,null,null,null,null,null,null,null,null,null,null,null,null,null,null,null,null,null,null,null,null,null,null,null,null,"PAZARTESİ",{"$f":"Veriler!AG167","v":""},{"$f":"Veriler!AH167","v":""},{"$f":"Veriler!AI167","v":""},{"$f":"Veriler!AJ167","v":""},23]
[null,null,null,null,null,null,null,null,null,null,null,null,null,null,null,null,null,null,null,null,null,null,null,null,null,null,null,null,null,null,null,null,null,null,null,null,null,null,null,null,null,null,null,null,null,null,null,null,null,null,null,null,null,null,null,null,null,null,null,null,null,null,null,null,null,null,null,null,null,null,null,"SALI",{"$f":"Veriler!AG168","v":""},{"$f":"Veriler!AH168","v":""},{"$f":"Veriler!AI168","v":""},{"$f":"Veriler!AJ168","v":""}]
[null,null,null,null,null,null,null,null,null,null,null,null,null,null,null,null,null,null,null,null,null,null,null,null,null,null,null,null,null,null,null,null,null,null,null,null,null,null,null,null,null,null,null,null,null,null,null,null,null,null,null,null,null,null,null,null,null,null,null,null,null,null,null,null,null,null,null,null,null,null,null,"ÇARŞAMBA",{"$f":"Veriler!AG169","v":""},{"$f":"Veriler!AH169","v":""},{"$f":"Veriler!AI169","v":""},{"$f":"Veriler!AJ169","v":""}]
[null,null,null,null,null,null,null,null,null,null,null,null,null,null,null,null,null,null,null,null,null,null,null,null,null,null,null,null,null,null,null,null,null,null,null,null,null,null,null,null,null,null,null,null,null,null,null,null,null,null,null,null,null,null,null,null,null,null,null,null,null,null,null,null,null,null,null,null,null,null,null,"PERŞEMBE",{"$f":"Veriler!AG170","v":""},{"$f":"Veriler!AH170","v":""},{"$f":"Veriler!AI170","v":""},{"$f":"Veriler!AJ170","v":""}]
[null,null,null,null,null,null,null,null,null,null,null,null,null,null,null,null,null,null,null,null,null,null,null,null,null,null,null,null,null,null,null,null,null,null,null,null,null,null,null,null,null,null,null,null,null,null,null,null,null,null,null,null,null,null,null,null,null,null,null,null,null,null,null,null,null,null,null,null,null,null,null,"CUMA",{"$f":"Veriler!AG171","v":""},{"$f":"Veriler!AH171","v":""},{"$f":"Veriler!AI171","v":""},{"$f":"Veriler!AJ171","v":""}]
[null,null,null,null,null,null,null,null,null,null,null,null,null,null,null,null,null,null,null,null,null,null,null,null,null,null,null,null,null,null,null,null,null,null,null,null,null,null,null,null,null,null,null,null,null,null,null,null,null,null,null,null,null,null,null,null,null,null,null,null,null,null,null,null,null,null,null,null,null,null,null,"CUMARTESİ",{"$f":"Veriler!AG172","v":""},{"$f":"Veriler!AH172","v":""},{"$f":"Veriler!AI172","v":""},{"$f":"Veriler!AJ172","v":""}]
[null,null,null,null,null,null,null,null,null,null,null,null,null,null,null,null,null,null,null,null,null,null,null,null,null,null,null,null,null,null,null,null,null,null,null,null,null,null,null,null,null,null,null,null,null,null,null,null,null,null,null,null,null,null,null,null,null,null,null,null,null,null,null,null,null,null,null,null,null,null,null,"PAZAR",{"$f":"Veriler!AG173","v":""},{"$f":"Veriler!AH173","v":""},{"$f":"Veriler!AI173","v":""},{"$f":"Veriler!AJ173","v":""}]
[null,null,null,null,null,null,null,null,null,null,null,null,null,null,null,null,null,null,null,null,null,null,null,null,null,null,null,null,null,null,null,null,null,null,null,null,null,null,null,null,null,null,null,null,null,null,null,null,null,null,null,null,null,null,null,null,null,null,null,null,null,null,null,null,null,null,null,null,null,null,null,"PAZARTESİ",{"$f":"Veriler!AG174","v":""},{"$f":"Veriler!AH174","v":""},{"$f":"Veriler!AI174","v":""},{"$f":"Veriler!AJ174","v":""},24]
[null,null,null,null,null,null,null,null,null,null,null,null,null,null,null,null,null,null,null,null,null,null,null,null,null,null,null,null,null,null,null,null,null,null,null,null,null,null,null,null,null,null,null,null,null,null,null,null,null,null,null,null,null,null,null,null,null,null,null,null,null,null,null,null,null,null,null,null,null,null,null,"SALI",{"$f":"Veriler!AG175","v":""},{"$f":"Veriler!AH175","v":""},{"$f":"Veriler!AI175","v":""},{"$f":"Veriler!AJ175","v":""}]
[null,null,null,null,null,null,null,null,null,null,null,null,null,null,null,null,null,null,null,null,null,null,null,null,null,null,null,null,null,null,null,null,null,null,null,null,null,null,null,null,null,null,null,null,null,null,null,null,null,null,null,null,null,null,null,null,null,null,null,null,null,null,null,null,null,null,null,null,null,null,null,"ÇARŞAMBA",{"$f":"Veriler!AG176","v":""},{"$f":"Veriler!AH176","v":""},{"$f":"Veriler!AI176","v":""},{"$f":"Veriler!AJ176","v":""}]
[null,null,null,null,null,null,null,null,null,null,null,null,null,null,null,null,null,null,null,null,null,null,null,null,null,null,null,null,null,null,null,null,null,null,null,null,null,null,null,null,null,null,null,null,null,null,null,null,null,null,null,null,null,null,null,null,null,null,null,null,null,null,null,null,null,null,null,null,null,null,null,"PERŞEMBE",{"$f":"Veriler!AG177","v":""},{"$f":"Veriler!AH177","v":""},{"$f":"Veriler!AI177","v":""},{"$f":"Veriler!AJ177","v":""}]
[null,null,null,null,null,null,null,null,null,null,null,null,null,null,null,null,null,null,null,null,null,null,null,null,null,null,null,null,null,null,null,null,null,null,null,null,null,null,null,null,null,null,null,null,null,null,null,null,null,null,null,null,null,null,null,null,null,null,null,null,null,null,null,null,null,null,null,null,null,null,null,"CUMA",{"$f":"Veriler!AG178","v":""},{"$f":"Veriler!AH178","v":""},{"$f":"Veriler!AI178","v":""},{"$f":"Veriler!AJ178","v":""}]
[null,null,null,null,null,null,null,null,null,null,null,null,null,null,null,null,null,null,null,null,null,null,null,null,null,null,null,null,null,null,null,null,null,null,null,null,null,null,null,null,null,null,null,null,null,null,null,null,null,null,null,null,null,null,null,null,null,null,null,null,null,null,null,null,null,null,null,null,null,null,null,"CUMARTESİ",{"$f":"Veriler!AG179","v":""},{"$f":"Veriler!AH179","v":""},{"$f":"Veriler!AI179","v":""},{"$f":"Veriler!AJ179","v":""}]
[null,null,null,null,null,null,null,null,null,null,null,null,null,null,null,null,null,null,null,null,null,null,null,null,null,null,null,null,null,null,null,null,null,null,null,null,null,null,null,null,null,null,null,null,null,null,null,null,null,null,null,null,null,null,null,null,null,null,null,null,null,null,null,null,null,null,null,null,null,null,null,"PAZAR",{"$f":"Veriler!AG180","v":""},{"$f":"Veriler!AH180","v":""},{"$f":"Veriler!AI180","v":""},{"$f":"Veriler!AJ180","v":""}]
[null,null,null,null,null,null,null,null,null,null,null,null,null,null,null,null,null,null,null,null,null,null,null,null,null,null,null,null,null,null,null,null,null,null,null,null,null,null,null,null,null,null,null,null,null,null,null,null,null,null,null,null,null,null,null,null,null,null,null,null,null,null,null,null,null,null,null,null,null,null,null,"PAZARTESİ",{"$f":"Veriler!AG181","v":""},{"$f":"Veriler!AH181","v":""},{"$f":"Veriler!AI181","v":""},{"$f":"Veriler!AJ181","v":""},25]
[null,null,null,null,null,null,null,null,null,null,null,null,null,null,null,null,null,null,null,null,null,null,null,null,null,null,null,null,null,null,null,null,null,null,null,null,null,null,null,null,null,null,null,null,null,null,null,null,null,null,null,null,null,null,null,null,null,null,null,null,null,null,null,null,null,null,null,null,null,null,null,"SALI",{"$f":"Veriler!AG182","v":""},{"$f":"Veriler!AH182","v":""},{"$f":"Veriler!AI182","v":""},{"$f":"Veriler!AJ182","v":""}]
[null,null,null,null,null,null,null,null,null,null,null,null,null,null,null,null,null,null,null,null,null,null,null,null,null,null,null,null,null,null,null,null,null,null,null,null,null,null,null,null,null,null,null,null,null,null,null,null,null,null,null,null,null,null,null,null,null,null,null,null,null,null,null,null,null,null,null,null,null,null,null,"ÇARŞAMBA",{"$f":"Veriler!AG183","v":""},{"$f":"Veriler!AH183","v":""},{"$f":"Veriler!AI183","v":""},{"$f":"Veriler!AJ183","v":""}]
[null,null,null,null,null,null,null,null,null,null,null,null,null,null,null,null,null,null,null,null,null,null,null,null,null,null,null,null,null,null,null,null,null,null,null,null,null,null,null,null,null,null,null,null,null,null,null,null,null,null,null,null,null,null,null,null,null,null,null,null,null,null,null,null,null,null,null,null,null,null,null,"PERŞEMBE",{"$f":"Veriler!AG184","v":""},{"$f":"Veriler!AH184","v":""},{"$f":"Veriler!AI184","v":""},{"$f":"Veriler!AJ184","v":""}]
[null,null,null,null,null,null,null,null,null,null,null,null,null,null,null,null,null,null,null,null,null,null,null,null,null,null,null,null,null,null,null,null,null,null,null,null,null,null,null,null,null,null,null,null,null,null,null,null,null,null,null,null,null,null,null,null,null,null,null,null,null,null,null,null,null,null,null,null,null,null,null,"CUMA",{"$f":"Veriler!AG185","v":""},{"$f":"Veriler!AH185","v":""},{"$f":"Veriler!AI185","v":""},{"$f":"Veriler!AJ185","v":""}]
[null,null,null,null,null,null,null,null,null,null,null,null,null,null,null,null,null,null,null,null,null,null,null,null,null,null,null,null,null,null,null,null,null,null,null,null,null,null,null,null,null,null,null,null,null,null,null,null,null,null,null,null,null,null,null,null,null,null,null,null,null,null,null,null,null,null,null,null,null,null,null,"CUMARTESİ",{"$f":"Veriler!AG186","v":""},{"$f":"Veriler!AH186","v":""},{"$f":"Veriler!AI186","v":""},{"$f":"Veriler!AJ186","v":""}]
["8. HAFTA",null,null,null,null,null,null,null,null,null,null,null,null,null,null,null,null,null,null,null,null,null,null,null,null,null,null,null,null,null,null,null,null,null,null,null,null,null,null,null,null,null,null,null,null,null,null,null,null,null,null,null,null,null,null,null,null,null,null,null,null,null,null,null,null,null,null,null,null,null,null,"PAZAR",{"$f":"Veriler!AG187","v":""},{"$f":"Veriler!AH187","v":""},{"$f":"Veriler!AI187","v":""},{"$f":"Veriler!AJ187","v":""}]
[null,null,null,null,null,null,null,null,null,null,null,null,null,null,null,null,null,null,null,null,null,null,null,null,null,null,null,null,null,null,null,null,null,null,null,null,null,null,null,null,null,null,null,null,null,null,null,null,null,null,null,null,null,null,null,null,null,null,null,null,null,null,null,null,null,null,null,null,null,null,null,"PAZARTESİ",{"$f":"Veriler!AG188","v":""},{"$f":"Veriler!AH188","v":""},{"$f":"Veriler!AI188","v":""},{"$f":"Veriler!AJ188","v":""},26]
[null,null,null,null,null,null,null,null,null,null,null,null,null,null,null,null,null,null,null,null,null,null,null,null,null,null,null,null,null,null,null,null,null,null,null,null,null,null,null,null,null,null,null,null,null,null,null,null,null,null,null,null,null,null,null,null,null,null,null,null,null,null,null,null,null,null,null,null,null,null,null,"SALI",{"$f":"Veriler!AG189","v":""},{"$f":"Veriler!AH189","v":""},{"$f":"Veriler!AI189","v":""},{"$f":"Veriler!AJ189","v":""}]
[null,null,null,null,null,null,null,null,null,null,null,null,null,null,null,null,null,null,null,null,null,null,null,null,null,null,null,null,null,null,null,null,null,null,null,null,null,null,null,null,null,null,null,null,null,null,null,null,null,null,null,null,null,null,null,null,null,null,null,null,null,null,null,null,null,null,null,null,null,null,null,"ÇARŞAMBA",{"$f":"Veriler!AG190","v":""},{"$f":"Veriler!AH190","v":""},{"$f":"Veriler!AI190","v":""},{"$f":"Veriler!AJ190","v":""}]
[null,null,null,null,null,null,null,null,null,null,null,null,null,null,null,null,null,null,null,null,null,null,null,null,null,null,null,null,null,null,null,null,null,null,null,null,null,null,null,null,null,null,null,null,null,null,null,null,null,null,null,null,null,null,null,null,null,null,null,null,null,null,null,null,null,null,null,null,null,null,null,"PERŞEMBE",{"$f":"Veriler!AG191","v":""},{"$f":"Veriler!AH191","v":""},{"$f":"Veriler!AI191","v":""},{"$f":"Veriler!AJ191","v":""}]
[null,null,null,null,null,null,null,null,null,null,null,null,null,null,null,null,null,null,null,null,null,null,null,null,null,null,null,null,null,null,null,null,null,null,null,null,null,null,null,null,null,null,null,null,null,null,null,null,null,null,null,null,null,null,null,null,null,null,null,null,null,null,null,null,null,null,null,null,null,null,null,"CUMA",{"$f":"Veriler!AG192","v":""},{"$f":"Veriler!AH192","v":""},{"$f":"Veriler!AI192","v":""},{"$f":"Veriler!AJ192","v":""}]
[null,null,null,null,null,null,null,null,null,null,null,null,null,null,null,null,null,null,null,null,null,null,null,null,null,null,null,null,null,null,null,null,null,null,null,null,null,null,null,null,null,null,null,null,null,null,null,null,null,null,null,null,null,null,null,null,null,null,null,null,null,null,null,null,null,null,null,null,null,null,null,"CUMARTESİ",{"$f":"Veriler!AG193","v":""},{"$f":"Veriler!AH193","v":""},{"$f":"Veriler!AI193","v":""},{"$f":"Veriler!AJ193","v":""}]
[null,null,null,null,null,null,null,null,null,null,null,null,null,null,null,null,null,null,null,null,null,null,null,null,null,null,null,null,null,null,null,null,null,null,null,null,null,null,null,null,null,null,null,null,null,null,null,null,null,null,null,null,null,null,null,null,null,null,null,null,null,null,null,null,null,null,null,null,null,null,null,"PAZAR",{"$f":"Veriler!AG194","v":""},{"$f":"Veriler!AH194","v":""},{"$f":"Veriler!AI194","v":""},{"$f":"Veriler!AJ194","v":""}]
[null,null,null,null,null,null,null,null,null,null,null,null,null,null,null,null,null,null,null,null,null,null,null,null,null,null,null,null,null,null,null,null,null,null,null,null,null,null,null,null,null,null,null,null,null,null,null,null,null,null,null,null,null,null,null,null,null,null,null,null,null,null,null,null,null,null,null,null,null,null,null,"PAZARTESİ",{"$f":"Veriler!AG195","v":""},{"$f":"Veriler!AH195","v":""},{"$f":"Veriler!AI195","v":""},{"$f":"Veriler!AJ195","v":""},27]
[null,null,null,null,null,null,null,null,null,null,null,null,null,null,null,null,null,null,null,null,null,null,null,null,null,null,null,null,null,null,null,null,null,null,null,null,null,null,null,null,null,null,null,null,null,null,null,null,null,null,null,null,null,null,null,null,null,null,null,null,null,null,null,null,null,null,null,null,null,null,null,"SALI",{"$f":"Veriler!AG196","v":""},{"$f":"Veriler!AH196","v":""},{"$f":"Veriler!AI196","v":""},{"$f":"Veriler!AJ196","v":""}]
[null,null,null,null,null,null,null,null,null,null,null,null,null,null,null,null,null,null,null,null,null,null,null,null,null,null,null,null,null,null,null,null,null,null,null,null,null,null,null,null,null,null,null,null,null,null,null,null,null,null,null,null,null,null,null,null,null,null,null,null,null,null,null,null,null,null,null,null,null,null,null,"ÇARŞAMBA",{"$f":"Veriler!AG197","v":""},{"$f":"Veriler!AH197","v":""},{"$f":"Veriler!AI197","v":""},{"$f":"Veriler!AJ197","v":""}]
[null,null,null,null,null,null,null,null,null,null,null,null,null,null,null,null,null,null,null,null,null,null,null,null,null,null,null,null,null,null,null,null,null,null,null,null,null,null,null,null,null,null,null,null,null,null,null,null,null,null,null,null,null,null,null,null,null,null,null,null,null,null,null,null,null,null,null,null,null,null,null,"PERŞEMBE",{"$f":"Veriler!AG198","v":""},{"$f":"Veriler!AH198","v":""},{"$f":"Veriler!AI198","v":""},{"$f":"Veriler!AJ198","v":""}]
[null,null,null,null,null,null,null,null,null,null,null,null,null,null,null,null,null,null,null,null,null,null,null,null,null,null,null,null,null,null,null,null,null,null,null,null,null,null,null,null,null,null,null,null,null,null,null,null,null,null,null,null,null,null,null,null,null,null,null,null,null,null,null,null,null,null,null,null,null,null,null,"CUMA",{"$f":"Veriler!AG199","v":""},{"$f":"Veriler!AH199","v":""},{"$f":"Veriler!AI199","v":""},{"$f":"Veriler!AJ199","v":""}]
[null,null,null,null,null,null,null,null,null,null,null,null,null,null,null,null,null,null,null,null,null,null,null,null,null,null,null,null,null,null,null,null,null,null,null,null,null,null,null,null,null,null,null,null,null,null,null,null,null,null,null,null,null,null,null,null,null,null,null,null,null,null,null,null,null,null,null,null,null,null,null,"CUMARTESİ",{"$f":"Veriler!AG200","v":""},{"$f":"Veriler!AH200","v":""},{"$f":"Veriler!AI200","v":""},{"$f":"Veriler!AJ200","v":""}]
[null,null,null,null,null,null,null,null,null,null,null,null,null,null,null,null,null,null,null,null,null,null,null,null,null,null,null,null,null,null,null,null,null,null,null,null,null,null,null,null,null,null,null,null,null,null,null,null,null,null,null,null,null,null,null,null,null,null,null,null,null,null,null,null,null,null,null,null,null,null,null,"PAZAR",{"$f":"Veriler!AG201","v":""},{"$f":"Veriler!AH201","v":""},{"$f":"Veriler!AI201","v":""},{"$f":"Veriler!AJ201","v":""}]
[null,null,null,null,null,null,null,null,null,null,null,null,null,null,null,null,null,null,null,null,null,null,null,null,null,null,null,null,null,null,null,null,null,null,null,null,null,null,null,null,null,null,null,null,null,null,null,null,null,null,null,null,null,null,null,null,null,null,null,null,null,null,null,null,null,null,null,null,null,null,null,"PAZARTESİ",{"$f":"Veriler!AG202","v":""},{"$f":"Veriler!AH202","v":""},{"$f":"Veriler!AI202","v":""},{"$f":"Veriler!AJ202","v":""},28]
[null,null,null,null,null,null,null,null,null,null,null,null,null,null,null,null,null,null,null,null,null,null,null,null,null,null,null,null,null,null,null,null,null,null,null,null,null,null,null,null,null,null,null,null,null,null,null,null,null,null,null,null,null,null,null,null,null,null,null,null,null,null,null,null,null,null,null,null,null,null,null,"SALI",{"$f":"Veriler!AG203","v":""},{"$f":"Veriler!AH203","v":""},{"$f":"Veriler!AI203","v":""},{"$f":"Veriler!AJ203","v":""}]
[null,null,null,null,null,null,null,null,null,null,null,null,null,null,null,null,null,null,null,null,null,null,null,null,null,null,null,null,null,null,null,null,null,null,null,null,null,null,null,null,null,null,null,null,null,null,null,null,null,null,null,null,null,null,null,null,null,null,null,null,null,null,null,null,null,null,null,null,null,null,null,"ÇARŞAMBA",{"$f":"Veriler!AG204","v":""},{"$f":"Veriler!AH204","v":""},{"$f":"Veriler!AI204","v":""},{"$f":"Veriler!AJ204","v":""}]
[null,null,null,null,null,null,null,null,null,null,null,null,null,null,null,null,null,null,null,null,null,null,null,null,null,null,null,null,null,null,null,null,null,null,null,null,null,null,null,null,null,null,null,null,null,null,null,null,null,null,null,null,null,null,null,null,null,null,null,null,null,null,null,null,null,null,null,null,null,null,null,"PERŞEMBE",{"$f":"Veriler!AG205","v":""},{"$f":"Veriler!AH205","v":""},{"$f":"Veriler!AI205","v":""},{"$f":"Veriler!AJ205","v":""}]
[null,null,null,null,null,null,null,null,null,null,null,null,null,null,null,null,null,null,null,null,null,null,null,null,null,null,null,null,null,null,null,null,null,null,null,null,null,null,null,null,null,null,null,null,null,null,null,null,null,null,null,null,null,null,null,null,null,null,null,null,null,null,null,null,null,null,null,null,null,null,null,"CUMA",{"$f":"Veriler!AG206","v":""},{"$f":"Veriler!AH206","v":""},{"$f":"Veriler!AI206","v":""},{"$f":"Veriler!AJ206","v":""}]
[null,null,null,null,null,null,null,null,null,null,null,null,null,null,null,null,null,null,null,null,null,null,null,null,null,null,null,null,null,null,null,null,null,null,null,null,null,null,null,null,null,null,null,null,null,null,null,null,null,null,null,null,null,null,null,null,null,null,null,null,null,null,null,null,null,null,null,null,null,null,null,"CUMARTESİ",{"$f":"Veriler!AG207","v":""},{"$f":"Veriler!AH207","v":""},{"$f":"Veriler!AI207","v":""},{"$f":"Veriler!AJ207","v":""}]
[null,null,null,null,null,null,null,null,null,null,null,null,null,null,null,null,null,null,null,null,null,null,null,null,null,null,null,null,null,null,null,null,null,null,null,null,null,null,null,null,null,null,null,null,null,null,null,null,null,null,null,null,null,null,null,null,null,null,null,null,null,null,null,null,null,null,null,null,null,null,null,"PAZAR",{"$f":"Veriler!AG208","v":""},{"$f":"Veriler!AH208","v":""},{"$f":"Veriler!AI208","v":""},{"$f":"Veriler!AJ208","v":""}]
[null,null,null,null,null,null,null,null,null,null,null,null,null,null,null,null,null,null,null,null,null,null,null,null,null,null,null,null,null,null,null,null,null,null,null,null,null,null,null,null,null,null,null,null,null,null,null,null,null,null,null,null,null,null,null,null,null,null,null,null,null,null,null,null,null,null,null,null,null,null,null,"PAZARTESİ",{"$f":"Veriler!AG209","v":""},{"$f":"Veriler!AH209","v":""},{"$f":"Veriler!AI209","v":""},{"$f":"Veriler!AJ209","v":""},29]
[null,null,null,null,null,null,null,null,null,null,null,null,null,null,null,null,null,null,null,null,null,null,null,null,null,null,null,null,null,null,null,null,null,null,null,null,null,null,null,null,null,null,null,null,null,null,null,null,null,null,null,null,null,null,null,null,null,null,null,null,null,null,null,null,null,null,null,null,null,null,null,"SALI",{"$f":"Veriler!AG210","v":""},{"$f":"Veriler!AH210","v":""},{"$f":"Veriler!AI210","v":""},{"$f":"Veriler!AJ210","v":""}]
[null,null,null,null,null,null,null,null,null,null,null,null,null,null,null,null,null,null,null,null,null,null,null,null,null,null,null,null,null,null,null,null,null,null,null,null,null,null,null,null,null,null,null,null,null,null,null,null,null,null,null,null,null,null,null,null,null,null,null,null,null,null,null,null,null,null,null,null,null,null,null,"ÇARŞAMBA",{"$f":"Veriler!AG211","v":""},{"$f":"Veriler!AH211","v":""},{"$f":"Veriler!AI211","v":""},{"$f":"Veriler!AJ211","v":""}]
["9. HAFTA",null,null,null,null,null,null,null,null,null,null,null,null,null,null,null,null,null,null,null,null,null,null,null,null,null,null,null,null,null,null,null,null,null,null,null,null,null,null,null,null,null,null,null,null,null,null,null,null,null,null,null,null,null,null,null,null,null,null,null,null,null,null,null,null,null,null,null,null,null,null,"PERŞEMBE",{"$f":"Veriler!AG212","v":""},{"$f":"Veriler!AH212","v":""},{"$f":"Veriler!AI212","v":""},{"$f":"Veriler!AJ212","v":""}]
[null,null,null,null,null,null,null,null,null,null,null,null,null,null,null,null,null,null,null,null,null,null,null,null,null,null,null,null,null,null,null,null,null,null,null,null,null,null,null,null,null,null,null,null,null,null,null,null,null,null,null,null,null,null,null,null,null,null,null,null,null,null,null,null,null,null,null,null,null,null,null,"CUMA",{"$f":"Veriler!AG213","v":""},{"$f":"Veriler!AH213","v":""},{"$f":"Veriler!AI213","v":""},{"$f":"Veriler!AJ213","v":""}]
[null,null,null,null,null,null,null,null,null,null,null,null,null,null,null,null,null,null,null,null,null,null,null,null,null,null,null,null,null,null,null,null,null,null,null,null,null,null,null,null,null,null,null,null,null,null,null,null,null,null,null,null,null,null,null,null,null,null,null,null,null,null,null,null,null,null,null,null,null,null,null,"CUMARTESİ",{"$f":"Veriler!AG214","v":""},{"$f":"Veriler!AH214","v":""},{"$f":"Veriler!AI214","v":""},{"$f":"Veriler!AJ214","v":""}]
[null,null,null,null,null,null,null,null,null,null,null,null,null,null,null,null,null,null,null,null,null,null,null,null,null,null,null,null,null,null,null,null,null,null,null,null,null,null,null,null,null,null,null,null,null,null,null,null,null,null,null,null,null,null,null,null,null,null,null,null,null,null,null,null,null,null,null,null,null,null,null,"PAZAR",{"$f":"Veriler!AG215","v":""},{"$f":"Veriler!AH215","v":""},{"$f":"Veriler!AI215","v":""},{"$f":"Veriler!AJ215","v":""}]
[null,null,null,null,null,null,null,null,null,null,null,null,null,null,null,null,null,null,null,null,null,null,null,null,null,null,null,null,null,null,null,null,null,null,null,null,null,null,null,null,null,null,null,null,null,null,null,null,null,null,null,null,null,null,null,null,null,null,null,null,null,null,null,null,null,null,null,null,null,null,null,"PAZARTESİ",{"$f":"Veriler!AG216","v":""},{"$f":"Veriler!AH216","v":""},{"$f":"Veriler!AI216","v":""},{"$f":"Veriler!AJ216","v":""},30]
[null,null,null,null,null,null,null,null,null,null,null,null,null,null,null,null,null,null,null,null,null,null,null,null,null,null,null,null,null,null,null,null,null,null,null,null,null,null,null,null,null,null,null,null,null,null,null,null,null,null,null,null,null,null,null,null,null,null,null,null,null,null,null,null,null,null,null,null,null,null,null,"SALI",{"$f":"Veriler!AG217","v":""},{"$f":"Veriler!AH217","v":""},{"$f":"Veriler!AI217","v":""},{"$f":"Veriler!AJ217","v":""}]
[null,null,null,null,null,null,null,null,null,null,null,null,null,null,null,null,null,null,null,null,null,null,null,null,null,null,null,null,null,null,null,null,null,null,null,null,null,null,null,null,null,null,null,null,null,null,null,null,null,null,null,null,null,null,null,null,null,null,null,null,null,null,null,null,null,null,null,null,null,null,null,"ÇARŞAMBA",{"$f":"Veriler!AG218","v":""},{"$f":"Veriler!AH218","v":""},{"$f":"Veriler!AI218","v":""},{"$f":"Veriler!AJ218","v":""}]
[null,null,null,null,null,null,null,null,null,null,null,null,null,null,null,null,null,null,null,null,null,null,null,null,null,null,null,null,null,null,null,null,null,null,null,null,null,null,null,null,null,null,null,null,null,null,null,null,null,null,null,null,null,null,null,null,null,null,null,null,null,null,null,null,null,null,null,null,null,null,null,"PERŞEMBE",{"$f":"Veriler!AG219","v":""},{"$f":"Veriler!AH219","v":""},{"$f":"Veriler!AI219","v":""},{"$f":"Veriler!AJ219","v":""}]
[null,null,null,null,null,null,null,null,null,null,null,null,null,null,null,null,null,null,null,null,null,null,null,null,null,null,null,null,null,null,null,null,null,null,null,null,null,null,null,null,null,null,null,null,null,null,null,null,null,null,null,null,null,null,null,null,null,null,null,null,null,null,null,null,null,null,null,null,null,null,null,"CUMA",{"$f":"Veriler!AG220","v":""},{"$f":"Veriler!AH220","v":""},{"$f":"Veriler!AI220","v":""},{"$f":"Veriler!AJ220","v":""}]
[null,null,null,null,null,null,null,null,null,null,null,null,null,null,null,null,null,null,null,null,null,null,null,null,null,null,null,null,null,null,null,null,null,null,null,null,null,null,null,null,null,null,null,null,null,null,null,null,null,null,null,null,null,null,null,null,null,null,null,null,null,null,null,null,null,null,null,null,null,null,null,"CUMARTESİ",{"$f":"Veriler!AG221","v":""},{"$f":"Veriler!AH221","v":""},{"$f":"Veriler!AI221","v":""},{"$f":"Veriler!AJ221","v":""}]
[null,null,null,null,null,null,null,null,null,null,null,null,null,null,null,null,null,null,null,null,null,null,null,null,null,null,null,null,null,null,null,null,null,null,null,null,null,null,null,null,null,null,null,null,null,null,null,null,null,null,null,null,null,null,null,null,null,null,null,null,null,null,null,null,null,null,null,null,null,null,null,"PAZAR",{"$f":"Veriler!AG222","v":""},{"$f":"Veriler!AH222","v":""},{"$f":"Veriler!AI222","v":""},{"$f":"Veriler!AJ222","v":""}]
[null,null,null,null,null,null,null,null,null,null,null,null,null,null,null,null,null,null,null,null,null,null,null,null,null,null,null,null,null,null,null,null,null,null,null,null,null,null,null,null,null,null,null,null,null,null,null,null,null,null,null,null,null,null,null,null,null,null,null,null,null,null,null,null,null,null,null,null,null,null,null,"PAZARTESİ",{"$f":"Veriler!AG223","v":""},{"$f":"Veriler!AH223","v":""},{"$f":"Veriler!AI223","v":""},{"$f":"Veriler!AJ223","v":""},31]
[null,null,null,null,null,null,null,null,null,null,null,null,null,null,null,null,null,null,null,null,null,null,null,null,null,null,null,null,null,null,null,null,null,null,null,null,null,null,null,null,null,null,null,null,null,null,null,null,null,null,null,null,null,null,null,null,null,null,null,null,null,null,null,null,null,null,null,null,null,null,null,"SALI",{"$f":"Veriler!AG224","v":""},{"$f":"Veriler!AH224","v":""},{"$f":"Veriler!AI224","v":""},{"$f":"Veriler!AJ224","v":""}]
[null,null,null,null,null,null,null,null,null,null,null,null,null,null,null,null,null,null,null,null,null,null,null,null,null,null,null,null,null,null,null,null,null,null,null,null,null,null,null,null,null,null,null,null,null,null,null,null,null,null,null,null,null,null,null,null,null,null,null,null,null,null,null,null,null,null,null,null,null,null,null,"ÇARŞAMBA",{"$f":"Veriler!AG225","v":""},{"$f":"Veriler!AH225","v":""},{"$f":"Veriler!AI225","v":""},{"$f":"Veriler!AJ225","v":""}]
[null,null,null,null,null,null,null,null,null,null,null,null,null,null,null,null,null,null,null,null,null,null,null,null,null,null,null,null,null,null,null,null,null,null,null,null,null,null,null,null,null,null,null,null,null,null,null,null,null,null,null,null,null,null,null,null,null,null,null,null,null,null,null,null,null,null,null,null,null,null,null,"PERŞEMBE",{"$f":"Veriler!AG226","v":""},{"$f":"Veriler!AH226","v":""},{"$f":"Veriler!AI226","v":""},{"$f":"Veriler!AJ226","v":""}]
[null,null,null,null,null,null,null,null,null,null,null,null,null,null,null,null,null,null,null,null,null,null,null,null,null,null,null,null,null,null,null,null,null,null,null,null,null,null,null,null,null,null,null,null,null,null,null,null,null,null,null,null,null,null,null,null,null,null,null,null,null,null,null,null,null,null,null,null,null,null,null,"CUMA",{"$f":"Veriler!AG227","v":""},{"$f":"Veriler!AH227","v":""},{"$f":"Veriler!AI227","v":""},{"$f":"Veriler!AJ227","v":""}]
[null,null,null,null,null,null,null,null,null,null,null,null,null,null,null,null,null,null,null,null,null,null,null,null,null,null,null,null,null,null,null,null,null,null,null,null,null,null,null,null,null,null,null,null,null,null,null,null,null,null,null,null,null,null,null,null,null,null,null,null,null,null,null,null,null,null,null,null,null,null,null,"CUMARTESİ",{"$f":"Veriler!AG228","v":""},{"$f":"Veriler!AH228","v":""},{"$f":"Veriler!AI228","v":""},{"$f":"Veriler!AJ228","v":""}]
[null,null,null,null,null,null,null,null,null,null,null,null,null,null,null,null,null,null,null,null,null,null,null,null,null,null,null,null,null,null,null,null,null,null,null,null,null,null,null,null,null,null,null,null,null,null,null,null,null,null,null,null,null,null,null,null,null,null,null,null,null,null,null,null,null,null,null,null,null,null,null,"PAZAR",{"$f":"Veriler!AG229","v":""},{"$f":"Veriler!AH229","v":""},{"$f":"Veriler!AI229","v":""},{"$f":"Veriler!AJ229","v":""}]
[null,null,null,null,null,null,null,null,null,null,null,null,null,null,null,null,null,null,null,null,null,null,null,null,null,null,null,null,null,null,null,null,null,null,null,null,null,null,null,null,null,null,null,null,null,null,null,null,null,null,null,null,null,null,null,null,null,null,null,null,null,null,null,null,null,null,null,null,null,null,null,"PAZARTESİ",{"$f":"Veriler!AG230","v":""},{"$f":"Veriler!AH230","v":""},{"$f":"Veriler!AI230","v":""},{"$f":"Veriler!AJ230","v":""},32]
[null,null,null,null,null,null,null,null,null,null,null,null,null,null,null,null,null,null,null,null,null,null,null,null,null,null,null,null,null,null,null,null,null,null,null,null,null,null,null,null,null,null,null,null,null,null,null,null,null,null,null,null,null,null,null,null,null,null,null,null,null,null,null,null,null,null,null,null,null,null,null,"SALI",{"$f":"Veriler!AG231","v":""},{"$f":"Veriler!AH231","v":""},{"$f":"Veriler!AI231","v":""},{"$f":"Veriler!AJ231","v":""}]
[null,null,null,null,null,null,null,null,null,null,null,null,null,null,null,null,null,null,null,null,null,null,null,null,null,null,null,null,null,null,null,null,null,null,null,null,null,null,null,null,null,null,null,null,null,null,null,null,null,null,null,null,null,null,null,null,null,null,null,null,null,null,null,null,null,null,null,null,null,null,null,"ÇARŞAMBA",{"$f":"Veriler!AG232","v":""},{"$f":"Veriler!AH232","v":""},{"$f":"Veriler!AI232","v":""},{"$f":"Veriler!AJ232","v":""}]
[null,null,null,null,null,null,null,null,null,null,null,null,null,null,null,null,null,null,null,null,null,null,null,null,null,null,null,null,null,null,null,null,null,null,null,null,null,null,null,null,null,null,null,null,null,null,null,null,null,null,null,null,null,null,null,null,null,null,null,null,null,null,null,null,null,null,null,null,null,null,null,"PERŞEMBE",{"$f":"Veriler!AG233","v":""},{"$f":"Veriler!AH233","v":""},{"$f":"Veriler!AI233","v":""},{"$f":"Veriler!AJ233","v":""}]
[null,null,null,null,null,null,null,null,null,null,null,null,null,null,null,null,null,null,null,null,null,null,null,null,null,null,null,null,null,null,null,null,null,null,null,null,null,null,null,null,null,null,null,null,null,null,null,null,null,null,null,null,null,null,null,null,null,null,null,null,null,null,null,null,null,null,null,null,null,null,null,"CUMA",{"$f":"Veriler!AG234","v":""},{"$f":"Veriler!AH234","v":""},{"$f":"Veriler!AI234","v":""},{"$f":"Veriler!AJ234","v":""}]
[null,null,null,null,null,null,null,null,null,null,null,null,null,null,null,null,null,null,null,null,null,null,null,null,null,null,null,null,null,null,null,null,null,null,null,null,null,null,null,null,null,null,null,null,null,null,null,null,null,null,null,null,null,null,null,null,null,null,null,null,null,null,null,null,null,null,null,null,null,null,null,"CUMARTESİ",{"$f":"Veriler!AG235","v":""},{"$f":"Veriler!AH235","v":""},{"$f":"Veriler!AI235","v":""},{"$f":"Veriler!AJ235","v":""}]
[null,null,null,null,null,null,null,null,null,null,null,null,null,null,null,null,null,null,null,null,null,null,null,null,null,null,null,null,null,null,null,null,null,null,null,null,null,null,null,null,null,null,null,null,null,null,null,null,null,null,null,null,null,null,null,null,null,null,null,null,null,null,null,null,null,null,null,null,null,null,null,"PAZAR",{"$f":"Veriler!AG236","v":""},{"$f":"Veriler!AH236","v":""},{"$f":"Veriler!AI236","v":""},{"$f":"Veriler!AJ236","v":""}]
["10. HAFTA",null,null,null,null,null,null,null,null,null,null,null,null,null,null,null,null,null,null,null,null,null,null,null,null,null,null,null,null,null,null,null,null,null,null,null,null,null,null,null,null,null,null,null,null,null,null,null,null,null,null,null,null,null,null,null,null,null,null,null,null,null,null,null,null,null,null,null,null,null,null,"PAZARTESİ",{"$f":"Veriler!AG237","v":""},{"$f":"Veriler!AH237","v":""},{"$f":"Veriler!AI237","v":""},{"$f":"Veriler!AJ237","v":""},33]
[null,null,null,null,null,null,null,null,null,null,null,null,null,null,null,null,null,null,null,null,null,null,null,null,null,null,null,null,null,null,null,null,null,null,null,null,null,null,null,null,null,null,null,null,null,null,null,null,null,null,null,null,null,null,null,null,null,null,null,null,null,null,null,null,null,null,null,null,null,null,null,"SALI",{"$f":"Veriler!AG238","v":""},{"$f":"Veriler!AH238","v":""},{"$f":"Veriler!AI238","v":""},{"$f":"Veriler!AJ238","v":""}]
[null,null,null,null,null,null,null,null,null,null,null,null,null,null,null,null,null,null,null,null,null,null,null,null,null,null,null,null,null,null,null,null,null,null,null,null,null,null,null,null,null,null,null,null,null,null,null,null,null,null,null,null,null,null,null,null,null,null,null,null,null,null,null,null,null,null,null,null,null,null,null,"ÇARŞAMBA",{"$f":"Veriler!AG239","v":""},{"$f":"Veriler!AH239","v":""},{"$f":"Veriler!AI239","v":""},{"$f":"Veriler!AJ239","v":""}]
[null,null,null,null,null,null,null,null,null,null,null,null,null,null,null,null,null,null,null,null,null,null,null,null,null,null,null,null,null,null,null,null,null,null,null,null,null,null,null,null,null,null,null,null,null,null,null,null,null,null,null,null,null,null,null,null,null,null,null,null,null,null,null,null,null,null,null,null,null,null,null,"PERŞEMBE",{"$f":"Veriler!AG240","v":""},{"$f":"Veriler!AH240","v":""},{"$f":"Veriler!AI240","v":""},{"$f":"Veriler!AJ240","v":""}]
[null,null,null,null,null,null,null,null,null,null,null,null,null,null,null,null,null,null,null,null,null,null,null,null,null,null,null,null,null,null,null,null,null,null,null,null,null,null,null,null,null,null,null,null,null,null,null,null,null,null,null,null,null,null,null,null,null,null,null,null,null,null,null,null,null,null,null,null,null,null,null,"CUMA",{"$f":"Veriler!AG241","v":""},{"$f":"Veriler!AH241","v":""},{"$f":"Veriler!AI241","v":""},{"$f":"Veriler!AJ241","v":""}]
[null,null,null,null,null,null,null,null,null,null,null,null,null,null,null,null,null,null,null,null,null,null,null,null,null,null,null,null,null,null,null,null,null,null,null,null,null,null,null,null,null,null,null,null,null,null,null,null,null,null,null,null,null,null,null,null,null,null,null,null,null,null,null,null,null,null,null,null,null,null,null,"CUMARTESİ",{"$f":"Veriler!AG242","v":""},{"$f":"Veriler!AH242","v":""},{"$f":"Veriler!AI242","v":""},{"$f":"Veriler!AJ242","v":""}]
[null,null,null,null,null,null,null,null,null,null,null,null,null,null,null,null,null,null,null,null,null,null,null,null,null,null,null,null,null,null,null,null,null,null,null,null,null,null,null,null,null,null,null,null,null,null,null,null,null,null,null,null,null,null,null,null,null,null,null,null,null,null,null,null,null,null,null,null,null,null,null,"PAZAR",{"$f":"Veriler!AG243","v":""},{"$f":"Veriler!AH243","v":""},{"$f":"Veriler!AI243","v":""},{"$f":"Veriler!AJ243","v":""}]
[null,null,null,null,null,null,null,null,null,null,null,null,null,null,null,null,null,null,null,null,null,null,null,null,null,null,null,null,null,null,null,null,null,null,null,null,null,null,null,null,null,null,null,null,null,null,null,null,null,null,null,null,null,null,null,null,null,null,null,null,null,null,null,null,null,null,null,null,null,null,null,"PAZARTESİ",{"$f":"Veriler!AG244","v":""},{"$f":"Veriler!AH244","v":""},{"$f":"Veriler!AI244","v":""},{"$f":"Veriler!AJ244","v":""},34]
[null,null,null,null,null,null,null,null,null,null,null,null,null,null,null,null,null,null,null,null,null,null,null,null,null,null,null,null,null,null,null,null,null,null,null,null,null,null,null,null,null,null,null,null,null,null,null,null,null,null,null,null,null,null,null,null,null,null,null,null,null,null,null,null,null,null,null,null,null,null,null,"SALI",{"$f":"Veriler!AG245","v":""},{"$f":"Veriler!AH245","v":""},{"$f":"Veriler!AI245","v":""},{"$f":"Veriler!AJ245","v":""}]
[null,null,null,null,null,null,null,null,null,null,null,null,null,null,null,null,null,null,null,null,null,null,null,null,null,null,null,null,null,null,null,null,null,null,null,null,null,null,null,null,null,null,null,null,null,null,null,null,null,null,null,null,null,null,null,null,null,null,null,null,null,null,null,null,null,null,null,null,null,null,null,"ÇARŞAMBA",{"$f":"Veriler!AG246","v":""},{"$f":"Veriler!AH246","v":""},{"$f":"Veriler!AI246","v":""},{"$f":"Veriler!AJ246","v":""}]
[null,null,null,null,null,null,null,null,null,null,null,null,null,null,null,null,null,null,null,null,null,null,null,null,null,null,null,null,null,null,null,null,null,null,null,null,null,null,null,null,null,null,null,null,null,null,null,null,null,null,null,null,null,null,null,null,null,null,null,null,null,null,null,null,null,null,null,null,null,null,null,"PERŞEMBE",{"$f":"Veriler!AG247","v":""},{"$f":"Veriler!AH247","v":""},{"$f":"Veriler!AI247","v":""},{"$f":"Veriler!AJ247","v":""}]
[null,null,null,null,null,null,null,null,null,null,null,null,null,null,null,null,null,null,null,null,null,null,null,null,null,null,null,null,null,null,null,null,null,null,null,null,null,null,null,null,null,null,null,null,null,null,null,null,null,null,null,null,null,null,null,null,null,null,null,null,null,null,null,null,null,null,null,null,null,null,null,"CUMA",{"$f":"Veriler!AG248","v":""},{"$f":"Veriler!AH248","v":""},{"$f":"Veriler!AI248","v":""},{"$f":"Veriler!AJ248","v":""}]
[null,null,null,null,null,null,null,null,null,null,null,null,null,null,null,null,null,null,null,null,null,null,null,null,null,null,null,null,null,null,null,null,null,null,null,null,null,null,null,null,null,null,null,null,null,null,null,null,null,null,null,null,null,null,null,null,null,null,null,null,null,null,null,null,null,null,null,null,null,null,null,"CUMARTESİ",{"$f":"Veriler!AG249","v":""},{"$f":"Veriler!AH249","v":""},{"$f":"Veriler!AI249","v":""},{"$f":"Veriler!AJ249","v":""}]
[null,null,null,null,null,null,null,null,null,null,null,null,null,null,null,null,null,null,null,null,null,null,null,null,null,null,null,null,null,null,null,null,null,null,null,null,null,null,null,null,null,null,null,null,null,null,null,null,null,null,null,null,null,null,null,null,null,null,null,null,null,null,null,null,null,null,null,null,null,null,null,"PAZAR",{"$f":"Veriler!AG250","v":""},{"$f":"Veriler!AH250","v":""},{"$f":"Veriler!AI250","v":""},{"$f":"Veriler!AJ250","v":""}]
[null,null,null,null,null,null,null,null,null,null,null,null,null,null,null,null,null,null,null,null,null,null,null,null,null,null,null,null,null,null,null,null,null,null,null,null,null,null,null,null,null,null,null,null,null,null,null,null,null,null,null,null,null,null,null,null,null,null,null,null,null,null,null,null,null,null,null,null,null,null,null,"PAZARTESİ",{"$f":"Veriler!AG251","v":""},{"$f":"Veriler!AH251","v":""},{"$f":"Veriler!AI251","v":""},{"$f":"Veriler!AJ251","v":""},35]
[null,null,null,null,null,null,null,null,null,null,null,null,null,null,null,null,null,null,null,null,null,null,null,null,null,null,null,null,null,null,null,null,null,null,null,null,null,null,null,null,null,null,null,null,null,null,null,null,null,null,null,null,null,null,null,null,null,null,null,null,null,null,null,null,null,null,null,null,null,null,null,"SALI",{"$f":"Veriler!AG252","v":""},{"$f":"Veriler!AH252","v":""},{"$f":"Veriler!AI252","v":""},{"$f":"Veriler!AJ252","v":""}]
[null,null,null,null,null,null,null,null,null,null,null,null,null,null,null,null,null,null,null,null,null,null,null,null,null,null,null,null,null,null,null,null,null,null,null,null,null,null,null,null,null,null,null,null,null,null,null,null,null,null,null,null,null,null,null,null,null,null,null,null,null,null,null,null,null,null,null,null,null,null,null,"ÇARŞAMBA",{"$f":"Veriler!AG253","v":""},{"$f":"Veriler!AH253","v":""},{"$f":"Veriler!AI253","v":""},{"$f":"Veriler!AJ253","v":""}]
[null,null,null,null,null,null,null,null,null,null,null,null,null,null,null,null,null,null,null,null,null,null,null,null,null,null,null,null,null,null,null,null,null,null,null,null,null,null,null,null,null,null,null,null,null,null,null,null,null,null,null,null,null,null,null,null,null,null,null,null,null,null,null,null,null,null,null,null,null,null,null,"PERŞEMBE",{"$f":"Veriler!AG254","v":""},{"$f":"Veriler!AH254","v":""},{"$f":"Veriler!AI254","v":""},{"$f":"Veriler!AJ254","v":""}]
[null,null,null,null,null,null,null,null,null,null,null,null,null,null,null,null,null,null,null,null,null,null,null,null,null,null,null,null,null,null,null,null,null,null,null,null,null,null,null,null,null,null,null,null,null,null,null,null,null,null,null,null,null,null,null,null,null,null,null,null,null,null,null,null,null,null,null,null,null,null,null,"CUMA",{"$f":"Veriler!AG255","v":""},{"$f":"Veriler!AH255","v":""},{"$f":"Veriler!AI255","v":""},{"$f":"Veriler!AJ255","v":""}]
[null,null,null,null,null,null,null,null,null,null,null,null,null,null,null,null,null,null,null,null,null,null,null,null,null,null,null,null,null,null,null,null,null,null,null,null,null,null,null,null,null,null,null,null,null,null,null,null,null,null,null,null,null,null,null,null,null,null,null,null,null,null,null,null,null,null,null,null,null,null,null,"CUMARTESİ",{"$f":"Veriler!AG256","v":""},{"$f":"Veriler!AH256","v":""},{"$f":"Veriler!AI256","v":""},{"$f":"Veriler!AJ256","v":""}]
[null,null,null,null,null,null,null,null,null,null,null,null,null,null,null,null,null,null,null,null,null,null,null,null,null,null,null,null,null,null,null,null,null,null,null,null,null,null,null,null,null,null,null,null,null,null,null,null,null,null,null,null,null,null,null,null,null,null,null,null,null,null,null,null,null,null,null,null,null,null,null,"PAZAR",{"$f":"Veriler!AG257","v":""},{"$f":"Veriler!AH257","v":""},{"$f":"Veriler!AI257","v":""},{"$f":"Veriler!AJ257","v":""}]
[null,null,null,null,null,null,null,null,null,null,null,null,null,null,null,null,null,null,null,null,null,null,null,null,null,null,null,null,null,null,null,null,null,null,null,null,null,null,null,null,null,null,null,null,null,null,null,null,null,null,null,null,null,null,null,null,null,null,null,null,null,null,null,null,null,null,null,null,null,null,null,"PAZARTESİ",{"$f":"Veriler!AG258","v":""},{"$f":"Veriler!AH258","v":""},{"$f":"Veriler!AI258","v":""},{"$f":"Veriler!AJ258","v":""},36]
[null,null,null,null,null,null,null,null,null,null,null,null,null,null,null,null,null,null,null,null,null,null,null,null,null,null,null,null,null,null,null,null,null,null,null,null,null,null,null,null,null,null,null,null,null,null,null,null,null,null,null,null,null,null,null,null,null,null,null,null,null,null,null,null,null,null,null,null,null,null,null,"SALI",{"$f":"Veriler!AG259","v":""},{"$f":"Veriler!AH259","v":""},{"$f":"Veriler!AI259","v":""},{"$f":"Veriler!AJ259","v":""}]
[null,null,null,null,null,null,null,null,null,null,null,null,null,null,null,null,null,null,null,null,null,null,null,null,null,null,null,null,null,null,null,null,null,null,null,null,null,null,null,null,null,null,null,null,null,null,null,null,null,null,null,null,null,null,null,null,null,null,null,null,null,null,null,null,null,null,null,null,null,null,null,"ÇARŞAMBA",{"$f":"Veriler!AG260","v":""},{"$f":"Veriler!AH260","v":""},{"$f":"Veriler!AI260","v":""},{"$f":"Veriler!AJ260","v":""}]
[null,null,null,null,null,null,null,null,null,null,null,null,null,null,null,null,null,null,null,null,null,null,null,null,null,null,null,null,null,null,null,null,null,null,null,null,null,null,null,null,null,null,null,null,null,null,null,null,null,null,null,null,null,null,null,null,null,null,null,null,null,null,null,null,null,null,null,null,null,null,null,"PERŞEMBE",{"$f":"Veriler!AG261","v":""},{"$f":"Veriler!AH261","v":""},{"$f":"Veriler!AI261","v":""},{"$f":"Veriler!AJ261","v":""}]
["11. HAFTA",null,null,null,null,null,null,null,null,null,null,null,null,null,null,null,null,null,null,null,null,null,null,null,null,null,null,null,null,null,null,null,null,null,null,null,null,null,null,null,null,null,null,null,null,null,null,null,null,null,null,null,null,null,null,null,null,null,null,null,null,null,null,null,null,null,null,null,null,null,null,"CUMA",{"$f":"Veriler!AG262","v":""},{"$f":"Veriler!AH262","v":""},{"$f":"Veriler!AI262","v":""},{"$f":"Veriler!AJ262","v":""}]
[null,null,null,null,null,null,null,null,null,null,null,null,null,null,null,null,null,null,null,null,null,null,null,null,null,null,null,null,null,null,null,null,null,null,null,null,null,null,null,null,null,null,null,null,null,null,null,null,null,null,null,null,null,null,null,null,null,null,null,null,null,null,null,null,null,null,null,null,null,null,null,"CUMARTESİ",{"$f":"Veriler!AG263","v":""},{"$f":"Veriler!AH263","v":""},{"$f":"Veriler!AI263","v":""},{"$f":"Veriler!AJ263","v":""}]
[null,null,null,null,null,null,null,null,null,null,null,null,null,null,null,null,null,null,null,null,null,null,null,null,null,null,null,null,null,null,null,null,null,null,null,null,null,null,null,null,null,null,null,null,null,null,null,null,null,null,null,null,null,null,null,null,null,null,null,null,null,null,null,null,null,null,null,null,null,null,null,"PAZAR",{"$f":"Veriler!AG264","v":""},{"$f":"Veriler!AH264","v":""},{"$f":"Veriler!AI264","v":""},{"$f":"Veriler!AJ264","v":""}]
[null,null,null,null,null,null,null,null,null,null,null,null,null,null,null,null,null,null,null,null,null,null,null,null,null,null,null,null,null,null,null,null,null,null,null,null,null,null,null,null,null,null,null,null,null,null,null,null,null,null,null,null,null,null,null,null,null,null,null,null,null,null,null,null,null,null,null,null,null,null,null,"PAZARTESİ",{"$f":"Veriler!#REF!","v":{"$error":"#REF!"}},{"$f":"Veriler!#REF!","v":{"$error":"#REF!"}},{"$f":"Veriler!#REF!","v":{"$error":"#REF!"}},{"$f":"Veriler!#REF!","v":{"$error":"#REF!"}},37]
[null,null,null,null,null,null,null,null,null,null,null,null,null,null,null,null,null,null,null,null,null,null,null,null,null,null,null,null,null,null,null,null,null,null,null,null,null,null,null,null,null,null,null,null,null,null,null,null,null,null,null,null,null,null,null,null,null,null,null,null,null,null,null,null,null,null,null,null,null,null,null,"SALI",{"$f":"Veriler!#REF!","v":{"$error":"#REF!"}},{"$f":"Veriler!#REF!","v":{"$error":"#REF!"}},{"$f":"Veriler!#REF!","v":{"$error":"#REF!"}},{"$f":"Veriler!#REF!","v":{"$error":"#REF!"}}]
[null,null,null,null,null,null,null,null,null,null,null,null,null,null,null,null,null,null,null,null,null,null,null,null,null,null,null,null,null,null,null,null,null,null,null,null,null,null,null,null,null,null,null,null,null,null,null,null,null,null,null,null,null,null,null,null,null,null,null,null,null,null,null,null,null,null,null,null,null,null,null,"ÇARŞAMBA",{"$f":"Veriler!#REF!","v":{"$error":"#REF!"}},{"$f":"Veriler!#REF!","v":{"$error":"#REF!"}},{"$f":"Veriler!#REF!","v":{"$error":"#REF!"}},{"$f":"Veriler!#REF!","v":{"$error":"#REF!"}}]
[null,null,null,null,null,null,null,null,null,null,null,null,null,null,null,null,null,null,null,null,null,null,null,null,null,null,null,null,null,null,null,null,null,null,null,null,null,null,null,null,null,null,null,null,null,null,null,null,null,null,null,null,null,null,null,null,null,null,null,null,null,null,null,null,null,null,null,null,null,null,null,"PERŞEMBE",{"$f":"Veriler!#REF!","v":{"$error":"#REF!"}},{"$f":"Veriler!#REF!","v":{"$error":"#REF!"}},{"$f":"Veriler!#REF!","v":{"$error":"#REF!"}},{"$f":"Veriler!#REF!","v":{"$error":"#REF!"}}]
[null,null,null,null,null,null,null,null,null,null,null,null,null,null,null,null,null,null,null,null,null,null,null,null,null,null,null,null,null,null,null,null,null,null,null,null,null,null,null,null,null,null,null,null,null,null,null,null,null,null,null,null,null,null,null,null,null,null,null,null,null,null,null,null,null,null,null,null,null,null,null,"CUMA",{"$f":"Veriler!#REF!","v":{"$error":"#REF!"}},{"$f":"Veriler!#REF!","v":{"$error":"#REF!"}},{"$f":"Veriler!#REF!","v":{"$error":"#REF!"}},{"$f":"Veriler!#REF!","v":{"$error":"#REF!"}}]
[null,null,null,null,null,null,null,null,null,null,null,null,null,null,null,null,null,null,null,null,null,null,null,null,null,null,null,null,null,null,null,null,null,null,null,null,null,null,null,null,null,null,null,null,null,null,null,null,null,null,null,null,null,null,null,null,null,null,null,null,null,null,null,null,null,null,null,null,null,null,null,"CUMARTESİ",{"$f":"Veriler!#REF!","v":{"$error":"#REF!"}},{"$f":"Veriler!#REF!","v":{"$error":"#REF!"}},{"$f":"Veriler!#REF!","v":{"$error":"#REF!"}},{"$f":"Veriler!#REF!","v":{"$error":"#REF!"}}]
[null,null,null,null,null,null,null,null,null,null,null,null,null,null,null,null,null,null,null,null,null,null,null,null,null,null,null,null,null,null,null,null,null,null,null,null,null,null,null,null,null,null,null,null,null,null,null,null,null,null,null,null,null,null,null,null,null,null,null,null,null,null,null,null,null,null,null,null,null,null,null,"PAZAR",{"$f":"Veriler!#REF!","v":{"$error":"#REF!"}},{"$f":"Veriler!#REF!","v":{"$error":"#REF!"}},{"$f":"Veriler!#REF!","v":{"$error":"#REF!"}},{"$f":"Veriler!#REF!","v":{"$error":"#REF!"}}]
[null,null,null,null,null,null,null,null,null,null,null,null,null,null,null,null,null,null,null,null,null,null,null,null,null,null,null,null,null,null,null,null,null,null,null,null,null,null,null,null,null,null,null,null,null,null,null,null,null,null,null,null,null,null,null,null,null,null,null,null,null,null,null,null,null,null,null,null,null,null,null,"PAZARTESİ",{"$f":"Veriler!#REF!","v":{"$error":"#REF!"}},{"$f":"Veriler!#REF!","v":{"$error":"#REF!"}},{"$f":"Veriler!#REF!","v":{"$error":"#REF!"}},{"$f":"Veriler!#REF!","v":{"$error":"#REF!"}},38]
[null,null,null,null,null,null,null,null,null,null,null,null,null,null,null,null,null,null,null,null,null,null,null,null,null,null,null,null,null,null,null,null,null,null,null,null,null,null,null,null,null,null,null,null,null,null,null,null,null,null,null,null,null,null,null,null,null,null,null,null,null,null,null,null,null,null,null,null,null,null,null,"SALI",{"$f":"Veriler!#REF!","v":{"$error":"#REF!"}},{"$f":"Veriler!#REF!","v":{"$error":"#REF!"}},{"$f":"Veriler!#REF!","v":{"$error":"#REF!"}},{"$f":"Veriler!#REF!","v":{"$error":"#REF!"}}]
[null,null,null,null,null,null,null,null,null,null,null,null,null,null,null,null,null,null,null,null,null,null,null,null,null,null,null,null,null,null,null,null,null,null,null,null,null,null,null,null,null,null,null,null,null,null,null,null,null,null,null,null,null,null,null,null,null,null,null,null,null,null,null,null,null,null,null,null,null,null,null,"ÇARŞAMBA",{"$f":"Veriler!#REF!","v":{"$error":"#REF!"}},{"$f":"Veriler!#REF!","v":{"$error":"#REF!"}},{"$f":"Veriler!#REF!","v":{"$error":"#REF!"}},{"$f":"Veriler!#REF!","v":{"$error":"#REF!"}}]
[null,null,null,null,null,null,null,null,null,null,null,null,null,null,null,null,null,null,null,null,null,null,null,null,null,null,null,null,null,null,null,null,null,null,null,null,null,null,null,null,null,null,null,null,null,null,null,null,null,null,null,null,null,null,null,null,null,null,null,null,null,null,null,null,null,null,null,null,null,null,null,"PERŞEMBE",{"$f":"Veriler!#REF!","v":{"$error":"#REF!"}},{"$f":"Veriler!#REF!","v":{"$error":"#REF!"}},{"$f":"Veriler!#REF!","v":{"$error":"#REF!"}},{"$f":"Veriler!#REF!","v":{"$error":"#REF!"}}]
[null,null,null,null,null,null,null,null,null,null,null,null,null,null,null,null,null,null,null,null,null,null,null,null,null,null,null,null,null,null,null,null,null,null,null,null,null,null,null,null,null,null,null,null,null,null,null,null,null,null,null,null,null,null,null,null,null,null,null,null,null,null,null,null,null,null,null,null,null,null,null,"CUMA",{"$f":"Veriler!#REF!","v":{"$error":"#REF!"}},{"$f":"Veriler!#REF!","v":{"$error":"#REF!"}},{"$f":"Veriler!#REF!","v":{"$error":"#REF!"}},{"$f":"Veriler!#REF!","v":{"$error":"#REF!"}}]
[null,null,null,null,null,null,null,null,null,null,null,null,null,null,null,null,null,null,null,null,null,null,null,null,null,null,null,null,null,null,null,null,null,null,null,null,null,null,null,null,null,null,null,null,null,null,null,null,null,null,null,null,null,null,null,null,null,null,null,null,null,null,null,null,null,null,null,null,null,null,null,"CUMARTESİ",{"$f":"Veriler!#REF!","v":{"$error":"#REF!"}},{"$f":"Veriler!#REF!","v":{"$error":"#REF!"}},{"$f":"Veriler!#REF!","v":{"$error":"#REF!"}},{"$f":"Veriler!#REF!","v":{"$error":"#REF!"}}]
[null,null,null,null,null,null,null,null,null,null,null,null,null,null,null,null,null,null,null,null,null,null,null,null,null,null,null,null,null,null,null,null,null,null,null,null,null,null,null,null,null,null,null,null,null,null,null,null,null,null,null,null,null,null,null,null,null,null,null,null,null,null,null,null,null,null,null,null,null,null,null,"PAZAR",{"$f":"Veriler!#REF!","v":{"$error":"#REF!"}},{"$f":"Veriler!#REF!","v":{"$error":"#REF!"}},{"$f":"Veriler!#REF!","v":{"$error":"#REF!"}},{"$f":"Veriler!#REF!","v":{"$error":"#REF!"}}]
[null,null,null,null,null,null,null,null,null,null,null,null,null,null,null,null,null,null,null,null,null,null,null,null,null,null,null,null,null,null,null,null,null,null,null,null,null,null,null,null,null,null,null,null,null,null,null,null,null,null,null,null,null,null,null,null,null,null,null,null,null,null,null,null,null,null,null,null,null,null,null,"PAZARTESİ",{"$f":"Veriler!#REF!","v":{"$error":"#REF!"}},{"$f":"Veriler!#REF!","v":{"$error":"#REF!"}},{"$f":"Veriler!#REF!","v":{"$error":"#REF!"}},{"$f":"Veriler!#REF!","v":{"$error":"#REF!"}},39]
[null,null,null,null,null,null,null,null,null,null,null,null,null,null,null,null,null,null,null,null,null,null,null,null,null,null,null,null,null,null,null,null,null,null,null,null,null,null,null,null,null,null,null,null,null,null,null,null,null,null,null,null,null,null,null,null,null,null,null,null,null,null,null,null,null,null,null,null,null,null,null,"SALI",{"$f":"Veriler!#REF!","v":{"$error":"#REF!"}},{"$f":"Veriler!#REF!","v":{"$error":"#REF!"}},{"$f":"Veriler!#REF!","v":{"$error":"#REF!"}},{"$f":"Veriler!#REF!","v":{"$error":"#REF!"}}]
[null,null,null,null,null,null,null,null,null,null,null,null,null,null,null,null,null,null,null,null,null,null,null,null,null,null,null,null,null,null,null,null,null,null,null,null,null,null,null,null,null,null,null,null,null,null,null,null,null,null,null,null,null,null,null,null,null,null,null,null,null,null,null,null,null,null,null,null,null,null,null,"ÇARŞAMBA",{"$f":"Veriler!#REF!","v":{"$error":"#REF!"}},{"$f":"Veriler!#REF!","v":{"$error":"#REF!"}},{"$f":"Veriler!#REF!","v":{"$error":"#REF!"}},{"$f":"Veriler!#REF!","v":{"$error":"#REF!"}}]
[null,null,null,null,null,null,null,null,null,null,null,null,null,null,null,null,null,null,null,null,null,null,null,null,null,null,null,null,null,null,null,null,null,null,null,null,null,null,null,null,null,null,null,null,null,null,null,null,null,null,null,null,null,null,null,null,null,null,null,null,null,null,null,null,null,null,null,null,null,null,null,"PERŞEMBE",{"$f":"Veriler!#REF!","v":{"$error":"#REF!"}},{"$f":"Veriler!#REF!","v":{"$error":"#REF!"}},{"$f":"Veriler!#REF!","v":{"$error":"#REF!"}},{"$f":"Veriler!#REF!","v":{"$error":"#REF!"}}]
[null,null,null,null,null,null,null,null,null,null,null,null,null,null,null,null,null,null,null,null,null,null,null,null,null,null,null,null,null,null,null,null,null,null,null,null,null,null,null,null,null,null,null,null,null,null,null,null,null,null,null,null,null,null,null,null,null,null,null,null,null,null,null,null,null,null,null,null,null,null,null,"CUMA",{"$f":"Veriler!#REF!","v":{"$error":"#REF!"}},{"$f":"Veriler!#REF!","v":{"$error":"#REF!"}},{"$f":"Veriler!#REF!","v":{"$error":"#REF!"}},{"$f":"Veriler!#REF!","v":{"$error":"#REF!"}}]
[null,null,null,null,null,null,null,null,null,null,null,null,null,null,null,null,null,null,null,null,null,null,null,null,null,null,null,null,null,null,null,null,null,null,null,null,null,null,null,null,null,null,null,null,null,null,null,null,null,null,null,null,null,null,null,null,null,null,null,null,null,null,null,null,null,null,null,null,null,null,null,"CUMARTESİ",{"$f":"Veriler!#REF!","v":{"$error":"#REF!"}},{"$f":"Veriler!#REF!","v":{"$error":"#REF!"}},{"$f":"Veriler!#REF!","v":{"$error":"#REF!"}},{"$f":"Veriler!#REF!","v":{"$error":"#REF!"}}]
[null,null,null,null,null,null,null,null,null,null,null,null,null,null,null,null,null,null,null,null,null,null,null,null,null,null,null,null,null,null,null,null,null,null,null,null,null,null,null,null,null,null,null,null,null,null,null,null,null,null,null,null,null,null,null,null,null,null,null,null,null,null,null,null,null,null,null,null,null,null,null,"PAZAR",{"$f":"Veriler!#REF!","v":{"$error":"#REF!"}},{"$f":"Veriler!#REF!","v":{"$error":"#REF!"}},{"$f":"Veriler!#REF!","v":{"$error":"#REF!"}},{"$f":"Veriler!#REF!","v":{"$error":"#REF!"}}]
[null,null,null,null,null,null,null,null,null,null,null,null,null,null,null,null,null,null,null,null,null,null,null,null,null,null,null,null,null,null,null,null,null,null,null,null,null,null,null,null,null,null,null,null,null,null,null,null,null,null,null,null,null,null,null,null,null,null,null,null,null,null,null,null,null,null,null,null,null,null,null,"PAZARTESİ",{"$f":"Veriler!#REF!","v":{"$error":"#REF!"}},{"$f":"Veriler!#REF!","v":{"$error":"#REF!"}},{"$f":"Veriler!#REF!","v":{"$error":"#REF!"}},{"$f":"Veriler!#REF!","v":{"$error":"#REF!"}},40]
["12. HAFTA",null,null,null,null,null,null,null,null,null,null,null,null,null,null,null,null,null,null,null,null,null,null,null,null,null,null,null,null,null,null,null,null,null,null,null,null,null,null,null,null,null,null,null,null,null,null,null,null,null,null,null,null,null,null,null,null,null,null,null,null,null,null,null,null,null,null,null,null,null,null,"SALI",{"$f":"Veriler!#REF!","v":{"$error":"#REF!"}},{"$f":"Veriler!#REF!","v":{"$error":"#REF!"}},{"$f":"Veriler!#REF!","v":{"$error":"#REF!"}},{"$f":"Veriler!#REF!","v":{"$error":"#REF!"}}]
[null,null,null,null,null,null,null,null,null,null,null,null,null,null,null,null,null,null,null,null,null,null,null,null,null,null,null,null,null,null,null,null,null,null,null,null,null,null,null,null,null,null,null,null,null,null,null,null,null,null,null,null,null,null,null,null,null,null,null,null,null,null,null,null,null,null,null,null,null,null,null,"ÇARŞAMBA",{"$f":"Veriler!#REF!","v":{"$error":"#REF!"}},{"$f":"Veriler!#REF!","v":{"$error":"#REF!"}},{"$f":"Veriler!#REF!","v":{"$error":"#REF!"}},{"$f":"Veriler!#REF!","v":{"$error":"#REF!"}}]
[null,null,null,null,null,null,null,null,null,null,null,null,null,null,null,null,null,null,null,null,null,null,null,null,null,null,null,null,null,null,null,null,null,null,null,null,null,null,null,null,null,null,null,null,null,null,null,null,null,null,null,null,null,null,null,null,null,null,null,null,null,null,null,null,null,null,null,null,null,null,null,"PERŞEMBE",{"$f":"Veriler!#REF!","v":{"$error":"#REF!"}},{"$f":"Veriler!#REF!","v":{"$error":"#REF!"}},{"$f":"Veriler!#REF!","v":{"$error":"#REF!"}},{"$f":"Veriler!#REF!","v":{"$error":"#REF!"}}]
[null,null,null,null,null,null,null,null,null,null,null,null,null,null,null,null,null,null,null,null,null,null,null,null,null,null,null,null,null,null,null,null,null,null,null,null,null,null,null,null,null,null,null,null,null,null,null,null,null,null,null,null,null,null,null,null,null,null,null,null,null,null,null,null,null,null,null,null,null,null,null,"CUMA",{"$f":"Veriler!#REF!","v":{"$error":"#REF!"}},{"$f":"Veriler!#REF!","v":{"$error":"#REF!"}},{"$f":"Veriler!#REF!","v":{"$error":"#REF!"}},{"$f":"Veriler!#REF!","v":{"$error":"#REF!"}}]
[null,null,null,null,null,null,null,null,null,null,null,null,null,null,null,null,null,null,null,null,null,null,null,null,null,null,null,null,null,null,null,null,null,null,null,null,null,null,null,null,null,null,null,null,null,null,null,null,null,null,null,null,null,null,null,null,null,null,null,null,null,null,null,null,null,null,null,null,null,null,null,"CUMARTESİ",{"$f":"Veriler!#REF!","v":{"$error":"#REF!"}},{"$f":"Veriler!#REF!","v":{"$error":"#REF!"}},{"$f":"Veriler!#REF!","v":{"$error":"#REF!"}},{"$f":"Veriler!#REF!","v":{"$error":"#REF!"}}]
[null,null,null,null,null,null,null,null,null,null,null,null,null,null,null,null,null,null,null,null,null,null,null,null,null,null,null,null,null,null,null,null,null,null,null,null,null,null,null,null,null,null,null,null,null,null,null,null,null,null,null,null,null,null,null,null,null,null,null,null,null,null,null,null,null,null,null,null,null,null,null,"PAZAR",{"$f":"Veriler!#REF!","v":{"$error":"#REF!"}},{"$f":"Veriler!#REF!","v":{"$error":"#REF!"}},{"$f":"Veriler!#REF!","v":{"$error":"#REF!"}},{"$f":"Veriler!#REF!","v":{"$error":"#REF!"}}]
[null,null,null,null,null,null,null,null,null,null,null,null,null,null,null,null,null,null,null,null,null,null,null,null,null,null,null,null,null,null,null,null,null,null,null,null,null,null,null,null,null,null,null,null,null,null,null,null,null,null,null,null,null,null,null,null,null,null,null,null,null,null,null,null,null,null,null,null,null,null,null,"PAZARTESİ",{"$f":"Veriler!#REF!","v":{"$error":"#REF!"}},{"$f":"Veriler!#REF!","v":{"$error":"#REF!"}},{"$f":"Veriler!#REF!","v":{"$error":"#REF!"}},{"$f":"Veriler!#REF!","v":{"$error":"#REF!"}},41]
[null,null,null,null,null,null,null,null,null,null,null,null,null,null,null,null,null,null,null,null,null,null,null,null,null,null,null,null,null,null,null,null,null,null,null,null,null,null,null,null,null,null,null,null,null,null,null,null,null,null,null,null,null,null,null,null,null,null,null,null,null,null,null,null,null,null,null,null,null,null,null,"SALI",{"$f":"Veriler!#REF!","v":{"$error":"#REF!"}},{"$f":"Veriler!#REF!","v":{"$error":"#REF!"}},{"$f":"Veriler!#REF!","v":{"$error":"#REF!"}},{"$f":"Veriler!#REF!","v":{"$error":"#REF!"}}]
[null,null,null,null,null,null,null,null,null,null,null,null,null,null,null,null,null,null,null,null,null,null,null,null,null,null,null,null,null,null,null,null,null,null,null,null,null,null,null,null,null,null,null,null,null,null,null,null,null,null,null,null,null,null,null,null,null,null,null,null,null,null,null,null,null,null,null,null,null,null,null,"ÇARŞAMBA",{"$f":"Veriler!#REF!","v":{"$error":"#REF!"}},{"$f":"Veriler!#REF!","v":{"$error":"#REF!"}},{"$f":"Veriler!#REF!","v":{"$error":"#REF!"}},{"$f":"Veriler!#REF!","v":{"$error":"#REF!"}}]
[null,null,null,null,null,null,null,null,null,null,null,null,null,null,null,null,null,null,null,null,null,null,null,null,null,null,null,null,null,null,null,null,null,null,null,null,null,null,null,null,null,null,null,null,null,null,null,null,null,null,null,null,null,null,null,null,null,null,null,null,null,null,null,null,null,null,null,null,null,null,null,"PERŞEMBE",{"$f":"Veriler!#REF!","v":{"$error":"#REF!"}},{"$f":"Veriler!#REF!","v":{"$error":"#REF!"}},{"$f":"Veriler!#REF!","v":{"$error":"#REF!"}},{"$f":"Veriler!#REF!","v":{"$error":"#REF!"}}]
[null,null,null,null,null,null,null,null,null,null,null,null,null,null,null,null,null,null,null,null,null,null,null,null,null,null,null,null,null,null,null,null,null,null,null,null,null,null,null,null,null,null,null,null,null,null,null,null,null,null,null,null,null,null,null,null,null,null,null,null,null,null,null,null,null,null,null,null,null,null,null,"CUMA",{"$f":"Veriler!#REF!","v":{"$error":"#REF!"}},{"$f":"Veriler!#REF!","v":{"$error":"#REF!"}},{"$f":"Veriler!#REF!","v":{"$error":"#REF!"}},{"$f":"Veriler!#REF!","v":{"$error":"#REF!"}}]
[null,null,null,null,null,null,null,null,null,null,null,null,null,null,null,null,null,null,null,null,null,null,null,null,null,null,null,null,null,null,null,null,null,null,null,null,null,null,null,null,null,null,null,null,null,null,null,null,null,null,null,null,null,null,null,null,null,null,null,null,null,null,null,null,null,null,null,null,null,null,null,"CUMARTESİ",{"$f":"Veriler!#REF!","v":{"$error":"#REF!"}},{"$f":"Veriler!#REF!","v":{"$error":"#REF!"}},{"$f":"Veriler!#REF!","v":{"$error":"#REF!"}},{"$f":"Veriler!#REF!","v":{"$error":"#REF!"}}]
[null,null,null,null,null,null,null,null,null,null,null,null,null,null,null,null,null,null,null,null,null,null,null,null,null,null,null,null,null,null,null,null,null,null,null,null,null,null,null,null,null,null,null,null,null,null,null,null,null,null,null,null,null,null,null,null,null,null,null,null,null,null,null,null,null,null,null,null,null,null,null,"PAZAR",{"$f":"Veriler!#REF!","v":{"$error":"#REF!"}},{"$f":"Veriler!#REF!","v":{"$error":"#REF!"}},{"$f":"Veriler!#REF!","v":{"$error":"#REF!"}},{"$f":"Veriler!#REF!","v":{"$error":"#REF!"}}]
[null,null,null,null,null,null,null,null,null,null,null,null,null,null,null,null,null,null,null,null,null,null,null,null,null,null,null,null,null,null,null,null,null,null,null,null,null,null,null,null,null,null,null,null,null,null,null,null,null,null,null,null,null,null,null,null,null,null,null,null,null,null,null,null,null,null,null,null,null,null,null,"PAZARTESİ",{"$f":"Veriler!#REF!","v":{"$error":"#REF!"}},{"$f":"Veriler!#REF!","v":{"$error":"#REF!"}},{"$f":"Veriler!#REF!","v":{"$error":"#REF!"}},{"$f":"Veriler!#REF!","v":{"$error":"#REF!"}},42]
[null,null,null,null,null,null,null,null,null,null,null,null,null,null,null,null,null,null,null,null,null,null,null,null,null,null,null,null,null,null,null,null,null,null,null,null,null,null,null,null,null,null,null,null,null,null,null,null,null,null,null,null,null,null,null,null,null,null,null,null,null,null,null,null,null,null,null,null,null,null,null,"SALI",{"$f":"Veriler!#REF!","v":{"$error":"#REF!"}},{"$f":"Veriler!#REF!","v":{"$error":"#REF!"}},{"$f":"Veriler!#REF!","v":{"$error":"#REF!"}},{"$f":"Veriler!#REF!","v":{"$error":"#REF!"}}]
[null,null,null,null,null,null,null,null,null,null,null,null,null,null,null,null,null,null,null,null,null,null,null,null,null,null,null,null,null,null,null,null,null,null,null,null,null,null,null,null,null,null,null,null,null,null,null,null,null,null,null,null,null,null,null,null,null,null,null,null,null,null,null,null,null,null,null,null,null,null,null,"ÇARŞAMBA",{"$f":"Veriler!#REF!","v":{"$error":"#REF!"}},{"$f":"Veriler!#REF!","v":{"$error":"#REF!"}},{"$f":"Veriler!#REF!","v":{"$error":"#REF!"}},{"$f":"Veriler!#REF!","v":{"$error":"#REF!"}}]
[null,null,null,null,null,null,null,null,null,null,null,null,null,null,null,null,null,null,null,null,null,null,null,null,null,null,null,null,null,null,null,null,null,null,null,null,null,null,null,null,null,null,null,null,null,null,null,null,null,null,null,null,null,null,null,null,null,null,null,null,null,null,null,null,null,null,null,null,null,null,null,"PERŞEMBE",{"$f":"Veriler!#REF!","v":{"$error":"#REF!"}},{"$f":"Veriler!#REF!","v":{"$error":"#REF!"}},{"$f":"Veriler!#REF!","v":{"$error":"#REF!"}},{"$f":"Veriler!#REF!","v":{"$error":"#REF!"}}]
[null,null,null,null,null,null,null,null,null,null,null,null,null,null,null,null,null,null,null,null,null,null,null,null,null,null,null,null,null,null,null,null,null,null,null,null,null,null,null,null,null,null,null,null,null,null,null,null,null,null,null,null,null,null,null,null,null,null,null,null,null,null,null,null,null,null,null,null,null,null,null,"CUMA",{"$f":"Veriler!#REF!","v":{"$error":"#REF!"}},{"$f":"Veriler!#REF!","v":{"$error":"#REF!"}},{"$f":"Veriler!#REF!","v":{"$error":"#REF!"}},{"$f":"Veriler!#REF!","v":{"$error":"#REF!"}}]
[null,null,null,null,null,null,null,null,null,null,null,null,null,null,null,null,null,null,null,null,null,null,null,null,null,null,null,null,null,null,null,null,null,null,null,null,null,null,null,null,null,null,null,null,null,null,null,null,null,null,null,null,null,null,null,null,null,null,null,null,null,null,null,null,null,null,null,null,null,null,null,"CUMARTESİ",{"$f":"Veriler!#REF!","v":{"$error":"#REF!"}},{"$f":"Veriler!#REF!","v":{"$error":"#REF!"}},{"$f":"Veriler!#REF!","v":{"$error":"#REF!"}},{"$f":"Veriler!#REF!","v":{"$error":"#REF!"}}]
[null,null,null,null,null,null,null,null,null,null,null,null,null,null,null,null,null,null,null,null,null,null,null,null,null,null,null,null,null,null,null,null,null,null,null,null,null,null,null,null,null,null,null,null,null,null,null,null,null,null,null,null,null,null,null,null,null,null,null,null,null,null,null,null,null,null,null,null,null,null,null,"PAZAR",{"$f":"Veriler!#REF!","v":{"$error":"#REF!"}},{"$f":"Veriler!#REF!","v":{"$error":"#REF!"}},{"$f":"Veriler!#REF!","v":{"$error":"#REF!"}},{"$f":"Veriler!#REF!","v":{"$error":"#REF!"}}]
[null,null,null,null,null,null,null,null,null,null,null,null,null,null,null,null,null,null,null,null,null,null,null,null,null,null,null,null,null,null,null,null,null,null,null,null,null,null,null,null,null,null,null,null,null,null,null,null,null,null,null,null,null,null,null,null,null,null,null,null,null,null,null,null,null,null,null,null,null,null,null,"PAZARTESİ",{"$f":"Veriler!#REF!","v":{"$error":"#REF!"}},{"$f":"Veriler!#REF!","v":{"$error":"#REF!"}},{"$f":"Veriler!#REF!","v":{"$error":"#REF!"}},{"$f":"Veriler!#REF!","v":{"$error":"#REF!"}},43]
[null,null,null,null,null,null,null,null,null,null,null,null,null,null,null,null,null,null,null,null,null,null,null,null,null,null,null,null,null,null,null,null,null,null,null,null,null,null,null,null,null,null,null,null,null,null,null,null,null,null,null,null,null,null,null,null,null,null,null,null,null,null,null,null,null,null,null,null,null,null,null,"SALI",{"$f":"Veriler!#REF!","v":{"$error":"#REF!"}},{"$f":"Veriler!#REF!","v":{"$error":"#REF!"}},{"$f":"Veriler!#REF!","v":{"$error":"#REF!"}},{"$f":"Veriler!#REF!","v":{"$error":"#REF!"}}]
[null,null,null,null,null,null,null,null,null,null,null,null,null,null,null,null,null,null,null,null,null,null,null,null,null,null,null,null,null,null,null,null,null,null,null,null,null,null,null,null,null,null,null,null,null,null,null,null,null,null,null,null,null,null,null,null,null,null,null,null,null,null,null,null,null,null,null,null,null,null,null,"ÇARŞAMBA",{"$f":"Veriler!#REF!","v":{"$error":"#REF!"}},{"$f":"Veriler!#REF!","v":{"$error":"#REF!"}},{"$f":"Veriler!#REF!","v":{"$error":"#REF!"}},{"$f":"Veriler!#REF!","v":{"$error":"#REF!"}}]
[null,null,null,null,null,null,null,null,null,null,null,null,null,null,null,null,null,null,null,null,null,null,null,null,null,null,null,null,null,null,null,null,null,null,null,null,null,null,null,null,null,null,null,null,null,null,null,null,null,null,null,null,null,null,null,null,null,null,null,null,null,null,null,null,null,null,null,null,null,null,null,"PERŞEMBE",{"$f":"Veriler!#REF!","v":{"$error":"#REF!"}},{"$f":"Veriler!#REF!","v":{"$error":"#REF!"}},{"$f":"Veriler!#REF!","v":{"$error":"#REF!"}},{"$f":"Veriler!#REF!","v":{"$error":"#REF!"}}]
[null,null,null,null,null,null,null,null,null,null,null,null,null,null,null,null,null,null,null,null,null,null,null,null,null,null,null,null,null,null,null,null,null,null,null,null,null,null,null,null,null,null,null,null,null,null,null,null,null,null,null,null,null,null,null,null,null,null,null,null,null,null,null,null,null,null,null,null,null,null,null,"CUMA",{"$f":"Veriler!#REF!","v":{"$error":"#REF!"}},{"$f":"Veriler!#REF!","v":{"$error":"#REF!"}},{"$f":"Veriler!#REF!","v":{"$error":"#REF!"}},{"$f":"Veriler!#REF!","v":{"$error":"#REF!"}}]
["13. HAFTA",null,null,null,null,null,null,null,null,null,null,null,null,null,null,null,null,null,null,null,null,null,null,null,null,null,null,null,null,null,null,null,null,null,null,null,null,null,null,null,null,null,null,null,null,null,null,null,null,null,null,null,null,null,null,null,null,null,null,null,null,null,null,null,null,null,null,null,null,null,null,"CUMARTESİ",{"$f":"Veriler!#REF!","v":{"$error":"#REF!"}},{"$f":"Veriler!#REF!","v":{"$error":"#REF!"}},{"$f":"Veriler!#REF!","v":{"$error":"#REF!"}},{"$f":"Veriler!#REF!","v":{"$error":"#REF!"}}]
[null,null,null,null,null,null,null,null,null,null,null,null,null,null,null,null,null,null,null,null,null,null,null,null,null,null,null,null,null,null,null,null,null,null,null,null,null,null,null,null,null,null,null,null,null,null,null,null,null,null,null,null,null,null,null,null,null,null,null,null,null,null,null,null,null,null,null,null,null,null,null,"PAZAR",{"$f":"Veriler!#REF!","v":{"$error":"#REF!"}},{"$f":"Veriler!#REF!","v":{"$error":"#REF!"}},{"$f":"Veriler!#REF!","v":{"$error":"#REF!"}},{"$f":"Veriler!#REF!","v":{"$error":"#REF!"}}]
[null,null,null,null,null,null,null,null,null,null,null,null,null,null,null,null,null,null,null,null,null,null,null,null,null,null,null,null,null,null,null,null,null,null,null,null,null,null,null,null,null,null,null,null,null,null,null,null,null,null,null,null,null,null,null,null,null,null,null,null,null,null,null,null,null,null,null,null,null,null,null,"PAZARTESİ",{"$f":"Veriler!#REF!","v":{"$error":"#REF!"}},{"$f":"Veriler!#REF!","v":{"$error":"#REF!"}},{"$f":"Veriler!#REF!","v":{"$error":"#REF!"}},{"$f":"Veriler!#REF!","v":{"$error":"#REF!"}},44]
[null,null,null,null,null,null,null,null,null,null,null,null,null,null,null,null,null,null,null,null,null,null,null,null,null,null,null,null,null,null,null,null,null,null,null,null,null,null,null,null,null,null,null,null,null,null,null,null,null,null,null,null,null,null,null,null,null,null,null,null,null,null,null,null,null,null,null,null,null,null,null,"SALI",{"$f":"Veriler!#REF!","v":{"$error":"#REF!"}},{"$f":"Veriler!#REF!","v":{"$error":"#REF!"}},{"$f":"Veriler!#REF!","v":{"$error":"#REF!"}},{"$f":"Veriler!#REF!","v":{"$error":"#REF!"}}]
[null,null,null,null,null,null,null,null,null,null,null,null,null,null,null,null,null,null,null,null,null,null,null,null,null,null,null,null,null,null,null,null,null,null,null,null,null,null,null,null,null,null,null,null,null,null,null,null,null,null,null,null,null,null,null,null,null,null,null,null,null,null,null,null,null,null,null,null,null,null,null,"ÇARŞAMBA",{"$f":"Veriler!#REF!","v":{"$error":"#REF!"}},{"$f":"Veriler!#REF!","v":{"$error":"#REF!"}},{"$f":"Veriler!#REF!","v":{"$error":"#REF!"}},{"$f":"Veriler!#REF!","v":{"$error":"#REF!"}}]
[null,null,null,null,null,null,null,null,null,null,null,null,null,null,null,null,null,null,null,null,null,null,null,null,null,null,null,null,null,null,null,null,null,null,null,null,null,null,null,null,null,null,null,null,null,null,null,null,null,null,null,null,null,null,null,null,null,null,null,null,null,null,null,null,null,null,null,null,null,null,null,"PERŞEMBE",{"$f":"Veriler!#REF!","v":{"$error":"#REF!"}},{"$f":"Veriler!#REF!","v":{"$error":"#REF!"}},{"$f":"Veriler!#REF!","v":{"$error":"#REF!"}},{"$f":"Veriler!#REF!","v":{"$error":"#REF!"}}]
[null,null,null,null,null,null,null,null,null,null,null,null,null,null,null,null,null,null,null,null,null,null,null,null,null,null,null,null,null,null,null,null,null,null,null,null,null,null,null,null,null,null,null,null,null,null,null,null,null,null,null,null,null,null,null,null,null,null,null,null,null,null,null,null,null,null,null,null,null,null,null,"CUMA",{"$f":"Veriler!#REF!","v":{"$error":"#REF!"}},{"$f":"Veriler!#REF!","v":{"$error":"#REF!"}},{"$f":"Veriler!#REF!","v":{"$error":"#REF!"}},{"$f":"Veriler!#REF!","v":{"$error":"#REF!"}}]
[null,null,null,null,null,null,null,null,null,null,null,null,null,null,null,null,null,null,null,null,null,null,null,null,null,null,null,null,null,null,null,null,null,null,null,null,null,null,null,null,null,null,null,null,null,null,null,null,null,null,null,null,null,null,null,null,null,null,null,null,null,null,null,null,null,null,null,null,null,null,null,"CUMARTESİ",{"$f":"Veriler!#REF!","v":{"$error":"#REF!"}},{"$f":"Veriler!#REF!","v":{"$error":"#REF!"}},{"$f":"Veriler!#REF!","v":{"$error":"#REF!"}},{"$f":"Veriler!#REF!","v":{"$error":"#REF!"}}]
[null,null,null,null,null,null,null,null,null,null,null,null,null,null,null,null,null,null,null,null,null,null,null,null,null,null,null,null,null,null,null,null,null,null,null,null,null,null,null,null,null,null,null,null,null,null,null,null,null,null,null,null,null,null,null,null,null,null,null,null,null,null,null,null,null,null,null,null,null,null,null,"PAZAR",{"$f":"Veriler!#REF!","v":{"$error":"#REF!"}},{"$f":"Veriler!#REF!","v":{"$error":"#REF!"}},{"$f":"Veriler!#REF!","v":{"$error":"#REF!"}},{"$f":"Veriler!#REF!","v":{"$error":"#REF!"}}]
[null,null,null,null,null,null,null,null,null,null,null,null,null,null,null,null,null,null,null,null,null,null,null,null,null,null,null,null,null,null,null,null,null,null,null,null,null,null,null,null,null,null,null,null,null,null,null,null,null,null,null,null,null,null,null,null,null,null,null,null,null,null,null,null,null,null,null,null,null,null,null,"PAZARTESİ",{"$f":"Veriler!#REF!","v":{"$error":"#REF!"}},{"$f":"Veriler!#REF!","v":{"$error":"#REF!"}},{"$f":"Veriler!#REF!","v":{"$error":"#REF!"}},{"$f":"Veriler!#REF!","v":{"$error":"#REF!"}},45]
[null,null,null,null,null,null,null,null,null,null,null,null,null,null,null,null,null,null,null,null,null,null,null,null,null,null,null,null,null,null,null,null,null,null,null,null,null,null,null,null,null,null,null,null,null,null,null,null,null,null,null,null,null,null,null,null,null,null,null,null,null,null,null,null,null,null,null,null,null,null,null,"SALI",{"$f":"Veriler!#REF!","v":{"$error":"#REF!"}},{"$f":"Veriler!#REF!","v":{"$error":"#REF!"}},{"$f":"Veriler!#REF!","v":{"$error":"#REF!"}},{"$f":"Veriler!#REF!","v":{"$error":"#REF!"}}]
[null,null,null,null,null,null,null,null,null,null,null,null,null,null,null,null,null,null,null,null,null,null,null,null,null,null,null,null,null,null,null,null,null,null,null,null,null,null,null,null,null,null,null,null,null,null,null,null,null,null,null,null,null,null,null,null,null,null,null,null,null,null,null,null,null,null,null,null,null,null,null,"ÇARŞAMBA",{"$f":"Veriler!#REF!","v":{"$error":"#REF!"}},{"$f":"Veriler!#REF!","v":{"$error":"#REF!"}},{"$f":"Veriler!#REF!","v":{"$error":"#REF!"}},{"$f":"Veriler!#REF!","v":{"$error":"#REF!"}}]
[null,null,null,null,null,null,null,null,null,null,null,null,null,null,null,null,null,null,null,null,null,null,null,null,null,null,null,null,null,null,null,null,null,null,null,null,null,null,null,null,null,null,null,null,null,null,null,null,null,null,null,null,null,null,null,null,null,null,null,null,null,null,null,null,null,null,null,null,null,null,null,"PERŞEMBE",{"$f":"Veriler!#REF!","v":{"$error":"#REF!"}},{"$f":"Veriler!#REF!","v":{"$error":"#REF!"}},{"$f":"Veriler!#REF!","v":{"$error":"#REF!"}},{"$f":"Veriler!#REF!","v":{"$error":"#REF!"}}]
[null,null,null,null,null,null,null,null,null,null,null,null,null,null,null,null,null,null,null,null,null,null,null,null,null,null,null,null,null,null,null,null,null,null,null,null,null,null,null,null,null,null,null,null,null,null,null,null,null,null,null,null,null,null,null,null,null,null,null,null,null,null,null,null,null,null,null,null,null,null,null,"CUMA",{"$f":"Veriler!#REF!","v":{"$error":"#REF!"}},{"$f":"Veriler!#REF!","v":{"$error":"#REF!"}},{"$f":"Veriler!#REF!","v":{"$error":"#REF!"}},{"$f":"Veriler!#REF!","v":{"$error":"#REF!"}}]
[null,null,null,null,null,null,null,null,null,null,null,null,null,null,null,null,null,null,null,null,null,null,null,null,null,null,null,null,null,null,null,null,null,null,null,null,null,null,null,null,null,null,null,null,null,null,null,null,null,null,null,null,null,null,null,null,null,null,null,null,null,null,null,null,null,null,null,null,null,null,null,"CUMARTESİ",{"$f":"Veriler!#REF!","v":{"$error":"#REF!"}},{"$f":"Veriler!#REF!","v":{"$error":"#REF!"}},{"$f":"Veriler!#REF!","v":{"$error":"#REF!"}},{"$f":"Veriler!#REF!","v":{"$error":"#REF!"}}]
[null,null,null,null,null,null,null,null,null,null,null,null,null,null,null,null,null,null,null,null,null,null,null,null,null,null,null,null,null,null,null,null,null,null,null,null,null,null,null,null,null,null,null,null,null,null,null,null,null,null,null,null,null,null,null,null,null,null,null,null,null,null,null,null,null,null,null,null,null,null,null,"PAZAR",{"$f":"Veriler!#REF!","v":{"$error":"#REF!"}},{"$f":"Veriler!#REF!","v":{"$error":"#REF!"}},{"$f":"Veriler!#REF!","v":{"$error":"#REF!"}},{"$f":"Veriler!#REF!","v":{"$error":"#REF!"}}]
[null,null,null,null,null,null,null,null,null,null,null,null,null,null,null,null,null,null,null,null,null,null,null,null,null,null,null,null,null,null,null,null,null,null,null,null,null,null,null,null,null,null,null,null,null,null,null,null,null,null,null,null,null,null,null,null,null,null,null,null,null,null,null,null,null,null,null,null,null,null,null,"PAZARTESİ",{"$f":"Veriler!#REF!","v":{"$error":"#REF!"}},{"$f":"Veriler!#REF!","v":{"$error":"#REF!"}},{"$f":"Veriler!#REF!","v":{"$error":"#REF!"}},{"$f":"Veriler!#REF!","v":{"$error":"#REF!"}},46]
[null,null,null,null,null,null,null,null,null,null,null,null,null,null,null,null,null,null,null,null,null,null,null,null,null,null,null,null,null,null,null,null,null,null,null,null,null,null,null,null,null,null,null,null,null,null,null,null,null,null,null,null,null,null,null,null,null,null,null,null,null,null,null,null,null,null,null,null,null,null,null,"SALI",{"$f":"Veriler!#REF!","v":{"$error":"#REF!"}},{"$f":"Veriler!#REF!","v":{"$error":"#REF!"}},{"$f":"Veriler!#REF!","v":{"$error":"#REF!"}},{"$f":"Veriler!#REF!","v":{"$error":"#REF!"}}]
[null,null,null,null,null,null,null,null,null,null,null,null,null,null,null,null,null,null,null,null,null,null,null,null,null,null,null,null,null,null,null,null,null,null,null,null,null,null,null,null,null,null,null,null,null,null,null,null,null,null,null,null,null,null,null,null,null,null,null,null,null,null,null,null,null,null,null,null,null,null,null,"ÇARŞAMBA",{"$f":"Veriler!#REF!","v":{"$error":"#REF!"}},{"$f":"Veriler!#REF!","v":{"$error":"#REF!"}},{"$f":"Veriler!#REF!","v":{"$error":"#REF!"}},{"$f":"Veriler!#REF!","v":{"$error":"#REF!"}}]
[null,null,null,null,null,null,null,null,null,null,null,null,null,null,null,null,null,null,null,null,null,null,null,null,null,null,null,null,null,null,null,null,null,null,null,null,null,null,null,null,null,null,null,null,null,null,null,null,null,null,null,null,null,null,null,null,null,null,null,null,null,null,null,null,null,null,null,null,null,null,null,"PERŞEMBE",{"$f":"Veriler!#REF!","v":{"$error":"#REF!"}},{"$f":"Veriler!#REF!","v":{"$error":"#REF!"}},{"$f":"Veriler!#REF!","v":{"$error":"#REF!"}},{"$f":"Veriler!#REF!","v":{"$error":"#REF!"}}]
[null,null,null,null,null,null,null,null,null,null,null,null,null,null,null,null,null,null,null,null,null,null,null,null,null,null,null,null,null,null,null,null,null,null,null,null,null,null,null,null,null,null,null,null,null,null,null,null,null,null,null,null,null,null,null,null,null,null,null,null,null,null,null,null,null,null,null,null,null,null,null,"CUMA",{"$f":"Veriler!#REF!","v":{"$error":"#REF!"}},{"$f":"Veriler!#REF!","v":{"$error":"#REF!"}},{"$f":"Veriler!#REF!","v":{"$error":"#REF!"}},{"$f":"Veriler!#REF!","v":{"$error":"#REF!"}}]
[null,null,null,null,null,null,null,null,null,null,null,null,null,null,null,null,null,null,null,null,null,null,null,null,null,null,null,null,null,null,null,null,null,null,null,null,null,null,null,null,null,null,null,null,null,null,null,null,null,null,null,null,null,null,null,null,null,null,null,null,null,null,null,null,null,null,null,null,null,null,null,"CUMARTESİ",{"$f":"Veriler!#REF!","v":{"$error":"#REF!"}},{"$f":"Veriler!#REF!","v":{"$error":"#REF!"}},{"$f":"Veriler!#REF!","v":{"$error":"#REF!"}},{"$f":"Veriler!#REF!","v":{"$error":"#REF!"}}]
[null,null,null,null,null,null,null,null,null,null,null,null,null,null,null,null,null,null,null,null,null,null,null,null,null,null,null,null,null,null,null,null,null,null,null,null,null,null,null,null,null,null,null,null,null,null,null,null,null,null,null,null,null,null,null,null,null,null,null,null,null,null,null,null,null,null,null,null,null,null,null,"PAZAR",{"$f":"Veriler!#REF!","v":{"$error":"#REF!"}},{"$f":"Veriler!#REF!","v":{"$error":"#REF!"}},{"$f":"Veriler!#REF!","v":{"$error":"#REF!"}},{"$f":"Veriler!#REF!","v":{"$error":"#REF!"}}]
[null,null,null,null,null,null,null,null,null,null,null,null,null,null,null,null,null,null,null,null,null,null,null,null,null,null,null,null,null,null,null,null,null,null,null,null,null,null,null,null,null,null,null,null,null,null,null,null,null,null,null,null,null,null,null,null,null,null,null,null,null,null,null,null,null,null,null,null,null,null,null,"PAZARTESİ",{"$f":"Veriler!#REF!","v":{"$error":"#REF!"}},{"$f":"Veriler!#REF!","v":{"$error":"#REF!"}},{"$f":"Veriler!#REF!","v":{"$error":"#REF!"}},{"$f":"Veriler!#REF!","v":{"$error":"#REF!"}},47]
[null,null,null,null,null,null,null,null,null,null,null,null,null,null,null,null,null,null,null,null,null,null,null,null,null,null,null,null,null,null,null,null,null,null,null,null,null,null,null,null,null,null,null,null,null,null,null,null,null,null,null,null,null,null,null,null,null,null,null,null,null,null,null,null,null,null,null,null,null,null,null,"SALI",{"$f":"Veriler!#REF!","v":{"$error":"#REF!"}},{"$f":"Veriler!#REF!","v":{"$error":"#REF!"}},{"$f":"Veriler!#REF!","v":{"$error":"#REF!"}},{"$f":"Veriler!#REF!","v":{"$error":"#REF!"}}]
["14. HAFTA",null,null,null,null,null,null,null,null,null,null,null,null,null,null,null,null,null,null,null,null,null,null,null,null,null,null,null,null,null,null,null,null,null,null,null,null,null,null,null,null,null,null,null,null,null,null,null,null,null,null,null,null,null,null,null,null,null,null,null,null,null,null,null,null,null,null,null,null,null,null,"ÇARŞAMBA",{"$f":"Veriler!#REF!","v":{"$error":"#REF!"}},{"$f":"Veriler!#REF!","v":{"$error":"#REF!"}},{"$f":"Veriler!#REF!","v":{"$error":"#REF!"}},{"$f":"Veriler!#REF!","v":{"$error":"#REF!"}}]
[null,null,null,null,null,null,null,null,null,null,null,null,null,null,null,null,null,null,null,null,null,null,null,null,null,null,null,null,null,null,null,null,null,null,null,null,null,null,null,null,null,null,null,null,null,null,null,null,null,null,null,null,null,null,null,null,null,null,null,null,null,null,null,null,null,null,null,null,null,null,null,"PERŞEMBE",{"$f":"Veriler!#REF!","v":{"$error":"#REF!"}},{"$f":"Veriler!#REF!","v":{"$error":"#REF!"}},{"$f":"Veriler!#REF!","v":{"$error":"#REF!"}},{"$f":"Veriler!#REF!","v":{"$error":"#REF!"}}]
[null,null,null,null,null,null,null,null,null,null,null,null,null,null,null,null,null,null,null,null,null,null,null,null,null,null,null,null,null,null,null,null,null,null,null,null,null,null,null,null,null,null,null,null,null,null,null,null,null,null,null,null,null,null,null,null,null,null,null,null,null,null,null,null,null,null,null,null,null,null,null,"CUMA",{"$f":"Veriler!#REF!","v":{"$error":"#REF!"}},{"$f":"Veriler!#REF!","v":{"$error":"#REF!"}},{"$f":"Veriler!#REF!","v":{"$error":"#REF!"}},{"$f":"Veriler!#REF!","v":{"$error":"#REF!"}}]
[null,null,null,null,null,null,null,null,null,null,null,null,null,null,null,null,null,null,null,null,null,null,null,null,null,null,null,null,null,null,null,null,null,null,null,null,null,null,null,null,null,null,null,null,null,null,null,null,null,null,null,null,null,null,null,null,null,null,null,null,null,null,null,null,null,null,null,null,null,null,null,"CUMARTESİ",{"$f":"Veriler!#REF!","v":{"$error":"#REF!"}},{"$f":"Veriler!#REF!","v":{"$error":"#REF!"}},{"$f":"Veriler!#REF!","v":{"$error":"#REF!"}},{"$f":"Veriler!#REF!","v":{"$error":"#REF!"}}]
[null,null,null,null,null,null,null,null,null,null,null,null,null,null,null,null,null,null,null,null,null,null,null,null,null,null,null,null,null,null,null,null,null,null,null,null,null,null,null,null,null,null,null,null,null,null,null,null,null,null,null,null,null,null,null,null,null,null,null,null,null,null,null,null,null,null,null,null,null,null,null,"PAZAR",{"$f":"Veriler!#REF!","v":{"$error":"#REF!"}},{"$f":"Veriler!#REF!","v":{"$error":"#REF!"}},{"$f":"Veriler!#REF!","v":{"$error":"#REF!"}},{"$f":"Veriler!#REF!","v":{"$error":"#REF!"}}]
[null,null,null,null,null,null,null,null,null,null,null,null,null,null,null,null,null,null,null,null,null,null,null,null,null,null,null,null,null,null,null,null,null,null,null,null,null,null,null,null,null,null,null,null,null,null,null,null,null,null,null,null,null,null,null,null,null,null,null,null,null,null,null,null,null,null,null,null,null,null,null,"PAZARTESİ",{"$f":"Veriler!#REF!","v":{"$error":"#REF!"}},{"$f":"Veriler!#REF!","v":{"$error":"#REF!"}},{"$f":"Veriler!#REF!","v":{"$error":"#REF!"}},{"$f":"Veriler!#REF!","v":{"$error":"#REF!"}},48]
[null,null,null,null,null,null,null,null,null,null,null,null,null,null,null,null,null,null,null,null,null,null,null,null,null,null,null,null,null,null,null,null,null,null,null,null,null,null,null,null,null,null,null,null,null,null,null,null,null,null,null,null,null,null,null,null,null,null,null,null,null,null,null,null,null,null,null,null,null,null,null,"SALI",{"$f":"Veriler!#REF!","v":{"$error":"#REF!"}},{"$f":"Veriler!#REF!","v":{"$error":"#REF!"}},{"$f":"Veriler!#REF!","v":{"$error":"#REF!"}},{"$f":"Veriler!#REF!","v":{"$error":"#REF!"}}]
[null,null,null,null,null,null,null,null,null,null,null,null,null,null,null,null,null,null,null,null,null,null,null,null,null,null,null,null,null,null,null,null,null,null,null,null,null,null,null,null,null,null,null,null,null,null,null,null,null,null,null,null,null,null,null,null,null,null,null,null,null,null,null,null,null,null,null,null,null,null,null,"ÇARŞAMBA",{"$f":"Veriler!#REF!","v":{"$error":"#REF!"}},{"$f":"Veriler!#REF!","v":{"$error":"#REF!"}},{"$f":"Veriler!#REF!","v":{"$error":"#REF!"}},{"$f":"Veriler!#REF!","v":{"$error":"#REF!"}}]
[null,null,null,null,null,null,null,null,null,null,null,null,null,null,null,null,null,null,null,null,null,null,null,null,null,null,null,null,null,null,null,null,null,null,null,null,null,null,null,null,null,null,null,null,null,null,null,null,null,null,null,null,null,null,null,null,null,null,null,null,null,null,null,null,null,null,null,null,null,null,null,"PERŞEMBE",{"$f":"Veriler!#REF!","v":{"$error":"#REF!"}},{"$f":"Veriler!#REF!","v":{"$error":"#REF!"}},{"$f":"Veriler!#REF!","v":{"$error":"#REF!"}},{"$f":"Veriler!#REF!","v":{"$error":"#REF!"}}]
[null,null,null,null,null,null,null,null,null,null,null,null,null,null,null,null,null,null,null,null,null,null,null,null,null,null,null,null,null,null,null,null,null,null,null,null,null,null,null,null,null,null,null,null,null,null,null,null,null,null,null,null,null,null,null,null,null,null,null,null,null,null,null,null,null,null,null,null,null,null,null,"CUMA",{"$f":"Veriler!#REF!","v":{"$error":"#REF!"}},{"$f":"Veriler!#REF!","v":{"$error":"#REF!"}},{"$f":"Veriler!#REF!","v":{"$error":"#REF!"}},{"$f":"Veriler!#REF!","v":{"$error":"#REF!"}}]
[null,null,null,null,null,null,null,null,null,null,null,null,null,null,null,null,null,null,null,null,null,null,null,null,null,null,null,null,null,null,null,null,null,null,null,null,null,null,null,null,null,null,null,null,null,null,null,null,null,null,null,null,null,null,null,null,null,null,null,null,null,null,null,null,null,null,null,null,null,null,null,"CUMARTESİ",{"$f":"Veriler!#REF!","v":{"$error":"#REF!"}},{"$f":"Veriler!#REF!","v":{"$error":"#REF!"}},{"$f":"Veriler!#REF!","v":{"$error":"#REF!"}},{"$f":"Veriler!#REF!","v":{"$error":"#REF!"}}]
[null,null,null,null,null,null,null,null,null,null,null,null,null,null,null,null,null,null,null,null,null,null,null,null,null,null,null,null,null,null,null,null,null,null,null,null,null,null,null,null,null,null,null,null,null,null,null,null,null,null,null,null,null,null,null,null,null,null,null,null,null,null,null,null,null,null,null,null,null,null,null,"PAZAR",{"$f":"Veriler!#REF!","v":{"$error":"#REF!"}},{"$f":"Veriler!#REF!","v":{"$error":"#REF!"}},{"$f":"Veriler!#REF!","v":{"$error":"#REF!"}},{"$f":"Veriler!#REF!","v":{"$error":"#REF!"}}]
[null,null,null,null,null,null,null,null,null,null,null,null,null,null,null,null,null,null,null,null,null,null,null,null,null,null,null,null,null,null,null,null,null,null,null,null,null,null,null,null,null,null,null,null,null,null,null,null,null,null,null,null,null,null,null,null,null,null,null,null,null,null,null,null,null,null,null,null,null,null,null,"PAZARTESİ",{"$f":"Veriler!#REF!","v":{"$error":"#REF!"}},{"$f":"Veriler!#REF!","v":{"$error":"#REF!"}},{"$f":"Veriler!#REF!","v":{"$error":"#REF!"}},{"$f":"Veriler!#REF!","v":{"$error":"#REF!"}},49]
[null,null,null,null,null,null,null,null,null,null,null,null,null,null,null,null,null,null,null,null,null,null,null,null,null,null,null,null,null,null,null,null,null,null,null,null,null,null,null,null,null,null,null,null,null,null,null,null,null,null,null,null,null,null,null,null,null,null,null,null,null,null,null,null,null,null,null,null,null,null,null,"SALI",{"$f":"Veriler!#REF!","v":{"$error":"#REF!"}},{"$f":"Veriler!#REF!","v":{"$error":"#REF!"}},{"$f":"Veriler!#REF!","v":{"$error":"#REF!"}},{"$f":"Veriler!#REF!","v":{"$error":"#REF!"}}]
[null,null,null,null,null,null,null,null,null,null,null,null,null,null,null,null,null,null,null,null,null,null,null,null,null,null,null,null,null,null,null,null,null,null,null,null,null,null,null,null,null,null,null,null,null,null,null,null,null,null,null,null,null,null,null,null,null,null,null,null,null,null,null,null,null,null,null,null,null,null,null,"ÇARŞAMBA",{"$f":"Veriler!#REF!","v":{"$error":"#REF!"}},{"$f":"Veriler!#REF!","v":{"$error":"#REF!"}},{"$f":"Veriler!#REF!","v":{"$error":"#REF!"}},{"$f":"Veriler!#REF!","v":{"$error":"#REF!"}}]
[null,null,null,null,null,null,null,null,null,null,null,null,null,null,null,null,null,null,null,null,null,null,null,null,null,null,null,null,null,null,null,null,null,null,null,null,null,null,null,null,null,null,null,null,null,null,null,null,null,null,null,null,null,null,null,null,null,null,null,null,null,null,null,null,null,null,null,null,null,null,null,"PERŞEMBE",{"$f":"Veriler!#REF!","v":{"$error":"#REF!"}},{"$f":"Veriler!#REF!","v":{"$error":"#REF!"}},{"$f":"Veriler!#REF!","v":{"$error":"#REF!"}},{"$f":"Veriler!#REF!","v":{"$error":"#REF!"}}]
[null,null,null,null,null,null,null,null,null,null,null,null,null,null,null,null,null,null,null,null,null,null,null,null,null,null,null,null,null,null,null,null,null,null,null,null,null,null,null,null,null,null,null,null,null,null,null,null,null,null,null,null,null,null,null,null,null,null,null,null,null,null,null,null,null,null,null,null,null,null,null,"CUMA",{"$f":"Veriler!#REF!","v":{"$error":"#REF!"}},{"$f":"Veriler!#REF!","v":{"$error":"#REF!"}},{"$f":"Veriler!#REF!","v":{"$error":"#REF!"}},{"$f":"Veriler!#REF!","v":{"$error":"#REF!"}}]
[null,null,null,null,null,null,null,null,null,null,null,null,null,null,null,null,null,null,null,null,null,null,null,null,null,null,null,null,null,null,null,null,null,null,null,null,null,null,null,null,null,null,null,null,null,null,null,null,null,null,null,null,null,null,null,null,null,null,null,null,null,null,null,null,null,null,null,null,null,null,null,"CUMARTESİ",{"$f":"Veriler!#REF!","v":{"$error":"#REF!"}},{"$f":"Veriler!#REF!","v":{"$error":"#REF!"}},{"$f":"Veriler!#REF!","v":{"$error":"#REF!"}},{"$f":"Veriler!#REF!","v":{"$error":"#REF!"}}]
[null,null,null,null,null,null,null,null,null,null,null,null,null,null,null,null,null,null,null,null,null,null,null,null,null,null,null,null,null,null,null,null,null,null,null,null,null,null,null,null,null,null,null,null,null,null,null,null,null,null,null,null,null,null,null,null,null,null,null,null,null,null,null,null,null,null,null,null,null,null,null,"PAZAR",{"$f":"Veriler!#REF!","v":{"$error":"#REF!"}},{"$f":"Veriler!#REF!","v":{"$error":"#REF!"}},{"$f":"Veriler!#REF!","v":{"$error":"#REF!"}},{"$f":"Veriler!#REF!","v":{"$error":"#REF!"}}]
[null,null,null,null,null,null,null,null,null,null,null,null,null,null,null,null,null,null,null,null,null,null,null,null,null,null,null,null,null,null,null,null,null,null,null,null,null,null,null,null,null,null,null,null,null,null,null,null,null,null,null,null,null,null,null,null,null,null,null,null,null,null,null,null,null,null,null,null,null,null,null,"PAZARTESİ",{"$f":"Veriler!#REF!","v":{"$error":"#REF!"}},{"$f":"Veriler!#REF!","v":{"$error":"#REF!"}},{"$f":"Veriler!#REF!","v":{"$error":"#REF!"}},{"$f":"Veriler!#REF!","v":{"$error":"#REF!"}},50]
[null,null,null,null,null,null,null,null,null,null,null,null,null,null,null,null,null,null,null,null,null,null,null,null,null,null,null,null,null,null,null,null,null,null,null,null,null,null,null,null,null,null,null,null,null,null,null,null,null,null,null,null,null,null,null,null,null,null,null,null,null,null,null,null,null,null,null,null,null,null,null,"SALI",{"$f":"Veriler!#REF!","v":{"$error":"#REF!"}},{"$f":"Veriler!#REF!","v":{"$error":"#REF!"}},{"$f":"Veriler!#REF!","v":{"$error":"#REF!"}},{"$f":"Veriler!#REF!","v":{"$error":"#REF!"}}]
[null,null,null,null,null,null,null,null,null,null,null,null,null,null,null,null,null,null,null,null,null,null,null,null,null,null,null,null,null,null,null,null,null,null,null,null,null,null,null,null,null,null,null,null,null,null,null,null,null,null,null,null,null,null,null,null,null,null,null,null,null,null,null,null,null,null,null,null,null,null,null,"ÇARŞAMBA",{"$f":"Veriler!#REF!","v":{"$error":"#REF!"}},{"$f":"Veriler!#REF!","v":{"$error":"#REF!"}},{"$f":"Veriler!#REF!","v":{"$error":"#REF!"}},{"$f":"Veriler!#REF!","v":{"$error":"#REF!"}}]
[null,null,null,null,null,null,null,null,null,null,null,null,null,null,null,null,null,null,null,null,null,null,null,null,null,null,null,null,null,null,null,null,null,null,null,null,null,null,null,null,null,null,null,null,null,null,null,null,null,null,null,null,null,null,null,null,null,null,null,null,null,null,null,null,null,null,null,null,null,null,null,"PERŞEMBE",{"$f":"Veriler!#REF!","v":{"$error":"#REF!"}},{"$f":"Veriler!#REF!","v":{"$error":"#REF!"}},{"$f":"Veriler!#REF!","v":{"$error":"#REF!"}},{"$f":"Veriler!#REF!","v":{"$error":"#REF!"}}]
[null,null,null,null,null,null,null,null,null,null,null,null,null,null,null,null,null,null,null,null,null,null,null,null,null,null,null,null,null,null,null,null,null,null,null,null,null,null,null,null,null,null,null,null,null,null,null,null,null,null,null,null,null,null,null,null,null,null,null,null,null,null,null,null,null,null,null,null,null,null,null,"CUMA",{"$f":"Veriler!#REF!","v":{"$error":"#REF!"}},{"$f":"Veriler!#REF!","v":{"$error":"#REF!"}},{"$f":"Veriler!#REF!","v":{"$error":"#REF!"}},{"$f":"Veriler!#REF!","v":{"$error":"#REF!"}}]
[null,null,null,null,null,null,null,null,null,null,null,null,null,null,null,null,null,null,null,null,null,null,null,null,null,null,null,null,null,null,null,null,null,null,null,null,null,null,null,null,null,null,null,null,null,null,null,null,null,null,null,null,null,null,null,null,null,null,null,null,null,null,null,null,null,null,null,null,null,null,null,"CUMARTESİ",{"$f":"Veriler!#REF!","v":{"$error":"#REF!"}},{"$f":"Veriler!#REF!","v":{"$error":"#REF!"}},{"$f":"Veriler!#REF!","v":{"$error":"#REF!"}},{"$f":"Veriler!#REF!","v":{"$error":"#REF!"}}]
["15. HAFTA",null,null,null,null,null,null,null,null,null,null,null,null,null,null,null,null,null,null,null,null,null,null,null,null,null,null,null,null,null,null,null,null,null,null,null,null,null,null,null,null,null,null,null,null,null,null,null,null,null,null,null,null,null,null,null,null,null,null,null,null,null,null,null,null,null,null,null,null,null,null,"PAZAR",{"$f":"Veriler!#REF!","v":{"$error":"#REF!"}},{"$f":"Veriler!#REF!","v":{"$error":"#REF!"}},{"$f":"Veriler!#REF!","v":{"$error":"#REF!"}},{"$f":"Veriler!#REF!","v":{"$error":"#REF!"}}]
[null,null,null,null,null,null,null,null,null,null,null,null,null,null,null,null,null,null,null,null,null,null,null,null,null,null,null,null,null,null,null,null,null,null,null,null,null,null,null,null,null,null,null,null,null,null,null,null,null,null,null,null,null,null,null,null,null,null,null,null,null,null,null,null,null,null,null,null,null,null,null,"PAZARTESİ",{"$f":"Veriler!#REF!","v":{"$error":"#REF!"}},{"$f":"Veriler!#REF!","v":{"$error":"#REF!"}},{"$f":"Veriler!#REF!","v":{"$error":"#REF!"}},{"$f":"Veriler!#REF!","v":{"$error":"#REF!"}},51]
[null,null,null,null,null,null,null,null,null,null,null,null,null,null,null,null,null,null,null,null,null,null,null,null,null,null,null,null,null,null,null,null,null,null,null,null,null,null,null,null,null,null,null,null,null,null,null,null,null,null,null,null,null,null,null,null,null,null,null,null,null,null,null,null,null,null,null,null,null,null,null,"SALI",{"$f":"Veriler!#REF!","v":{"$error":"#REF!"}},{"$f":"Veriler!#REF!","v":{"$error":"#REF!"}},{"$f":"Veriler!#REF!","v":{"$error":"#REF!"}},{"$f":"Veriler!#REF!","v":{"$error":"#REF!"}}]
[null,null,null,null,null,null,null,null,null,null,null,null,null,null,null,null,null,null,null,null,null,null,null,null,null,null,null,null,null,null,null,null,null,null,null,null,null,null,null,null,null,null,null,null,null,null,null,null,null,null,null,null,null,null,null,null,null,null,null,null,null,null,null,null,null,null,null,null,null,null,null,"ÇARŞAMBA",{"$f":"Veriler!#REF!","v":{"$error":"#REF!"}},{"$f":"Veriler!#REF!","v":{"$error":"#REF!"}},{"$f":"Veriler!#REF!","v":{"$error":"#REF!"}},{"$f":"Veriler!#REF!","v":{"$error":"#REF!"}}]
[null,null,null,null,null,null,null,null,null,null,null,null,null,null,null,null,null,null,null,null,null,null,null,null,null,null,null,null,null,null,null,null,null,null,null,null,null,null,null,null,null,null,null,null,null,null,null,null,null,null,null,null,null,null,null,null,null,null,null,null,null,null,null,null,null,null,null,null,null,null,null,"PERŞEMBE",{"$f":"Veriler!#REF!","v":{"$error":"#REF!"}},{"$f":"Veriler!#REF!","v":{"$error":"#REF!"}},{"$f":"Veriler!#REF!","v":{"$error":"#REF!"}},{"$f":"Veriler!#REF!","v":{"$error":"#REF!"}}]
[null,null,null,null,null,null,null,null,null,null,null,null,null,null,null,null,null,null,null,null,null,null,null,null,null,null,null,null,null,null,null,null,null,null,null,null,null,null,null,null,null,null,null,null,null,null,null,null,null,null,null,null,null,null,null,null,null,null,null,null,null,null,null,null,null,null,null,null,null,null,null,"CUMA",{"$f":"Veriler!#REF!","v":{"$error":"#REF!"}},{"$f":"Veriler!#REF!","v":{"$error":"#REF!"}},{"$f":"Veriler!#REF!","v":{"$error":"#REF!"}},{"$f":"Veriler!#REF!","v":{"$error":"#REF!"}}]
[null,null,null,null,null,null,null,null,null,null,null,null,null,null,null,null,null,null,null,null,null,null,null,null,null,null,null,null,null,null,null,null,null,null,null,null,null,null,null,null,null,null,null,null,null,null,null,null,null,null,null,null,null,null,null,null,null,null,null,null,null,null,null,null,null,null,null,null,null,null,null,"CUMARTESİ",{"$f":"Veriler!#REF!","v":{"$error":"#REF!"}},{"$f":"Veriler!#REF!","v":{"$error":"#REF!"}},{"$f":"Veriler!#REF!","v":{"$error":"#REF!"}},{"$f":"Veriler!#REF!","v":{"$error":"#REF!"}}]
[null,null,null,null,null,null,null,null,null,null,null,null,null,null,null,null,null,null,null,null,null,null,null,null,null,null,null,null,null,null,null,null,null,null,null,null,null,null,null,null,null,null,null,null,null,null,null,null,null,null,null,null,null,null,null,null,null,null,null,null,null,null,null,null,null,null,null,null,null,null,null,"PAZAR",{"$f":"Veriler!#REF!","v":{"$error":"#REF!"}},{"$f":"Veriler!#REF!","v":{"$error":"#REF!"}},{"$f":"Veriler!#REF!","v":{"$error":"#REF!"}},{"$f":"Veriler!#REF!","v":{"$error":"#REF!"}}]
[null,null,null,null,null,null,null,null,null,null,null,null,null,null,null,null,null,null,null,null,null,null,null,null,null,null,null,null,null,null,null,null,null,null,null,null,null,null,null,null,null,null,null,null,null,null,null,null,null,null,null,null,null,null,null,null,null,null,null,null,null,null,null,null,null,null,null,null,null,null,null,"PAZARTESİ",{"$f":"Veriler!#REF!","v":{"$error":"#REF!"}},{"$f":"Veriler!#REF!","v":{"$error":"#REF!"}},{"$f":"Veriler!#REF!","v":{"$error":"#REF!"}},{"$f":"Veriler!#REF!","v":{"$error":"#REF!"}},52]
[null,null,null,null,null,null,null,null,null,null,null,null,null,null,null,null,null,null,null,null,null,null,null,null,null,null,null,null,null,null,null,null,null,null,null,null,null,null,null,null,null,null,null,null,null,null,null,null,null,null,null,null,null,null,null,null,null,null,null,null,null,null,null,null,null,null,null,null,null,null,null,"SALI",{"$f":"Veriler!#REF!","v":{"$error":"#REF!"}},{"$f":"Veriler!#REF!","v":{"$error":"#REF!"}},{"$f":"Veriler!#REF!","v":{"$error":"#REF!"}},{"$f":"Veriler!#REF!","v":{"$error":"#REF!"}}]
[null,null,null,null,null,null,null,null,null,null,null,null,null,null,null,null,null,null,null,null,null,null,null,null,null,null,null,null,null,null,null,null,null,null,null,null,null,null,null,null,null,null,null,null,null,null,null,null,null,null,null,null,null,null,null,null,null,null,null,null,null,null,null,null,null,null,null,null,null,null,null,"ÇARŞAMBA",{"$f":"Veriler!#REF!","v":{"$error":"#REF!"}},{"$f":"Veriler!#REF!","v":{"$error":"#REF!"}},{"$f":"Veriler!#REF!","v":{"$error":"#REF!"}},{"$f":"Veriler!#REF!","v":{"$error":"#REF!"}}]
[null,null,null,null,null,null,null,null,null,null,null,null,null,null,null,null,null,null,null,null,null,null,null,null,null,null,null,null,null,null,null,null,null,null,null,null,null,null,null,null,null,null,null,null,null,null,null,null,null,null,null,null,null,null,null,null,null,null,null,null,null,null,null,null,null,null,null,null,null,null,null,"PERŞEMBE",{"$f":"Veriler!#REF!","v":{"$error":"#REF!"}},{"$f":"Veriler!#REF!","v":{"$error":"#REF!"}},{"$f":"Veriler!#REF!","v":{"$error":"#REF!"}},{"$f":"Veriler!#REF!","v":{"$error":"#REF!"}}]
[null,null,null,null,null,null,null,null,null,null,null,null,null,null,null,null,null,null,null,null,null,null,null,null,null,null,null,null,null,null,null,null,null,null,null,null,null,null,null,null,null,null,null,null,null,null,null,null,null,null,null,null,null,null,null,null,null,null,null,null,null,null,null,null,null,null,null,null,null,null,null,"CUMA",{"$f":"Veriler!#REF!","v":{"$error":"#REF!"}},{"$f":"Veriler!#REF!","v":{"$error":"#REF!"}},{"$f":"Veriler!#REF!","v":{"$error":"#REF!"}},{"$f":"Veriler!#REF!","v":{"$error":"#REF!"}}]
[null,null,null,null,null,null,null,null,null,null,null,null,null,null,null,null,null,null,null,null,null,null,null,null,null,null,null,null,null,null,null,null,null,null,null,null,null,null,null,null,null,null,null,null,null,null,null,null,null,null,null,null,null,null,null,null,null,null,null,null,null,null,null,null,null,null,null,null,null,null,null,"CUMARTESİ",{"$f":"Veriler!#REF!","v":{"$error":"#REF!"}},{"$f":"Veriler!#REF!","v":{"$error":"#REF!"}},{"$f":"Veriler!#REF!","v":{"$error":"#REF!"}},{"$f":"Veriler!#REF!","v":{"$error":"#REF!"}}]
[null,null,null,null,null,null,null,null,null,null,null,null,null,null,null,null,null,null,null,null,null,null,null,null,null,null,null,null,null,null,null,null,null,null,null,null,null,null,null,null,null,null,null,null,null,null,null,null,null,null,null,null,null,null,null,null,null,null,null,null,null,null,null,null,null,null,null,null,null,null,null,"PAZAR",{"$f":"Veriler!#REF!","v":{"$error":"#REF!"}},{"$f":"Veriler!#REF!","v":{"$error":"#REF!"}},{"$f":"Veriler!#REF!","v":{"$error":"#REF!"}},{"$f":"Veriler!#REF!","v":{"$error":"#REF!"}}]
[]
[]
[]
[]
[]
[]
[]
[]
[]
[]
["16. HAFTA"]
[]
[]
[]
[]
[]
[]
[]
[]
[]
[]
[]
[]
[]
[]
[]
[]
[]
[]
[]
[]
[]
[]
[]
[]
["17. HAFTA"]
[]
[]
[]
[]
[]
[]
[]
[]
[]
[]
[]
[]
[]
[]
[]
[]
[]
[]
[]
[]
[]
[]
[]
[]
["18. HAFTA"]
[]
[]
[]
[]
[]
[]
[]
[]
[]
[]
[]
[]
[]
[]
[]
[]
[]
[]
[]
[]
[]
[]
[]
[]
["19. HAFTA"]
[]
[]
[]
[]
[]
[]
[]
[]
[]
[]
[]
[]
[]
[]
[]
[]
[]
[]
[]
[]
[]
[]
[]
[]
["20. HAFTA"]
[]
[]
[]
[]
[]
[]
[]
[]
[]
[]
[]
[]
[]
[]
[]
[]
[]
[]
[]
[]
[]
[]
[]
[]
["21. HAFTA"]
[]
[]
[]
[]
[]
[]
[]
[]
[]
[]
[]
[]
[]
[]
[]
[]
[]
[]
[]
[]
[]
[]
[]
[]
["22. HAFTA"]
[]
[]
[]
[]
[]
[]
[]
[]
[]
[]
[]
[]
[]
[]
[]
[]
[]
[]
[]
[]
[]
[]
[]
[]
["23. HAFTA"]
[]
[]
[]
[]
[]
[]
[]
[]
[]
[]
[]
[]
[]
[]
[]
[]
[]
[]
[]
[]
[]
[]
[]
[]
["24. HAFTA"]
[]
[]
[]
[]
[]
[]
[]
[]
[]
[]
[]
[]
[]
[]
[]
[]
[]
[]
[]
[]
[]
[]
[]
[]
["25. HAFTA"]
[]
[]
[]
[]
[]
[]
[]
[]
[]
[]
[]
[]
[]
[]
[]
[]
[]
[]
[]
[]
[]
[]
[]
[]
["26. HAFTA"]
[]
[]
[]
[]
[]
[]
[]
[]
[]
[]
[]
[]
[]
[]
[]
[]
[]
[]
[]
[]
[]
[]
[]
[]
["27. HAFTA"]
[]
[]
[]
[]
[]
[]
[]
[]
[]
[]
[]
[]
[]
[]
[]
[]
[]
[]
[]
[]
[]
[]
[]
[]
["28. HAFTA"]
[]
[]
[]
[]
[]
[]
[]
[]
[]
[]
[]
[]
[]
[]
[]
[]
[]
[]
[]
[]
[]
[]
[]
[]
["29. HAFTA"]
[]
[]
[]
[]
[]
[]
[]
[]
[]
[]
[]
[]
[]
[]
[]
[]
[]
[]
[]
[]
[]
[]
[]
[]
["30. HAFTA"]
[]
[]
[]
[]
[]
[]
[]
[]
[]
[]
[]
[]
[]
[]
[]
[]
[]
[]
[]
[]
[]
[]
[]
[]
["31. HAFTA"]
[]
[]
[]
[]
[]
[]
[]
[]
[]
[]
[]
[]
[]
[]
[]
[]
[]
[]
[]
[]
[]
[]
[]
[]
["32. HAFTA"]
[]
[]
[]
[]
[]
[]
[]
[]
[]
[]
[]
[]
[]
[]
[]
[]
[]
[]
[]
[]
[]
[]
[]
[]
["33. HAFTA"]
[]
[]
[]
[]
[]
[]
[]
[]
[]
[]
[]
[]
[]
[]
[]
[]
[]
[]
[]
[]
[]
[]
[]
[]
["34. HAFTA"]
[]
[]
[]
[]
[]
[]
[]
[]
[]
[]
[]
[]
[]
[]
[]
[]
[]
[]
[]
[]
[]
[]
[]
[]
["35. HAFTA"]
[]
[]
[]
[]
[]
[]
[]
[]
[]
[]
[]
[]
[]
[]
[]
[]
[]
[]
[]
[]
[]
[]
[]
[]
["36. HAFTA"]